Workbook

Sheet MES
L2: メインメニューへ戻る
C12: ★マクロを有効にしてファイルを開く方法★
C15: 【Excel2016～2021、Microsoft365の場合】
C18: Excelのメニュータブから 「ファイル」 をクリックして、表示された画面の 「オプション」 を
C19: クリックします。
C65: 『Excelのオプション』画面が表示されましたら、画面左側の「トラスト センター」を
C66: クリックして、[トラスト センターの設定（Ｔ）]ボタンをクリックして下さい。
C94: 「トラスト センター」画面が表示されましたら、画面左側の｢マクロの設定」をクリックして、
C95: 「警告を表示してすべてのマクロを無効にする（Ｄ）」をクリックして、［ＯＫ］ボタンで設定画面を
C96: 閉じて下さい。
C126: 以上の設定が完了しましたら本システムを開いた時に、画面上部に「セキュリティの警告」が表示され
C127: ますので、[コンテンツの有効化]ボタンをクリックして下さい。
D163: 下記の画面が出た場合は、[マクロを有効にする]ボタンをクリックして下さい。
C187: ★赤いバー（セキュリティリスク）が表示された場合★
C190: 【Excel2016～2021、Microsoft365の場合】
C193: インターネット・メール等から入手したファイルを開いた際、セキュリティ機能により下記のメッセージが
C194: 表示される事があります。
C195: この状態では、マクロの実行ができないので次の手順で対応をしてください。
C202: セキュリティの「許可」を行う
E204: ※下記作業を行う前に対象ファイルを閉じて下さい
E206: １．Excelファイル（本システム）を「エクスプローラ」で表示
E207: ２．ファイル名を右クリックして、「プロパティ(R)」をクリック
E208: ３．［全般］タブの下にある セキュリティから「許可する(K)」にチェックをいれる
E209: ４．［OK］ボタンをクリックする

Sheet MAIN
E12: A-MODELS共同研究 第1小委員会
E16: 作成年月：2024年10月
F26: ※必ずマクロを有効にして作業してください。
F28: マクロを有効にするには．．．
D31: ・本シミュレータはアンケート結果等を基に作成されています。個別の水質や地理的状況、
D32: 更新内容等による特別な条件は別途検討する必要があります。
D33: ・本シミュレータを使って得られた結果について、著作者は一切の責任を負いません。
D34: ・本シミュレータの改変、再配布を禁じます。

Sheet 基本情報 (hidden)
G2: 基本情報
D6: 基本情報
F9: 作成日
F10: 事業体名
F11: 所在地 | H11: 都道府県
F13: 記入者
F14: 所属
F15: 連絡先

Sheet 入力情報(1) (hidden)
G2: 入力情報（１）
D16: Ⅰ.浄水場の情報
I18: ※：入力必須項目
E19: 1. | F19: 浄水場名
D20: ※ | E20: 2. | F20: 現状の計画浄水量(施設能力)
F21: 更新する場合の計画浄水量 (施設能力) | H21: =IF('入力情報(2)'!I6<>"",'入力情報(2)'!I6,"") ->  | J21: 入力は次画面『入力情報(２)』にて行って下さい
D22: ※ | E22: 3. | F22: 現在の給水人口
D23: ※ | E23: 4. | F23: 給水原価
E24: 5. | F24: 原水種類 | K24: 浄水フロー
D25: ※ | E25: 6. | F25: ろ過方式 | K25: =IFERROR(IF(RngFlwNo1<>"",VLOOKUP(RngFlwNo1,RngRadarフロー名,2,FALSE),""),"") -> 
E26: 7. | F26: 前処理+高度浄水処理
D27: ※ | E27: 8. | F27: 粉末炭の有無
F28: 粉末炭平均注入率
F29: 粉末炭注入日数
E30: 9. | F30: 紫外線処理の有無
E31: 10. | F31: 排水処理
D32: ※ | E32: 11. | F32: 主要設備の最小系列数
E33: 12. | F33: その系列名称
D34: ※ | E34: 13. | F34: 更新年数 | T34: 1
D35: ※ | E35: 14. | F35: メンテナンスレベル | H35: =+メンテナンスレベル!G29 -> 0
D37: Ⅱ.設備分類毎の情報
E38: ここでの建設（更新）年は、主たる設備、機器を取得した年を入力（選択）して下さい。 また、取得金額は主たる設備、機器他のおおよその金額を入力（台帳からの転記ある いは参照入力）して下さい。
I39: ※：入力必須項目
H40: 建設(更新)年 | I40: 取得金額
D41: ※ | E41: 15. | F41: 建築構造物 | J41: 千円
D42: ※ | E42: 16. | F42: 土木構造物 | J42: 千円
D43: ※ | E43: 17. | F43: 電気設備 | J43: 千円
D44: ※ | E44: 18. | F44: 機械設備 | J44: 千円

Sheet 入力情報(2) (hidden)
G2: 入力情報（２）
D5: Ⅲ.浄水量の情報
E6: 19. | F6: 更新する場合の計画浄水量 (施設能力)
D8: Ⅳ.推奨浄水プロセスの情報
G9: 原水レベル | I9: 原水レベル | J9: 浄水レベル
G10: 現状の原水水質 | I10: 将来予想される原水水質 | J10: 要求される浄水水質
E11: 20. | F11: 濁度 | V11: =IF(AND(G11<>"",G12<>"",G13<>"",G14<>""),1,0) -> 0
E12: 21. | F12: TOC | V12: =IF(AND(I11<>"",I12<>"",I13<>"",I14<>""),1,0) -> 0
E13: 22. | F13: かび臭 | V13: =IF(AND(J11<>"",J12<>"",J13<>"",J14<>""),1,0) -> 0
E14: 23. | F14: THMFP
E15: ※「現状の原水水質」、「将来予想される原水水質」の”どちらか一方”もしくは”両方”入力して下さい。
E17: プロセス選定
G18: 原水レベル | I18: 浄水レベル | J18: 推奨プロセス
C19: 濁度 | G19: =IF(ISERROR(Calc2024!E6),"",Calc2024!E6) ->  | I19: =IF(ISERROR(Calc2024!H6),"",Calc2024!H6) ->  | J19: =IF(ISERROR(Calc2024!I6),"",Calc2024!I6) -> 
C20: 有機物 | F20: TOC | G20: =IF(ISERROR(Calc2024!E7),"",Calc2024!E7) ->  | I20: =IF(ISERROR(Calc2024!H7),"",Calc2024!H7) ->  | J20: =IF(ISERROR(Calc2024!I7),"",Calc2024!I7) -> 
F21: かび臭 | G21: =IF(ISERROR(Calc2024!E8),"",Calc2024!E8) ->  | I21: =IF(ISERROR(Calc2024!H8),"",Calc2024!H8) ->  | J21: =IF(ISERROR(Calc2024!I8),"",Calc2024!I8) -> 
F22: THM | G22: =IF(ISERROR(Calc2024!E9),"",Calc2024!E9) ->  | I22: =IF(ISERROR(Calc2024!H9),"",Calc2024!H9) ->  | J22: =IF(ISERROR(Calc2024!I9),"",Calc2024!I9) -> 
E25: 希望フロー | G25: ※「推奨プロセス」を参考に入力下さい。 | K25: 現在の浄水フロー | N25: =IF('入力情報(1)'!K25="","",'入力情報(1)'!K25) -> 
C26: ※ | E26: 24. | F26: ろ過方式 | K26: =IF(Select6ろ過方式="","",Select6ろ過方式) -> 
E27: 25. | F27: 前処理+高度浄水処理 | K27: =IF(Select6前_高度処理="","",Select6前_高度処理) -> 
C28: ※ | E28: 26. | F28: 粉末炭の有無 | K28: =IF(Rng粉末炭ChkDt=1,"有","無") -> 無 | V28: 2 | W28: FALSE
F29: 粉末炭平均注入率 | K29: =IF(Rng粉末炭_注入率="","",Rng粉末炭_注入率) -> 
F30: 粉末炭注入日数 | K30: =IF(Rng粉末炭_注入日="","",Rng粉末炭_注入日) ->  | N30: =IF(Rng粉末炭ChkDt2=1,"↓","") -> 
E31: 27. | F31: 紫外線処理の有無 | K31: =IF(Rng紫外線ChkDt=1,"有","無") -> 無 | N31: =IF(Rng粉末炭ChkDt2=2,"↓","") -> ↓ | V31: FALSE
E32: 28. | F32: 排水処理 | K32: =IF('入力情報(1)'!T31=1,"天日乾燥床",IF('入力情報(1)'!T31=2,"機械脱水機","")) ->  | N32: =IFERROR(IF(RngFlwNo2<>"",VLOOKUP(RngFlwNo2,RngRadarフロー名,2,FALSE),""),"") ->  | V32: FALSE
E34: 全ての水質項目に対して処理プロセスが不要となった場合、原水が地下水で鉄、マンガンを含むときは 希望フロー「凝集＋急速ろ過」を選択して下さい。
D37: Ⅴ.シナリオの選択
A38: ■｢2.現在の浄水量｣ 又は ｢6.浄水 フロー｣が未入力
A39: ■｢2.現在の浄水量｣ 又は ｢6.浄水 フロー｣が未入力 | B39: 次回更新
A40: ■｢2.現在の浄水量｣ 又は ｢6.浄水 フロー｣が未入力
A41: シナリオ非表示理由 | F41: シナリオ１ 更新しない場合（修繕のみで対応） | V41: TRUE
A42: ■｢2.現在の浄水量｣ 又は ｢6.ろ過方式｣が未入力 | V42: FALSE
A43: ■｢2.現在の浄水量｣ 又は ｢6.ろ過方式｣が未入力 | V43: FALSE
A44: ■｢2.現在の浄水量｣ 又は ｢6.ろ過方式｣が未入力 | V44: FALSE
A45: ■｢2.現在の浄水量｣ 又は ｢6.ろ過方式｣が未入力 | V45: FALSE

Sheet メンテナンスレベル (hidden)
C1: メンテナンスレベルスコア評価基準
C3: 最も近いと思われる評価レベルをチェックして下さい。全ての評価項目をチェックしないと、評価ポイントは有効となりません。
C4: 評価項目 | D4: 評価レベル | G4: score | H4: スコア
C5: 技術スタッフの充実度 | E5: 維持管理を行うための技術スタッフが必要十分数確保されている | G5: 100 | H5: =IF(O5=1,100,IF(O5=2,80,IF(O5=3,40,IF(O5=4,20,0)))) -> 0
E6: 維持管理を行うための技術スタッフがある程度確保されている | G6: 80
E7: 維持管理を行うための技術スタッフが十分ではない。 | G7: 40
E8: 維持管理を行うための技術スタッフが明らかに不足している。 | G8: 20
C9: 予防保全への取り組み | E9: 故障が発生する前に部品交換やオーバーホール等の必要な対応を行っている。 | G9: 100 | H9: =IF(O9=1,100,IF(O9=2,80,IF(O9=3,40,IF(O9=4,20,0)))) -> 0
E10: どちらかというと，故障が発生する前に部品交換やオーバーホール等の必要な対応を行っている。 | G10: 80
E11: 事故や故障が発生してからの対応がほとんどである。 | G11: 40
E12: いつも事故や故障が発生してから対応している。対応が遅れる場合もある。 | G12: 20
C13: マニュアルの充実度 | E13: 施設点検等に必要なマニュアルやチェックシートが充実している。また，内容も適宜更新されている。 | G13: 100 | H13: =IF(O13=1,100,IF(O13=2,80,IF(O13=3,40,IF(O13=4,20,0)))) -> 0
E14: 施設点検等に必要なマニュアルやチェックシートがあるが，見直しを行う必要を感じている。 | G14: 80
E15: 施設点検等に必要なマニュアルを作成中，あるいは作成する必要性を認識している。 | G15: 40
E16: 施設点検等に必要なマニュアルがない。どのように作成したらよいかわからない。 | G16: 20
C17: 点検・修繕履歴の管理 | E17: 点検・修繕履歴を適切に管理し，過去の履歴から将来の施設整備計画を策定している。 | G17: 100 | H17: =IF(O17=1,100,IF(O17=2,80,IF(O17=3,40,IF(O17=4,20,0)))) -> 0
E18: 点検・修繕履歴を管理しているが，管理面での課題もある。 | G18: 80
E19: 点検・修繕履歴をある程度は管理しているが，過去の履歴で逸散してしまったものも多い。 | G19: 40
E20: 点検・修繕履歴を適切を管理していない。過去の履歴もほとんどが逸散している。 | G20: 20
C21: 更新・修繕等の状況 | E21: 必要な修繕が確実に行われ，独自の基準に基づき施設が適切に更新されている。 | G21: 100 | H21: =IF(O21=1,100,IF(O21=2,80,IF(O21=3,40,IF(O21=4,20,0)))) -> 0
E22: 必要に応じて修繕が行われ，施設更新もある程度実施されている。 | G22: 80
E23: 必要最低限の修繕が行われ，施設更新の明確な基準もない。 | G23: 40
E24: 必要な修繕も先送りされることが多く，法定耐用年数を大きく超えて施設運用がなされている。 | G24: 20
C25: 更新・修繕等に必要な予算 | E25: 更新・修繕等に必要な予算が確実に認められている。 | G25: 100 | H25: =IF(O25=1,100,IF(O25=2,80,IF(O25=3,40,IF(O25=4,20,0)))) -> 0
E26: 更新・修繕等に必要な予算はほぼ認められている。 | G26: 80
E27: 更新・修繕に必要な予算は最低限度認められている。 | G27: 40
E28: 更新・修繕等に必要な予算がほとんど認められていない。 | G28: 20
F29: 評価ポイント | G29: =SUM(H5:H28) -> 0

Sheet プレビュー (hidden)
C5: 入力データの確認 及び シミュレート実行
D7: 基本情報
F9: 作成日 | G9: =基本情報!G9 -> 00:00:00
F10: 事業体名 | G10: =基本情報!G10 -> 0
F11: 所在地 | G11: =IF(基本情報!G11<>"","〒"&基本情報!G11,"")&" "&基本情報!I11&基本情報!G12:I12 -> 
F12: 記入者 | G12: =基本情報!G13 -> 0
F13: 所属 | G13: =基本情報!G14 -> 0
F14: 連絡先 | G14: =基本情報!G15 -> 0
D17: Ⅰ.浄水場の情報
E19: 1. | F19: 浄水場名 | G19: ='入力情報(1)'!G19 -> 0
E20: 2. | F20: 現状の計画浄水量(施設能力) | H20: ='入力情報(1)'!H20 -> 0 | J20: m3/日
E21: 3. | F21: 現在の給水人口 | H21: ='入力情報(1)'!H22 -> 0 | J21: 人
E22: 4. | F22: 給水原価 | H22: ='入力情報(1)'!H23 -> 0 | J22: 円/ｍ3
E23: 5. | F23: 原水種類 | H23: ='入力情報(1)'!H24 -> 0
E24: 6. | F24: ろ過方式 | H24: ='入力情報(1)'!H25 -> 0
E25: 7. | F25: 前処理+高度浄水処理 | H25: ='入力情報(1)'!H26 -> 0
E26: 8. | F26: 粉末炭の有無 | H26: =IF(Rng粉末炭ChkDt=1,"有","無") -> 無
F27: 粉末炭平均注入率 | H27: =IF(H26="無","-",IF(Rng粉末炭_注入率="",10,'入力情報(1)'!H28)) -> - | J27: mg／L
F28: 粉末炭注入日数 | H28: =IF(H26="無","-",IF(Rng粉末炭_注入日="",365,'入力情報(1)'!H29)) -> - | J28: 日／年
E29: 9. | F29: 紫外線処理の有無 | H29: =IF(Rng紫外線ChkDt=1,"有","無") -> 無
E30: 10. | F30: 排水処理 | H30: =IF(Rng排水処理ChkDt=1,"天日乾燥床",IF(Rng排水処理ChkDt=2,"機械脱水機","無")) -> 無
E31: 11. | F31: 主要設備の最小系列数 | H31: ='入力情報(1)'!H32 -> 0
E32: 12. | F32: その系列名称 | H32: ='入力情報(1)'!H33 -> 0
E33: 13. | F33: =+'入力情報(1)'!F34 -> 更新年数 | H33: =IF('入力情報(1)'!T34=1,"法定耐用年数×延長係数",IF('入力情報(1)'!T34=2,"指定年数","")) -> 法定耐用年数×延長係数
E34: 14. | F34: メンテナンスレベル | H34: =+'入力情報(1)'!H35:I35 -> 0
D37: Ⅱ.設備分類毎の情報
H39: 建設(更新)年 | I39: 取得金額
E40: 15. | F40: 建築構造物 | H40: ='入力情報(1)'!H41 -> 0 | I40: =IF(AND(LEN('入力情報(1)'!I41)=1,'入力情報(1)'!I41=0),"0",'入力情報(1)'!I41) -> 0 | J40: 千円
E41: 16. | F41: 土木構造物 | H41: ='入力情報(1)'!H42 -> 0 | I41: =IF(AND(LEN('入力情報(1)'!I42)=1,'入力情報(1)'!I42=0),"0",'入力情報(1)'!I42) -> 0 | J41: 千円
E42: 17. | F42: 電気設備 | H42: ='入力情報(1)'!H43 -> 0 | I42: =IF(AND(LEN('入力情報(1)'!I43)=1,'入力情報(1)'!I43=0),"0",'入力情報(1)'!I43) -> 0 | J42: 千円
E43: 18. | F43: 機械設備 | H43: ='入力情報(1)'!H44 -> 0 | I43: =IF(AND(LEN('入力情報(1)'!I44)=1,'入力情報(1)'!I44=0),"0",'入力情報(1)'!I44) -> 0 | J43: 千円
D46: Ⅲ.浄水量の情報
E48: 19. | F48: 将来の計画浄水量(施設能力) | H48: =+'入力情報(2)'!I6 -> 0 | I48: m3/日
D50: Ⅳ.推奨浄水プロセスの情報
G52: ='入力情報(2)'!G10 -> 現状の原水水質 | H52: ='入力情報(2)'!I10 -> 将来予想される原水水質 | I52: ='入力情報(2)'!J10 -> 要求される浄水水質
E53: 20. | F53: 濁度 | G53: ='入力情報(2)'!G11 -> 0 | H53: ='入力情報(2)'!I11 -> 0 | I53: ='入力情報(2)'!J11 -> 0
E54: 21. | F54: TOC | G54: ='入力情報(2)'!G12 -> 0 | H54: ='入力情報(2)'!I12 -> 0 | I54: ='入力情報(2)'!J12 -> 0
E55: 22. | F55: かび臭 | G55: ='入力情報(2)'!G13 -> 0 | H55: ='入力情報(2)'!I13 -> 0 | I55: ='入力情報(2)'!J13 -> 0
E56: 23. | F56: THMFP | G56: ='入力情報(2)'!G14 -> 0 | H56: ='入力情報(2)'!I14 -> 0 | I56: ='入力情報(2)'!J14 -> 0
E58: 24. | F58: ろ過方式 | H58: ='入力情報(2)'!$H$26 -> 0
E59: 25. | F59: 前処理+高度浄水処理 | H59: ='入力情報(2)'!$H$27 -> 0
E60: 26. | F60: 粉末炭の有無 | H60: =IF(Rng粉末炭ChkDt2=1,"有","無") -> 無
F61: 粉末炭平均注入率 | H61: =IF(H60="無","-",IF(Rng粉末炭_注入率2="",10,'入力情報(2)'!$H$29)) -> - | J61: mg／L
F62: 粉末炭注入日数 | H62: =IF(H60="無","-",IF(Rng粉末炭_注入日2="",365,'入力情報(2)'!$H$30)) -> - | J62: 日／年
E63: 27. | F63: 紫外線処理の有無 | H63: =IF(Rng紫外線ChkDt2=1,"有","無") -> 無
E64: 28. | F64: 排水処理 | H64: =IF(Rng排水処理ChkDt2=1,"天日乾燥床",IF(Rng排水処理ChkDt2=2,"機械脱水機","無")) -> 無
D66: Ⅴ.シナリオの選択
E68: 次回更新： | G68: 現状設備の更新時期での更新 | I68: 2024年
F69: シナリオ１ 更新しない場合（修繕のみで対応）
E70: =IF(AND('入力情報(2)'!V42=TRUE,'入力情報(2)'!A42=""),"✓","") ->  | F70: シナリオ２ 現状と同じフロー・水量で更新、使用年数は選択した更新年数に基づいて算出
E71: =IF(AND('入力情報(2)'!V43=TRUE,'入力情報(2)'!A43=""),"✓","") ->  | F71: シナリオ３ 希望フローで更新、水量は現状と同じ、使用年数は選択した更新年数に基づいて算出
E72: =IF(AND('入力情報(2)'!V44=TRUE,'入力情報(2)'!A44=""),"✓","") ->  | F72: シナリオ４ 現状のフローで更新、水量は将来予測、使用年数は選択した更新年数に基づいて算出
E73: =IF(AND('入力情報(2)'!V45=TRUE,'入力情報(2)'!A45=""),"✓","") ->  | F73: シナリオ５ 希望フローで更新、水量は将来予測、使用年数は選択した更新年数に基づいて算出
B79: シミュレーションを実行する前に入力情報の保存をお勧めします。
F81: ■入力情報を保存する場合■
F82: 下記、フロッピー画像をクリックして下さい。

Sheet マスター変更 (hidden)
A2: マスター変更
B6: 【追加修繕費】
B7: 追加修繕費補正係数 | C7: 0.3 | D7: *小数点第2位まで入力可
B17: 【運転費】
B18: １．変動費（電力、燃料、薬品費）
B19: 基準給水原価 | C19: 170 | D19: 円/m3-浄水
B25: 人件費率 | C25: 0.11
B26: 変動費－動力費 | C26: 0.037
B27: 変動費－修繕費 | C27: 0.087
B28: 変動費－薬品費 | C28: 0.008
B29: 委託料率 | C29: 0
B33: 粉末炭kg単価 | C33: 400 | D33: 円/kg
B40: マスターの変更がない場合
B41: 基準給水原価を170円/m3（水道統計全国平均 R3年度167.79円/m3の1の桁を切上）とし、 変動費（電力、燃料、薬品）係数を0.132（水道統計全国平均 費用構成比13.2%） 給水原価×0.132 膜ろ過を含まない浄水場の人件費については、 給水原価×0.11 （水道統計全国平均 費用構成比11.0%）としています。 膜ろ過を含む浄水場では、 給水原価×0.11×0.8（想定値）としています。 委託料は水道統計全国平均 費用構成比11.3％ですが、初期値は0としています。計算する際は、 給水原価×0.113が計上されます。
B45: 【建設費、参照金額算出時の補正係数】
B46: シミュレーション結果の内、建設費が予想と大きく異なる場合、各種数値を修正してください。
B47: 消毒のみ、紫外線+消毒 | C47: 1 | D47: *小数点第2位まで入力可
B48: 緩速ろ過 | C48: 0.99
B49: 急速ろ過 | C49: 1.46
B50: 膜ろ過 | C50: 1.24
B51: 付加設備 紫外線 | C51: 2.11
B52: 「水道事業の再構築に関する施設更新費用算定の手引き」による算出金額を上記倍率で補正

Sheet 耐用年数変更 (hidden)
A2: 耐用年数入力画面
B7: 【更新基準年数の設定】 | R7: 【参照元 耐用年数】
C9: 法定耐用年数（年） | E9: 更新基準年数（年） | O9: 相違ｶｳﾝﾄ | P9: 入力ｶｳﾝﾄ | S9: 法定耐用年数（年）
B10: 建築構造物 | C10: 50 | E10: 50 | O10: =IF(C10=E10,0,1) -> 0 | R10: 建築構造物 | S10: 50 | WE10: 50
B11: 土木構造物 | C11: 60 | E11: 60 | O11: =IF(C11=E11,0,1) -> 0 | R11: 土木構造物 | S11: 60
B12: 電気設備 | C12: 15 | E12: 15 | O12: 0 | R12: 電気設備 | S12: 15 | U12: ※<経年故障率表>ｼｰﾄが参照
B13: 機械設備 | C13: 15 | E13: 15 | O13: 0 | R13: 機械設備 | S13: 15 | U13: ※<経年故障率表>ｼｰﾄが参照
O14: =SUM(O10:O13) -> 0 | P14: =COUNTA(E10:F13) -> 4
S15: {RngH耐用年数_結果}
O16: RngH_耐用年相違Chk

Sheet 参照表 (hidden)
A1: =IF(RngH_浄水フロー="","",RngH_浄水フロー) -> 
A2: =IF(浄水フロー!$C$3="","",浄水フロー!$C$3) -> 
B3: ="現在の浄水量（日最大）： "&TEXT('入力情報(1)'!H20,"#,###") -> 現在の浄水量（日最大）： | C3: ㎥/日 | M3: 41
B4: 規模 建設(更新)年 | C4: 建築構造物
B5: 1900 | C5: 11
B6: 1901 | C6: 11
B7: 1902 | C7: 11
B8: 1903 | C8: 11
B9: 1904 | C9: 11
B10: 1905 | C10: 12
B11: 1906 | C11: 13
B12: 1907 | C12: 15
B13: 1908 | C13: 16
B14: 1909 | C14: 15
B15: 1910 | C15: 15
B16: 1911 | C16: 16
B17: 1912 | C17: 17
B18: 1913 | C18: 17
B19: 1914 | C19: 17
B20: 1915 | C20: 16
B21: 1916 | C21: 17
B22: 1917 | C22: 21
B23: 1918 | C23: 29
B24: 1919 | C24: 42
B25: 1920 | C25: 56
B26: 1921 | C26: 46
B27: 1922 | C27: 49
B28: 1923 | C28: 50
B29: 1924 | C29: 47
B30: 1925 | C30: 45
B31: 1926 | C31: 44
B32: 1927 | C32: 42
B33: 1928 | C33: 42
B34: 1929 | C34: 40
B35: 1930 | C35: 32
B36: 1931 | C36: 29
B37: 1932 | C37: 29
B38: 1933 | C38: 29
B39: 1934 | C39: 29
B40: 1935 | C40: 29
B41: 1936 | C41: 29
B42: 1937 | C42: 35
B43: 1938 | C43: 39
B44: 1939 | C44: 46
B45: 1940 | C45: 53
B46: 1941 | C46: 59
B47: 1942 | C47: 61
B48: 1943 | C48: 70
B49: 1944 | C49: 96
B50: 1945 | C50: 358
B51: 1946 | C51: 728
B52: 1947 | C52: 1720
B53: 1948 | C53: 478
B54: 1949 | C54: 1796
B55: 1950 | C55: 5451
B56: 1951 | C56: 7033
B57: 1952 | C57: 7562
B58: 1953 | C58: 8091
B59: 1954 | C59: 8091
B60: 1955 | C60: 8144
B61: 1956 | C61: 9042
B62: 1957 | C62: 9572
B63: 1958 | C63: 9254
B64: 1959 | C64: 9466
B65: 1960 | C65: 10047
B66: 1961 | C66: 11105
B67: 1962 | C67: 11528
B68: 1963 | C68: 11740
B69: 1964 | C69: 12163
B70: 1965 | C70: 12533
B71: 1966 | C71: 13379
B72: 1967 | C72: 14119
B73: 1968 | C73: 14542
B74: 1969 | C74: 15600
B75: 1970 | C75: 16763
B76: 1971 | C76: 17133
B77: 1972 | C77: 18138
B78: 1973 | C78: 23162
B79: 1974 | C79: 28080
B80: 1975 | C80: 28397
B81: 1976 | C81: 30460
B82: 1977 | C82: 31993
B83: 1978 | C83: 34161
B84: 1979 | C84: 37122
B85: 1980 | C85: 40454
B86: 1981 | C86: 40930
B87: 1982 | C87: 41035
B88: 1983 | C88: 40983
B89: 1984 | C89: 41670
B90: 1985 | C90: 41088
B91: 1986 | C91: 40613
B92: 1987 | C92: 40877
B93: 1988 | C93: 41617
B94: 1989 | C94: 43574
B95: 1990 | C95: 45107
B96: 1991 | C96: 46324
B97: 1992 | C97: 46852
B98: 1993 | C98: 46747
B99: 1994 | C99: 46852
B100: 1995 | C100: 46958
B101: 1996 | C101: 46800
B102: 1997 | C102: 47275
B103: 1998 | C103: 46535
B104: 1999 | C104: 46006
B105: 2000 | C105: 46112
B106: 2001 | C106: 45266
B107: 2002 | C107: 44949
B108: 2003 | C108: 45478
B109: 2004 | C109: 46271
B110: 2005 | C110: 47064
B111: 2006 | C111: 47910
B112: 2007 | C112: 49443
B113: 2008 | C113: 52246
B114: 2009 | C114: 49708
B115: 2010 | C115: 49761
B116: 2011 | C116: 50395
B117: 2012 | C117: 50078
B118: 2013 | C118: 51083
B119: 2014 | C119: 52616
B120: 2015 | C120: 52881
B121: 2016 | C121: 52934
B122: 2017 | C122: 53938
B123: 2018 | C123: 55948
B124: 2019 | C124: 57587
B125: 2020 | C125: 57587
B126: 2021 | C126: 60126
B127: 2022 | C127: 64885
B128: 2023 | C128: 67000
B129: 2024 | C129: 67000
B130: 2025 | C130: 67000
B131: 2026 | C131: 67000
B132: 2027 | C132: 67000
B133: 2028 | C133: 67000
B134: 2029 | C134: 67000
B135: 2030 | C135: 67000
B136: 2031 | C136: 67000
B137: 2032 | C137: 67000
B138: 2033 | C138: 67000
B139: 2034 | C139: 67000
B140: 2035 | C140: 67000
B141: 2036 | C141: 67000
B142: 2037 | C142: 67000
B143: 2038 | C143: 67000
B144: 2039 | C144: 67000
B145: 2040 | C145: 67000
B146: 2041 | C146: 67000
B147: 2042 | C147: 67000
B148: 2043 | C148: 67000
B149: 2044 | C149: 67000
B150: 2045 | C150: 67000
B151: 2046 | C151: 67000
B152: 2047 | C152: 67000
B153: 2048 | C153: 67000
B154: 2049 | C154: 67000
B155: 2050 | C155: 67000

Sheet 取得金額計算 (hidden)
G2: (単位：千円)
M3: 41
B4: 規模 建設年 | C4: ﾃﾞﾌﾚｰﾀ | D4: 建築構造物 | E4: 土木構造物 | F4: 電気設備 (計装と監視含む) | G4: 機械設備
B5: 1900 | C5: =+デフレータ表示方法!J8/100 -> 0.00017 | D5: =ROUND((Cal建築6_浄水Flw*C5)/1000,0) -> 0 | E5: =ROUND((Cal土木6_浄水Flw*C5)/1000,0) -> 0 | F5: =ROUND((Cal電気6_浄水Flw*C5)/1000,0) -> 0 | G5: =ROUND((Cal機械6_浄水Flw*C5)/1000,0) -> 0
B6: 1901 | C6: =+デフレータ表示方法!J9/100 -> 0.00017 | D6: 0 | E6: 0 | F6: 0 | G6: 0
B7: 1902 | C7: =+デフレータ表示方法!J10/100 -> 0.00017 | D7: 0 | E7: 0 | F7: 0 | G7: 0
B8: 1903 | C8: =+デフレータ表示方法!J11/100 -> 0.00017 | D8: 0 | E8: 0 | F8: 0 | G8: 0
B9: 1904 | C9: =+デフレータ表示方法!J12/100 -> 0.00017 | D9: 0 | E9: 0 | F9: 0 | G9: 0
B10: 1905 | C10: =+デフレータ表示方法!J13/100 -> 0.00018 | D10: 0 | E10: 0 | F10: 0 | G10: 0
B11: 1906 | C11: =+デフレータ表示方法!J14/100 -> 0.0002 | D11: 0 | E11: 0 | F11: 0 | G11: 0
B12: 1907 | C12: =+デフレータ表示方法!J15/100 -> 0.00022 | D12: 0 | E12: 0 | F12: 0 | G12: 0
B13: 1908 | C13: =+デフレータ表示方法!J16/100 -> 0.00024 | D13: 0 | E13: 0 | F13: 0 | G13: 0
B14: 1909 | C14: =+デフレータ表示方法!J17/100 -> 0.00023 | D14: 0 | E14: 0 | F14: 0 | G14: 0
B15: 1910 | C15: =+デフレータ表示方法!J18/100 -> 0.00023 | D15: 0 | E15: 0 | F15: 0 | G15: 0
B16: 1911 | C16: =+デフレータ表示方法!J19/100 -> 0.00024 | D16: 0 | E16: 0 | F16: 0 | G16: 0
B17: 1912 | C17: =+デフレータ表示方法!J20/100 -> 0.00025 | D17: 0 | E17: 0 | F17: 0 | G17: 0
B18: 1913 | C18: =+デフレータ表示方法!J21/100 -> 0.00025 | D18: 0 | E18: 0 | F18: 0 | G18: 0
B19: 1914 | C19: =+デフレータ表示方法!J22/100 -> 0.00025 | D19: 0 | E19: 0 | F19: 0 | G19: 0
B20: 1915 | C20: =+デフレータ表示方法!J23/100 -> 0.00024 | D20: 0 | E20: 0 | F20: 0 | G20: 0
B21: 1916 | C21: =+デフレータ表示方法!J24/100 -> 0.00025 | D21: 0 | E21: 0 | F21: 0 | G21: 0
B22: 1917 | C22: =+デフレータ表示方法!J25/100 -> 0.00032 | D22: 0 | E22: 0 | F22: 0 | G22: 0
B23: 1918 | C23: =+デフレータ表示方法!J26/100 -> 0.00043 | D23: 0 | E23: 0 | F23: 0 | G23: 0
B24: 1919 | C24: =+デフレータ表示方法!J27/100 -> 0.00062 | D24: 0 | E24: 0 | F24: 0 | G24: 0
B25: 1920 | C25: =+デフレータ表示方法!J28/100 -> 0.00083 | D25: 0 | E25: 0 | F25: 0 | G25: 0
B26: 1921 | C26: =+デフレータ表示方法!J29/100 -> 0.00069 | D26: 0 | E26: 0 | F26: 0 | G26: 0
B27: 1922 | C27: =+デフレータ表示方法!J30/100 -> 0.00073 | D27: 0 | E27: 0 | F27: 0 | G27: 0
B28: 1923 | C28: =+デフレータ表示方法!J31/100 -> 0.00074 | D28: 0 | E28: 0 | F28: 0 | G28: 0
B29: 1924 | C29: =+デフレータ表示方法!J32/100 -> 0.0007 | D29: 0 | E29: 0 | F29: 0 | G29: 0
B30: 1925 | C30: =+デフレータ表示方法!J33/100 -> 0.00067 | D30: 0 | E30: 0 | F30: 0 | G30: 0
B31: 1926 | C31: =+デフレータ表示方法!J34/100 -> 0.00065 | D31: 0 | E31: 0 | F31: 0 | G31: 0
B32: 1927 | C32: =+デフレータ表示方法!J35/100 -> 0.00062 | D32: 0 | E32: 0 | F32: 0 | G32: 0
B33: 1928 | C33: =+デフレータ表示方法!J36/100 -> 0.00062 | D33: 0 | E33: 0 | F33: 0 | G33: 0
B34: 1929 | C34: =+デフレータ表示方法!J37/100 -> 0.00059 | D34: 0 | E34: 0 | F34: 0 | G34: 0
B35: 1930 | C35: =+デフレータ表示方法!J38/100 -> 0.00048 | D35: 0 | E35: 0 | F35: 0 | G35: 0
B36: 1931 | C36: =+デフレータ表示方法!J39/100 -> 0.00043 | D36: 0 | E36: 0 | F36: 0 | G36: 0
B37: 1932 | C37: =+デフレータ表示方法!J40/100 -> 0.00043 | D37: =ROUND((Cal建築6_浄水Flw*C37)/1000,0) -> 0 | E37: =ROUND((Cal土木6_浄水Flw*C37)/1000,0) -> 0 | F37: =ROUND((Cal電気6_浄水Flw*C37)/1000,0) -> 0 | G37: =ROUND((Cal機械6_浄水Flw*C37)/1000,0) -> 0
B38: 1933 | C38: =+デフレータ表示方法!J41/100 -> 0.00043 | D38: 0 | E38: 0 | F38: 0 | G38: 0
B39: 1934 | C39: =+デフレータ表示方法!J42/100 -> 0.00043 | D39: 0 | E39: 0 | F39: 0 | G39: 0
B40: 1935 | C40: =+デフレータ表示方法!J43/100 -> 0.00044 | D40: 0 | E40: 0 | F40: 0 | G40: 0
B41: 1936 | C41: =+デフレータ表示方法!J44/100 -> 0.00044 | D41: 0 | E41: 0 | F41: 0 | G41: 0
B42: 1937 | C42: =+デフレータ表示方法!J45/100 -> 0.00052 | D42: 0 | E42: 0 | F42: 0 | G42: 0
B43: 1938 | C43: =+デフレータ表示方法!J46/100 -> 0.00058 | D43: 0 | E43: 0 | F43: 0 | G43: 0
B44: 1939 | C44: =+デフレータ表示方法!J47/100 -> 0.00069 | D44: 0 | E44: 0 | F44: 0 | G44: 0
B45: 1940 | C45: =+デフレータ表示方法!J48/100 -> 0.00079 | D45: 0 | E45: 0 | F45: 0 | G45: 0
B46: 1941 | C46: =+デフレータ表示方法!J49/100 -> 0.00088 | D46: 0 | E46: 0 | F46: 0 | G46: 0
B47: 1942 | C47: =+デフレータ表示方法!J50/100 -> 0.00091 | D47: 0 | E47: 0 | F47: 0 | G47: 0
B48: 1943 | C48: =+デフレータ表示方法!J51/100 -> 0.00104 | D48: 0 | E48: 0 | F48: 0 | G48: 0
B49: 1944 | C49: =+デフレータ表示方法!J52/100 -> 0.00143 | D49: 0 | E49: 0 | F49: 0 | G49: 0
B50: 1945 | C50: =+デフレータ表示方法!J53/100 -> 0.00534 | D50: 0 | E50: 0 | F50: 0 | G50: 0
B51: 1946 | C51: =+デフレータ表示方法!J54/100 -> 0.01086 | D51: 0 | E51: 0 | F51: 0 | G51: 0
B52: 1947 | C52: =+デフレータ表示方法!J55/100 -> 0.02567 | D52: 0 | E52: 0 | F52: 0 | G52: 0
B53: 1948 | C53: =+デフレータ表示方法!J56/100 -> 0.00714 | D53: 0 | E53: 0 | F53: 0 | G53: 0
B54: 1949 | C54: =+デフレータ表示方法!J57/100 -> 0.02681 | D54: 0 | E54: 0 | F54: 0 | G54: 0
B55: 1950 | C55: =+デフレータ表示方法!J58/100 -> 0.08136 | D55: 0 | E55: 0 | F55: 0 | G55: 0
B56: 1951 | C56: =+デフレータ表示方法!J59/100 -> 0.10497 | D56: 0 | E56: 0 | F56: 0 | G56: 0
B57: 1952 | C57: =+デフレータ表示方法!J60/100 -> 0.11287 | D57: 0 | E57: 0 | F57: 0 | G57: 0
B58: 1953 | C58: =+デフレータ表示方法!J61/100 -> 0.12076 | D58: 0 | E58: 0 | F58: 0 | G58: 0
B59: 1954 | C59: =+デフレータ表示方法!J62/100 -> 0.12076 | D59: 0 | E59: 0 | F59: 0 | G59: 0
B60: 1955 | C60: =+デフレータ表示方法!J63/100 -> 0.12155 | D60: 0 | E60: 0 | F60: 0 | G60: 0
B61: 1956 | C61: =+デフレータ表示方法!J64/100 -> 0.13496 | D61: 0 | E61: 0 | F61: 0 | G61: 0
B62: 1957 | C62: =+デフレータ表示方法!J65/100 -> 0.14286 | D62: 0 | E62: 0 | F62: 0 | G62: 0
B63: 1958 | C63: =+デフレータ表示方法!J66/100 -> 0.13812 | D63: 0 | E63: 0 | F63: 0 | G63: 0
B64: 1959 | C64: =+デフレータ表示方法!J67/100 -> 0.14128 | D64: 0 | E64: 0 | F64: 0 | G64: 0
B65: 1960 | C65: =+デフレータ表示方法!J68/100 -> 0.14996 | D65: 0 | E65: 0 | F65: 0 | G65: 0
B66: 1961 | C66: =+デフレータ表示方法!J69/100 -> 0.16575 | D66: 0 | E66: 0 | F66: 0 | G66: 0
B67: 1962 | C67: =+デフレータ表示方法!J70/100 -> 0.17206 | D67: 0 | E67: 0 | F67: 0 | G67: 0
B68: 1963 | C68: =+デフレータ表示方法!J71/100 -> 0.17522 | D68: 0 | E68: 0 | F68: 0 | G68: 0
B69: 1964 | C69: =+デフレータ表示方法!J72/100 -> 0.18153 | D69: =ROUND((Cal建築6_浄水Flw*C69)/1000,0) -> 0 | E69: =ROUND((Cal土木6_浄水Flw*C69)/1000,0) -> 0 | F69: =ROUND((Cal電気6_浄水Flw*C69)/1000,0) -> 0 | G69: =ROUND((Cal機械6_浄水Flw*C69)/1000,0) -> 0
B70: 1965 | C70: =+デフレータ表示方法!J73/100 -> 0.18706 | D70: 0 | E70: 0 | F70: 0 | G70: 0
B71: 1966 | C71: =+デフレータ表示方法!J74/100 -> 0.19968 | D71: 0 | E71: 0 | F71: 0 | G71: 0
B72: 1967 | C72: =+デフレータ表示方法!J75/100 -> 0.21073 | D72: 0 | E72: 0 | F72: 0 | G72: 0
B73: 1968 | C73: =+デフレータ表示方法!J76/100 -> 0.21705 | D73: 0 | E73: 0 | F73: 0 | G73: 0
B74: 1969 | C74: =+デフレータ表示方法!J77/100 -> 0.23283 | D74: 0 | E74: 0 | F74: 0 | G74: 0
B75: 1970 | C75: =+デフレータ表示方法!J78/100 -> 0.2502 | D75: 0 | E75: 0 | F75: 0 | G75: 0
B76: 1971 | C76: =+デフレータ表示方法!J79/100 -> 0.25572 | D76: 0 | E76: 0 | F76: 0 | G76: 0
B77: 1972 | C77: =+デフレータ表示方法!J80/100 -> 0.27072 | D77: 0 | E77: 0 | F77: 0 | G77: 0
B78: 1973 | C78: =+デフレータ表示方法!J81/100 -> 0.3457 | D78: 0 | E78: 0 | F78: 0 | G78: 0
B79: 1974 | C79: =+デフレータ表示方法!J82/100 -> 0.4191 | D79: 0 | E79: 0 | F79: 0 | G79: 0
B80: 1975 | C80: =+デフレータ表示方法!J83/100 -> 0.42384 | D80: 0 | E80: 0 | F80: 0 | G80: 0
B81: 1976 | C81: =+デフレータ表示方法!J84/100 -> 0.45462 | D81: 0 | E81: 0 | F81: 0 | G81: 0
B82: 1977 | C82: =+デフレータ表示方法!J85/100 -> 0.47751 | D82: 0 | E82: 0 | F82: 0 | G82: 0
B83: 1978 | C83: =+デフレータ表示方法!J86/100 -> 0.50987 | D83: 0 | E83: 0 | F83: 0 | G83: 0
B84: 1979 | C84: =+デフレータ表示方法!J87/100 -> 0.55406 | D84: 0 | E84: 0 | F84: 0 | G84: 0
B85: 1980 | C85: =+デフレータ表示方法!J88/100 -> 0.60379 | D85: 0 | E85: 0 | F85: 0 | G85: 0
B86: 1981 | C86: =+デフレータ表示方法!J89/100 -> 0.61089 | D86: 0 | E86: 0 | F86: 0 | G86: 0
B87: 1982 | C87: =+デフレータ表示方法!J90/100 -> 0.61247 | D87: 0 | E87: 0 | F87: 0 | G87: 0
B88: 1983 | C88: =+デフレータ表示方法!J91/100 -> 0.61168 | D88: 0 | E88: 0 | F88: 0 | G88: 0
B89: 1984 | C89: =+デフレータ表示方法!J92/100 -> 0.62194 | D89: 0 | E89: 0 | F89: 0 | G89: 0
B90: 1985 | C90: =+デフレータ表示方法!J93/100 -> 0.61326 | D90: 0 | E90: 0 | F90: 0 | G90: 0
B91: 1986 | C91: =+デフレータ表示方法!J94/100 -> 0.60616 | D91: 0 | E91: 0 | F91: 0 | G91: 0
B92: 1987 | C92: =+デフレータ表示方法!J95/100 -> 0.6101 | D92: 0 | E92: 0 | F92: 0 | G92: 0
B93: 1988 | C93: =+デフレータ表示方法!J96/100 -> 0.62115 | D93: 0 | E93: 0 | F93: 0 | G93: 0
B94: 1989 | C94: =+デフレータ表示方法!J97/100 -> 0.65036 | D94: 0 | E94: 0 | F94: 0 | G94: 0
B95: 1990 | C95: =+デフレータ表示方法!J98/100 -> 0.67324 | D95: 0 | E95: 0 | F95: 0 | G95: 0
B96: 1991 | C96: =+デフレータ表示方法!J99/100 -> 0.6914 | D96: 0 | E96: 0 | F96: 0 | G96: 0
B97: 1992 | C97: =+デフレータ表示方法!J100/100 -> 0.69929 | D97: 0 | E97: 0 | F97: 0 | G97: 0
B98: 1993 | C98: =+デフレータ表示方法!J101/100 -> 0.69771 | D98: 0 | E98: 0 | F98: 0 | G98: 0
B99: 1994 | C99: =+デフレータ表示方法!J102/100 -> 0.69929 | D99: 0 | E99: 0 | F99: 0 | G99: 0
B100: 1995 | C100: =+デフレータ表示方法!J103/100 -> 0.70087 | D100: 0 | E100: 0 | F100: 0 | G100: 0
B101: 1996 | C101: =+デフレータ表示方法!J104/100 -> 0.6985 | D101: =ROUND((Cal建築6_浄水Flw*C101)/1000,0) -> 0 | E101: =ROUND((Cal土木6_浄水Flw*C101)/1000,0) -> 0 | F101: =ROUND((Cal電気6_浄水Flw*C101)/1000,0) -> 0 | G101: =ROUND((Cal機械6_浄水Flw*C101)/1000,0) -> 0
B102: 1997 | C102: =+デフレータ表示方法!J105/100 -> 0.7056 | D102: 0 | E102: 0 | F102: 0 | G102: 0
B103: 1998 | C103: =+デフレータ表示方法!J106/100 -> 0.69455 | D103: 0 | E103: 0 | F103: 0 | G103: 0
B104: 1999 | C104: =+デフレータ表示方法!J107/100 -> 0.68666 | D104: 0 | E104: 0 | F104: 0 | G104: 0
B105: 2000 | C105: =+デフレータ表示方法!J108/100 -> 0.68824 | D105: 0 | E105: 0 | F105: 0 | G105: 0
B106: 2001 | C106: =+デフレータ表示方法!J109/100 -> 0.67561 | D106: 0 | E106: 0 | F106: 0 | G106: 0
B107: 2002 | C107: =+デフレータ表示方法!J110/100 -> 0.67088 | D107: 0 | E107: 0 | F107: 0 | G107: 0
B108: 2003 | C108: =+デフレータ表示方法!J111/100 -> 0.67877 | D108: 0 | E108: 0 | F108: 0 | G108: 0
B109: 2004 | C109: =+デフレータ表示方法!J112/100 -> 0.69061 | D109: 0 | E109: 0 | F109: 0 | G109: 0
B110: 2005 | C110: =+デフレータ表示方法!J113/100 -> 0.70245 | D110: 0 | E110: 0 | F110: 0 | G110: 0
B111: 2006 | C111: =+デフレータ表示方法!J114/100 -> 0.71507 | D111: 0 | E111: 0 | F111: 0 | G111: 0
B112: 2007 | C112: =+デフレータ表示方法!J115/100 -> 0.73796 | D112: 0 | E112: 0 | F112: 0 | G112: 0
B113: 2008 | C113: =+デフレータ表示方法!J116/100 -> 0.77979 | D113: 0 | E113: 0 | F113: 0 | G113: 0
B114: 2009 | C114: =+デフレータ表示方法!J117/100 -> 0.74191 | D114: 0 | E114: 0 | F114: 0 | G114: 0
B115: 2010 | C115: =+デフレータ表示方法!J118/100 -> 0.7427 | D115: 0 | E115: 0 | F115: 0 | G115: 0
B116: 2011 | C116: =+デフレータ表示方法!J119/100 -> 0.75217 | D116: 0 | E116: 0 | F116: 0 | G116: 0
B117: 2012 | C117: =+デフレータ表示方法!J120/100 -> 0.74743 | D117: 0 | E117: 0 | F117: 0 | G117: 0
B118: 2013 | C118: =+デフレータ表示方法!J121/100 -> 0.76243 | D118: 0 | E118: 0 | F118: 0 | G118: 0
B119: 2014 | C119: =+デフレータ表示方法!J122/100 -> 0.78532 | D119: 0 | E119: 0 | F119: 0 | G119: 0
B120: 2015 | C120: =+デフレータ表示方法!J123/100 -> 0.78927 | D120: 0 | E120: 0 | F120: 0 | G120: 0
B121: 2016 | C121: =+デフレータ表示方法!J124/100 -> 0.79006 | D121: 0 | E121: 0 | F121: 0 | G121: 0
B122: 2017 | C122: =+デフレータ表示方法!J125/100 -> 0.80505 | D122: 0 | E122: 0 | F122: 0 | G122: 0
B123: 2018 | C123: =+デフレータ表示方法!J126/100 -> 0.83504 | D123: 0 | E123: 0 | F123: 0 | G123: 0
B124: 2019 | C124: =+デフレータ表示方法!J127/100 -> 0.85951 | D124: 0 | E124: 0 | F124: 0 | G124: 0
B125: 2020 | C125: =+デフレータ表示方法!J128/100 -> 0.85951 | D125: 0 | E125: 0 | F125: 0 | G125: 0
B126: 2021 | C126: =+デフレータ表示方法!J129/100 -> 0.8974 | D126: 0 | E126: 0 | F126: 0 | G126: 0
B127: 2022 | C127: =+デフレータ表示方法!J130/100 -> 0.96843 | D127: 0 | E127: 0 | F127: 0 | G127: 0
B128: 2023 | C128: =+デフレータ表示方法!J131/100 -> 1 | D128: 0 | E128: 0 | F128: 0 | G128: 0
B129: 2024 | C129: =+デフレータ表示方法!J132/100 -> 1 | D129: 0 | E129: 0 | F129: 0 | G129: 0
B130: 2025 | C130: =+デフレータ表示方法!J133/100 -> 1 | D130: 0 | E130: 0 | F130: 0 | G130: 0
B131: 2026 | C131: =+デフレータ表示方法!J134/100 -> 1 | D131: 0 | E131: 0 | F131: 0 | G131: 0
B132: 2027 | C132: =+デフレータ表示方法!J135/100 -> 1 | D132: 0 | E132: 0 | F132: 0 | G132: 0
B133: 2028 | C133: =+デフレータ表示方法!J136/100 -> 1 | D133: =ROUND((Cal建築6_浄水Flw*C133)/1000,0) -> 0 | E133: =ROUND((Cal土木6_浄水Flw*C133)/1000,0) -> 0 | F133: =ROUND((Cal電気6_浄水Flw*C133)/1000,0) -> 0 | G133: =ROUND((Cal機械6_浄水Flw*C133)/1000,0) -> 0
B134: 2029 | C134: =+デフレータ表示方法!J137/100 -> 1 | D134: 0 | E134: 0 | F134: 0 | G134: 0
B135: 2030 | C135: =+デフレータ表示方法!J138/100 -> 1 | D135: 0 | E135: 0 | F135: 0 | G135: 0
B136: 2031 | C136: =+デフレータ表示方法!J139/100 -> 1 | D136: 0 | E136: 0 | F136: 0 | G136: 0
B137: 2032 | C137: =+デフレータ表示方法!J140/100 -> 1 | D137: 0 | E137: 0 | F137: 0 | G137: 0
B138: 2033 | C138: =+デフレータ表示方法!J141/100 -> 1 | D138: 0 | E138: 0 | F138: 0 | G138: 0
B139: 2034 | C139: =+デフレータ表示方法!J142/100 -> 1 | D139: 0 | E139: 0 | F139: 0 | G139: 0
B140: 2035 | C140: =+デフレータ表示方法!J143/100 -> 1 | D140: 0 | E140: 0 | F140: 0 | G140: 0
B141: 2036 | C141: =+デフレータ表示方法!J144/100 -> 1 | D141: 0 | E141: 0 | F141: 0 | G141: 0
B142: 2037 | C142: =+デフレータ表示方法!J145/100 -> 1 | D142: 0 | E142: 0 | F142: 0 | G142: 0
B143: 2038 | C143: =+デフレータ表示方法!J146/100 -> 1 | D143: 0 | E143: 0 | F143: 0 | G143: 0
B144: 2039 | C144: =+デフレータ表示方法!J147/100 -> 1 | D144: 0 | E144: 0 | F144: 0 | G144: 0
B145: 2040 | C145: =+デフレータ表示方法!J148/100 -> 1 | D145: 0 | E145: 0 | F145: 0 | G145: 0
B146: 2041 | C146: =+デフレータ表示方法!J149/100 -> 1 | D146: 0 | E146: 0 | F146: 0 | G146: 0
B147: 2042 | C147: =+デフレータ表示方法!J150/100 -> 1 | D147: 0 | E147: 0 | F147: 0 | G147: 0
B148: 2043 | C148: =+デフレータ表示方法!J151/100 -> 1 | D148: 0 | E148: 0 | F148: 0 | G148: 0
B149: 2044 | C149: =+デフレータ表示方法!J152/100 -> 1 | D149: 0 | E149: 0 | F149: 0 | G149: 0
B150: 2045 | C150: =+デフレータ表示方法!J153/100 -> 1 | D150: 0 | E150: 0 | F150: 0 | G150: 0
B151: 2046 | C151: =+デフレータ表示方法!J154/100 -> 1 | D151: 0 | E151: 0 | F151: 0 | G151: 0
B152: 2047 | C152: =+デフレータ表示方法!J155/100 -> 1 | D152: 0 | E152: 0 | F152: 0 | G152: 0
B153: 2048 | C153: =+デフレータ表示方法!J156/100 -> 1 | D153: 0 | E153: 0 | F153: 0 | G153: 0
B154: 2049 | C154: =+デフレータ表示方法!J157/100 -> 1 | D154: 0 | E154: 0 | F154: 0 | G154: 0
B155: 2050 | C155: =+デフレータ表示方法!J158/100 -> 1 | D155: 0 | E155: 0 | F155: 0 | G155: 0

Sheet Master2024 (hidden)
AV1: タイトル | AW1: コメント
B2: {Select都道府県} | D2: {Select原水種類} | K2: {Select主要設備系列数} | O2: {Selectメンテナンス} | S2: {Select建設年} | U2: {Select濁度G} | V2: {SelectTocG} | W2: {Selectかび臭G} | X2: {SelectThmfpG} | AH2: {Mas原浄レベル} | AL2: {Mas濁度除去プロセス} | AU2: Userform表示 | AV2: 更新年数 | AW2: =VLOOKUP(AV2,$AV$13:$AW$32,2,FALSE) -> 法定耐用年数×延長係数では14のメンテナンスレベルに応じて 定まる延長係数でもって更新年数を決める流れとなります。 指定年数（入力値）は事業体内部等で独自に更新基準年数を 定めている場合に選択して下さい。 選択することによって年数を入力する画面へ遷移しますので、 入力して下さい。 その際、分類が異なる場合もありますが、大まかな分類として 入力して下さい。（50年間で何度、更新費用が発生するか、などを 概算することが目的のため） 別途「（事例集成果物名）」に水道事業体が公表しているものを まとめた更新基準年数を参考としていただくことも可能です。
U3: ■原水レベル■ | AH3: 1 | AI3: 2 | AJ3: 3 | AL3: 1 | AM3: 2 | AN3: 3 | AO3: 4 | AV3: {RngMas項目説明} | AW3: ※｢ﾀｲﾄﾙ｣をｷｰとして、Vlookup参照
B4: 都道府県 | D4: 5.原水種類 | K4: 8.主要設備の最小系列数 | O4: 10.メンテナンスポイント | P4: =+メンテナンスレベル!G29 -> 0 | S4: 建設(更新)年 | U4: 濁度 | V4: TOC | W4: かび臭 | X4: THMFP | AH4: Key(種類+項目+入力選択肢) | AI4: レベル | AJ4: ﾎﾟｲﾝﾄ | AL4: Key(ﾌﾟﾛｾｽ+ﾌﾟﾛｾｽCode) | AM4: プロセス | AN4: ﾌﾟﾛｾｽCode | AO4: プロセス名
AH5: 原水レベル!濁度!0.1度以下 | AI5: 低-1 | AJ5: 10 | AL5: =+AM5&"!"&AN5 -> 濁度除去プロセス!11 | AM5: 濁度除去プロセス | AN5: 11 | AO5: 不要 | AQ5: {RngPrintWs}
B6: 北海道 | D6: ダム放流水 | K6: 1 | P6: 延長係数(β) | Q6: 故障率係数(γ) | S6: 1950(昭和25) | U6: 0.1度以下 | V6: 1mg/L以下 | W6: 1ng/L以下 | X6: 0.015mg/L以下 | AH6: 原水レベル!濁度!0.1度超～2度以下 | AI6: 低 | AJ6: 20 | AL6: =+AM6&"!"&AN6 -> 濁度除去プロセス!12 | AM6: 濁度除去プロセス | AN6: 12 | AO6: 不要 | AQ6: ﾘｽﾄ表示名 | AR6: 印刷ｼｰﾄ名
B7: 青森県 | D7: ダム水 | K7: 2 | O7: 建築構造物 | P7: =IF(P4>0,(0.4027*LN(P4)-1.0614),0.4027*LN(360)-1.0614) -> 1.308934093 | Q7: =+事故率係数/RngEnchou建築 -> 76.39804059 | S7: 1951(昭和26) | U7: 0.1度超～2度以下 | V7: 1mg/L超～1.5mg/L以下 | W7: 1ng/L超～3ng/L以下 | X7: 0.015mg/L超～0.04mg/L以下 | AH7: 原水レベル!濁度!2度超～10度以下 | AI7: 中 | AJ7: 30 | AL7: 濁度除去プロセス!13 | AM7: 濁度除去プロセス | AN7: 13 | AO7: (凝集+)膜ろ過 | AQ7: 基本情報 | AR7: 基本情報
B8: 岩手県 | D8: 表流水 | K8: 3 | O8: 土木構造物 | P8: =IF(P4>0,(0.4406*LN(P4)-1.247),0.4406*LN(360)-1.247) -> 1.346417436 | Q8: =+事故率係数/RngEnchou土木 -> 74.27117126 | S8: 1952(昭和27) | U8: 2度超～10度以下 | V8: 1.5mg/L超～3mg/L以下 | W8: 3ng/L超～5ng/L以下 | X8: 0.04mg/L超～0.07mg/L以下 | AH8: 原水レベル!濁度!10度超～30度以下 | AI8: 高 | AJ8: 40 | AL8: 濁度除去プロセス!21 | AM8: 濁度除去プロセス | AN8: 21 | AO8: 不要 | AQ8: 入力情報(1) | AR8: 入力情報(1)
B9: 宮城県 | D9: 湖沼水 | K9: 4 | O9: 電気設備 | P9: =IF(P4>0,(0.4644*LN(P4)-0.9579),0.4644*LN(360)-0.9579) -> 1.775606712 | Q9: =+事故率係数/RngEnchou電気 -> 56.31877786 | S9: 1953(昭和28) | U9: 10度超～30度以下 | V9: 3mg/L超～9.8mg/L以下 | W9: 5ng/L超～10ng/L以下 | X9: 0.07mg/L超～0.245mg/L以下 | AH9: 原水レベル!濁度!30度超～100度以下 | AI9: 高高 | AJ9: 50 | AL9: 濁度除去プロセス!22 | AM9: 濁度除去プロセス | AN9: 22 | AO9: 凝集+急速ろ過or （凝集+）膜ろ過or 緩速ろ過 | AQ9: 入力情報(2) | AR9: 入力情報(2)
B10: 秋田県 | D10: 伏流水 | K10: 5 | O10: 機械設備 | P10: =IF(P4>0,(+ 0.2907*LN(P4)-0.3401),+ 0.2907*LN(360)-0.3401) -> 1.370990442 | Q10: =+事故率係数/RngEnchou機械 -> 72.93996876 | S10: 1954(昭和29) | U10: 30度超～100度以下 | W10: 10ng/L超～25ng/L以下 | AH10: 原水レベル!濁度!100度超～828.9度以下 | AI10: 高高高 | AJ10: 60 | AL10: 濁度除去プロセス!23 | AM10: 濁度除去プロセス | AN10: 23 | AO10: (凝集+)膜ろ過 | AQ10: メンテナンスレベル | AR10: メンテナンスレベル
B11: 山形県 | D11: 浅井戸水 | K11: 6 | S11: 1955(昭和30) | U11: 100度超～828.9度以下 | W11: 25ng/L超～50ng/L以下 | AH11: 原水レベル!TOC!1mg/L以下 | AI11: 低-1 | AJ11: 10 | AL11: 濁度除去プロセス!31 | AM11: 濁度除去プロセス | AN11: 31 | AO11: 凝集+急速ろ過or (凝集+)膜ろ過or 緩速ろ過 | AQ11: プレビュー | AR11: プレビュー | AV11: 【項目説明】
B12: 福島県 | D12: 深井戸水 | K12: 7 | S12: 1956(昭和31) | W12: 50ng/L超～740ng/L以下 | AH12: 原水レベル!TOC!1mg/L超～1.5mg/L以下 | AI12: 低-1 | AJ12: 20 | AL12: 濁度除去プロセス!32 | AM12: 濁度除去プロセス | AN12: 32 | AO12: 凝集+急速ろ過or （凝集+）膜ろ過or 緩速ろ過 | AQ12: 健全度 | AR12: 健全度 | AU12: No. | AV12: 項目名 | AW12: コメント
B13: 茨城県 | D13: 湧水 | K13: 8 | O13: 事故率係数(γ) | P13: 100 | S13: 1957(昭和32) | AH13: 原水レベル!TOC!1.5mg/L超～3mg/L以下 | AI13: 中 | AJ13: 30 | AL13: 濁度除去プロセス!33 | AM13: 濁度除去プロセス | AN13: 33 | AO13: (凝集+)膜ろ過 | AQ13: 影響水量 | AR13: 影響水量 | AU13: 3 | AV13: 現在の給水人口 | AW13: 計画給水人口を入力して下さい。 影響水量へ関係するため、 事業全体の給水人口×（対象浄水場の計画浄水量÷事業全体の計画浄水量（他浄水場の合算）） を行った値がシミュレータの計算上は適切です。 難しい場合は現在の給水人口を入力して下さい。
B14: 栃木県 | D14: その他 | K14: 9以上 | S14: 1958(昭和33) | AH14: 原水レベル!TOC!3mg/L超～9.8mg/L以下 | AI14: 高 | AJ14: 40 | AL14: 濁度除去プロセス!41 | AM14: 濁度除去プロセス | AN14: 41 | AO14: 凝集+沈澱/前ろ過+急速ろ過or (凝集+)(沈澱/前ろ過+)膜ろ過or 普通沈澱+緩速ろ過 | AQ14: 損失額 | AR14: 損失額 | AU14: 4 | AV14: 給水原価 | AW14: 現状の給水原価を入力して下さい。仮の数値を入力する場合、 水道統計（R3年度）より約170円/m3を参考として下さい。 この値を基準に浄水処理フローを変更した際の運転費（人件費込み）を計算します。
B15: 群馬県 | S15: 1959(昭和34) | U15: ■浄水レベル■ | AH15: 原水レベル!かび臭!1ng/L以下 | AI15: 低-2 | AJ15: 10 | AL15: 濁度除去プロセス!42 | AM15: 濁度除去プロセス | AN15: 42 | AO15: 凝集+沈澱/前ろ過+急速ろ過or (凝集+)(沈澱/前ろ過+)膜ろ過or 普通沈澱+緩速ろ過 | AQ15: 修繕＆更新(シナリオ１) | AR15: 修繕更新費用S1 | AU15: 5 | AV15: 原水種類 | AW15: シミュレーションには影響しませんので、未記入でも構いません。
B16: 埼玉県 | S16: 1960(昭和35) | U16: 濁度 | V16: TOC | W16: かび臭 | X16: THM | AH16: 原水レベル!かび臭!1ng/L超～3ng/L以下 | AI16: 低-1 | AJ16: 20 | AL16: 濁度除去プロセス!43 | AM16: 濁度除去プロセス | AN16: 43 | AO16: (凝集+)(沈澱/前ろ過+)膜ろ過 | AQ16: 修繕＆更新(シナリオ２) | AR16: 修繕更新費用S2 | AU16: 6 | AV16: ろ過方式 | AW16: ろ過方式を選択して下さい。 紫外線処理と消毒の組み合わせの場合は「消毒のみ」を選択し、9で「有」を選択して下さい。
B17: 千葉県 | S17: 1961(昭和36) | AH17: 原水レベル!かび臭!3ng/L超～5ng/L以下 | AI17: 低 | AJ17: 30 | AL17: 濁度除去プロセス!51 | AM17: 濁度除去プロセス | AN17: 51 | AO17: 凝集+沈澱/前ろ過+急速ろ過or (凝集+)(沈澱/前ろ過+)膜ろ過or 凝集+沈澱/前ろ過+緩速ろ過 | AQ17: 修繕＆更新(シナリオ３) | AR17: 修繕更新費用S3 | AU17: 7 | AV17: 前処理+高度浄水処理 | AW17: ろ過方式以外の処理をここから選択して下さい。 ろ過方式に応じて選択肢が限定されるようになっています。
B18: 東京都 | K18: Rng更新率表 | L18: 更新率% | P18: Select更新年 | S18: 1962(昭和37) | U18: 2度以下 | V18: 3.0mg/L以下 | W18: 10ng/L以下 | X18: 0.1mg/L以下 | AH18: 原水レベル!かび臭!5ng/L超～10ng/L以下 | AI18: 中 | AJ18: 40 | AL18: 濁度除去プロセス!52 | AM18: 濁度除去プロセス | AN18: 52 | AO18: 凝集+沈澱/前ろ過+急速ろ過or (凝集+)(沈澱/前ろ過+)膜ろ過 | AQ18: 修繕＆更新(シナリオ４) | AR18: 修繕更新費用S4 | AU18: 8 | AV18: 粉末炭の有無 | AW18: 粉末炭注入設備の有無を選択して下さい。 水源事故対策としての設備の場合は“無”を選択して下さい。
B19: 神奈川県 | K19: 経過年数 | L19: 機械 | M19: 電気 | N19: 経年 | P19: 更新年指定 | S19: 1963(昭和38) | U19: 0.1度以下 | V19: 1.5mg/L以下 | W19: 5ng/L以下 | X19: 0.04mg/L以下 | AH19: 原水レベル!かび臭!10ng/L超～50ng/L以下 | AI19: 高 | AJ19: 50 | AL19: 濁度除去プロセス!53 | AM19: 濁度除去プロセス | AN19: 53 | AO19: (凝集+)(沈澱/前ろ過+)膜ろ過 | AQ19: 修繕＆更新(シナリオ５) | AR19: 修繕更新費用S5 | AU19: 8_a | AV19: 粉末炭平均注入率 | AW19: 未入力の場合、平均注入率10mg/Lとして計算されます。
B20: 新潟県 | K20: 0 | L20: 0.07331489997 | M20: 0.08652744335 | N20: 0.3171442896 | S20: 1964(昭和39) | U20: 0.01度以下 | V20: 1.0mg/L以下 | W20: 3ng/L以下 | X20: 0.015mg/L以下 | AH20: 原水レベル!かび臭!50ng/L超～312ng/L以下 | AI20: 高高 | AJ20: 60 | AL20: 濁度除去プロセス!61 | AM20: 濁度除去プロセス | AN20: 61 | AO20: 凝集+沈澱/前ろ過+急速ろ過or (凝集+)(沈澱/前ろ過+)膜ろ過or 凝集+沈澱/前ろ過+緩速ろ過 | AQ20: 出力まとめの表(総合評価) | AR20: 出力まとめの表 | AU20: 8_b | AV20: 粉末炭注入日数 | AW20: 未入力の場合、365日/年で計算されます。
B21: 富山県 | K21: 1 | L21: 0.1732625394 | M21: 0.2016554718 | N21: 0.7104297173 | P21: 2024年 | S21: 1965(昭和40) | W21: 1ng/L以下 | AH21: 原水レベル!THMFP!0.015mg/L以下 | AI21: 低-1 | AJ21: 10 | AL21: 濁度除去プロセス!62 | AM21: 濁度除去プロセス | AN21: 62 | AO21: 凝集+沈澱/前ろ過+急速ろ過or (凝集+)(沈澱/前ろ過+)膜ろ過 | AQ21: 系列の集計 | AR21: 系列の集計 | AU21: 9 | AV21: 紫外線処理の有無 | AW21: 紫外線処理を導入している場合は有を、無しの場合は未記入もしくは無でも問題ありません。
B22: 石川県 | K22: 2 | L22: 0.3078669483 | M22: 0.3531726238 | N22: 1.193463016 | P22: 2025年 | S22: 1966(昭和41) | AH22: 原水レベル!THMFP!0.015mg/L超～0.04mg/L以下 | AI22: 低 | AJ22: 20 | AL22: 濁度除去プロセス!63 | AM22: 濁度除去プロセス | AN22: 63 | AO22: (凝集+)(沈澱/前ろ過+)膜ろ過 | AU22: 10 | AV22: 排水処理 | AW22: 排水処理方式を選択して下さい。 脱水工程で選択肢を作成しております。 いずれの選択肢も排泥池、濃縮槽、排水池を含んでおります。 未記入でも問題ありません。
B23: 福井県 | K23: 3 | L23: 0.4869491722 | M23: 0.5504131099 | N23: 1.781039684 | P23: 2026年 | S23: 1967(昭和42) | U23: {Select濁度J} | V23: {SelectTocJ} | W23: {Selectかび臭J} | X23: {SelectThmfpJ} | AH23: 原水レベル!THMFP!0.04mg/L超～0.07mg/L以下 | AI23: 中 | AJ23: 30 | AL23: TOC除去プロセス!110 | AM23: TOC除去プロセス | AN23: 110 | AO23: 不要 | AU23: 11 | AV23: 主要設備の最小系列数 | AW23: 影響水量と損失額の計算に使用します。 系列数が多いほど、影響水量、損失額は低くなります。 例えば、沈澱池２系列、ろ過池が４系列の場合には、 ２系列を選択します。
B24: 山梨県 | K24: 4 | L24: 0.722319722 | M24: 0.8043839554 | N24: 2.48893701 | P24: 2027年 | S24: 1968(昭和43) | AH24: 原水レベル!THMFP!0.07mg/L超～0.245mg/L以下 | AI24: 高 | AJ24: 40 | AL24: TOC除去プロセス!120 | AM24: TOC除去プロセス | AN24: 120 | AO24: 不要 | AU24: 12 | AV24: その系列名称 | AW24: 未記入でもかまいません。 単に最小系列設備の名称を確認するものです。
B25: 長野県 | K25: 5 | L25: 1.027923145 | M25: 1.127847395 | N25: 3.333620989 | P25: 2028年 | S25: 1969(昭和44) | AH25: 浄水レベル!濁度!2度以下 | AI25: 水質基準 | AJ25: 1 | AL25: TOC除去プロセス!130 | AM25: TOC除去プロセス | AN25: 130 | AO25: 不要 | AU25: 13 | AV25: 更新年数 | AW25: 法定耐用年数×延長係数では14のメンテナンスレベルに応じて 定まる延長係数でもって更新年数を決める流れとなります。 指定年数（入力値）は事業体内部等で独自に更新基準年数を 定めている場合に選択して下さい。 選択することによって年数を入力する画面へ遷移しますので、 入力して下さい。 その際、分類が異なる場合もありますが、大まかな分類として 入力して下さい。（50年間で何度、更新費用が発生するか、などを 概算することが目的のため） 別途「（事例集成果物名）」に水道事業体が公表しているものを まとめた更新基準年数を参考としていただくことも可能です。
B26: 岐阜県 | K26: 6 | L26: 1.419909324 | M26: 1.535340319 | N26: 4.331864507 | P26: 2029年 | S26: 1970(昭和45) | AH26: 浄水レベル!濁度!0.1度以下 | AI26: 標準選定指標 | AJ26: 2 | AL26: TOC除去プロセス!210 | AM26: TOC除去プロセス | AN26: 210 | AO26: 不要 | AU26: 14 | AV26: メンテナンスレベル | AW26: 浄水施設に関してのメンテナンスレベルを自己採点して下さい。 メンテナンスレベルスコアが高いほど電気設備、機械設備、 計装設備の更新年数が法定耐用年数より延長するとして シミュレーションが行われます。 また、故障率が低くなります。 未入力の場合、メンテナンスレベルスコア360点（中間点）で 延長係数が計算されます。
B27: 静岡県 | K27: 7 | L27: 1.916604276 | M27: 2.043112 | N27: 5.500279169 | P27: 2030年 | S27: 1971(昭和46) | AH27: 浄水レベル!濁度!0.01度以下 | AI27: 参考選定指標 | AJ27: 3 | AL27: TOC除去プロセス!220 | AM27: TOC除去プロセス | AN27: 220 | AO27: 不要 | AU27: 15_18 | AV27: 設備分類毎の情報 | AW27: 建設（更新）年は主要な施設、設備の取得年を入力して下さい。 建設（更新）年が複数にまたがる場合、最も大きい金額や重要度の高い年を選択して下さい。 取得金額は主要なものとその他の施設、設備の金額を分かる 範囲で合計して入力して下さい。 取得金額が不明な場合、参照入力の金額を参照するかそのまま 入力（取得データを「取得金額」に入力する）して下さい。
B28: 愛知県 | K28: 8 | L28: 2.538353405 | M28: 2.668962231 | N28: 6.854769014 | P28: 2031年 | S28: 1972(昭和47) | AH28: 浄水レベル!TOC!3.0mg/L以下 | AI28: 水質基準 | AJ28: 1 | AL28: TOC除去プロセス!230 | AM28: TOC除去プロセス | AN28: 230 | AO28: 凝集or 粉末炭 | AU28: 19 | AV28: 更新する場合の計画浄水量(施設能力) | AW28: 更新する場合の計画浄水量を入力して下さい。 あるいは将来予想される給水人口から計画浄水量を 入力して下さい。
B29: 三重県 | K29: 9 | L29: 3.307213065 | M29: 3.431964611 | N29: 8.409920737 | P29: 2032年 | S29: 1973(昭和48) | AH29: 浄水レベル!TOC!1.5mg/L以下 | AI29: 標準選定指標 | AJ29: 2 | AL29: TOC除去プロセス!310 | AM29: TOC除去プロセス | AN29: 310 | AO29: 不要 | AU29: 20_21_23 | AV29: 推奨浄水プロセスの情報 | AW29: 「水道技術研究センター 浄水技術ガイドライン2010 p.15」に 記載されている原水レベルと浄水レベル区分となっています。
B30: 滋賀県 | K30: 10 | L30: 4.24647217 | M30: 4.352064339 | N30: 10.17835139 | P30: 2033年 | S30: 1974(昭和49) | AH30: 浄水レベル!TOC!1.0mg/L以下 | AI30: 参考選定指標 | AJ30: 3 | AL30: TOC除去プロセス!320 | AM30: TOC除去プロセス | AN30: 320 | AO30: 凝集or 粉末炭 | AU30: 22 | AV30: 推奨浄水プロセスの情報：カビ臭 | AW30: ジェオスミンと2-MIB濃度の合計値として下さい。 「水道技術研究センター 浄水技術ガイドライン2010 p.15」に 記載されている原水レベルと浄水レベル区分となっています。
B31: 京都府 | K31: 11 | L31: 5.379994818 | M31: 5.449546445 | N31: 12.17004055 | P31: 2034年 | S31: 1975(昭和50) | AH31: 浄水レベル!かび臭!10ng/L以下 | AI31: 水質基準 | AJ31: 1 | AL31: TOC除去プロセス!330 | AM31: TOC除去プロセス | AN31: 330 | AO31: 粉末炭or 粒状炭
B32: 大阪府 | K32: 12 | L32: 6.731387115 | M32: 6.744378756 | N32: 14.39167879 | P32: 2035年 | S32: 1976(昭和51) | AH32: 浄水レベル!かび臭!5ng/L以下 | AI32: 標準選定指標 | AJ32: 2 | AL32: TOC除去プロセス!410 | AM32: TOC除去プロセス | AN32: 410 | AO32: 凝集or 粉末炭 | AU32: 9 | AV32: その系列名称 | AW32: 未記入でもかまいません。 単に最小系列設備の名称を確認するものです。
B33: 兵庫県 | K33: 13 | L33: 8.323006153 | M33: 8.255443744 | N33: 16.84606771 | P33: 2036年 | S33: 1977(昭和52) | AH33: 浄水レベル!かび臭!3ng/L以下 | AI33: 参考選定指標1 | AJ33: 3 | AL33: TOC除去プロセス!420 | AM33: TOC除去プロセス | AN33: 420 | AO33: 粒状炭or オゾン+粒状炭
B34: 奈良県 | K34: 14 | L34: 10.1748453 | M34: 9.999683951 | N34: 19.53160803 | P34: 2037年 | S34: 1978(昭和53) | AH34: 浄水レベル!かび臭!1ng/L以下 | AI34: 参考選定指標2 | AJ34: 4 | AL34: TOC除去プロセス!430 | AM34: TOC除去プロセス | AN34: 430 | AO34: オゾン+粒状炭
B35: 和歌山県 | K35: 15 | L35: 12.30334624 | M35: 11.99119618 | N35: 22.44191118 | P35: 2038年 | S35: 1979(昭和54) | AH35: 浄水レベル!THM!0.1mg/L以下 | AI35: 水質基準 | AJ35: 1 | AL35: かび臭除去プロセス!1100 | AM35: かび臭除去プロセス | AN35: 1100 | AO35: 不要
B36: 鳥取県 | K36: 16 | L36: 14.72020283 | M36: 14.24031914 | N36: 25.56556601 | P36: 2039年 | S36: 1980(昭和55) | AH36: 浄水レベル!THM!0.04mg/L以下 | AI36: 標準選定指標 | AJ36: 2 | AL36: かび臭除去プロセス!1200 | AM36: かび臭除去プロセス | AN36: 1200 | AO36: 不要
B37: 島根県 | K37: 17 | L37: 17.43123309 | M37: 16.75276639 | N37: 28.88608603 | P37: 2040年 | S37: 1981(昭和56) | AH37: 浄水レベル!THM!0.015mg/L以下 | AI37: 参考選定指標 | AJ37: 3 | AL37: かび臭除去プロセス!1300 | AM37: かび臭除去プロセス | AN37: 1300 | AO37: 不要
B38: 岡山県 | K38: 18 | L38: 20.43540165 | M38: 19.52886087 | N38: 32.38205385 | P38: 2041年 | S38: 1982(昭和57) | AL38: かび臭除去プロセス!1400 | AM38: かび臭除去プロセス | AN38: 1400 | AO38: 不要
B39: 広島県 | K39: 19 | L39: 23.72407456 | M39: 22.56292717 | N39: 36.02746908 | P39: 2042年 | S39: 1983(昭和58) | AL39: かび臭除去プロセス!2100 | AM39: かび臭除去プロセス | AN39: 2100 | AO39: 不要
B40: 山口県 | K40: 20 | L40: 27.28058028 | M40: 25.84289381 | N40: 39.79229449 | P40: 2043年 | S40: 1984(昭和59) | AL40: かび臭除去プロセス!2200 | AM40: かび臭除去プロセス | AN40: 2200 | AO40: 不要
B41: 徳島県 | K41: 21 | L41: 31.08013577 | M41: 29.35014864 | N41: 43.64318288 | P41: 2044年 | S41: 1985(昭和60) | AL41: かび臭除去プロセス!2300 | AM41: かび臭除去プロセス | AN41: 2300 | AO41: 不要
B42: 香川県 | K42: 22 | L42: 35.09017409 | M42: 33.05967747 | N42: 47.54435652 | P42: 2045年 | S42: 1986(昭和61) | AL42: かび臭除去プロセス!2400 | AM42: かび臭除去プロセス | AN42: 2400 | AO42: 粉末炭or 粒状炭
B43: 愛媛県 | K43: 23 | L43: 39.27108297 | M43: 36.9404994 | N43: 51.45860045 | P43: 2046年 | S43: 1987(昭和62) | AL43: かび臭除去プロセス!3100 | AM43: かび臭除去プロセス | AN43: 3100 | AO43: 不要
B44: 高知県 | K44: 24 | L44: 43.57733388 | M44: 40.95639315 | N44: 55.34832412 | P44: 2047年 | S44: 1988(昭和63) | AL44: かび臭除去プロセス!3200 | AM44: かび臭除去プロセス | AN44: 3200 | AO44: 不要
B45: 福岡県 | K45: 25 | L45: 47.95895084 | M45: 45.06688933 | N45: 59.17664091 | P45: 2048年 | S45: 1989(昭和64) | AL45: かび臭除去プロセス!3300 | AM45: かび臭除去プロセス | AN45: 3300 | AO45: 粉末炭or 粒状炭
B46: 佐賀県 | K46: 26 | L46: 52.36324114 | M46: 49.22848438 | N46: 62.90841413 | P46: 2049年 | S46: 1990(平成02) | AL46: かび臭除去プロセス!3400 | AM46: かび臭除去プロセス | AN46: 3400 | AO46: 粉末炭or 粒状炭
B47: 長崎県 | K47: 27 | L47: 56.7366886 | M47: 53.39601618 | N47: 66.51122011 | P47: 2050年 | S47: 1991(平成03) | AL47: かび臭除去プロセス!4100 | AM47: かび臭除去プロセス | AN47: 4100 | AO47: 不要
B48: 熊本県 | K48: 28 | L48: 61.02689651 | M48: 57.52412903 | N48: 69.95618472 | P48: 2051年 | S48: 1992(平成04) | AL48: かび臭除去プロセス!4200 | AM48: かび臭除去プロセス | AN48: 4200 | AO48: 粉末炭or 粒状炭
B49: 大分県 | K49: 29 | L49: 65.18446311 | M49: 61.56874913 | N49: 73.2186576 | P49: 2052年 | S49: 1993(平成05) | AL49: かび臭除去プロセス!4300 | AM49: かび臭除去プロセス | AN49: 4300 | AO49: 粉末炭or 粒状炭
B50: 宮崎県 | K50: 30 | L50: 69.16467818 | M50: 65.48849078 | N50: 76.27869908 | P50: 2053年 | S50: 1994(平成06) | AL50: かび臭除去プロセス!4400 | AM50: かび臭除去プロセス | AN50: 4400 | AO50: 粉末炭or 粒状炭
B51: 鹿児島県 | K51: 31 | L51: 72.92894425 | M51: 69.24591896 | N51: 79.12136597 | P51: 2054年 | S51: 1995(平成07) | AL51: かび臭除去プロセス!5100 | AM51: かび臭除去プロセス | AN51: 5100 | AO51: 粉末炭or 粒状炭
B52: 沖縄県 | K52: 32 | L52: 76.44584844 | M52: 72.8086043 | N52: 81.73679468 | P52: 2055年 | S52: 1996(平成08) | AL52: かび臭除去プロセス!5200 | AM52: かび臭除去プロセス | AN52: 5200 | AO52: 粉末炭or 粒状炭
K53: 33 | L53: 79.69183868 | M53: 76.14992208 | N53: 84.1200911 | P53: 2056年 | S53: 1997(平成09) | AL53: かび臭除去プロセス!5300 | AM53: かび臭除去プロセス | AN53: 5300 | AO53: 粉末炭or 粒状炭
K54: 34 | L54: 82.65148851 | M54: 79.24956474 | N54: 86.27104691 | P54: 2057年 | S54: 1998(平成10) | AL54: かび臭除去プロセス!5400 | AM54: かび臭除去プロセス | AN54: 5400 | AO54: 粒状炭or オゾン+粒状炭
K55: 35 | L55: 85.31736425 | M55: 82.09375741 | N55: 88.19370993 | P55: 2058年 | S55: 1999(平成11) | AL55: かび臭除去プロセス!6100 | AM55: かび臭除去プロセス | AN55: 6100 | AO55: 粒状炭
K56: 36 | L56: 87.68953487 | M56: 84.6751849 | N56: 89.89584146 | P56: 2059年 | S56: 2000(平成12) | AL56: かび臭除去プロセス!6200 | AM56: かび臭除去プロセス | AN56: 6200 | AO56: 粒状炭or オゾン+粒状炭
K57: 37 | L57: 89.77478613 | M57: 86.99265631 | N57: 91.3882967 | P57: 2060年 | S57: 2001(平成13) | AL57: かび臭除去プロセス!6300 | AM57: かび臭除去プロセス | AN57: 6300 | AO57: 粒状炭or オゾン+粒状炭
K58: 38 | L58: 91.58561459 | M58: 89.05054734 | N58: 92.68436465 | P58: 2061年 | S58: 2002(平成14) | AL58: かび臭除去プロセス!6400 | AM58: かび臭除去プロセス | AN58: 6400 | AO58: オゾン+粒状炭
K59: 39 | L59: 93.13908391 | M59: 90.8580706 | N59: 93.79910182 | P59: 2062年 | S59: 2003(平成15) | AL59: THM除去プロセス!11000 | AM59: THM除去プロセス | AN59: 11000 | AO59: 不要
K60: 40 | L60: 94.45562524 | M60: 92.42842963 | N60: 94.74869033 | P60: 2063年 | S60: 2004(平成16) | AL60: THM除去プロセス!12000 | AM60: THM除去プロセス | AN60: 12000 | AO60: 不要
K61: 41 | L61: 95.5578566 | M61: 93.77791303 | N61: 95.54984557 | P61: 2064年 | S61: 2005(平成17) | AL61: THM除去プロセス!13000 | AM61: THM除去プロセス | AN61: 13000 | AO61: 不要
K62: 42 | L62: 96.46948424 | M62: 94.92498239 | N62: 96.21929251 | P62: 2065年 | S62: 2006(平成18) | AL62: THM除去プロセス!21000 | AM62: THM除去プロセス | AN62: 21000 | AO62: 不要
K63: 43 | L63: 97.21433394 | M63: 95.88940046 | N63: 96.7733233 | P63: 2066年 | S63: 2007(平成19) | AL63: THM除去プロセス!22000 | AM63: THM除去プロセス | AN63: 22000 | AO63: 不要
K64: 44 | L64: 97.81554403 | M64: 96.6914377 | N64: 97.22744253 | P64: 2067年 | S64: 2008(平成20) | AL64: THM除去プロセス!23000 | AM64: THM除去プロセス | AN64: 23000 | AO64: 凝集or 粉末炭
K65: 45 | L65: 98.29493552 | M65: 97.35118447 | N65: 97.59610094 | P65: 2068年 | S65: 2009(平成21) | AL65: THM除去プロセス!31000 | AM65: THM除去プロセス | AN65: 31000 | AO65: 不要
K66: 46 | L66: 98.67256061 | M66: 97.88798574 | N66: 97.89251354 | P66: 2069年 | S66: 2010(平成22) | AL66: THM除去プロセス!32000 | AM66: THM除去プロセス | AN66: 32000 | AO66: 凝集or 粉末炭
K67: 47 | L67: 98.9664188 | M67: 98.32000523 | N67: 98.12855453 | P67: 2070年 | S67: 2011(平成23) | AL67: THM除去プロセス!33000 | AM67: THM除去プロセス | AN67: 33000 | AO67: 粉末炭or 粒状炭
K68: 48 | L68: 99.19232139 | M68: 98.66391672 | N68: 98.31471885 | P68: 2071年 | S68: 2012(平成24) | AL68: THM除去プロセス!41000 | AM68: THM除去プロセス | AN68: 41000 | AO68: 凝集or 粉末炭
K69: 49 | L69: 99.36387943 | M69: 98.93471353 | N69: 98.46013871 | P69: 2072年 | S69: 2013(平成25) | AL69: THM除去プロセス!42000 | AM69: THM除去プロセス | AN69: 42000 | AO69: 粉末炭or 粒状炭
K70: 50 | L70: 99.49258798 | M70: 99.14562197 | N70: 98.57264304 | P70: 2073年 | S70: 2014(平成26) | AL70: =+AM70&"!"&AN70 -> THM除去プロセス!43000 | AM70: THM除去プロセス | AN70: 43000 | AO70: オゾン+粒状炭
K71: 51 | L71: 99.58797958 | M71: 99.30810122 | N71: 98.65884816 | P71: 2074年 | S71: 2015(平成27)
K72: 52 | L72: 99.65782202 | M72: 99.43191112 | N72: 98.72426885 | S72: 2016(平成28)
K73: 53 | L73: 99.70833872 | M73: 99.52522933 | N73: 98.77344057 | S73: 2017(平成29)
K74: 54 | L74: 99.74443456 | M74: 99.59480076 | N74: 98.81004502 | S74: 2018(平成30)
K75: 55 | L75: 99.76991375 | M75: 99.6461045 | N75: 98.83703303 | S75: 2019(平成31)
K76: 56 | L76: 99.78768102 | M76: 99.68352595 | N76: 98.85674027 | S76: 2020(令和02)
K77: 57 | L77: 99.79992048 | M77: 99.71052484 | N77: 98.87099304 | S77: 2021(令和03)
K78: 58 | L78: 99.80824981 | M78: 99.7297923 | N78: 98.88120222 | S78: 2022(令和04)
K79: 59 | L79: 99.8138495 | M79: 99.74339285 | N79: 98.88844492 | S79: 2023(令和05)
K80: 60 | L80: 99.81756849 | M80: 99.75288889 | N80: 98.89353388 | S80: 2024(令和06)
K81: 61 | L81: 99.82000851 | M81: 99.75944705 | N81: 98.89707528 | S81: 2025(令和07)
K82: 62 | L82: 99.82159 | M82: 99.76392701 | N82: 98.89951612 | S82: 2026(令和08)
K83: 63 | L83: 99.82260262 | M83: 99.76695407 | N83: 98.9011823 | S83: 2027(令和09)
K84: 64 | L84: 99.82324314 | M84: 99.76897719 | N84: 98.90230878 | S84: 2028(令和10)
K85: 65 | L85: 99.82364338 | M85: 99.77031463 | N85: 98.90306308 | S85: 2029(令和11)
K86: 66 | L86: 99.82389046 | M86: 99.77118917 | N86: 98.90356332 | S86: 2030(令和12)
K87: 67 | L87: 99.82404113 | M87: 99.77175481 | N87: 98.9038919 | S87: 2031(令和13)
K88: 68 | L88: 99.8241319 | M88: 99.77211669 | N88: 98.90410565 | S88: 2032(令和14)
K89: 69 | L89: 99.82418592 | M89: 99.77234568 | N89: 98.90424337 | S89: 2033(令和15)
K90: 70 | L90: 99.82421768 | M90: 99.77248901 | N90: 98.90433126 | S90: 2034(令和16)
K91: 71 | L91: 99.82423613 | M91: 99.77257775 | N91: 98.9043868 | S91: 2035(令和17)
K92: 72 | L92: 99.82424671 | M92: 99.77263209 | N92: 98.90442157 | S92: 2036(令和18)
K93: 73 | L93: 99.82425271 | M93: 99.77266501 | N93: 98.90444313 | S93: 2037(令和19)
K94: 74 | L94: 99.82425607 | M94: 99.77268473 | N94: 98.90445636 | S94: 2038(令和20)
K95: 75 | L95: 99.82425793 | M95: 99.77269642 | N95: 98.90446441 | S95: 2039(令和21)
K96: 76 | L96: 99.82425894 | M96: 99.77270327 | N96: 98.90446926 | S96: 2040(令和22)
K97: 77 | L97: 99.82425949 | M97: 99.77270725 | N97: 98.90447215 | S97: 2041(令和23)
K98: 78 | L98: 99.82425978 | M98: 99.77270953 | N98: 98.90447386 | S98: 2042(令和24)
K99: 79 | L99: 99.82425994 | M99: 99.77271082 | N99: 98.90447486 | S99: 2043(令和25)
K100: 80 | L100: 99.82426002 | M100: 99.77271154 | N100: 98.90447544 | S100: 2044(令和26)
K101: 81 | L101: 99.82426006 | M101: 99.77271195 | N101: 98.90447577 | S101: 2045(令和27)
K102: 82 | L102: 99.82426008 | M102: 99.77271217 | N102: 98.90447596 | S102: 2046(令和28)
K103: 83 | L103: 99.82426009 | M103: 99.77271229 | N103: 98.90447607 | S103: 2047(令和29)
K104: 84 | L104: 99.8242601 | M104: 99.77271235 | N104: 98.90447613 | S104: 2048(令和30)
K105: 85 | L105: 99.8242601 | M105: 99.77271239 | N105: 98.90447616 | S105: 2049(令和31)
K106: 86 | L106: 99.8242601 | M106: 99.7727124 | N106: 98.90447618 | S106: 2050(令和32)
K107: 87 | L107: 99.8242601 | M107: 99.77271241 | N107: 98.90447619 | S107: 1950
K108: 88 | L108: 99.8242601 | M108: 99.77271242 | N108: 98.90447619 | S108: 1951
K109: 89 | L109: 99.8242601 | M109: 99.77271242 | N109: 98.9044762 | S109: 1952
K110: 90 | L110: 99.8242601 | M110: 99.77271242 | N110: 98.9044762 | S110: 1953
K111: 91 | L111: 99.8242601 | M111: 99.77271242 | N111: 98.9044762 | S111: 1954
K112: 92 | L112: 99.8242601 | M112: 99.77271242 | N112: 98.9044762 | S112: 1955
K113: 93 | L113: 99.8242601 | M113: 99.77271242 | N113: 98.9044762 | S113: 1956
K114: 94 | L114: 99.8242601 | M114: 99.77271242 | N114: 98.9044762 | S114: 1957
K115: 95 | L115: 99.8242601 | M115: 99.77271242 | N115: 98.9044762 | S115: 1958
K116: 96 | L116: 99.8242601 | M116: 99.77271242 | N116: 98.9044762 | S116: 1959
K117: 97 | L117: 99.8242601 | M117: 99.77271242 | N117: 98.9044762 | S117: 1960
K118: 98 | L118: 99.8242601 | M118: 99.77271242 | N118: 98.9044762 | S118: 1961
K119: 99 | L119: 99.8242601 | M119: 99.77271242 | N119: 98.9044762 | S119: 1962
K120: 100 | L120: 99.8242601 | M120: 99.77271242 | N120: 98.9044762 | S120: 1963
K121: 101 | L121: 99.8242601 | M121: 99.77271242 | N121: 98.9044762 | S121: 1964
K122: 102 | L122: 99.8242601 | M122: 99.77271242 | N122: 98.9044762 | S122: 1965
K123: 103 | L123: 99.8242601 | M123: 99.77271242 | N123: 98.9044762 | S123: 1966
K124: 104 | L124: 99.8242601 | M124: 99.77271242 | N124: 98.9044762 | S124: 1967
K125: 105 | L125: 99.8242601 | M125: 99.77271242 | N125: 98.9044762 | S125: 1968
K126: 106 | L126: 99.8242601 | M126: 99.77271242 | N126: 98.9044762 | S126: 1969
K127: 107 | L127: 99.8242601 | M127: 99.77271242 | N127: 98.9044762 | S127: 1970
K128: 108 | L128: 99.8242601 | M128: 99.77271242 | N128: 98.9044762 | S128: 1971
K129: 109 | L129: 99.8242601 | M129: 99.77271242 | N129: 98.9044762 | S129: 1972
K130: 110 | L130: 99.8242601 | M130: 99.77271242 | N130: 98.9044762 | S130: 1973
K131: 111 | L131: 99.8242601 | M131: 99.77271242 | N131: 98.9044762 | S131: 1974
K132: 112 | L132: 99.8242601 | M132: 99.77271242 | N132: 98.9044762 | S132: 1975
K133: 113 | L133: 99.8242601 | M133: 99.77271242 | N133: 98.9044762 | S133: 1976
K134: 114 | L134: 99.8242601 | M134: 99.77271242 | N134: 98.9044762 | S134: 1977
K135: 115 | L135: 99.8242601 | M135: 99.77271242 | N135: 98.9044762 | S135: 1978
K136: 116 | L136: 99.8242601 | M136: 99.77271242 | N136: 98.9044762 | S136: 1979
K137: 117 | L137: 99.8242601 | M137: 99.77271242 | N137: 98.9044762 | S137: 1980
K138: 118 | L138: 99.8242601 | M138: 99.77271242 | N138: 98.9044762 | S138: 1981
K139: 119 | L139: 99.8242601 | M139: 99.77271242 | N139: 98.9044762 | S139: 1982
K140: 120 | L140: 99.8242601 | M140: 99.77271242 | N140: 98.9044762 | S140: 1983
S141: 1984
S142: 1985
S143: 1986
S144: 1987
S145: 1988
S146: 1989
S147: 1990
S148: 1991
S149: 1992
S150: 1993
S151: 1994
S152: 1995
S153: 1996
S154: 1997
S155: 1998
S156: 1999
S157: 2000
S158: 2001
S159: 2002
S160: 2003
S161: 2004
S162: 2005
S163: 2006
S164: 2007
S165: 2008
S166: 2009
S167: 2010
S168: 2011
S169: 2012
S170: 2013
S171: 2014
S172: 2015
S173: 2016
S174: 2017
S175: 2018
S176: 2019
S177: 2020
S178: 2021
S179: 2022
S180: 2023
S181: 2024
S182: 2025
S183: 2026
S184: 2027
S185: 2028
S186: 2029
S187: 2030
S188: 2031
S189: 2032
S190: 2033
S191: 2034
S192: 2035
S193: 2036
S194: 2037
S195: 2038
S196: 2039
S197: 2040
S198: 2041
S199: 2042
S200: 2043
... 7 more rows

Sheet Calc2024 (hidden)
J1: ｶｰｿﾙ移動設定 | K1: FALSE | Q1: 相違項目数
C2: プロセス選定 | J2: 移動方向 | K2: -4121 | P2: × | Q2: =COUNTIF($P$5:$P$80,P2) -> 21 | R2: {RngSouiChk} | AB2: {RngEikyou_Den} | AC2: {RngEikyou_Kika} | AD2: {RngEikyou_Kei}
C3: プロセス選定途中の演算 | J3: 系列の集計 | N3: ■シミュレート実行後ﾃﾞｰﾀ保存 | AB3: ■影響水量■
E4: 6列目 | K4: {CalSumFlg} | O4: 入力画面 | Q4: 前回格納
C5: ■原水レベル | D5: 行番号 | E5: ﾚﾍﾞﾙ | F5: ■浄水レベル | G5: 列番号 | H5: ﾚﾍﾞﾙ | I5: 推奨プロス | N5: 作成日 | O5: =プレビュー!G9 -> 00:00:00 | P5: =IF(O5=Q5,"○","×") -> ○
B6: 濁度 | C6: =IF('入力情報(2)'!V12=1,'入力情報(2)'!I11,IF('入力情報(2)'!V11=1,'入力情報(2)'!G11,0)) -> 0 | D6: =MATCH(C6,Rng原水_濁度Y,0)+CELL("row",Rng原水_濁度Y)-1 ->  | E6: =INDIRECT("推奨プロセス選択肢!"&ADDRESS(D6,6),TRUE) ->  | F6: ='入力情報(2)'!J11 -> 0 | G6: =MATCH(F6,Rng浄水_濁度X,0)+CELL("Col",Rng浄水_濁度X)-1 ->  | H6: =INDIRECT("推奨プロセス選択肢!"&ADDRESS(CELL("row",Rng浄水_濁度X)+1,G6),TRUE) ->  | I6: =INDIRECT("推奨プロセス選択肢!"&ADDRESS(D6,G6),TRUE) ->  | N6: 事業体名 | O6: =プレビュー!G10 -> 0 | P6: ○
B7: TOC | C7: =IF('入力情報(2)'!V12=1,'入力情報(2)'!I12,IF('入力情報(2)'!V11=1,'入力情報(2)'!G12,0)) -> 0 | D7: =MATCH(C7,Rng原水_TOCY,0)+CELL("row",Rng原水_TOCY)-1 ->  | E7: =INDIRECT("推奨プロセス選択肢!"&ADDRESS(D7,6),TRUE) ->  | F7: ='入力情報(2)'!J12 -> 0 | G7: =MATCH(F7,Rng浄水_TOCX,0)+CELL("Col",Rng浄水_TOCX)-1 ->  | H7: =INDIRECT("推奨プロセス選択肢!"&ADDRESS(CELL("row",Rng浄水_TOCX)+1,G7),TRUE) ->  | I7: =INDIRECT("推奨プロセス選択肢!"&ADDRESS(D7,G7),TRUE) ->  | N7: 所在地 | O7: =プレビュー!G11 ->  | P7: ×
B8: かび臭 | C8: =IF('入力情報(2)'!V12=1,'入力情報(2)'!I13,IF('入力情報(2)'!V11=1,'入力情報(2)'!G13,0)) -> 0 | D8: =MATCH(C8,Rng原水_かびY,0)+CELL("row",Rng原水_かびY)-1 ->  | E8: =INDIRECT("推奨プロセス選択肢!"&ADDRESS(D8,6),TRUE) ->  | F8: ='入力情報(2)'!J13 -> 0 | G8: =MATCH(F8,Rng浄水_かびX,0)+CELL("Col",Rng浄水_かびX)-1 ->  | H8: =INDIRECT("推奨プロセス選択肢!"&ADDRESS(CELL("row",Rng浄水_かびX)+1,G8),TRUE) ->  | I8: =INDIRECT("推奨プロセス選択肢!"&ADDRESS(D8,G8),TRUE) ->  | N8: 記入者 | O8: =プレビュー!G12 -> 0 | P8: ○
B9: THM | C9: =IF('入力情報(2)'!V12=1,'入力情報(2)'!I14,IF('入力情報(2)'!V11=1,'入力情報(2)'!G14,0)) -> 0 | D9: =MATCH(C9,Rng原水_THMY,0)+CELL("row",Rng原水_THMY)-1 ->  | E9: =INDIRECT("推奨プロセス選択肢!"&ADDRESS(D9,6),TRUE) ->  | F9: ='入力情報(2)'!J14 -> 0 | G9: =MATCH(F9,Rng浄水_THMX,0)+CELL("Col",Rng浄水_THMX)-1 ->  | H9: =INDIRECT("推奨プロセス選択肢!"&ADDRESS(CELL("row",Rng浄水_THMX)+1,G9),TRUE) ->  | I9: =INDIRECT("推奨プロセス選択肢!"&ADDRESS(D9,G9),TRUE) ->  | N9: 所属 | O9: =プレビュー!G13 -> 0 | P9: ○
N10: 連絡先 | O10: =プレビュー!G14 -> 0 | P10: ○
N11: 浄水場名 | O11: =プレビュー!$G$19 -> 0 | P11: ○
N12: 現在の浄水量（日最大） | O12: =プレビュー!H20 -> 0 | P12: ○ | R12: {RngSouiChk2nd}
N13: 現在の給水人口 | O13: =プレビュー!H21 -> 0 | P13: ○
N14: 給水原価 | O14: =プレビュー!H22 -> 0 | P14: ○
N15: 原水種類 | O15: =プレビュー!H23 -> 0 | P15: ○
N16: ろ過方式 | O16: =プレビュー!H24 -> 0 | P16: ○
N17: 前処理+高度浄水処理 | O17: =プレビュー!H25 -> 0 | P17: ○
N18: 粉末炭の有無 | O18: =プレビュー!H26 -> 無 | P18: ×
N19: 粉末炭平均注入率 | O19: =プレビュー!H27 -> - | P19: ×
N20: 粉末炭注入日数 | O20: =プレビュー!H28 -> - | P20: ×
N21: 紫外線 | O21: =プレビュー!H29 -> 無 | P21: ×
N22: 排水処理 | O22: =プレビュー!H30 -> 無 | P22: ×
N23: 主要設備の最小系列数 | O23: =プレビュー!H31 -> 0 | P23: ○
N24: その系列名称 | O24: =プレビュー!H32 -> 0 | P24: ○
N25: 更新年数 | O25: =プレビュー!H33 -> 法定耐用年数×延長係数 | P25: ×
N26: メンテナンスレベル | O26: =プレビュー!H34 -> 0 | P26: ○
M27: 建設(更新)年 | N27: 建築構造物 | O27: =プレビュー!H40 -> 0 | P27: ○
N28: 土木構造物 | O28: =プレビュー!H41 -> 0 | P28: ○
N29: 電気設備 | O29: =プレビュー!H42 -> 0 | P29: ○
N30: 機械設備 | O30: =プレビュー!H43 -> 0 | P30: ○
M31: 取得金額 | N31: 建築構造物 | O31: =プレビュー!I40 -> 0 | P31: ○
N32: 土木構造物 | O32: =プレビュー!I41 -> 0 | P32: ○
N33: 電気設備 | O33: =プレビュー!I42 -> 0 | P33: ○
N34: 機械設備 | O34: =プレビュー!I43 -> 0 | P34: ○
N35: 更新する場合の浄水量 | O35: =プレビュー!H48 -> 0 | P35: ○
M36: 現状の原水水質 | N36: 濁度 | O36: =プレビュー!G53 -> 0 | P36: ○
N37: TOC | O37: =プレビュー!G54 -> 0 | P37: ○
N38: かび臭 | O38: =プレビュー!G55 -> 0 | P38: ○
N39: THMFP | O39: =プレビュー!G56 -> 0 | P39: ○
M40: 将来予想される原水水質 | N40: 濁度 | O40: =プレビュー!H53 -> 0 | P40: ○
N41: TOC | O41: =プレビュー!H54 -> 0 | P41: ○
N42: かび臭 | O42: =プレビュー!H55 -> 0 | P42: ○
N43: THMFP | O43: =プレビュー!H56 -> 0 | P43: ○
M44: 要求される浄水水質 | N44: 濁度 | O44: =プレビュー!I53 -> 0 | P44: ○
N45: TOC | O45: =プレビュー!I54 -> 0 | P45: ○
N46: かび臭 | O46: =プレビュー!I55 -> 0 | P46: ○
N47: THMFP | O47: =プレビュー!I56 -> 0 | P47: ○
D48: ■運転費原価■ | M48: 推奨フロー | N48: ろ過方式 | O48: =プレビュー!H58 -> 0 | P48: ○
D49: 希望フロー | E49: =VLOOKUP(Cal希望浄水No,設備費と運転費!$B$38:$J$51,9,FALSE) | N49: 前処理+高度浄水処理 | O49: =プレビュー!H59 -> 0 | P49: ○
N50: 粉末炭の有無 | O50: =プレビュー!H60 -> 無 | P50: ×
N51: 粉末炭平均注入率 | O51: =プレビュー!H61 -> - | P51: ×
N52: 粉末炭注入日数 | O52: =プレビュー!H62 -> - | P52: ×
N53: 紫外線 | O53: =プレビュー!H63 -> 無 | P53: ×
N54: 排水処理 | O54: =プレビュー!H64 -> 無 | P54: ×
M55: シナリオ選択 | N55: シナリオ１ | P55: ○
N56: シナリオ２ | O56: =プレビュー!E70 ->  | P56: ○
N57: シナリオ３ | O57: =プレビュー!E71 ->  | P57: ○
N58: シナリオ４ | O58: =プレビュー!E72 ->  | P58: ○
N59: シナリオ５ | O59: =プレビュー!E73 ->  | P59: ○
M60: ﾏｽﾀｰ変更 | N60: 修繕費補正係数 | O60: =マスター変更!$C$7 -> 0.3 | P60: ×
N61: 設備費基準金額 | P61: ○
N62: 基準給水原価 | O62: =マスター変更!C19 -> 170 | P62: ×
N63: 変動費係数 | P63: ○
N64: 職員労務単価 | P64: ○
N65: 職員数 | P65: ○
N66: 外注労務単価 | P66: ○
N67: 外注者数 | P67: ○
N68: 浄水量 | P68: ○
N69: 職員労務単価 | P69: ○
N70: 職員数 | P70: ○
N71: 外注労務単価 | P71: ○
N72: 外注者数 | P72: ○
N73: 浄水量 | P73: ○
M74: 耐用年数 | N74: 法定or指定 | O74: =プレビュー!$H$33 -> 法定耐用年数×延長係数 | P74: ×
N75: 建築構造物 | O75: =IF($O$74="法定耐用年数",耐用年数変更!C10,耐用年数変更!E10) -> 50 | P75: ×
N76: 土木構造物 | O76: =IF($O$74="法定耐用年数",耐用年数変更!C11,耐用年数変更!E11) -> 60 | P76: =IF(O76=Q76,"○","×") -> ×
N77: 電気設備 | O77: =IF($O$74="法定耐用年数",耐用年数変更!C12,耐用年数変更!E12) -> 15 | P77: ×
N78: 機械設備 | O78: =IF($O$74="法定耐用年数",耐用年数変更!C13,耐用年数変更!E13) -> 15 | P78: ×
N79: 次回更新 | O79: =+プレビュー!G68 -> 現状設備の更新時期での更新 | P79: =IF(O79=Q79,"○","×") -> ×
N80: 次回更新年 | O80: =+プレビュー!I68 -> 2024年 | P80: =IF(O80=Q80,"○","×") -> ×
O82: {RngSouiInput}

Sheet 浄水フロー (hidden)
B1: <浄水フロー> | D1: 分類No | F1: ﾚｰﾀﾞｰﾁｬｰﾄ用分類No
B2: 基本フロー | D2: =IFERROR(+D6+D7+D9,0) -> 0 | F2: =+D6+D7 -> 0 | G2: ← <レーダーチャート計算式一覧>ｼｰﾄが参照
B3: オプション | F3: =+D21+D22 -> 0
F5: 【ろ過方式】 | J5: 【前処理】+【高速処理】 | N5: 【オプション】
B6: ろ過方式 | C6: =Select6ろ過方式 -> 0 | D6: =IFERROR(VLOOKUP(C6,$F$8:$G$11,2,FALSE),0) -> 0 | G6: 分類No | K6: 分類No | O6: 分類No
B7: 前処理+高度浄水処理 | C7: =Select6前_高度処理 -> 0 | D7: =IFERROR(VLOOKUP(C7,$J$7:$K$14,2,FALSE),0) -> 0 | G7: - | J7: 粒状炭 | K7: 200 | N7: 粉末炭 | O7: 500
E8: 粉末炭有無 | F8: 消毒のみ | G8: 90000 | J8: 粒状炭+凝集 | K8: 2200 | N8: 紫外線 | O8: 10
B9: 粉末炭 | C9: =IF(Rng粉末炭ChkDt=1,Point粉末炭,0) -> 0 | D9: =+C9+C10+C11 -> 0 | E9: =IF(C9>0,"有","無") -> 無 | F9: 緩速ろ過 | G9: 10000 | J9: 普通沈澱 | K9: 1000 | N9: 天日乾燥床 | O9: 1
B10: 紫外線 | C10: =IF(Rng紫外線ChkDt=1,Point紫外線,0) -> 0 | F10: 急速ろ過 | G10: 20000 | J10: 普通沈澱+粒状炭 | K10: 1200 | N10: 機械脱水機 | O10: 2
B11: 排水処理 | C11: =IF(Rng排水処理ChkDt=1,Point天日乾燥床,IF(Rng排水処理ChkDt=2,Point機械脱水機,0)) -> 0 | F11: 膜ろ過 | G11: 30000 | J11: 凝集 | K11: 2000
J12: 凝集+沈澱/前ろ過 | K12: 3000
J13: 凝集+沈澱/前ろ過+粒状炭 | K13: 3200
J14: 凝集+沈澱/前ろ過+オゾン+粒状炭 | K14: 3300
B16: <希望フロー> | D16: 分類No
B17: 基本フロー | D17: =IFERROR(+D21+D22+D24,0) -> 0 | F17: 急速ろ過 | J17: 緩速ろ過 | N17: 膜ろ過
B18: オプション | J18: - | N18: -
F19: 凝集 | J19: 普通沈澱 | N19: 凝集
F20: 凝集+沈澱/前ろ過 | J20: 凝集+沈澱/前ろ過 | N20: 凝集+沈澱/前ろ過
B21: ろ過方式 | C21: =Select6ろ過方式2 -> 0 | D21: =IFERROR(VLOOKUP(C21,$F$8:$G$11,2,FALSE),0) -> 0 | F21: 凝集+沈澱/前ろ過+粒状炭 | J21: 普通沈澱+粒状炭 | N21: 粒状炭
B22: 前処理+高度浄水処理 | C22: =Select6前_高度処理2 -> 0 | D22: =IFERROR(VLOOKUP(C22,$J$7:$K$14,2,FALSE),0) -> 0 | F22: 凝集+沈澱/前ろ過+オゾン+粒状炭 | J22: 凝集+沈澱/前ろ過+粒状炭 | N22: 粒状炭+凝集
E23: 粉末炭有無 | N23: 凝集+沈澱/前ろ過+粒状炭
B24: 粉末炭 | C24: =IF(Rng粉末炭ChkDt2=1,Point粉末炭,0) -> 0 | D24: =+C24+C25+C26 -> 0 | E24: =IF(C24>0,"有","無") -> 無 | N24: 凝集+沈澱/前ろ過+オゾン+粒状炭
B25: 紫外線 | C25: =IF(Rng紫外線ChkDt2=1,Point紫外線,0) -> 0
B26: 排水処理 | C26: =IF(Rng排水処理ChkDt2=1,Point天日乾燥床,IF(Rng排水処理ChkDt2=2,Point機械脱水機,0)) -> 0
F28: 【浄水フロー 設備費】
H29: 参照列
C30: <出力まとめの表>ｼｰﾄ 非表示ｴﾘｱで参照(v19,x19) | H30: 32 | I30: * I列を参照 | S30: ＜設備費手入力時費用＞
B31: ■高度浄水処理による便益■ | I31: 資産額 | N31: 按分率
C32: 浄水フロー | D32: 推奨フロー | F32: 【浄水量】 | G32: 分類No. | H32: 参照行 | I32: 土木 | J32: 建築 | K32: 機械 | L32: 電気 (計装と監視含む) | N32: 土木 | O32: 建築 | P32: 機械 | Q32: 電気 (計装と監視含む) | U32: 土木 | V32: 建築 | W32: 機械 | X32: 電気 (計装と監視含む) | Y32: 合計
B33: 粉末炭 | C33: =IF(C9>0,1,0) -> 0 | D33: =IF(C24>0,1,0) -> 0 | F33: 基本ﾌﾛｰ | G33: =+D6+D7 -> 0 | H33: =IFERROR(+MATCH(G33,建設費_浄水FLW!$B$14:$B$101,0)+13,0) -> 0 | I33: =IFERROR(INDIRECT("建設費_浄水FLW!"&ADDRESS(H33,H30)),0) -> 0 | J33: =IFERROR(INDIRECT("建設費_浄水FLW!"&ADDRESS(H33+1,$H$30)),0) -> 0 | K33: =IFERROR(INDIRECT("建設費_浄水FLW!"&ADDRESS(H33+2,$H$30)),0) -> 0 | L33: =IFERROR(INDIRECT("建設費_浄水FLW!"&ADDRESS(H33+3,$H$30)),0) -> 0 | N33: =IFERROR(INDIRECT("建設費_浄水FLW!"&ADDRESS(H33,H30+2)),0) -> 0 | O33: =IFERROR(INDIRECT("建設費_浄水FLW!"&ADDRESS(H33+1,$H$30+2)),0) -> 0 | P33: =IFERROR(INDIRECT("建設費_浄水FLW!"&ADDRESS(H33+2,$H$30+2)),0) -> 0 | Q33: =IFERROR(INDIRECT("建設費_浄水FLW!"&ADDRESS(H33+3,$H$30+2)),0) -> 0 | T33: <入力情報(1)>シート 設備費の取得金額 | U33: ='入力情報(1)'!I42*1000 -> 0 | V33: ='入力情報(1)'!I41*1000 -> 0 | W33: ='入力情報(1)'!I44*1000 -> 0 | X33: ='入力情報(1)'!I43*1000 -> 0 | Y33: =SUM(U33:X33) -> 0 | Z33: 円
B34: 粒状炭 | C34: =IF(ISERROR(FIND(B34,C7)),0,FIND(B34,C7)) -> 0 | D34: =IF(ISERROR(FIND(B34,C22)),0,FIND(B34,C22)) -> 0 | F34: 粉末炭 | G34: =+C9 -> 0 | H34: =IFERROR(+MATCH(G34,建設費_浄水FLW!$B$103:$B$118,0)+102,0) -> 0 | I34: =IFERROR(INDIRECT("建設費_浄水FLW!"&ADDRESS(H34,$H$30)),0) -> 0 | J34: =IFERROR(INDIRECT("建設費_浄水FLW!"&ADDRESS(H34+1,$H$30)),0) -> 0 | K34: =IFERROR(INDIRECT("建設費_浄水FLW!"&ADDRESS(H34+2,$H$30)),0) -> 0 | L34: =IFERROR(INDIRECT("建設費_浄水FLW!"&ADDRESS(H34+3,$H$30)),0) -> 0 | N34: =IFERROR(INDIRECT("建設費_浄水FLW!"&ADDRESS(H34,$H$30+2)),0) -> 0 | O34: =IFERROR(INDIRECT("建設費_浄水FLW!"&ADDRESS(H34+1,$H$30+2)),0) -> 0 | P34: =IFERROR(INDIRECT("建設費_浄水FLW!"&ADDRESS(H34+2,$H$30+2)),0) -> 0 | Q34: =IFERROR(INDIRECT("建設費_浄水FLW!"&ADDRESS(H34+3,$H$30+2)),0) -> 0 | U34: 現在価値_土木 | V34: 現在価値_建築 | W34: 現在価値_機械 | X34: 現在価値_電気 (計装と監視含む) | Y34: 合計
B35: オゾン | C35: =IF(ISERROR(FIND(B35,RngH_浄水フロー)),0,FIND(B35,RngH_浄水フロー)) -> 0 | D35: =IF(ISERROR(FIND(B35,RngH_浄水フロー2)),0,FIND(B35,RngH_浄水フロー2)) -> 0 | F35: 紫外線 | G35: =+C10 -> 0 | H35: =IFERROR(+MATCH(G35,建設費_浄水FLW!$B$103:$B$118,0)+102,0) -> 0 | I35: =IFERROR(INDIRECT("建設費_浄水FLW!"&ADDRESS(H35,$H$30)),0) -> 0 | J35: =IFERROR(INDIRECT("建設費_浄水FLW!"&ADDRESS(H35+1,$H$30)),0) -> 0 | K35: =IFERROR(INDIRECT("建設費_浄水FLW!"&ADDRESS(H35+2,$H$30)),0) -> 0 | L35: =IFERROR(INDIRECT("建設費_浄水FLW!"&ADDRESS(H35+3,$H$30)),0) -> 0 | N35: =IFERROR(INDIRECT("建設費_浄水FLW!"&ADDRESS(H35,$H$30+2)),0) -> 0 | O35: =IFERROR(INDIRECT("建設費_浄水FLW!"&ADDRESS(H35+1,$H$30+2)),0) -> 0 | P35: =IFERROR(INDIRECT("建設費_浄水FLW!"&ADDRESS(H35+2,$H$30+2)),0) -> 0 | Q35: =IFERROR(INDIRECT("建設費_浄水FLW!"&ADDRESS(H35+3,$H$30+2)),0) -> 0 | T35: ﾌﾟﾛｸﾞﾗﾑ側から貼付 → | U35: 1105199178 | V35: 83020914.79 | W35: 2265728282 | X35: 873972145.3 | Y35: =SUM(U35:X35) -> 4327920520 | Z35: 円
B36: 高度浄水処理判定 | C36: =SUM(C33:C35) -> 0 | D36: =SUM(D33:D35) -> 0 | F36: 排水処理 | G36: =+C11 -> 0 | H36: =IFERROR(+MATCH(G36,建設費_浄水FLW!$B$103:$B$118,0)+102,0) -> 0 | I36: =IFERROR(INDIRECT("建設費_浄水FLW!"&ADDRESS(H36,$H$30)),0) -> 0 | J36: =IFERROR(INDIRECT("建設費_浄水FLW!"&ADDRESS(H36+1,$H$30)),0) -> 0 | K36: =IFERROR(INDIRECT("建設費_浄水FLW!"&ADDRESS(H36+2,$H$30)),0) -> 0 | L36: =IFERROR(INDIRECT("建設費_浄水FLW!"&ADDRESS(H36+3,$H$30)),0) -> 0 | N36: =IFERROR(INDIRECT("建設費_浄水FLW!"&ADDRESS(H36,$H$30+2)),0) -> 0 | O36: =IFERROR(INDIRECT("建設費_浄水FLW!"&ADDRESS(H36+1,$H$30+2)),0) -> 0 | P36: =IFERROR(INDIRECT("建設費_浄水FLW!"&ADDRESS(H36+2,$H$30+2)),0) -> 0 | Q36: =IFERROR(INDIRECT("建設費_浄水FLW!"&ADDRESS(H36+3,$H$30+2)),0) -> 0 | U36: =+U35/$Y$35 -> 0.2553649433 | V36: =+V35/$Y$35 -> 0.01918263388 | W36: =+W35/$Y$35 -> 0.5235143001 | X36: =+X35/$Y$35 -> 0.2019381228 | Y36: =+Y35/$Y$35 -> 1
F37: 設備費合計 | G37: =SUM(I37:L37) -> 0 | I37: =IFERROR(SUM(I33:I36),0) -> 0 | J37: =IFERROR(SUM(J33:J36),0) -> 0 | K37: =IFERROR(SUM(K33:K36),0) -> 0 | L37: =IFERROR(SUM(L33:L36),0) -> 0 | N37: =+Cal土木6_浄水Flw/G37 ->  | O37: =+Cal建築6_浄水Flw/G37 ->  | P37: =+Cal機械6_浄水Flw/G37 ->  | Q37: =+Cal電気6_浄水Flw/G37 -> 
T38: ①，② | U38: 更新_土木 | V38: 更新_建築 | W38: 更新_機械 | X38: 更新_電気 | Y38: 更新_合計
F39: 【更新浄水量】 | T39: 設備費手入力時金額（浄水量+浄水FLW) | U39: =+$Y$39*U36 -> 1105199178 | V39: =+$Y$39*V36 -> 83020914.79 | W39: 2265728282 | X39: 873972145.3 | Y39: =+Y35 -> 4327920520 | Z39: 円
F40: 基本ﾌﾛｰ | G40: =+D6+D7 -> 0 | H40: =IFERROR(+MATCH(G40,建設費_浄水FLW!$B$14:$B$101,0)+13,0) -> 0 | I40: =IFERROR(INDIRECT("建設費_更新FLW!"&ADDRESS(H40,H30)),0) -> 0 | J40: =IFERROR(INDIRECT("建設費_更新FLW!"&ADDRESS(H33+1,$H$30)),0) -> 0 | K40: =IFERROR(INDIRECT("建設費_更新FLW!"&ADDRESS(H33+2,$H$30)),0) -> 0 | L40: =IFERROR(INDIRECT("建設費_更新FLW!"&ADDRESS(H33+3,$H$30)),0) -> 0 | N40: =IFERROR(INDIRECT("建設費_更新FLW!"&ADDRESS(H40,H30+2)),0) -> 0 | O40: =IFERROR(INDIRECT("建設費_更新FLW!"&ADDRESS(H40+1,$H$30+2)),0) -> 0 | P40: =IFERROR(INDIRECT("建設費_更新FLW!"&ADDRESS(H40+2,$H$30+2)),0) -> 0 | Q40: =IFERROR(INDIRECT("建設費_更新FLW!"&ADDRESS(H40+3,$H$30+2)),0) -> 0
F41: 粉末炭 | G41: =+C9 -> 0 | H41: =IFERROR(+MATCH(G41,建設費_浄水FLW!$B$103:$B$118,0)+102,0) -> 0 | I41: =IFERROR(INDIRECT("建設費_更新FLW!"&ADDRESS(H41,$H$30)),0) -> 0 | J41: =IFERROR(INDIRECT("建設費_更新FLW!"&ADDRESS(H34+1,$H$30)),0) -> 0 | K41: =IFERROR(INDIRECT("建設費_更新FLW!"&ADDRESS(H34+2,$H$30)),0) -> 0 | L41: =IFERROR(INDIRECT("建設費_更新FLW!"&ADDRESS(H34+3,$H$30)),0) -> 0 | N41: =IFERROR(INDIRECT("建設費_更新FLW!"&ADDRESS(H41,$H$30+2)),0) -> 0 | O41: =IFERROR(INDIRECT("建設費_更新FLW!"&ADDRESS(H41+1,$H$30+2)),0) -> 0 | P41: =IFERROR(INDIRECT("建設費_更新FLW!"&ADDRESS(H41+2,$H$30+2)),0) -> 0 | Q41: =IFERROR(INDIRECT("建設費_更新FLW!"&ADDRESS(H41+3,$H$30+2)),0) -> 0
F42: 紫外線 | G42: =+C10 -> 0 | H42: =IFERROR(+MATCH(G42,建設費_浄水FLW!$B$103:$B$118,0)+102,0) -> 0 | I42: =IFERROR(INDIRECT("建設費_更新FLW!"&ADDRESS(H42,$H$30)),0) -> 0 | J42: =IFERROR(INDIRECT("建設費_更新FLW!"&ADDRESS(H35+1,$H$30)),0) -> 0 | K42: =IFERROR(INDIRECT("建設費_更新FLW!"&ADDRESS(H35+2,$H$30)),0) -> 0 | L42: =IFERROR(INDIRECT("建設費_更新FLW!"&ADDRESS(H35+3,$H$30)),0) -> 0 | N42: =IFERROR(INDIRECT("建設費_更新FLW!"&ADDRESS(H42,$H$30+2)),0) -> 0 | O42: =IFERROR(INDIRECT("建設費_更新FLW!"&ADDRESS(H42+1,$H$30+2)),0) -> 0 | P42: =IFERROR(INDIRECT("建設費_更新FLW!"&ADDRESS(H42+2,$H$30+2)),0) -> 0 | Q42: =IFERROR(INDIRECT("建設費_更新FLW!"&ADDRESS(H42+3,$H$30+2)),0) -> 0
F43: 排水処理 | G43: =+C11 -> 0 | H43: =IFERROR(+MATCH(G43,建設費_浄水FLW!$B$103:$B$118,0)+102,0) -> 0 | I43: =IFERROR(INDIRECT("建設費_更新FLW!"&ADDRESS(H43,$H$30)),0) -> 0 | J43: =IFERROR(INDIRECT("建設費_更新FLW!"&ADDRESS(H36+1,$H$30)),0) -> 0 | K43: =IFERROR(INDIRECT("建設費_更新FLW!"&ADDRESS(H36+2,$H$30)),0) -> 0 | L43: =IFERROR(INDIRECT("建設費_更新FLW!"&ADDRESS(H36+3,$H$30)),0) -> 0 | N43: =IFERROR(INDIRECT("建設費_更新FLW!"&ADDRESS(H43,$H$30+2)),0) -> 0 | O43: =IFERROR(INDIRECT("建設費_更新FLW!"&ADDRESS(H43+1,$H$30+2)),0) -> 0 | P43: =IFERROR(INDIRECT("建設費_更新FLW!"&ADDRESS(H43+2,$H$30+2)),0) -> 0 | Q43: =IFERROR(INDIRECT("建設費_更新FLW!"&ADDRESS(H43+3,$H$30+2)),0) -> 0
F44: 設備費合計 | G44: =SUM(I44:L44) -> 0 | I44: =SUM(I40:I43) -> 0 | J44: =SUM(J40:J43) -> 0 | K44: 0 | L44: 0 | N44: =+I44/$G$44 ->  | O44: =+J44/$G$44 ->  | T44: ④ | U44: 更新_土木 | V44: 更新_建築 | W44: 更新_機械 | X44: 更新_電気 | Y44: 更新_合計
H45: =+G44/$G$37 ->  | T45: 設備費手入力時金額（更新浄水量+浄水FLW) | U45: =+$Y$45*U36 ->  | V45: =+$Y$45*V36 ->  | Y45: =+$Y$35*H45 ->  | Z45: 円
F47: 【希望フロー 設備費】
H48: 参照列
H49: 32 | I49: * I列を参照
I50: 資産額 | N50: 按分率
F51: 【浄水量】 | G51: 分類No. | H51: 参照行 | I51: 土木 | J51: 建築 | K51: 機械 | L51: 電気 (計装と監視含む) | N51: 土木 | O51: 建築 | P51: 機械 | Q51: 電気 (計装と監視含む)
F52: 基本ﾌﾛｰ | G52: =+D21+D22 -> 0 | H52: =IFERROR(+MATCH(G52,建設費_浄水FLW!$B$14:$B$101,0)+13,0) -> 0 | I52: =IFERROR(INDIRECT("建設費_浄水FLW!"&ADDRESS(H52,H49)),0) -> 0 | J52: =IFERROR(INDIRECT("建設費_浄水FLW!"&ADDRESS(H52+1,$H$30)),0) -> 0 | K52: =IFERROR(INDIRECT("建設費_浄水FLW!"&ADDRESS(H52+2,$H$30)),0) -> 0 | L52: =IFERROR(INDIRECT("建設費_浄水FLW!"&ADDRESS(H52+3,$H$30)),0) -> 0 | N52: =IFERROR(INDIRECT("建設費_浄水FLW!"&ADDRESS(H52,H49+2)),0) -> 0 | O52: =IFERROR(INDIRECT("建設費_浄水FLW!"&ADDRESS(H52+1,$H$30+2)),0) -> 0 | P52: =IFERROR(INDIRECT("建設費_浄水FLW!"&ADDRESS(H52+2,$H$30+2)),0) -> 0 | Q52: =IFERROR(INDIRECT("建設費_浄水FLW!"&ADDRESS(H52+3,$H$30+2)),0) -> 0
F53: 粉末炭 | G53: =$C$24 -> 0 | H53: =IFERROR(+MATCH(G53,建設費_浄水FLW!$B$103:$B$118,0)+102,0) -> 0 | I53: =IFERROR(INDIRECT("建設費_浄水FLW!"&ADDRESS(H53,$H$30)),0) -> 0 | J53: =IFERROR(INDIRECT("建設費_浄水FLW!"&ADDRESS(H53+1,$H$30)),0) -> 0 | K53: =IFERROR(INDIRECT("建設費_浄水FLW!"&ADDRESS(H53+2,$H$30)),0) -> 0 | L53: =IFERROR(INDIRECT("建設費_浄水FLW!"&ADDRESS(H53+3,$H$30)),0) -> 0 | N53: =IFERROR(INDIRECT("建設費_浄水FLW!"&ADDRESS(H53,$H$30+2)),0) -> 0 | O53: =IFERROR(INDIRECT("建設費_浄水FLW!"&ADDRESS(H53+2,$H$30+2)),0) -> 0 | P53: =IFERROR(INDIRECT("建設費_浄水FLW!"&ADDRESS(H53+2,$H$30+2)),0) -> 0 | Q53: =IFERROR(INDIRECT("建設費_浄水FLW!"&ADDRESS(H53+3,$H$30+2)),0) -> 0
F54: 紫外線 | G54: =C25 -> 0 | H54: =IFERROR(+MATCH(G54,建設費_浄水FLW!$B$103:$B$118,0)+102,0) -> 0 | I54: =IFERROR(INDIRECT("建設費_浄水FLW!"&ADDRESS(H54,$H$30)),0) -> 0 | J54: =IFERROR(INDIRECT("建設費_浄水FLW!"&ADDRESS(H54+1,$H$30)),0) -> 0 | K54: =IFERROR(INDIRECT("建設費_浄水FLW!"&ADDRESS(H54+2,$H$30)),0) -> 0 | L54: =IFERROR(INDIRECT("建設費_浄水FLW!"&ADDRESS(H54+3,$H$30)),0) -> 0 | N54: =IFERROR(INDIRECT("建設費_浄水FLW!"&ADDRESS(H54,$H$30+2)),0) -> 0 | O54: =IFERROR(INDIRECT("建設費_浄水FLW!"&ADDRESS(H54+1,$H$30+2)),0) -> 0 | P54: =IFERROR(INDIRECT("建設費_浄水FLW!"&ADDRESS(H54+2,$H$30+2)),0) -> 0 | Q54: =IFERROR(INDIRECT("建設費_浄水FLW!"&ADDRESS(H54+3,$H$30+2)),0) -> 0
F55: 排水処理 | G55: 0 | H55: =IFERROR(+MATCH(G55,建設費_浄水FLW!$B$103:$B$118,0)+102,0) -> 0 | I55: =IFERROR(INDIRECT("建設費_浄水FLW!"&ADDRESS(H55,$H$30)),0) -> 0 | J55: =IFERROR(INDIRECT("建設費_浄水FLW!"&ADDRESS(H55+1,$H$30)),0) -> 0 | K55: =IFERROR(INDIRECT("建設費_浄水FLW!"&ADDRESS(H55+2,$H$30)),0) -> 0 | L55: =IFERROR(INDIRECT("建設費_浄水FLW!"&ADDRESS(H55+3,$H$30)),0) -> 0 | N55: =IFERROR(INDIRECT("建設費_浄水FLW!"&ADDRESS(H55,$H$30+2)),0) -> 0 | O55: =IFERROR(INDIRECT("建設費_浄水FLW!"&ADDRESS(H55+1,$H$30+2)),0) -> 0 | P55: =IFERROR(INDIRECT("建設費_浄水FLW!"&ADDRESS(H55+2,$H$30+2)),0) -> 0 | Q55: =IFERROR(INDIRECT("建設費_浄水FLW!"&ADDRESS(H55+3,$H$30+2)),0) -> 0
F56: 設備費合計 | G56: =SUM(I56:L56) -> 0 | I56: =IFERROR(SUM(I52:I55),0) -> 0 | J56: =IFERROR(SUM(J52:J55),0) -> 0 | K56: =IFERROR(SUM(K52:K55),0) -> 0 | L56: =IFERROR(SUM(L52:L55),0) -> 0 | N56: =+Cal土木6_希望Flw/$G$56 ->  | O56: =+Cal建築6_希望Flw/G56 ->  | P56: =+Cal機械6_希望Flw/G56 ->  | Q56: =+Cal電気6_希望Flw/G56 ->  | T56: ③ | U56: 更新_土木 | V56: 更新_建築 | W56: 更新_機械 | X56: 更新_電気 | Y56: 更新_合計
H57: =+G56/$G$37 ->  | T57: 設備費手入力時金額（浄水量+更新FLW) | U57: =+$Y$57*N56 ->  | V57: =+$Y$57*O56 ->  | Y57: =+$Y$35*H57 ->  | Z57: 円
F58: 【更新浄水量】
F59: 基本ﾌﾛｰ | G59: =+D21+D22 -> 0 | H59: =IFERROR(+MATCH(G52,建設費_浄水FLW!$B$14:$B$101,0)+13,0) -> 0 | I59: =IFERROR(INDIRECT("建設費_更新FLW!"&ADDRESS(H59,H49)),0) -> 0 | J59: =IFERROR(INDIRECT("建設費_更新FLW!"&ADDRESS(H59+1,$H$30)),0) -> 0 | K59: =IFERROR(INDIRECT("建設費_更新FLW!"&ADDRESS(H59+2,$H$30)),0) -> 0 | L59: =IFERROR(INDIRECT("建設費_更新FLW!"&ADDRESS(H59+3,$H$30)),0) -> 0 | N59: =IFERROR(INDIRECT("建設費_更新FLW!"&ADDRESS(H59,H49+2)),0) -> 0 | O59: =IFERROR(INDIRECT("建設費_更新FLW!"&ADDRESS(H59+1,$H$30+2)),0) -> 0 | P59: =IFERROR(INDIRECT("建設費_更新FLW!"&ADDRESS(H59+2,$H$30+2)),0) -> 0 | Q59: =IFERROR(INDIRECT("建設費_更新FLW!"&ADDRESS(H59+3,$H$30+2)),0) -> 0
F60: 粉末炭 | G60: =$C$24 -> 0 | H60: =IFERROR(+MATCH(G53,建設費_浄水FLW!$B$103:$B$118,0)+102,0) -> 0 | I60: =IFERROR(INDIRECT("建設費_更新FLW!"&ADDRESS(H60,$H$30)),0) -> 0 | J60: =IFERROR(INDIRECT("建設費_更新FLW!"&ADDRESS(H60+1,$H$30)),0) -> 0 | K60: =IFERROR(INDIRECT("建設費_更新FLW!"&ADDRESS(H60+2,$H$30)),0) -> 0 | L60: =IFERROR(INDIRECT("建設費_更新FLW!"&ADDRESS(H60+3,$H$30)),0) -> 0 | N60: =IFERROR(INDIRECT("建設費_更新FLW!"&ADDRESS(H60,$H$30+2)),0) -> 0 | O60: =IFERROR(INDIRECT("建設費_更新FLW!"&ADDRESS(H60+1,$H$30+2)),0) -> 0 | P60: =IFERROR(INDIRECT("建設費_更新FLW!"&ADDRESS(H60+2,$H$30+2)),0) -> 0 | Q60: =IFERROR(INDIRECT("建設費_更新FLW!"&ADDRESS(H60+3,$H$30+2)),0) -> 0
F61: 紫外線 | G61: =C25 -> 0 | H61: =IFERROR(+MATCH(G54,建設費_浄水FLW!$B$103:$B$118,0)+102,0) -> 0 | I61: =IFERROR(INDIRECT("建設費_更新FLW!"&ADDRESS(H61,$H$30)),0) -> 0 | J61: =IFERROR(INDIRECT("建設費_更新FLW!"&ADDRESS(H61+1,$H$30)),0) -> 0 | K61: =IFERROR(INDIRECT("建設費_更新FLW!"&ADDRESS(H61+2,$H$30)),0) -> 0 | L61: =IFERROR(INDIRECT("建設費_更新FLW!"&ADDRESS(H61+3,$H$30)),0) -> 0 | N61: =IFERROR(INDIRECT("建設費_更新FLW!"&ADDRESS(H61,$H$30+2)),0) -> 0 | O61: =IFERROR(INDIRECT("建設費_更新FLW!"&ADDRESS(H61+1,$H$30+2)),0) -> 0 | P61: =IFERROR(INDIRECT("建設費_更新FLW!"&ADDRESS(H61+2,$H$30+2)),0) -> 0 | Q61: =IFERROR(INDIRECT("建設費_更新FLW!"&ADDRESS(H61+3,$H$30+2)),0) -> 0
F62: 排水処理 | G62: =C26 -> 0 | H62: =IFERROR(+MATCH(G55,建設費_浄水FLW!$B$103:$B$118,0)+102,0) -> 0 | I62: =IFERROR(INDIRECT("建設費_更新FLW!"&ADDRESS(H62,$H$30)),0) -> 0 | J62: =IFERROR(INDIRECT("建設費_更新FLW!"&ADDRESS(H62+1,$H$30)),0) -> 0 | K62: =IFERROR(INDIRECT("建設費_更新FLW!"&ADDRESS(H62+2,$H$30)),0) -> 0 | L62: =IFERROR(INDIRECT("建設費_更新FLW!"&ADDRESS(H62+3,$H$30)),0) -> 0 | N62: =IFERROR(INDIRECT("建設費_更新FLW!"&ADDRESS(H62,$H$30+2)),0) -> 0 | O62: =IFERROR(INDIRECT("建設費_更新FLW!"&ADDRESS(H62+1,$H$30+2)),0) -> 0 | P62: =IFERROR(INDIRECT("建設費_更新FLW!"&ADDRESS(H62+2,$H$30+2)),0) -> 0 | Q62: =IFERROR(INDIRECT("建設費_更新FLW!"&ADDRESS(H62+3,$H$30+2)),0) -> 0 | T62: ⑤ | U62: 更新_土木 | V62: 更新_建築 | W62: 更新_機械 | X62: 更新_電気 | Y62: 更新_合計
F63: 設備費合計 | G63: =SUM(I63:L63) -> 0 | I63: =IFERROR(SUM(I59:I62),0) -> 0 | J63: =IFERROR(SUM(J59:J62),0) -> 0 | K63: =IFERROR(SUM(K59:K62),0) -> 0 | L63: =IFERROR(SUM(L59:L62),0) -> 0 | N63: =+I63/$G$63 ->  | O63: =+J63/$G$63 ->  | T63: 設備費手入力時金額（更新浄水量+更新FLW) | U63: =+$Y$63*N63 ->  | V63: =+$Y$63*O63 ->  | Y63: =+$Y$35*H64 ->  | Z63: 円
H64: =+G63/$G$37 -> 

Sheet 推奨プロセス選択肢 (hidden)
H3: 浄水レベル | M3: ↓数値の付け方は前回踏襲
H4: 2度以下 | I4: 0.1度以下 | J4: 0.01度以下
G5: 値 | H5: 水質基準 | I5: 標準選定指標 | J5: 参考選定指標
D6: 濁度 | E6: 値 | G6: 度 | H6: α≦2 | I6: α≦0.1 | J6: α≦0.01 | N6: 1 | O6: 2 | P6: 3 | T6: 対応プロセスリスト（or表示の形、前回踏襲）
B7: 0.1度以下 | C7: 0.1 | E7: 原水レベル | F7: 低-1 | G7: ="α"&"≦"&C7 -> α≦0.1 | H7: 不要 | I7: 不要 | J7: (凝集+)膜ろ過 | M7: 10 | N7: =$M7+N$6 -> 11 | O7: =$M7+O$6 -> 12 | P7: 13 | T7: =N7 -> 11 | U7: ここにプロセスを入れて一覧表を整理する形を想定 | V7: =N9 -> 31 | W7: =H9 -> 凝集+急速ろ過or (凝集+)膜ろ過or 緩速ろ過 | X7: =N11 -> 51 | Y7: =H11 -> 凝集+沈澱/前ろ過+急速ろ過or (凝集+)(沈澱/前ろ過+)膜ろ過or 凝集+沈澱/前ろ過+緩速ろ過
B8: 0.1度超～2度以下 | C8: 2 | F8: 低 | G8: =C7&"＜"&"α"&"≦"&C8 -> 0.1＜α≦2 | H8: 不要 | I8: 凝集+急速ろ過or （凝集+）膜ろ過or 緩速ろ過 | J8: (凝集+)膜ろ過 | M8: 20 | N8: =$M8+N$6 -> 21 | O8: 22 | P8: 23 | T8: =O7 -> 12 | U8: =I7 -> 不要 | V8: =O9 -> 32 | W8: =I9 -> 凝集+急速ろ過or （凝集+）膜ろ過or 緩速ろ過 | X8: =O11 -> 52 | Y8: =I11 -> 凝集+沈澱/前ろ過+急速ろ過or (凝集+)(沈澱/前ろ過+)膜ろ過
B9: 2度超～10度以下 | C9: 10 | F9: 中 | G9: =C8&"＜"&"α"&"≦"&C9 -> 2＜α≦10 | H9: 凝集+急速ろ過or (凝集+)膜ろ過or 緩速ろ過 | I9: 凝集+急速ろ過or （凝集+）膜ろ過or 緩速ろ過 | J9: (凝集+)膜ろ過 | M9: 30 | N9: 31 | O9: 32 | P9: 33 | T9: =P7 -> 13 | U9: =J7 -> (凝集+)膜ろ過 | V9: =P9 -> 33 | W9: =J9 -> (凝集+)膜ろ過 | X9: =P11 -> 53 | Y9: =J11 -> (凝集+)(沈澱/前ろ過+)膜ろ過
B10: 10度超～30度以下 | C10: 30 | F10: 高 | G10: =C9&"＜"&"α"&"≦"&C10 -> 10＜α≦30 | H10: 凝集+沈澱/前ろ過+急速ろ過or (凝集+)(沈澱/前ろ過+)膜ろ過or 普通沈澱+緩速ろ過 | I10: 凝集+沈澱/前ろ過+急速ろ過or (凝集+)(沈澱/前ろ過+)膜ろ過or 普通沈澱+緩速ろ過 | J10: (凝集+)(沈澱/前ろ過+)膜ろ過 | M10: 40 | N10: 41 | O10: 42 | P10: 43 | T10: =N8 -> 21 | U10: =H8 -> 不要 | V10: =N10 -> 41 | W10: =H10 -> 凝集+沈澱/前ろ過+急速ろ過or (凝集+)(沈澱/前ろ過+)膜ろ過or 普通沈澱+緩速ろ過 | X10: =N12 -> 61 | Y10: =H12 -> 凝集+沈澱/前ろ過+急速ろ過or (凝集+)(沈澱/前ろ過+)膜ろ過or 凝集+沈澱/前ろ過+緩速ろ過
B11: 30度超～100度以下 | C11: 100 | F11: 高高 | G11: =C10&"＜"&"α"&"≦"&C11 -> 30＜α≦100 | H11: 凝集+沈澱/前ろ過+急速ろ過or (凝集+)(沈澱/前ろ過+)膜ろ過or 凝集+沈澱/前ろ過+緩速ろ過 | I11: 凝集+沈澱/前ろ過+急速ろ過or (凝集+)(沈澱/前ろ過+)膜ろ過 | J11: (凝集+)(沈澱/前ろ過+)膜ろ過 | M11: 50 | N11: 51 | O11: 52 | P11: 53 | T11: =O8 -> 22 | U11: =I8 -> 凝集+急速ろ過or （凝集+）膜ろ過or 緩速ろ過 | V11: =O10 -> 42 | W11: =I10 -> 凝集+沈澱/前ろ過+急速ろ過or (凝集+)(沈澱/前ろ過+)膜ろ過or 普通沈澱+緩速ろ過 | X11: =O12 -> 62 | Y11: =I12 -> 凝集+沈澱/前ろ過+急速ろ過or (凝集+)(沈澱/前ろ過+)膜ろ過
B12: 100度超～828.9度以下 | C12: 828.9 | F12: 高高高 | G12: =C11&"＜"&"α"&"≦"&C12 -> 100＜α≦828.9 | H12: 凝集+沈澱/前ろ過+急速ろ過or (凝集+)(沈澱/前ろ過+)膜ろ過or 凝集+沈澱/前ろ過+緩速ろ過 | I12: 凝集+沈澱/前ろ過+急速ろ過or (凝集+)(沈澱/前ろ過+)膜ろ過 | J12: (凝集+)(沈澱/前ろ過+)膜ろ過 | M12: 60 | N12: 61 | O12: 62 | P12: 63 | T12: =P8 -> 23 | U12: =J8 -> (凝集+)膜ろ過 | V12: =P10 -> 43 | W12: =J10 -> (凝集+)(沈澱/前ろ過+)膜ろ過 | X12: =P12 -> 63 | Y12: =J12 -> (凝集+)(沈澱/前ろ過+)膜ろ過
H14: 3.0mg/L以下 | I14: 1.5mg/L以下 | J14: 1.0mg/L以下
G15: 値 | H15: 水質基準 | I15: 標準選定指標 | J15: 参考選定指標
D16: TOC | E16: 値 | G16: mg/L | H16: α≦3.0 | I16: α≦1.5 | J16: α≦1.0 | N16: 1 | O16: 2 | P16: 3 | T16: 対応プロセスリスト（or表示の形、前回踏襲）
A17: =+$A$3&B17 -> 1mg/L以下 | B17: 1mg/L以下 | C17: 1 | E17: 原水レベル | F17: 低-1 | G17: ="α"&"≦"&C17 -> α≦1 | H17: 不要 | I17: 不要 | J17: 不要 | M17: 10 | N17: =(N$16+$M17)*10 -> 110 | O17: =(O$16+$M17)*10 -> 120 | P17: 130 | T17: =N17 -> 110 | V17: =N19 -> 310 | X17: =N21 -> 510
A18: 1mg/L超～1.5mg/L以下 | B18: 1mg/L超～1.5mg/L以下 | C18: 1.5 | F18: 低-1 | G18: =C17&"＜"&"α"&"≦"&C18 -> 1＜α≦1.5 | H18: 不要 | I18: 不要 | J18: 凝集or 粉末炭 | M18: 20 | N18: =(N$16+$M18)*10 -> 210 | O18: 220 | P18: 230 | T18: =O17 -> 120 | V18: =O19 -> 320 | X18: =O21 -> 520
A19: 1.5mg/L超～3mg/L以下 | B19: 1.5mg/L超～3mg/L以下 | C19: 3 | F19: 中 | G19: 1.5＜α≦3 | H19: 不要 | I19: 凝集or 粉末炭 | J19: 粉末炭or 粒状炭 | M19: 30 | N19: 310 | O19: 320 | P19: 330 | T19: =P17 -> 130 | V19: =P19 -> 330 | X19: =P21 -> 530
A20: 3mg/L超～9.8mg/L以下 | B20: 3mg/L超～9.8mg/L以下 | C20: 9.8 | F20: 高 | G20: 3＜α≦9.8 | H20: 凝集or 粉末炭 | I20: 粉末炭or 粒状炭 | J20: オゾン+粒状炭 | M20: 40 | N20: 410 | O20: 420 | P20: 430 | T20: =N18 -> 210 | V20: =N20 -> 410
M21: 50 | N21: 510 | O21: 520 | P21: 530 | T21: =O18 -> 220 | V21: =O20 -> 420
T22: =P18 -> 230 | V22: =P20 -> 430
H23: 10ng/L以下 | I23: 5ng/L以下 | J23: 3ng/L以下 | K23: 1ng/L以下
G24: 値 | H24: 水質基準 | I24: 標準選定指標 | J24: 参考選定指標1 | K24: 参考選定指標2
D25: かび臭 | E25: 値 | G25: ng/L | H25: α≦10 | I25: α≦5 | J25: α≦3 | K25: α≦1 | N25: 1 | O25: 2 | P25: 3 | Q25: 4 | T25: 対応プロセスリスト（or表示の形、前回踏襲）
B26: 1ng/L以下 | C26: 1 | E26: 原水レベル | F26: 低-2 | G26: ="α"&"≦"&C26 -> α≦1 | H26: 不要 | I26: 不要 | J26: 不要 | K26: 不要 | M26: 10 | N26: =(N$25+$M26)*100 -> 1100 | O26: =(O$25+$M26)*100 -> 1200 | P26: 1300 | Q26: 1400 | T26: =N26 -> 1100 | V26: =P27 -> 2300 | X26: =N29 -> 4100 | Z26: =P30 -> 5300
B27: 1ng/L超～3ng/L以下 | C27: 3 | F27: 低-1 | G27: =C26&"＜"&"α"&"≦"&C27 -> 1＜α≦3 | H27: 不要 | I27: 不要 | J27: 不要 | K27: 粉末炭or 粒状炭 | M27: 20 | N27: =(N$25+$M27)*100 -> 2100 | O27: 2200 | P27: 2300 | Q27: 2400 | T27: =O26 -> 1200 | V27: =Q27 -> 2400 | X27: =O29 -> 4200 | Z27: =Q30 -> 5400
B28: 3ng/L超～5ng/L以下 | C28: 5 | F28: 低 | G28: 3＜α≦5 | H28: 不要 | I28: 不要 | J28: 粉末炭or 粒状炭 | K28: 粉末炭or 粒状炭 | M28: 30 | N28: 3100 | O28: 3200 | P28: 3300 | Q28: 3400 | T28: =P26 -> 1300 | V28: =N28 -> 3100 | X28: =P29 -> 4300 | Z28: =N31 -> 6100
B29: 5ng/L超～10ng/L以下 | C29: 10 | F29: 中 | G29: 5＜α≦10 | H29: 不要 | I29: 粉末炭or 粒状炭 | J29: 粉末炭or 粒状炭 | K29: 粉末炭or 粒状炭 | M29: 40 | N29: 4100 | O29: 4200 | P29: 4300 | Q29: 4400 | T29: =Q26 -> 1400 | V29: =O28 -> 3200 | X29: =Q29 -> 4400 | Z29: =O31 -> 6200
B30: 10ng/L超～25ng/L以下 | C30: 25 | F30: 高 | G30: 10＜α≦25 | H30: 粉末炭or 粒状炭 | I30: 粉末炭or 粒状炭 | J30: 粉末炭or 粒状炭 | K30: 粉末炭or 粒状炭 | M30: 50 | N30: 5100 | O30: 5200 | P30: 5300 | Q30: 5400 | T30: =N27 -> 2100 | V30: =P28 -> 3300 | X30: =N30 -> 5100 | Z30: =P31 -> 6300
B31: 25ng/L超～50ng/L以下 | C31: 50 | F31: 高高 | G31: =C30&"＜"&"α"&"≦"&C31 -> 25＜α≦50 | H31: 粉末炭or 粒状炭 | I31: 粉末炭or 粒状炭 | J31: 粒状炭or オゾン+粒状炭 | K31: 粒状炭or オゾン+粒状炭 | M31: 60 | N31: 6100 | O31: 6200 | P31: 6300 | Q31: 6400 | T31: =O27 -> 2200 | V31: =Q28 -> 3400 | X31: =O30 -> 5200 | Z31: =Q31 -> 6400
B32: 50ng/L超～740ng/L以下 | C32: 740 | F32: 高高高 | G32: =C31&"＜"&"α"&"≦"&C32 -> 50＜α≦740 | H32: 粒状炭 | I32: 粒状炭or オゾン+粒状炭 | J32: 粒状炭or オゾン+粒状炭 | K32: オゾン+粒状炭
T33: =P29 -> 4300 | V33: =P31 -> 6300
H34: 0.1mg/L以下 | I34: 0.04mg/L以下 | J34: 0.015mg/L以下
G35: 値 | H35: 水質基準 | I35: 標準選定指標 | J35: 参考選定指標
D36: THM | E36: 値 | G36: mg/L | H36: α≦0.1 | I36: α≦0.04 | J36: α≦0.015 | N36: 1 | O36: 2 | P36: 3 | T36: 対応プロセスリスト（or表示の形、前回踏襲）
B37: 0.015mg/L以下 | C37: 0.015 | E37: 原水レベル | F37: 低-1 | G37: ="α"&"≦"&C37 -> α≦0.015 | H37: 不要 | I37: 不要 | J37: 不要 | M37: 10 | N37: =($M37+N$36)*1000 -> 11000 | O37: =($M37+O$36)*1000 -> 12000 | P37: 13000 | T37: =N37 -> 11000 | V37: =N39 -> 31000
B38: 0.015mg/L超～0.04mg/L以下 | C38: 0.04 | F38: 低 | G38: =C37&"＜"&"α"&"≦"&C38 -> 0.015＜α≦0.04 | H38: 不要 | I38: 不要 | J38: 凝集or 粉末炭 | M38: 20 | N38: =($M38+N$36)*1000 -> 21000 | O38: 22000 | P38: 23000 | T38: =O37 -> 12000 | V38: =O39 -> 32000
B39: 0.04mg/L超～0.07mg/L以下 | C39: 0.07 | F39: 中 | G39: =C38&"＜"&"α"&"≦"&C39 -> 0.04＜α≦0.07 | H39: 不要 | I39: 凝集or 粉末炭 | J39: 粉末炭or 粒状炭 | M39: 30 | N39: 31000 | O39: 32000 | P39: 33000 | T39: =P37 -> 13000 | V39: =P39 -> 33000
B40: 0.07mg/L超～0.245mg/L以下 | C40: 0.245 | F40: 高 | G40: =C39&"＜"&"α"&"≦"&C40 -> 0.07＜α≦0.245 | H40: 凝集or 粉末炭 | I40: 粉末炭or 粒状炭 | J40: オゾン+粒状炭 | M40: 40 | N40: 41000 | O40: 42000 | P40: 43000 | T40: =N38 -> 21000 | V40: =N40 -> 41000
T41: =O38 -> 22000 | V41: =O40 -> 42000
T42: =P38 -> 23000 | V42: =P40 -> 43000

Sheet 建設費_浄水FLW (hidden)
C1: =+RngFlwNo1 -> 0 | AE1: 入力情報（１）の金額から転記
A2: 浄水量： | B2: =+'入力情報(1)'!H20 -> 0 | C2: m3/日 | AD2: 土木
AD3: 建築
AD4: 機械
C5: 170 | AD5: 電気
C6: 0.126
AE8: 30 | AF8: 31
C9: =C5*0.15 -> 25.5
Q11: 参考 | U11: 参考 | W11: 参考 | X11: 参考 | Z11: ※建設年度Kを元に、D値を引用
E12: 傾き | F12: 処理水量 | G12: 切片 | I12: 資産額 | J12: 資産割合 | K12: 資産総額 | L12: 急速ろ過 | N12: 資産額 | O12: 資産割合 | P12: 資産総額 | Q12: 今回の比率 | R12: 資産額 | S12: 資産割合 | T12: 資産総額 | U12: 今回の比率 | W12: Aqua10時の比率 | X12: Aqua10時の比率 | Z12: 建設年度 | AA12: デフレータ | AB12: デフレータ補正結果 | AC12: デフレータ補正資産総額 | AE12: アンケート補正値 | AF12: 補正金額出力 | AG12: 合計 | AH12: 按分率
B13: 分類No. | E13: a | F13: X | G13: b | I13: Y | K13: ΣY | L13: との比率 | N13: Y | P13: ΣY | Q13: 20,000m3/日時 | R13: Y | T13: ΣY | U13: 100,000m3/日時 | W13: 20,000m3/日時 | X13: 100,000m3/日時 | Z13: K | AA13: D | AB13: Y×D | AC13: ΣY×D | AE13: AA | AF13: Y×D×AA
B14: 90000 | C14: 消毒のみ | D14: 土木 | E14: 5092 | F14: =$B$2 -> 0 | G14: 266200000 | I14: =IFERROR(E14*F14+G14,"") -> 266200000 | J14: =I14/K14 -> 0.3925385239 | K14: =SUM(I14:I17) -> 678150000 | L14: =K14/$K$26 -> 0.6241314252 | N14: =IFERROR(E14*$Q$121+G14,"") -> 368040000 | O14: =N14/P14 -> 0.311951707 | P14: =SUM(N14:N17) -> 1179798000 | Q14: =P14/$P$26 -> 0.4422963158 | R14: =IFERROR(E14*$U$121+G14,"") -> 775400000 | S14: =R14/T14 -> 0.2433474873 | T14: =SUM(R14:R17) -> 3186390000 | U14: =T14/$T$26 -> 0.3543981252 | Z14: 2022 | AA14: =VLOOKUP(Z14,デフレータ表示方法!$E$8:$J$158,6,FALSE) -> 96.843 | AB14: =IFERROR(I14*(100/AA14),"") -> 274877895.1 | AC14: =SUM(AB14:AB17) -> 700257117.2 | AE14: =$AK$16 -> 1 | AF14: =IFERROR(ROUND(AB14*AE14,(3-1)-INT(LOG(ABS(AB14*AE14)))),"") -> 275000000 | AG14: =SUM(AF14:AF17) -> 700600000 | AH14: =AF14/AG$14 -> 0.3925206965
D15: 建築 | E15: 124.4 | F15: 0 | G15: 65450000 | I15: 65450000 | J15: =I15/K14 -> 0.09651257097 | N15: 67938000 | O15: =N15/P14 -> 0.05758443395 | R15: 77890000 | S15: =R15/T14 -> 0.0244445909 | Z15: 2022 | AA15: =VLOOKUP(Z15,デフレータ表示方法!$E$8:$J$158,6,FALSE) -> 96.843 | AB15: =IFERROR(I15*(100/AA15),"") -> 67583614.72 | AE15: =$AK$16 -> 1 | AF15: =IFERROR(ROUND(AB15*AE15,(3-1)-INT(LOG(ABS(AB15*AE15)))),"") -> 67600000 | AH15: =AF15/AG$14 -> 0.09648872395 | AK15: 補正値
D16: 機械 | E16: 1366 | F16: 0 | G16: 135800000 | I16: 135800000 | J16: =I16/K14 -> 0.200250682 | N16: 163120000 | O16: =N16/P14 -> 0.1382609565 | R16: 272400000 | S16: =R16/T14 -> 0.08548859367 | Z16: 2022 | AA16: =VLOOKUP(Z16,デフレータ表示方法!$E$8:$J$158,6,FALSE) -> 96.843 | AB16: 140226965.3 | AE16: 1 | AF16: 140000000 | AH16: =AF16/AG$14 -> 0.1998287182 | AJ16: 90000 | AK16: =マスター変更!$C$47 -> 1
D17: 電気(計装と監視含む) | E17: 18500 | F17: 0 | G17: 210700000 | I17: 210700000 | J17: =I17/K14 -> 0.3106982231 | N17: 580700000 | O17: =N17/P14 -> 0.4922029025 | R17: 2060700000 | S17: =R17/T14 -> 0.6467193281 | Z17: 2022 | AA17: =VLOOKUP(Z17,デフレータ表示方法!$E$8:$J$158,6,FALSE) -> 96.843 | AB17: 217568642 | AE17: 1 | AF17: 218000000 | AH17: =AF17/AG$14 -> 0.3111618613 | AJ17: 10 | AK17: =マスター変更!$C$51 -> 2.11
B18: 90010 | C18: 紫外線+消毒 | D18: 土木 | E18: 5092 | F18: 0 | G18: 266200000 | I18: 266200000 | J18: =I18/K18 -> 0.3630907727 | K18: =SUM(I18:I21) -> 733150000 | L18: =K18/$K$26 -> 0.6747503566 | N18: 368040000 | O18: =N18/P18 -> 0.2428540698 | P18: =SUM(N18:N21) -> 1515478000 | Q18: =P18/$P$26 -> 0.5681399155 | R18: 775400000 | S18: =R18/T18 -> 0.1669397325 | T18: =SUM(R18:R21) -> 4644790000 | U18: =T18/$T$26 -> 0.5166049567 | Z18: 2022 | AA18: =VLOOKUP(Z18,デフレータ表示方法!$E$8:$J$158,6,FALSE) -> 96.843 | AB18: 274877895.1 | AC18: =SUM(AB18:AB21) -> 757050070.7 | AE18: =$AK$16 -> 1 | AF18: 275000000 | AG18: =SUM(AF18:AF21) -> 757600000 | AH18: =IFERROR(AF18/AG$18,0) -> 0.3629883844 | AJ18: 10000 | AK18: =マスター変更!$C$48 -> 0.99
D19: 建築 | E19: 124.4 | F19: 0 | G19: 65450000 | I19: 65450000 | J19: =I19/K18 -> 0.08927231808 | N19: 67938000 | O19: =N19/P18 -> 0.04482942016 | R19: 77890000 | S19: =R19/T18 -> 0.01676932649 | Z19: 2022 | AA19: =VLOOKUP(Z19,デフレータ表示方法!$E$8:$J$158,6,FALSE) -> 96.843 | AB19: 67583614.72 | AE19: 1 | AF19: 67600000 | AH19: =IFERROR(AF19/AG$18,0) -> 0.08922914467 | AJ19: 20000 | AK19: =マスター変更!$C$49 -> 1.46
D20: 機械 | E20: 15400 | F20: 0 | G20: 190800000 | I20: 190800000 | J20: =I20/K18 -> 0.2602468799 | N20: 498800000 | O20: =N20/P18 -> 0.3291370775 | R20: 1730800000 | S20: =R20/T18 -> 0.3726325625 | Z20: 2022 | AA20: =VLOOKUP(Z20,デフレータ表示方法!$E$8:$J$158,6,FALSE) -> 96.843 | AB20: 197019918.8 | AE20: 1 | AF20: 197000000 | AH20: =IFERROR(AF20/AG$18,0) -> 0.260031679 | AJ20: 30000 | AK20: =マスター変更!$C$50 -> 1.24
D21: 電気(計装と監視含む) | E21: 18500 | F21: 0 | G21: 210700000 | I21: 210700000 | J21: =I21/K18 -> 0.2873900293 | N21: 580700000 | O21: =N21/P18 -> 0.3831794325 | R21: 2060700000 | S21: =R21/T18 -> 0.4436583785 | Z21: 2022 | AA21: =VLOOKUP(Z21,デフレータ表示方法!$E$8:$J$158,6,FALSE) -> 96.843 | AB21: 217568642 | AE21: 1 | AF21: 218000000 | AH21: =IFERROR(AF21/AG$18,0) -> 0.287750792
B22: 22000 | C22: 凝集+急速ろ過 | D22: 土木 | E22: 19750 | F22: 0 | G22: 381300000 | I22: 381300000 | J22: =I22/K22 -> 0.3626075793 | K22: =SUM(I22:I25) -> 1051550000 | L22: =K22/$K$26 -> 0.9677879527 | N22: 776300000 | O22: =N22/P22 -> 0.3790457013 | P22: =SUM(N22:N25) -> 2048038000 | Q22: =P22/$P$26 -> 0.7677921661 | R22: 2356300000 | S22: =R22/T22 -> 0.3905044589 | T22: =SUM(R22:R25) -> 6033990000 | U22: =T22/$T$26 -> 0.6711151942 | W22: 0.661 | X22: 0.611 | Z22: 2022 | AA22: =VLOOKUP(Z22,デフレータ表示方法!$E$8:$J$158,6,FALSE) -> 96.843 | AB22: 393730057.9 | AC22: =SUM(AB22:AB25) -> 1085829642 | AE22: =$AK$19 -> 1.46 | AF22: 575000000 | AG22: =SUM(AF22:AF25) -> 1585700000 | AH22: =AF22/AG$22 -> 0.3626158794
D23: 建築 | E23: 124.4 | F23: 0 | G23: 65450000 | I23: 65450000 | J23: =I23/K22 -> 0.06224145309 | N23: 67938000 | O23: =N23/P22 -> 0.03317223606 | R23: 77890000 | S23: =R23/T22 -> 0.01290853979 | Z23: 2022 | AA23: =VLOOKUP(Z23,デフレータ表示方法!$E$8:$J$158,6,FALSE) -> 96.843 | AB23: 67583614.72 | AE23: =$AK$19 -> 1.46 | AF23: 98700000 | AH23: =AF23/AG$22 -> 0.062243804
D24: 機械 | E24: 10310 | F24: 0 | G24: 251100000 | I24: 251100000 | J24: =I24/K22 -> 0.2387903571 | N24: 457300000 | O24: =N24/P22 -> 0.2232868726 | R24: 1282100000 | S24: =R24/T22 -> 0.2124796362 | Z24: 2022 | AA24: =VLOOKUP(Z24,デフレータ表示方法!$E$8:$J$158,6,FALSE) -> 96.843 | AB24: 259285647.9 | AE24: 1.46 | AF24: 379000000 | AH24: 0.2390111623
D25: 電気(計装と監視含む) | E25: 19640 | F25: 0 | G25: 353700000 | I25: 353700000 | J25: =I25/K22 -> 0.3363606105 | N25: 746500000 | O25: =N25/P22 -> 0.36449519 | R25: 2317700000 | S25: =R25/T22 -> 0.3841073651 | Z25: 2022 | AA25: =VLOOKUP(Z25,デフレータ表示方法!$E$8:$J$158,6,FALSE) -> 96.843 | AB25: 365230321.2 | AE25: 1.46 | AF25: 533000000 | AH25: 0.3361291543
B26: 23000 | C26: 凝集+沈澱/前ろ過+急速ろ過 | D26: 土木 | E26: 31740 | F26: 0 | G26: 411200000 | I26: 411200000 | J26: =I26/K26 -> 0.3784455386 | K26: =SUM(I26:I29) -> 1086550000 | L26: =K26/$K$26 -> 1 | N26: 1046000000 | O26: =N26/P26 -> 0.3921365745 | P26: =SUM(N26:N29) -> 2667438000 | Q26: =P26/$P$26 -> 1 | R26: 3585200000 | S26: =R26/T26 -> 0.3987547534 | T26: =SUM(R26:R29) -> 8990990000 | U26: =T26/$T$26 -> 1 | W26: 1 | X26: 1 | Z26: 2022 | AA26: =VLOOKUP(Z26,デフレータ表示方法!$E$8:$J$158,6,FALSE) -> 96.843 | AB26: 424604772.7 | AC26: =SUM(AB26:AB29) -> 1121970612 | AE26: 1.46 | AF26: 620000000 | AG26: =SUM(AF26:AF29) -> 1637700000 | AH26: =AF26/AG$26 -> 0.3785797155
D27: 建築 | E27: 124.4 | F27: 0 | G27: 65450000 | I27: 65450000 | J27: =I27/K26 -> 0.06023652846 | N27: 67938000 | O27: =N27/P26 -> 0.02546938298 | R27: 77890000 | S27: =R27/T26 -> 0.008663117187 | Z27: 2022 | AA27: =VLOOKUP(Z27,デフレータ表示方法!$E$8:$J$158,6,FALSE) -> 96.843 | AB27: 67583614.72 | AE27: 1.46 | AF27: 98700000 | AH27: =AF27/AG$26 -> 0.06026744825
D28: 機械 | E28: 25280 | F28: 0 | G28: 230400000 | I28: 230400000 | J28: =I28/K26 -> 0.2120473057 | N28: 736000000 | O28: =N28/P26 -> 0.2759201901 | R28: 2758400000 | S28: =R28/T26 -> 0.3067960258 | Z28: 2022 | AA28: =VLOOKUP(Z28,デフレータ表示方法!$E$8:$J$158,6,FALSE) -> 96.843 | AB28: 237910845.4 | AE28: 1.46 | AF28: 347000000 | AH28: 0.2118825182
D29: 電気(計装と監視含む) | E29: 21900 | F29: 0 | G29: 379500000 | I29: 379500000 | J29: =I29/K26 -> 0.3492706272 | N29: 817500000 | O29: =N29/P26 -> 0.3064738524 | R29: 2569500000 | S29: =R29/T26 -> 0.2857861036 | Z29: 2022 | AA29: =VLOOKUP(Z29,デフレータ表示方法!$E$8:$J$158,6,FALSE) -> 96.843 | AB29: 391871379.4 | AE29: 1.46 | AF29: 572000000 | AH29: 0.3492703181
B30: 23500 | C30: 粉末炭+凝集+沈澱/前ろ過+急速ろ過 | D30: 土木 | E30: 31740 | F30: 0 | G30: 411200000 | I30: 411200000 | J30: =I30/K30 -> 0.3141209274 | K30: =SUM(I30:I33) -> 1309050000 | L30: =K30/$K$26 -> 1.204776586 | N30: 1046000000 | O30: =N30/P30 -> 0.355233996 | P30: =SUM(N30:N33) -> 2944538000 | Q30: =P30/$P$26 -> 1.103882452 | R30: 3585200000 | S30: =R30/T30 -> 0.3779269256 | T30: =SUM(R30:R33) -> 9486490000 | U30: =T30/$T$26 -> 1.055110728 | W30: 1.196 | X30: 1.166 | Z30: 2022 | AA30: =VLOOKUP(Z30,デフレータ表示方法!$E$8:$J$158,6,FALSE) -> 96.843 | AB30: 424604772.7 | AC30: =SUM(AB30:AB33) -> 1351723924 | AE30: 1.46 | AF30: 620000000 | AG30: =SUM(AF30:AF33) -> 1973700000 | AH30: =AF30/AG$30 -> 0.3141308203
D31: 建築 | E31: 124.4 | F31: 0 | G31: 65450000 | I31: 65450000 | J31: =I31/K30 -> 0.04999809022 | N31: 67938000 | O31: =N31/P30 -> 0.02307254992 | R31: 77890000 | S31: =R31/T30 -> 0.00821062374 | Z31: 2022 | AA31: =VLOOKUP(Z31,デフレータ表示方法!$E$8:$J$158,6,FALSE) -> 96.843 | AB31: 67583614.72 | AE31: 1.46 | AF31: 98700000 | AH31: =AF31/AG$30 -> 0.05000759994
D32: 機械 | E32: 28010 | F32: 0 | G32: 452900000 | I32: 452900000 | J32: =I32/K30 -> 0.3459760895 | N32: 1013100000 | O32: =N32/P30 -> 0.3440607661 | R32: 3253900000 | S32: =R32/T30 -> 0.3430035767 | Z32: 2022 | AA32: =VLOOKUP(Z32,デフレータ表示方法!$E$8:$J$158,6,FALSE) -> 96.843 | AB32: 467664157.5 | AE32: 1.46 | AF32: 683000000 | AH32: 0.3460505649
D33: 電気(計装と監視含む) | E33: 21900 | F33: 0 | G33: 379500000 | I33: 379500000 | J33: =I33/K30 -> 0.2899048929 | N33: 817500000 | O33: =N33/P30 -> 0.277632688 | R33: 2569500000 | S33: =R33/T30 -> 0.270858874 | Z33: 2022 | AA33: =VLOOKUP(Z33,デフレータ表示方法!$E$8:$J$158,6,FALSE) -> 96.843 | AB33: 391871379.4 | AE33: 1.46 | AF33: 572000000 | AH33: 0.2898110148
B34: 23200 | C34: 凝集+沈澱/前ろ過+粒状炭+急速ろ過 | D34: 土木 | E34: 31740 | F34: 0 | G34: 411200000 | I34: 411200000 | J34: =I34/K34 -> 0.2712311599 | K34: =SUM(I34:I37) -> 1516050000 | L34: =K34/$K$26 -> 1.395287838 | N34: 1046000000 | O34: =N34/P34 -> 0.3308516298 | P34: =SUM(N34:N37) -> 3161538000 | Q34: =P34/$P$26 -> 1.185233921 | R34: 3585200000 | S34: =R34/T34 -> 0.3679585036 | T34: =SUM(R34:R37) -> 9743490000 | U34: =T34/$T$26 -> 1.083694899 | W34: 1.589 | X34: 1.796 | Z34: 2022 | AA34: =VLOOKUP(Z34,デフレータ表示方法!$E$8:$J$158,6,FALSE) -> 96.843 | AB34: 424604772.7 | AC34: =SUM(AB34:AB37) -> 1565471949 | AE34: 1.46 | AF34: 620000000 | AG34: =SUM(AF34:AF37) -> 2285700000 | AH34: =AF34/AG$34 -> 0.2712516953
D35: 建築 | E35: 124.4 | F35: 0 | G35: 65450000 | I35: 65450000 | J35: =I35/K34 -> 0.04317139936 | N35: 67938000 | O35: =N35/P34 -> 0.02148890825 | R35: 77890000 | S35: =R35/T34 -> 0.007994055518 | Z35: 2022 | AA35: =VLOOKUP(Z35,デフレータ表示方法!$E$8:$J$158,6,FALSE) -> 96.843 | AB35: 67583614.72 | AE35: 1.46 | AF35: 98700000 | AH35: =AF35/AG$34 -> 0.04318151988
D36: 機械 | E36: 28510 | F36: 0 | G36: 659900000 | I36: 659900000 | J36: =I36/K34 -> 0.4352758814 | N36: 1230100000 | O36: =N36/P34 -> 0.3890827819 | R36: 3510900000 | S36: =R36/T34 -> 0.3603328992 | Z36: 2022 | AA36: =VLOOKUP(Z36,デフレータ表示方法!$E$8:$J$158,6,FALSE) -> 96.843 | AB36: 681412182.6 | AE36: 1.46 | AF36: 995000000 | AH36: =AF36/AG$34 -> 0.4353152207
D37: 電気(計装と監視含む) | E37: 21900 | F37: 0 | G37: 379500000 | I37: 379500000 | J37: =I37/K34 -> 0.2503215593 | N37: 817500000 | O37: =N37/P34 -> 0.2585766801 | R37: 2569500000 | S37: =R37/T34 -> 0.2637145417 | Z37: 2022 | AA37: =VLOOKUP(Z37,デフレータ表示方法!$E$8:$J$158,6,FALSE) -> 96.843 | AB37: 391871379.4 | AE37: 1.46 | AF37: 572000000 | AH37: =AF37/AG$34 -> 0.2502515641
B38: 23300 | C38: 凝集+沈澱/前ろ過+オゾン+粒状炭+急速ろ過 | D38: 土木 | E38: 31740 | F38: 0 | G38: 411200000 | I38: 411200000 | J38: =I38/K38 -> 0.1601776289 | K38: =SUM(I38:I41) -> 2567150000 | L38: =K38/$K$26 -> 2.362661635 | N38: 1046000000 | O38: =N38/P38 -> 0.244264798 | P38: =SUM(N38:N41) -> 4282238000 | Q38: =P38/$P$26 -> 1.605374895 | R38: 3585200000 | S38: =R38/T38 -> 0.3217564319 | T38: =SUM(R38:R41) -> 11142590000 | U38: =T38/$T$26 -> 1.239306239 | W38: 2.089 | X38: 2.388 | Z38: 2022 | AA38: =VLOOKUP(Z38,デフレータ表示方法!$E$8:$J$158,6,FALSE) -> 96.843 | AB38: 424604772.7 | AC38: =SUM(AB38:AB41) -> 2650836922 | AE38: 1.46 | AF38: 620000000 | AG38: =SUM(AF38:AF41) -> 3870700000 | AH38: =AF38/AG$38 -> 0.1601777456
D39: 建築 | E39: 124.4 | F39: 0 | G39: 65450000 | I39: 65450000 | J39: =I39/K38 -> 0.02549519896 | N39: 67938000 | O39: =N39/P38 -> 0.01586506869 | R39: 77890000 | S39: =R39/T38 -> 0.006990295793 | Z39: 2022 | AA39: =VLOOKUP(Z39,デフレータ表示方法!$E$8:$J$158,6,FALSE) -> 96.843 | AB39: 67583614.72 | AE39: 1.46 | AF39: 98700000 | AH39: =AF39/AG$38 -> 0.0254992637
D40: 機械 | E40: 31990 | F40: 0 | G40: 1711000000 | I40: 1711000000 | J40: =I40/K38 -> 0.6664978673 | N40: 2350800000 | O40: =N40/P38 -> 0.548965284 | R40: 4910000000 | S40: =R40/T38 -> 0.44065159 | Z40: 2022 | AA40: =VLOOKUP(Z40,デフレータ表示方法!$E$8:$J$158,6,FALSE) -> 96.843 | AB40: 1766777155 | AE40: 1.46 | AF40: 2580000000 | AH40: 0.6665461028
D41: 電気(計装と監視含む) | E41: 21900 | F41: 0 | G41: 379500000 | I41: 379500000 | J41: =I41/K38 -> 0.1478293049 | N41: 817500000 | O41: =N41/P38 -> 0.1909048493 | R41: 2569500000 | S41: =R41/T38 -> 0.2306016824 | Z41: 2022 | AA41: =VLOOKUP(Z41,デフレータ表示方法!$E$8:$J$158,6,FALSE) -> 96.843 | AB41: 391871379.4 | AE41: 1.46 | AF41: 572000000 | AH41: 0.1477768879
B42: 30000 | C42: 膜ろ過 | D42: 土木 | E42: 5092 | F42: 0 | G42: 266200000 | I42: 266200000 | J42: =I42/K42 -> 0.2199727307 | K42: =SUM(I42:I45) -> 1210150000 | L42: =K42/$K$26 -> 1.113754544 | N42: 368040000 | O42: =N42/P42 -> 0.1651530776 | P42: =SUM(N42:N45) -> 2228478000 | Q42: =P42/$P$26 -> 0.8354375997 | R42: 775400000 | S42: =R42/T42 -> 0.1230444048 | T42: =SUM(R42:R45) -> 6301790000 | U42: =T42/$T$26 -> 0.7009005682 | W42: 1.375 | X42: 1.5 | Z42: 2022 | AA42: =VLOOKUP(Z42,デフレータ表示方法!$E$8:$J$158,6,FALSE) -> 96.843 | AB42: 274877895.1 | AC42: =SUM(AB42:AB45) -> 1249599868 | AE42: =$AK$20 -> 1.24 | AF42: 341000000 | AG42: =SUM(AF42:AF45) -> 1549800000 | AH42: =AF42/AG$42 -> 0.2200283908
D43: 建築 | E43: 124.4 | F43: 0 | G43: 65450000 | I43: 65450000 | J43: =I43/K42 -> 0.05408420444 | N43: 67938000 | O43: =N43/P42 -> 0.03048627808 | R43: 77890000 | S43: =R43/T42 -> 0.01235998026 | Z43: 2022 | AA43: =VLOOKUP(Z43,デフレータ表示方法!$E$8:$J$158,6,FALSE) -> 96.843 | AB43: 67583614.72 | AE43: =$AK$20 -> 1.24 | AF43: 83800000 | AH43: =AF43/AG$42 -> 0.0540714931
D44: 機械 | E44: 27200 | F44: 0 | G44: 667800000 | I44: 667800000 | J44: =I44/K42 -> 0.5518324175 | N44: 1211800000 | O44: =N44/P42 -> 0.5437792072 | R44: 3387800000 | S44: =R44/T42 -> 0.537593287 | Z44: 2022 | AA44: =VLOOKUP(Z44,デフレータ表示方法!$E$8:$J$158,6,FALSE) -> 96.843 | AB44: 689569715.9 | AE44: 1.24 | AF44: 855000000 | AH44: =AF44/AG$42 -> 0.5516840883
D45: 電気(計装と監視含む) | E45: 18500 | F45: 0 | G45: 210700000 | I45: 210700000 | J45: =I45/K42 -> 0.1741106474 | N45: 580700000 | O45: =N45/P42 -> 0.2605814372 | R45: 2060700000 | S45: =R45/T42 -> 0.3270023279 | Z45: 2022 | AA45: =VLOOKUP(Z45,デフレータ表示方法!$E$8:$J$158,6,FALSE) -> 96.843 | AB45: 217568642 | AE45: 1.24 | AF45: 270000000 | AH45: =AF45/AG$42 -> 0.1742160279
B46: 32000 | C46: 凝集+膜ろ過 | D46: 土木 | E46: 5340 | F46: =$B$2 -> 0 | G46: 319300000 | I46: =IFERROR(E46*F46+G46,"") -> 319300000 | J46: =I46/K46 -> 0.2485308426 | K46: =SUM(I46:I49) -> 1284750000 | L46: =K46/$K$26 -> 1.182412222 | N46: =IFERROR(E46*$Q$121+G46,"") -> 426100000 | O46: =N46/P46 -> 0.1842006746 | P46: =SUM(N46:N49) -> 2313238000 | Q46: =P46/$P$26 -> 0.8672134085 | R46: =IFERROR(E46*$U$121+G46,"") -> 853300000 | S46: =R46/T46 -> 0.1327640851 | T46: =SUM(R46:R49) -> 6427190000 | U46: =T46/$T$26 -> 0.7148478644 | W46: 1.518 | X46: 1.629 | Z46: 2022 | AA46: =VLOOKUP(Z46,デフレータ表示方法!$E$8:$J$158,6,FALSE) -> 96.843 | AB46: 329708910.3 | AC46: =SUM(AB46:AB49) -> 1326631765 | AE46: 1.24 | AF46: 409000000 | AG46: =SUM(AF46:AF49) -> 1645800000 | AH46: =AF46/AG$46 -> 0.2485113623
D47: 建築 | E47: 124.4 | F47: 0 | G47: 65450000 | I47: 65450000 | J47: =I47/K46 -> 0.05094376338 | N47: 67938000 | O47: =N47/P46 -> 0.02936922184 | R47: 77890000 | S47: =R47/T46 -> 0.01211882642 | Z47: 2022 | AA47: =VLOOKUP(Z47,デフレータ表示方法!$E$8:$J$158,6,FALSE) -> 96.843 | AB47: 67583614.72 | AE47: 1.24 | AF47: 83800000 | AH47: =AF47/AG$46 -> 0.05091748694
D48: 機械 | E48: 27320 | F48: 0 | G48: 677700000 | I48: 677700000 | J48: =I48/K46 -> 0.5274956217 | N48: 1224100000 | O48: =N48/P46 -> 0.5291716633 | R48: 3409700000 | S48: =R48/T46 -> 0.5305117789 | Z48: 2022 | AA48: =VLOOKUP(Z48,デフレータ表示方法!$E$8:$J$158,6,FALSE) -> 96.843 | AB48: 699792447.6 | AE48: 1.24 | AF48: 868000000 | AH48: 0.5274030866
D49: 電気(計装と監視含む) | E49: 18640 | F49: 0 | G49: 222300000 | I49: 222300000 | J49: =I49/K46 -> 0.1730297723 | N49: 595100000 | O49: =N49/P46 -> 0.2572584403 | R49: 2086300000 | S49: =R49/T46 -> 0.3246053096 | Z49: 2022 | AA49: =VLOOKUP(Z49,デフレータ表示方法!$E$8:$J$158,6,FALSE) -> 96.843 | AB49: 229546792.2 | AE49: 1.24 | AF49: 285000000 | AH49: 0.1731680642
B50: 33000 | C50: 凝集+沈澱/前ろ過+膜ろ過 | D50: 土木 | E50: 17340 | F50: 0 | G50: 349200000 | I50: 349200000 | J50: =I50/K50 -> 0.2645955673 | K50: =SUM(I50:I53) -> 1319750000 | L50: =K50/$K$26 -> 1.214624269 | N50: 696000000 | O50: =N50/P50 -> 0.2373128008 | P50: =SUM(N50:N53) -> 2932838000 | Q50: =P50/$P$26 -> 1.099496221 | R50: 2083200000 | S50: =R50/T50 -> 0.221966737 | T50: =SUM(R50:R53) -> 9385190000 | U50: =T50/$T$26 -> 1.043843893 | W50: 1.857 | X50: 2.018 | Z50: 2022 | AA50: =VLOOKUP(Z50,デフレータ表示方法!$E$8:$J$158,6,FALSE) -> 96.843 | AB50: 360583625 | AC50: =SUM(AB50:AB53) -> 1362772735 | AE50: 1.24 | AF50: 447000000 | AG50: =SUM(AF50:AF53) -> 1689800000 | AH50: =AF50/AG$50 -> 0.2645283465
D51: 建築 | E51: 124.4 | F51: 0 | G51: 65450000 | I51: 65450000 | J51: =I51/K50 -> 0.0495927259 | N51: 67938000 | O51: =N51/P50 -> 0.02316459348 | R51: 77890000 | S51: =R51/T50 -> 0.00829924594 | Z51: 2022 | AA51: =VLOOKUP(Z51,デフレータ表示方法!$E$8:$J$158,6,FALSE) -> 96.843 | AB51: 67583614.72 | AE51: 1.24 | AF51: 83800000 | AH51: =AF51/AG$50 -> 0.04959166765
D52: 機械 | E52: 42290 | F52: 0 | G52: 657000000 | I52: 657000000 | J52: =I52/K50 -> 0.4978215571 | N52: 1502800000 | O52: =N52/P50 -> 0.5124047083 | R52: 4886000000 | S52: =R52/T50 -> 0.5206074677 | Z52: 2022 | AA52: =VLOOKUP(Z52,デフレータ表示方法!$E$8:$J$158,6,FALSE) -> 96.843 | AB52: 678417645.1 | AE52: 1.24 | AF52: 841000000 | AH52: 0.4976920346
D53: 電気(計装と監視含む) | E53: 20900 | F53: 0 | G53: 248100000 | I53: 248100000 | J53: =I53/K50 -> 0.1879901496 | N53: 666100000 | O53: =N53/P50 -> 0.2271178974 | R53: 2338100000 | S53: =R53/T50 -> 0.2491265494 | Z53: 2022 | AA53: =VLOOKUP(Z53,デフレータ表示方法!$E$8:$J$158,6,FALSE) -> 96.843 | AB53: 256187850.4 | AE53: 1.24 | AF53: 318000000 | AH53: 0.1881879512
B54: 32500 | C54: 粉末炭+凝集+膜ろ過 | D54: 土木 | E54: 5340 | F54: 0 | G54: 319300000 | I54: 319300000 | J54: =I54/K54 -> 0.21184276 | K54: =SUM(I54:I57) -> 1507250000 | L54: =K54/$K$26 -> 1.387188809 | N54: 426100000 | O54: =N54/P54 -> 0.1644959075 | P54: =SUM(N54:N57) -> 2590338000 | Q54: =P54/$P$26 -> 0.9710958605 | R54: 853300000 | S54: =R54/T54 -> 0.1232613334 | T54: =SUM(R54:R57) -> 6922690000 | U54: =T54/$T$26 -> 0.7699585919 | Z54: 2022 | AA54: =VLOOKUP(Z54,デフレータ表示方法!$E$8:$J$158,6,FALSE) -> 96.843 | AB54: 329708910.3 | AC54: =SUM(AB54:AB57) -> 1556385077 | AE54: 1.24 | AF54: 409000000 | AG54: =SUM(AF54:AF57) -> 1927800000 | AH54: =AF54/AG$54 -> 0.2121589376
D55: 建築 | E55: 124.4 | F55: 0 | G55: 65450000 | I55: 65450000 | J55: =I55/K54 -> 0.04342345331 | N55: 67938000 | O55: =N55/P54 -> 0.0262274653 | R55: 77890000 | S55: =R55/T54 -> 0.01125140661 | Z55: 2022 | AA55: =VLOOKUP(Z55,デフレータ表示方法!$E$8:$J$158,6,FALSE) -> 96.843 | AB55: 67583614.72 | AE55: 1.24 | AF55: 83800000 | AH55: =AF55/AG$54 -> 0.04346923955
D56: 機械 | E56: 30050 | F56: 0 | G56: 900200000 | I56: 900200000 | J56: =I56/K54 -> 0.5972466412 | N56: 1501200000 | O56: =N56/P54 -> 0.5795382688 | R56: 3905200000 | S56: =R56/T54 -> 0.5641159723 | Z56: 2022 | AA56: =VLOOKUP(Z56,デフレータ表示方法!$E$8:$J$158,6,FALSE) -> 96.843 | AB56: 929545759.6 | AE56: 1.24 | AF56: 1150000000 | AH56: 0.5965349103
D57: 電気(計装と監視含む) | E57: 18640 | F57: 0 | G57: 222300000 | I57: 222300000 | J57: =I57/K54 -> 0.1474871455 | N57: 595100000 | O57: =N57/P54 -> 0.2297383585 | R57: 2086300000 | S57: =R57/T54 -> 0.3013712878 | Z57: 2022 | AA57: =VLOOKUP(Z57,デフレータ表示方法!$E$8:$J$158,6,FALSE) -> 96.843 | AB57: 229546792.2 | AE57: 1.24 | AF57: 285000000 | AH57: 0.1478369125
B58: 33500 | C58: 粉末炭+凝集+沈澱/前ろ過+膜ろ過 | D58: 土木 | E58: 17340 | F58: 0 | G58: 349200000 | I58: 349200000 | J58: =I58/K58 -> 0.2264224348 | K58: =SUM(I58:I61) -> 1542250000 | L58: =K58/$K$26 -> 1.419400856 | N58: 696000000 | O58: =N58/P58 -> 0.216813109 | P58: =SUM(N58:N61) -> 3210138000 | Q58: =P58/$P$26 -> 1.203453651 | R58: 2083200000 | S58: =R58/T58 -> 0.2108141421 | T58: =SUM(R58:R61) -> 9881690000 | U58: =T58/$T$26 -> 1.099065843 | W58: 2.053 | X58: 2.185 | Z58: 2022 | AA58: =VLOOKUP(Z58,デフレータ表示方法!$E$8:$J$158,6,FALSE) -> 96.843 | AB58: 360583625 | AC58: =SUM(AB58:AB61) -> 1592526047 | AE58: 1.24 | AF58: 447000000 | AG58: =SUM(AF58:AF61) -> 1978800000 | AH58: =AF58/AG$58 -> 0.2258944815
D59: 建築 | E59: 124.4 | F59: 0 | G59: 65450000 | I59: 65450000 | J59: =I59/K58 -> 0.04243799643 | N59: 67938000 | O59: =N59/P58 -> 0.02116357615 | R59: 77890000 | S59: =R59/T58 -> 0.007882254958 | Z59: 2022 | AA59: =VLOOKUP(Z59,デフレータ表示方法!$E$8:$J$158,6,FALSE) -> 96.843 | AB59: 67583614.72 | AE59: 1.24 | AF59: 83800000 | AH59: =AF59/AG$58 -> 0.04234889832
D60: 機械 | E60: 45030 | F60: 0 | G60: 879500000 | I60: 879500000 | J60: =I60/K58 -> 0.5702707084 | N60: 1780100000 | O60: =N60/P58 -> 0.5545244472 | R60: 5382500000 | S60: =R60/T58 -> 0.544694278 | Z60: 2022 | AA60: =VLOOKUP(Z60,デフレータ表示方法!$E$8:$J$158,6,FALSE) -> 96.843 | AB60: 908170957.1 | AE60: 1.24 | AF60: 1130000000 | AH60: 0.5710531635
D61: 電気(計装と監視含む) | E61: 20900 | F61: 0 | G61: 248100000 | I61: 248100000 | J61: =I61/K58 -> 0.1608688604 | N61: 666100000 | O61: =N61/P58 -> 0.2074988676 | R61: 2338100000 | S61: =R61/T58 -> 0.2366093249 | Z61: 2022 | AA61: =VLOOKUP(Z61,デフレータ表示方法!$E$8:$J$158,6,FALSE) -> 96.843 | AB61: 256187850.4 | AE61: 1.24 | AF61: 318000000 | AH61: 0.1607034566
B62: 30200 | C62: 粒状炭+膜ろ過 | D62: 土木 | E62: 5092 | F62: 0 | G62: 266200000 | I62: 266200000 | J62: =I62/K62 -> 0.1623814317 | K62: =SUM(I62:I65) -> 1639350000 | L62: =K62/$K$26 -> 1.508766279 | N62: 368040000 | O62: =N62/P62 -> 0.1351955972 | P62: =SUM(N62:N65) -> 2722278000 | Q62: =P62/$P$26 -> 1.020559053 | R62: 775400000 | S62: =R62/T62 -> 0.1099236035 | T62: =SUM(R62:R65) -> 7053990000 | U62: =T62/$T$26 -> 0.7845621005 | W62: 1.982 | X62: 2.296 | Z62: 2022 | AA62: =VLOOKUP(Z62,デフレータ表示方法!$E$8:$J$158,6,FALSE) -> 96.843 | AB62: 274877895.1 | AC62: =SUM(AB62:AB65) -> 1692791425 | AE62: 1.24 | AF62: 341000000 | AG62: =SUM(AF62:AF65) -> 2094800000 | AH62: =AF62/AG$62 -> 0.1627840367
D63: 建築 | E63: 124.4 | F63: 0 | G63: 65450000 | I63: 65450000 | J63: =I63/K62 -> 0.03992436026 | N63: 67938000 | O63: =N63/P62 -> 0.02495630498 | R63: 77890000 | S63: =R63/T62 -> 0.01104197766 | Z63: 2022 | AA63: =VLOOKUP(Z63,デフレータ表示方法!$E$8:$J$158,6,FALSE) -> 96.843 | AB63: 67583614.72 | AE63: 1.24 | AF63: 83800000 | AH63: =AF63/AG$62 -> 0.04000381898
D64: 機械 | E64: 30430 | F64: 0 | G64: 1097000000 | I64: 1097000000 | J64: =I64/K62 -> 0.6691676579 | N64: 1705600000 | O64: =N64/P62 -> 0.6265341012 | R64: 4140000000 | S64: =R64/T62 -> 0.5869018811 | Z64: 2022 | AA64: =VLOOKUP(Z64,デフレータ表示方法!$E$8:$J$158,6,FALSE) -> 96.843 | AB64: 1132761273 | AE64: 1.24 | AF64: 1400000000 | AH64: 0.6683215581
D65: 電気(計装と監視含む) | E65: 18500 | F65: 0 | G65: 210700000 | I65: 210700000 | J65: =I65/K62 -> 0.1285265502 | N65: 580700000 | O65: =N65/P62 -> 0.2133139966 | R65: 2060700000 | S65: =R65/T62 -> 0.2921325378 | Z65: 2022 | AA65: =VLOOKUP(Z65,デフレータ表示方法!$E$8:$J$158,6,FALSE) -> 96.843 | AB65: 217568642 | AE65: 1.24 | AF65: 270000000 | AH65: 0.1288905862
B66: 32200 | C66: 粒状炭+凝集+膜ろ過 | D66: 土木 | E66: 5340 | F66: 0 | G66: 319300000 | I66: 319300000 | J66: =I66/K66 -> 0.1862839474 | K66: =SUM(I66:I69) -> 1714050000 | L66: =K66/$K$26 -> 1.577515991 | N66: 426100000 | O66: =N66/P66 -> 0.1517916112 | P66: =SUM(N66:N69) -> 2807138000 | Q66: =P66/$P$26 -> 1.052372351 | R66: 853300000 | S66: =R66/T66 -> 0.1188524533 | T66: =SUM(R66:R69) -> 7179490000 | U66: =T66/$T$26 -> 0.7985205189 | W66: 2.107 | X66: 2.425 | Z66: 2022 | AA66: =VLOOKUP(Z66,デフレータ表示方法!$E$8:$J$158,6,FALSE) -> 96.843 | AB66: 329708910.3 | AC66: =SUM(AB66:AB69) -> 1769926582 | AE66: 1.24 | AF66: 409000000 | AG66: =SUM(AF66:AF69) -> 2197800000 | AH66: =AF66/AG$66 -> 0.1860951861
D67: 建築 | E67: 124.4 | F67: 0 | G67: 65450000 | I67: 65450000 | J67: =I67/K66 -> 0.03818441702 | N67: 67938000 | O67: =N67/P66 -> 0.02420187394 | R67: 77890000 | S67: =R67/T66 -> 0.01084896002 | Z67: 2022 | AA67: =VLOOKUP(Z67,デフレータ表示方法!$E$8:$J$158,6,FALSE) -> 96.843 | AB67: 67583614.72 | AE67: 1.24 | AF67: 83800000 | AH67: =AF67/AG$66 -> 0.03812903813
D68: 機械 | E68: 30550 | F68: 0 | G68: 1107000000 | I68: 1107000000 | J68: =I68/K66 -> 0.6458388028 | N68: 1718000000 | O68: =N68/P66 -> 0.6120112371 | R68: 4162000000 | S68: =R68/T66 -> 0.5797069151 | Z68: 2022 | AA68: =VLOOKUP(Z68,デフレータ表示方法!$E$8:$J$158,6,FALSE) -> 96.843 | AB68: 1143087265 | AE68: 1.24 | AF68: 1420000000 | AH68: 0.6461006461
D69: 電気(計装と監視含む) | E69: 18640 | F69: 0 | G69: 222300000 | I69: 222300000 | J69: =I69/K66 -> 0.1296928328 | N69: 595100000 | O69: =N69/P66 -> 0.2119952778 | R69: 2086300000 | S69: =R69/T66 -> 0.2905916716 | Z69: 2022 | AA69: =VLOOKUP(Z69,デフレータ表示方法!$E$8:$J$158,6,FALSE) -> 96.843 | AB69: 229546792.2 | AE69: 1.24 | AF69: 285000000 | AH69: 0.1296751297
B70: 33200 | C70: 凝集+沈澱/前ろ過+粒状炭+膜ろ過 | D70: 土木 | E70: 17340 | F70: 0 | G70: 349200000 | I70: 349200000 | J70: =I70/K70 -> 0.1996854896 | K70: =SUM(I70:I73) -> 1748750000 | L70: =K70/$K$26 -> 1.609451935 | N70: 696000000 | O70: =N70/P70 -> 0.2031263954 | P70: =SUM(N70:N73) -> 3426438000 | Q70: =P70/$P$26 -> 1.284542696 | R70: 2083200000 | S70: =R70/T70 -> 0.2055007354 | T70: =SUM(R70:R73) -> 10137190000 | U70: =T70/$T$26 -> 1.12748318 | W70: 2.446 | X70: 2.814 | Z70: 2022 | AA70: =VLOOKUP(Z70,デフレータ表示方法!$E$8:$J$158,6,FALSE) -> 96.843 | AB70: 360583625 | AC70: =SUM(AB70:AB73) -> 1805757773 | AE70: 1.24 | AF70: 447000000 | AG70: =SUM(AF70:AF73) -> 2238800000 | AH70: =AF70/AG$70 -> 0.1996605324
D71: 建築 | E71: 124.4 | F71: 0 | G71: 65450000 | I71: 65450000 | J71: =I71/K70 -> 0.03742673338 | N71: 67938000 | O71: =N71/P70 -> 0.01982758772 | R71: 77890000 | S71: =R71/T70 -> 0.007683588845 | Z71: 2022 | AA71: =VLOOKUP(Z71,デフレータ表示方法!$E$8:$J$158,6,FALSE) -> 96.843 | AB71: 67583614.72 | AE71: 1.24 | AF71: 83800000 | AH71: =AF71/AG$70 -> 0.03743076648
D72: 機械 | E72: 45520 | F72: 0 | G72: 1086000000 | I72: 1086000000 | J72: =I72/K70 -> 0.6210150107 | N72: 1996400000 | O72: =N72/P70 -> 0.5826458847 | R72: 5638000000 | S72: =R72/T70 -> 0.5561699051 | Z72: 2022 | AA72: =VLOOKUP(Z72,デフレータ表示方法!$E$8:$J$158,6,FALSE) -> 96.843 | AB72: 1121402683 | AE72: 1.24 | AF72: 1390000000 | AH72: 0.6208683223
D73: 電気(計装と監視含む) | E73: 20900 | F73: 0 | G73: 248100000 | I73: 248100000 | J73: =I73/K70 -> 0.1418727663 | N73: 666100000 | O73: =N73/P70 -> 0.1944001321 | R73: 2338100000 | S73: =R73/T70 -> 0.2306457707 | Z73: 2022 | AA73: =VLOOKUP(Z73,デフレータ表示方法!$E$8:$J$158,6,FALSE) -> 96.843 | AB73: 256187850.4 | AE73: 1.24 | AF73: 318000000 | AH73: 0.1420403788
B74: 33300 | C74: 凝集+沈澱/前ろ過+オゾン+粒状炭+膜ろ過 | D74: 土木 | E74: 17340 | F74: 0 | G74: 349200000 | I74: 349200000 | J74: =I74/K74 -> 0.124680889 | K74: =SUM(I74:I77) -> 2800750000 | L74: =K74/$K$26 -> 2.577654043 | N74: 696000000 | O74: =N74/P74 -> 0.1530330222 | P74: =SUM(N74:N77) -> 4548038000 | Q74: =P74/$P$26 -> 1.705021073 | R74: 2083200000 | S74: =R74/T74 -> 0.1805638981 | T74: =SUM(R74:R77) -> 11537190000 | U74: =T74/$T$26 -> 1.28319462 | W74: 2.946 | X74: 3.407 | Z74: 2022 | AA74: =VLOOKUP(Z74,デフレータ表示方法!$E$8:$J$158,6,FALSE) -> 96.843 | AB74: 360583625 | AC74: =SUM(AB74:AB77) -> 2892052084 | AE74: 1.24 | AF74: 447000000 | AG74: =SUM(AF74:AF77) -> 3588800000 | AH74: =AF74/AG$74 -> 0.1245541685
D75: 建築 | E75: 124.4 | F75: 0 | G75: 65450000 | I75: 65450000 | J75: =I75/K74 -> 0.02336874052 | N75: 67938000 | O75: =N75/P74 -> 0.01493786991 | R75: 77890000 | S75: =R75/T74 -> 0.00675121065 | Z75: 2022 | AA75: =VLOOKUP(Z75,デフレータ表示方法!$E$8:$J$158,6,FALSE) -> 96.843 | AB75: 67583614.72 | AE75: 1.24 | AF75: 83800000 | AH75: =AF75/AG$74 -> 0.02335042354
D76: 機械 | E76: 49000 | F76: 0 | G76: 2138000000 | I76: 2138000000 | J76: =I76/K74 -> 0.7633669553 | N76: 3118000000 | O76: =N76/P74 -> 0.6855703492 | R76: 7038000000 | S76: =R76/T74 -> 0.610027225 | Z76: 2022 | AA76: =VLOOKUP(Z76,デフレータ表示方法!$E$8:$J$158,6,FALSE) -> 96.843 | AB76: 2207696994 | AE76: 1.24 | AF76: 2740000000 | AH76: 0.7634864021
D77: 電気(計装と監視含む) | E77: 20900 | F77: 0 | G77: 248100000 | I77: 248100000 | J77: =I77/K74 -> 0.08858341516 | N77: 666100000 | O77: =N77/P74 -> 0.1464587587 | R77: 2338100000 | S77: =R77/T74 -> 0.2026576662 | Z77: 2022 | AA77: =VLOOKUP(Z77,デフレータ表示方法!$E$8:$J$158,6,FALSE) -> 96.843 | AB77: 256187850.4 | AE77: 1.24 | AF77: 318000000 | AH77: 0.0886090058
B78: 10000 | C78: 緩速ろ過 | D78: 土木 | E78: 34770 | F78: =$B$2 -> 0 | G78: 418900000 | I78: =IFERROR(E78*F78+G78,"") -> 418900000 | J78: =I78/K78 -> 0.5041824637 | K78: =SUM(I78:I81) -> 830850000 | L78: =K78/$K$26 -> 0.7646679858 | N78: =IFERROR(E78*$Q$121+G78,"") -> 1114300000 | O78: =N78/P78 -> 0.5785391717 | P78: =SUM(N78:N81) -> 1926058000 | Q78: =P78/$P$26 -> 0.7220628933 | R78: =IFERROR(E78*$U$121+G78,"") -> 3895900000 | S78: =R78/T78 -> 0.6177212541 | T78: =SUM(R78:R81) -> 6306890000 | U78: =T78/$T$26 -> 0.7014678028 | Z78: 2022 | AA78: =VLOOKUP(Z78,デフレータ表示方法!$E$8:$J$158,6,FALSE) -> 96.843 | AB78: 432555786.2 | AC78: =SUM(AB78:AB81) -> 857935008.2 | AE78: =$AK$18 -> 0.99 | AF78: 428000000 | AG78: =SUM(AF78:AF81) -> 848900000 | AH78: =AF78/AG$78 -> 0.5041818824
D79: 建築 | E79: 124.4 | F79: 0 | G79: 65450000 | I79: 65450000 | J79: =I79/K78 -> 0.07877474875 | N79: 67938000 | O79: =N79/P78 -> 0.03527308108 | R79: 77890000 | S79: =R79/T78 -> 0.01234998549 | Z79: 2022 | AA79: =VLOOKUP(Z79,デフレータ表示方法!$E$8:$J$158,6,FALSE) -> 96.843 | AB79: =IFERROR(I79*(100/AA79),"") -> 67583614.72 | AE79: =$AK$18 -> 0.99 | AF79: =IFERROR(ROUND(AB79*AE79,(3-1)-INT(LOG(ABS(AB79*AE79)))),"") -> 66900000 | AH79: =AF79/AG$78 -> 0.07880786901
D80: 機械 | E80: 1366 | F80: 0 | G80: 135800000 | I80: 135800000 | J80: =I80/K78 -> 0.1634470723 | N80: 163120000 | O80: =N80/P78 -> 0.08469111522 | R80: 272400000 | S80: =R80/T78 -> 0.04319085952 | Z80: 2022 | AA80: =VLOOKUP(Z80,デフレータ表示方法!$E$8:$J$158,6,FALSE) -> 96.843 | AB80: 140226965.3 | AE80: 0.99 | AF80: 139000000 | AH80: 0.1637413123
D81: 電気(計装と監視含む) | E81: 18500 | F81: 0 | G81: 210700000 | I81: 210700000 | J81: =I81/K78 -> 0.2535957152 | N81: 580700000 | O81: =N81/P78 -> 0.301496632 | R81: 2060700000 | S81: =R81/T78 -> 0.3267379009 | Z81: 2022 | AA81: =VLOOKUP(Z81,デフレータ表示方法!$E$8:$J$158,6,FALSE) -> 96.843 | AB81: 217568642 | AE81: 0.99 | AF81: 215000000 | AH81: 0.2532689363
B82: 11000 | C82: 普通沈澱+緩速ろ過 | D82: 土木 | E82: 44280 | F82: 0 | G82: 395700000 | I82: 395700000 | J82: =I82/K82 -> 0.5064441401 | K82: =SUM(I82:I85) -> 781330000 | L82: =K82/$K$26 -> 0.7190925406 | N82: 1281300000 | O82: =N82/P82 -> 0.546532231 | P82: =SUM(N82:N85) -> 2344418000 | Q82: =P82/$P$26 -> 0.8789025274 | R82: 4823700000 | S82: =R82/T82 -> 0.5611060898 | T82: =SUM(R82:R85) -> 8596770000 | U82: =T82/$T$26 -> 0.9561538829 | Z82: 2022 | AA82: =VLOOKUP(Z82,デフレータ表示方法!$E$8:$J$158,6,FALSE) -> 96.843 | AB82: 408599485.8 | AC82: =SUM(AB82:AB85) -> 806800698 | AE82: 0.99 | AF82: 405000000 | AG82: =SUM(AF82:AF85) -> 799300000 | AH82: =AF82/AG$82 -> 0.5066933567
D83: 建築 | E83: 124.4 | F83: 0 | G83: 65450000 | I83: 65450000 | J83: =I83/K82 -> 0.08376742222 | N83: 67938000 | O83: =N83/P82 -> 0.02897862071 | R83: 77890000 | S83: =R83/T82 -> 0.009060379654 | Z83: 2022 | AA83: =VLOOKUP(Z83,デフレータ表示方法!$E$8:$J$158,6,FALSE) -> 96.843 | AB83: 67583614.72 | AE83: 0.99 | AF83: 66900000 | AH83: =AF83/AG$82 -> 0.08369823596
D84: 機械 | E84: 13360 | F84: 0 | G84: 95280000 | I84: 95280000 | J84: =I84/K82 -> 0.1219459127 | N84: 362480000 | O84: =N84/P82 -> 0.1546140663 | R84: 1431280000 | S84: =R84/T82 -> 0.1664904377 | Z84: 2022 | AA84: =VLOOKUP(Z84,デフレータ表示方法!$E$8:$J$158,6,FALSE) -> 96.843 | AB84: 98386047.52 | AE84: 0.99 | AF84: 97400000 | AH84: 0.1218566245
D85: 電気(計装と監視含む) | E85: 20390 | F85: 0 | G85: 224900000 | I85: 224900000 | J85: =I85/K82 -> 0.2878425249 | N85: 632700000 | O85: =N85/P82 -> 0.269875082 | R85: 2263900000 | S85: =R85/T82 -> 0.2633430928 | Z85: 2022 | AA85: =VLOOKUP(Z85,デフレータ表示方法!$E$8:$J$158,6,FALSE) -> 96.843 | AB85: 232231550 | AE85: 0.99 | AF85: 230000000 | AH85: 0.2877517828
B86: 13000 | C86: 凝集+沈澱/前ろ過+緩速ろ過 | D86: 土木 | E86: 47020 | F86: 0 | G86: 501900000 | I86: 501900000 | J86: =I86/K86 -> 0.5336806848 | K86: =SUM(I86:I89) -> 940450000 | L86: =K86/$K$26 -> 0.8655377111 | N86: 1442300000 | O86: =N86/P86 -> 0.5482908819 | P86: =SUM(N86:N89) -> 2630538000 | Q86: =P86/$P$26 -> 0.9861665013 | R86: 5203900000 | S86: =R86/T86 -> 0.5541434305 | T86: =SUM(R86:R89) -> 9390890000 | U86: =T86/$T$26 -> 1.044477861 | Z86: 2022 | AA86: =VLOOKUP(Z86,デフレータ表示方法!$E$8:$J$158,6,FALSE) -> 96.843 | AB86: 518261516.1 | AC86: =SUM(AB86:AB89) -> 971107875.6 | AE86: 0.99 | AF86: 513000000 | AG86: =SUM(AF86:AF89) -> 961900000 | AH86: =AF86/AG$86 -> 0.5333194719
D87: 建築 | E87: 124.4 | F87: 0 | G87: 65450000 | I87: 65450000 | J87: =I87/K86 -> 0.06959434313 | N87: 67938000 | O87: =N87/P86 -> 0.02582665599 | R87: 77890000 | S87: =R87/T86 -> 0.008294208536 | Z87: 2022 | AA87: =VLOOKUP(Z87,デフレータ表示方法!$E$8:$J$158,6,FALSE) -> 96.843 | AB87: 67583614.72 | AE87: 0.99 | AF87: 66900000 | AH87: =AF87/AG$86 -> 0.06954984926
D88: 機械 | E88: 16460 | F88: 0 | G88: 125000000 | I88: 125000000 | J88: =I88/K86 -> 0.1329150938 | N88: 454200000 | O88: =N88/P86 -> 0.1726642991 | R88: 1771000000 | S88: =R88/T86 -> 0.1885870242 | Z88: 2022 | AA88: =VLOOKUP(Z88,デフレータ表示方法!$E$8:$J$158,6,FALSE) -> 96.843 | AB88: 129074894.4 | AE88: 0.99 | AF88: 128000000 | AH88: =AF88/AG$86 -> 0.1330699657
D89: 電気(計装と監視含む) | E89: 20900 | F89: 0 | G89: 248100000 | I89: 248100000 | J89: =I89/K86 -> 0.2638098782 | N89: 666100000 | O89: =N89/P86 -> 0.253218163 | R89: 2338100000 | S89: =R89/T86 -> 0.2489753367 | Z89: 2022 | AA89: =VLOOKUP(Z89,デフレータ表示方法!$E$8:$J$158,6,FALSE) -> 96.843 | AB89: 256187850.4 | AE89: 0.99 | AF89: 254000000 | AH89: =AF89/AG$86 -> 0.2640607132
B90: 13500 | C90: 粉末炭+凝集+沈澱/前ろ過+緩速ろ過 | D90: 土木 | E90: 47020 | F90: 0 | G90: 501900000 | I90: 501900000 | J90: =I90/K90 -> 0.4315748742 | K90: =SUM(I90:I93) -> 1162950000 | L90: =K90/$K$26 -> 1.070314298 | N90: 1442300000 | O90: =N90/P90 -> 0.4960383652 | P90: =SUM(N90:N93) -> 2907638000 | Q90: =P90/$P$26 -> 1.090048953 | R90: 5203900000 | S90: =R90/T90 -> 0.5263700906 | T90: =SUM(R90:R93) -> 9886390000 | U90: =T90/$T$26 -> 1.099588588 | Z90: 2022 | AA90: =VLOOKUP(Z90,デフレータ表示方法!$E$8:$J$158,6,FALSE) -> 96.843 | AB90: 518261516.1 | AC90: =SUM(AB90:AB93) -> 1200861188 | AE90: 0.99 | AF90: 513000000 | AG90: =SUM(AF90:AF93) -> 1188900000 | AH90: =AF90/AG$90 -> 0.4314912945
D91: 建築 | E91: 124.4 | F91: 0 | G91: 65450000 | I91: 65450000 | J91: =I91/K90 -> 0.05627928974 | N91: 67938000 | O91: =N91/P90 -> 0.02336535704 | R91: 77890000 | S91: =R91/T90 -> 0.007878507726 | Z91: 2022 | AA91: =VLOOKUP(Z91,デフレータ表示方法!$E$8:$J$158,6,FALSE) -> 96.843 | AB91: 67583614.72 | AE91: 0.99 | AF91: 66900000 | AH91: =AF91/AG$90 -> 0.05627050214 | BE91: a1 | BF91: b1
D92: 機械 | E92: 19190 | F92: 0 | G92: 347500000 | I92: 347500000 | J92: =I92/K90 -> 0.2988090632 | N92: 731300000 | O92: =N92/P90 -> 0.2515099885 | R92: 2266500000 | S92: =R92/T90 -> 0.2292545611 | Z92: 2022 | AA92: =VLOOKUP(Z92,デフレータ表示方法!$E$8:$J$158,6,FALSE) -> 96.843 | AB92: 358828206.5 | AE92: 0.99 | AF92: 355000000 | AH92: 0.2985953402 | BD92: 一式 | BE92: 2910.705537 | BF92: 198631308.2
D93: 電気(計装と監視含む) | E93: 20900 | F93: 0 | G93: 248100000 | I93: 248100000 | J93: =I93/K90 -> 0.2133367729 | N93: 666100000 | O93: =N93/P90 -> 0.2290862893 | R93: 2338100000 | S93: =R93/T90 -> 0.2364968406 | Z93: 2022 | AA93: =VLOOKUP(Z93,デフレータ表示方法!$E$8:$J$158,6,FALSE) -> 96.843 | AB93: 256187850.4 | AE93: 0.99 | AF93: 254000000 | AH93: 0.2136428632 | BD93: (仮に「機械」に加える)
B94: 11200 | C94: 普通沈澱+粒状炭+緩速ろ過 | D94: 土木 | E94: 44280 | F94: 0 | G94: 395700000 | I94: 395700000 | J94: =I94/K94 -> 0.3267952265 | K94: =SUM(I94:I97) -> 1210850000 | L94: =K94/$K$26 -> 1.114398785 | N94: 1281300000 | O94: =N94/P94 -> 0.4513943446 | P94: =SUM(N94:N97) -> 2838538000 | Q94: =P94/$P$26 -> 1.064143946 | R94: 4823700000 | S94: =R94/T94 -> 0.5159429219 | T94: =SUM(R94:R97) -> 9349290000 | U94: =T94/$T$26 -> 1.039851006 | Z94: 2022 | AA94: =VLOOKUP(Z94,デフレータ表示方法!$E$8:$J$158,6,FALSE) -> 96.843 | AB94: 408599485.8 | AC94: =SUM(AB94:AB97) -> 1250322687 | AE94: 0.99 | AF94: 405000000 | AG94: =SUM(AF94:AF97) -> 1237900000 | AH94: =AF94/AG$94 -> 0.3271669763
D95: 建築 | E95: 124.4 | F95: 0 | G95: 65450000 | I95: 65450000 | J95: =I95/K94 -> 0.05405293802 | N95: 67938000 | O95: =N95/P94 -> 0.02393415202 | R95: 77890000 | S95: =R95/T94 -> 0.008331113913 | Z95: 2022 | AA95: =VLOOKUP(Z95,デフレータ表示方法!$E$8:$J$158,6,FALSE) -> 96.843 | AB95: 67583614.72 | AE95: 0.99 | AF95: 66900000 | AH95: =AF95/AG$94 -> 0.05404313757
D96: 機械 | E96: 16590 | F96: 0 | G96: 524800000 | I96: 524800000 | J96: =I96/K94 -> 0.4334145435 | N96: 856600000 | O96: =N96/P94 -> 0.3017750687 | R96: 2183800000 | S96: =R96/T94 -> 0.2335792344 | Z96: 2022 | AA96: =VLOOKUP(Z96,デフレータ表示方法!$E$8:$J$158,6,FALSE) -> 96.843 | AB96: 541908036.7 | AE96: 0.99 | AF96: 536000000 | AH96: 0.4329913563 | BD96: 一式 | BE96: 3444.879961 | BF96: 401241548.3
D97: 電気(計装と監視含む) | E97: 20390 | F97: 0 | G97: 224900000 | I97: 224900000 | J97: =I97/K94 -> 0.185737292 | N97: 632700000 | O97: =N97/P94 -> 0.2228964347 | R97: 2263900000 | S97: =R97/T94 -> 0.2421467299 | Z97: 2022 | AA97: =VLOOKUP(Z97,デフレータ表示方法!$E$8:$J$158,6,FALSE) -> 96.843 | AB97: 232231550 | AE97: 0.99 | AF97: 230000000 | AH97: 0.1857985298 | BD97: (仮に「機械」に加える)
B98: 13200 | C98: 凝集+沈澱/前ろ過+粒状炭+緩速ろ過 | D98: 土木 | E98: 47020 | F98: 0 | G98: 501900000 | I98: 501900000 | J98: =I98/K98 -> 0.3663637359 | K98: =SUM(I98:I101) -> 1369950000 | L98: =K98/$K$26 -> 1.260825549 | N98: 1442300000 | O98: =N98/P98 -> 0.4615894705 | P98: =SUM(N98:N101) -> 3124638000 | Q98: =P98/$P$26 -> 1.171400422 | R98: 5203900000 | S98: =R98/T98 -> 0.5130336111 | T98: =SUM(R98:R101) -> 10143390000 | U98: =T98/$T$26 -> 1.12817276 | Z98: 2022 | AA98: =VLOOKUP(Z98,デフレータ表示方法!$E$8:$J$158,6,FALSE) -> 96.843 | AB98: 518261516.1 | AC98: =SUM(AB98:AB101) -> 1414609213 | AE98: 0.99 | AF98: 513000000 | AG98: =SUM(AF98:AF101) -> 1400900000 | AH98: =AF98/AG$98 -> 0.3661931615
D99: 建築 | E99: 124.4 | F99: 0 | G99: 65450000 | I99: 65450000 | J99: =I99/K98 -> 0.04777546626 | N99: 67938000 | O99: =N99/P98 -> 0.02174267867 | R99: 77890000 | S99: =R99/T98 -> 0.007678892362 | Z99: 2022 | AA99: =VLOOKUP(Z99,デフレータ表示方法!$E$8:$J$158,6,FALSE) -> 96.843 | AB99: 67583614.72 | AE99: 0.99 | AF99: 66900000 | AH99: =AF99/AG$98 -> 0.04775501463
D100: 機械 | E100: 19690 | F100: 0 | G100: 554500000 | I100: 554500000 | J100: =I100/K98 -> 0.4047592978 | N100: 948300000 | O100: =N100/P98 -> 0.3034911564 | R100: 2523500000 | S100: =R100/T98 -> 0.2487827048 | Z100: 2022 | AA100: =VLOOKUP(Z100,デフレータ表示方法!$E$8:$J$158,6,FALSE) -> 96.843 | AB100: 572576231.6 | AE100: 0.99 | AF100: 567000000 | AH100: 0.4047398101 | BD100: 一式 | BE100: 3444.879961 | BF100: 401241548.3
D101: 電気(計装と監視含む) | E101: 20900 | F101: 0 | G101: 248100000 | I101: 248100000 | J101: =I101/K98 -> 0.1811015001 | N101: 666100000 | O101: =N101/P98 -> 0.2131766944 | R101: 2338100000 | S101: =R101/T98 -> 0.2305047918 | Z101: 2022 | AA101: =VLOOKUP(Z101,デフレータ表示方法!$E$8:$J$158,6,FALSE) -> 96.843 | AB101: 256187850.4 | AE101: 0.99 | AF101: 254000000 | AH101: 0.1813120137 | BD101: (仮に「機械」に加える)
L103: 天日乾燥床 | Q103: 天日乾燥床 | U103: 天日乾燥床
L104: との比率 | Q104: との比率 | U104: との比率
B105: 2 | C105: 機械脱水機 | D105: 土木 | E105: 3726 | F105: =$B$2 -> 0 | G105: 124400000 | I105: =IFERROR(E105*F105+G105,"") -> 124400000 | J105: =I105/K105 -> 0.1533341551 | K105: =SUM(I105:I108) -> 811300000 | L105: =K105/K109 -> 2.116618836 | N105: =IFERROR(E105*$Q$121+G105,"") -> 198920000 | O105: =N105/P105 -> 0.1882703021 | P105: =SUM(N105:N108) -> 1056566000 | Q105: =P105/P109 -> 2.189057262 | R105: =IFERROR(E105*$U$121+G105,"") -> 497000000 | S105: =R105/T105 -> 0.243910818 | T105: =SUM(R105:R108) -> 2037630000 | U105: =T105/T109 -> 2.315251849 | Z105: 2022 | AA105: =VLOOKUP(Z105,デフレータ表示方法!$E$8:$J$158,6,FALSE) -> 96.843 | AB105: =IFERROR(I105*(100/AA105),"") -> 128455334.9 | AC105: =SUM(AB105:AB108) -> 837747694.7 | AE105: 1 | AF105: =IFERROR(ROUND(AB105*AE105,(3-1)-INT(LOG(ABS(AB105*AE105)))),"") -> 128000000 | AG105: =SUM(AF105:AF108) -> 837800000 | AH105: =AF105/AG$105 -> 0.1527810933
D106: 建築 | E106: 2080 | F106: =$B$2 -> 0 | G106: 56900000 | I106: 56900000 | J106: =I106/K105 -> 0.07013435227 | N106: 98500000 | O106: =N106/P105 -> 0.09322654713 | R106: 264900000 | S106: =R106/T105 -> 0.1300039752 | Z106: 2022 | AA106: =VLOOKUP(Z106,デフレータ表示方法!$E$8:$J$158,6,FALSE) -> 96.843 | AB106: 58754891.94 | AE106: 1 | AF106: 58800000 | AH106: =AF106/AG$105 -> 0.07018381475
D107: 機械 | E107: 5588 | F107: =$B$2 -> 0 | G107: 379500000 | I107: 379500000 | J107: =I107/K105 -> 0.4677677801 | N107: 491260000 | O107: =N107/P105 -> 0.4649591223 | R107: 938300000 | S107: =R107/T105 -> 0.4604859567 | Z107: 2022 | AA107: =VLOOKUP(Z107,デフレータ表示方法!$E$8:$J$158,6,FALSE) -> 96.843 | AB107: 391871379.4 | AE107: 1 | AF107: 392000000 | AH107: 0.4678920984
D108: 電気(計装と監視含む) | E108: 869.3 | F108: =$B$2 -> 0 | G108: 250500000 | I108: 250500000 | J108: =I108/K105 -> 0.3087637126 | N108: 267886000 | O108: =N108/P105 -> 0.2535440285 | R108: 337430000 | S108: =R108/T105 -> 0.1655992501 | Z108: 2022 | AA108: =VLOOKUP(Z108,デフレータ表示方法!$E$8:$J$158,6,FALSE) -> 96.843 | AB108: 258666088.4 | AE108: 1 | AF108: 259000000 | AH108: 0.3091429936
B109: 1 | C109: 天日乾燥床 | D109: 土木 | E109: 3726 | F109: =$B$2 -> 0 | G109: 124400000 | I109: 124400000 | J109: =I109/K109 -> 0.3245499609 | K109: =SUM(I109:I112) -> 383300000 | L109: =K109/K109 -> 1 | N109: 198920000 | O109: =N109/P109 -> 0.412134472 | P109: =SUM(N109:N112) -> 482658000 | Q109: =P109/P109 -> 1 | R109: 497000000 | S109: =R109/T109 -> 0.5647149723 | T109: =SUM(R109:R112) -> 880090000 | U109: =T109/T109 -> 1 | Z109: 2022 | AA109: =VLOOKUP(Z109,デフレータ表示方法!$E$8:$J$158,6,FALSE) -> 96.843 | AB109: 128455334.9 | AC109: =SUM(AB109:AB112) -> 395795256.2 | AE109: 1 | AF109: 128000000 | AG109: =SUM(AF109:AF112) -> 395000000 | AH109: =AF109/AG$109 -> 0.3240506329
D110: 建築 | E110: - | F110: - | G110: - | J110: =IFERROR(I110/K109,"") ->  | O110: =IFERROR(N110/P109,"") ->  | S110: =IFERROR(R110/T109,"") ->  | Z110: 2022 | AA110: =VLOOKUP(Z110,デフレータ表示方法!$E$8:$J$158,6,FALSE) -> 96.843 | AH110: =IFERROR(AF110/AG$109,0) -> 0
D111: 機械 | E111: 869.3 | F111: =$B$2 -> 0 | G111: 138800000 | I111: 138800000 | J111: =I111/K109 -> 0.3621184451 | N111: 156186000 | O111: =N111/P109 -> 0.3235955894 | R111: 225730000 | S111: =R111/T109 -> 0.2564851322 | Z111: 2022 | AA111: =VLOOKUP(Z111,デフレータ表示方法!$E$8:$J$158,6,FALSE) -> 96.843 | AB111: 143324762.8 | AE111: 1 | AF111: 143000000 | AH111: =AF111/AG$109 -> 0.3620253165
D112: 電気(計装と監視含む) | E112: 372.6 | F112: =$B$2 -> 0 | G112: 120100000 | I112: 120100000 | J112: =I112/K109 -> 0.3133315941 | N112: 127552000 | O112: =N112/P109 -> 0.2642699385 | R112: 157360000 | S112: =R112/T109 -> 0.1787998955 | Z112: 2022 | AA112: =VLOOKUP(Z112,デフレータ表示方法!$E$8:$J$158,6,FALSE) -> 96.843 | AB112: 124015158.6 | AE112: 1 | AF112: 124000000 | AH112: 0.3139240506
B113: 10 | C113: 紫外線 | D113: 土木 | E113: - | F113: - | G113: - | J113: =IFERROR(I113/K113,"") ->  | K113: =SUM(I113:I116) -> 55030000 | O113: =IFERROR(N113/P113,"") ->  | P113: =SUM(N113:N116) -> 335630000 | S113: =IFERROR(R113/T113,"") ->  | T113: =SUM(R113:R116) -> 1458030000 | Z113: 2022 | AA113: =VLOOKUP(Z113,デフレータ表示方法!$E$8:$J$158,6,FALSE) -> 96.843 | AC113: =SUM(AB113:AB116) -> 56823931.52 | AG113: =SUM(AF113:AF116) -> 120000000 | AH113: =IFERROR(AF113/AG$113,0) -> 0
D114: 建築 | E114: - | F114: - | G114: - | J114: =IFERROR(I114/K113,"") ->  | O114: =IFERROR(N114/P113,"") ->  | S114: =IFERROR(R114/T113,"") ->  | Z114: 2022 | AA114: =VLOOKUP(Z114,デフレータ表示方法!$E$8:$J$158,6,FALSE) -> 96.843 | AH114: =IFERROR(AF114/AG$113,0) -> 0
D115: 機械 | E115: 14030 | F115: =$B$2 -> 0 | G115: 55030000 | I115: 55030000 | J115: =I115/K113 -> 1 | N115: 335630000 | O115: =N115/P113 -> 1 | R115: 1458030000 | S115: =R115/T113 -> 1 | Z115: 2022 | AA115: =VLOOKUP(Z115,デフレータ表示方法!$E$8:$J$158,6,FALSE) -> 96.843 | AB115: 56823931.52 | AE115: =AK17 -> 2.11 | AF115: 120000000 | AH115: 1
D116: 電気(計装と監視含む) | E116: - | F116: - | G116: - | J116: =IFERROR(I116/K113,"") ->  | O116: =IFERROR(N116/P113,"") ->  | S116: =IFERROR(R116/T113,"") ->  | Z116: 2022 | AA116: =VLOOKUP(Z116,デフレータ表示方法!$E$8:$J$158,6,FALSE) -> 96.843 | AH116: 0
B117: 500 | C117: 粉末炭 | D117: 土木 | E117: - | F117: - | G117: - | J117: =IFERROR(I117/K117,"") ->  | K117: =SUM(I117:I120) -> 222500000 | O117: =IFERROR(N117/P117,"") ->  | P117: =SUM(N117:N120) -> 277140000 | S117: =IFERROR(R117/T117,"") ->  | T117: =SUM(R117:R120) -> 495700000 | Z117: 2022 | AA117: =VLOOKUP(Z117,デフレータ表示方法!$E$8:$J$158,6,FALSE) -> 96.843 | AC117: =SUM(AB117:AB120) -> 229753312.1 | AG117: =SUM(AF117:AF120) -> 0 | AH117: =IFERROR(AF117/AG$117,0) -> 0 | AJ117: 22000 | AK117: 1.46
D118: 建築 | E118: - | F118: - | G118: - | J118: =IFERROR(I118/K117,"") ->  | O118: =IFERROR(N118/P117,"") ->  | S118: =IFERROR(R118/T117,"") ->  | Z118: 2022 | AA118: =VLOOKUP(Z118,デフレータ表示方法!$E$8:$J$158,6,FALSE) -> 96.843 | AH118: =IFERROR(AF118/AG$117,0) -> 0 | AJ118: 23000 | AK118: 1.46
D119: 機械 | E119: 2732 | F119: =$B$2 -> 0 | G119: 222500000 | I119: 222500000 | J119: =I119/K117 -> 1 | N119: 277140000 | O119: =N119/P117 -> 1 | R119: 495700000 | S119: =R119/T117 -> 1 | Z119: 2022 | AA119: =VLOOKUP(Z119,デフレータ表示方法!$E$8:$J$158,6,FALSE) -> 96.843 | AB119: 229753312.1 | AE119: =VLOOKUP(浄水フロー!F2,AJ117:AK136,2,FALSE) ->  | AH119: 0 | AJ119: 23500 | AK119: 1.46
D120: 電気(計装と監視含む) | E120: - | F120: - | G120: - | J120: =IFERROR(I120/K117,"") ->  | O120: =IFERROR(N120/P117,"") ->  | S120: =IFERROR(R120/T117,"") ->  | Z120: 2022 | AA120: =VLOOKUP(Z120,デフレータ表示方法!$E$8:$J$158,6,FALSE) -> 96.843 | AH120: 0 | AJ120: 23200 | AK120: 1.46
Q121: 20000 | U121: 100000 | AJ121: 23300 | AK121: 1.46
W122: 1/22 追記 参考として、製作当初の20,000、100,000での比率を追記 | AJ122: 30000 | AK122: 1.24
AB123: 2パターンの建設費算出があり、いずれも | AJ123: 32000 | AK123: 1.24
C124: 再構築の手引きから資産額を算出、再構築の手引きで比率を確認した方が良いのでは？（1/10)、基本的には埋められるが、一式計上の部分はどこに割り振るかを確認する必要あり | AB124: 同様の流れとするが、 | AJ124: 33000 | AK124: 1.24
C125: Gr.1内で分担し、一度埋められる範囲を埋めていく | AB125: デフレータ値の読み込みが | AJ125: 32500 | AK125: 1.24
C126: ⇒Excelをどこキャビへ格納し、分担作業 | AB126: 2経路あることに注意すること | AJ126: 33500 | AK126: 1.24
C127: ⇒集まった段階で集約する | AJ127: 30200 | AK127: 1.24
AJ128: 32200 | AK128: 1.24
AJ129: 33200 | AK129: 1.24
C130: 1/12追記 | AJ130: 33300 | AK130: 1.24
C131: 一式となっているものは機械として計上 | AJ131: 10000 | AK131: 0.99
AJ132: 11000 | AK132: 0.99
AJ133: 13000 | AK133: 0.99
AJ134: 13500 | AK134: 0.99
C135: 2/13 r14にて追記メモ：グレーの部分は右端の隣の数式を使い、建設費を計算させる。（今後、シミュレータ改造が進んだ段階であらためて確認する事項） | AJ135: 11200 | AK135: 0.99
E136: 2/6齋藤検証用 | AJ136: 13200 | AK136: 0.99
E137: 上より引用 | F137: 下に記載の(付加)分を加算 | G137: 差し引き
D138: 消毒のみ | E138: =K14 -> 678150000
C139: =C138+10 -> 10 | D139: 紫外線+消毒 | E139: =K18 -> 733150000 | F139: =E138+E161 -> 733180000 | G139: =E139-F139 -> -30000
C140: 22000 | D140: 凝集+急速ろ過 | E140: =K22 -> 1051550000
C141: 23000 | D141: 凝集+沈澱/前ろ過+急速ろ過 | E141: =K26 -> 1086550000
C142: =C141+500 -> 23500 | D142: 粉末炭+凝集+沈澱/前ろ過+急速ろ過 | E142: =K30 -> 1309050000 | F142: =E141+E162 -> 1309050000 | G142: =E142-F142 -> 0
C143: 23200 | D143: 凝集+沈澱/前ろ過+粒状炭+急速ろ過 | E143: =K34 -> 1516050000
C144: 23300 | D144: 凝集+沈澱/前ろ過+オゾン+粒状炭+急速ろ過 | E144: =K38 -> 2567150000
C145: 30000 | D145: 膜ろ過 | E145: =K42 -> 1210150000
C146: 32000 | D146: 凝集+膜ろ過 | E146: =K46 -> 1284750000
C147: 33000 | D147: 凝集+沈澱/前ろ過+膜ろ過 | E147: =K50 -> 1319750000
C148: =C146+500 -> 32500 | D148: 粉末炭+凝集+膜ろ過 | E148: =K54 -> 1507250000 | F148: =E146+E162 -> 1507250000 | G148: =E148-F148 -> 0 | H148: =ABS(G148)/F148 -> 0
C149: =C147+500 -> 33500 | D149: 粉末炭+凝集+沈澱/前ろ過+膜ろ過 | E149: =K58 -> 1542250000 | F149: =E147+E162 -> 1542250000 | G149: =E149-F149 -> 0 | H149: =ABS(G149)/F149 -> 0
C150: 30200 | D150: 粒状炭+膜ろ過 | E150: =K62 -> 1639350000
C151: 32200 | D151: 粒状炭+凝集+膜ろ過 | E151: =K66 -> 1714050000
C152: 33200 | D152: 凝集+沈澱/前ろ過+粒状炭+膜ろ過 | E152: =K70 -> 1748750000
C153: 33300 | D153: 凝集+沈澱/前ろ過+オゾン+粒状炭+膜ろ過 | E153: =K74 -> 2800750000
C154: 10000 | D154: 緩速ろ過 | E154: =K78 -> 830850000
C155: 11000 | D155: 普通沈澱+緩速ろ過 | E155: =K82 -> 781330000
C156: 13000 | D156: 凝集+沈澱/前ろ過+緩速ろ過 | E156: =K86 -> 940450000
C157: =C156+500 -> 13500 | D157: 粉末炭+凝集+沈澱/前ろ過+緩速ろ過 | E157: =K90 -> 1162950000 | F157: =E156+E162 -> 1162950000 | G157: =E157-F157 -> 0 | H157: =ABS(G157)/F157 -> 0
C158: 11200 | D158: 普通沈澱+粒状炭+緩速ろ過 | E158: =K94 -> 1210850000
C159: 13200 | D159: 凝集+沈澱/前ろ過+粒状炭+緩速ろ過 | E159: =K98 -> 1369950000
C161: 10 | D161: (付加)紫外線 | E161: =K113 -> 55030000
C162: 500 | D162: (付加)粉末炭 | E162: =K117 -> 222500000

Sheet 建設費_更新FLW (hidden)
C1: =浄水フロー!$D$17 -> 0 | AE1: 入力情報（１）の金額から転記
A2: 更新浄水量： | B2: =+'入力情報(2)'!I6 -> 0 | C2: m3/日 | AD2: 土木
AD3: 建築
AD4: 機械
AD5: 電気
AE8: 30 | AF8: 31
Q11: 参考 | U11: 参考 | W11: 参考 | X11: 参考 | Z11: ※建設年度Kを元に、D値を引用 | AE11: 5/17 こちらがデフォルト設定となる
E12: 傾き | F12: 処理水量 | G12: 切片 | I12: 資産額 | J12: 資産割合 | K12: 資産総額 | L12: 急速ろ過 | N12: 資産額 | O12: 資産割合 | P12: 資産総額 | Q12: 今回の比率 | R12: 資産額 | S12: 資産割合 | T12: 資産総額 | U12: 今回の比率 | W12: Aqua10時の比率 | X12: Aqua10時の比率 | Z12: 建設年度 | AA12: デフレータ | AB12: デフレータ補正結果 | AC12: デフレータ補正資産総額 | AE12: アンケート補正値 | AF12: 補正金額出力 | AG12: 合計 | AH12: 按分率
B13: 分類No. | E13: a | F13: X | G13: b | I13: Y | K13: ΣY | L13: との比率 | N13: Y | P13: ΣY | Q13: 20,000m3/日時 | R13: Y | T13: ΣY | U13: 100,000m3/日時 | W13: 20,000m3/日時 | X13: 100,000m3/日時 | Z13: K | AA13: D | AB13: Y×D | AC13: ΣY×D | AE13: AA | AF13: Y×D×AA
B14: 90000 | C14: 消毒のみ | D14: 土木 | E14: 5092 | F14: =$B$2 -> 0 | G14: 266200000 | I14: =IFERROR(E14*F14+G14,"") -> 266200000 | J14: =I14/K14 -> 0.3925385239 | K14: =SUM(I14:I17) -> 678150000 | L14: =K14/$K$26 -> 0.6241314252 | N14: =IFERROR(E14*$Q$121+G14,"") -> 368040000 | O14: =N14/P14 -> 0.311951707 | P14: =SUM(N14:N17) -> 1179798000 | Q14: =P14/$P$26 -> 0.4422963158 | R14: =IFERROR(E14*$U$121+G14,"") -> 775400000 | S14: =R14/T14 -> 0.2433474873 | T14: =SUM(R14:R17) -> 3186390000 | U14: =T14/$T$26 -> 0.3543981252 | Z14: 2022 | AA14: =VLOOKUP(Z14,デフレータ表示方法!$E$8:$J$158,6,FALSE) -> 96.843 | AB14: =IFERROR(I14*(100/AA14),"") -> 274877895.1 | AC14: =SUM(AB14:AB17) -> 700257117.2 | AE14: =$AK$16 -> 1 | AF14: =IFERROR(ROUND(AB14*AE14,(3-1)-INT(LOG(ABS(AB14*AE14)))),"") -> 275000000 | AG14: =SUM(AF14:AF17) -> 700600000 | AH14: =AF14/AG$14 -> 0.3925206965
D15: 建築 | E15: 124.4 | F15: 0 | G15: 65450000 | I15: 65450000 | J15: =I15/K14 -> 0.09651257097 | N15: 67938000 | O15: =N15/P14 -> 0.05758443395 | R15: 77890000 | S15: =R15/T14 -> 0.0244445909 | Z15: 2022 | AA15: =VLOOKUP(Z15,デフレータ表示方法!$E$8:$J$158,6,FALSE) -> 96.843 | AB15: =IFERROR(I15*(100/AA15),"") -> 67583614.72 | AE15: =$AK$16 -> 1 | AF15: =IFERROR(ROUND(AB15*AE15,(3-1)-INT(LOG(ABS(AB15*AE15)))),"") -> 67600000 | AH15: =AF15/AG$14 -> 0.09648872395 | AK15: 補正値
D16: 機械 | E16: 1366 | F16: 0 | G16: 135800000 | I16: 135800000 | J16: =I16/K14 -> 0.200250682 | N16: 163120000 | O16: =N16/P14 -> 0.1382609565 | R16: 272400000 | S16: =R16/T14 -> 0.08548859367 | Z16: 2022 | AA16: =VLOOKUP(Z16,デフレータ表示方法!$E$8:$J$158,6,FALSE) -> 96.843 | AB16: 140226965.3 | AE16: 1 | AF16: 140000000 | AH16: =AF16/AG$14 -> 0.1998287182 | AJ16: 90000 | AK16: =マスター変更!$C$47 -> 1
D17: 電気(計装と監視含む) | E17: 18500 | F17: 0 | G17: 210700000 | I17: 210700000 | J17: =I17/K14 -> 0.3106982231 | N17: 580700000 | O17: =N17/P14 -> 0.4922029025 | R17: 2060700000 | S17: =R17/T14 -> 0.6467193281 | Z17: 2022 | AA17: =VLOOKUP(Z17,デフレータ表示方法!$E$8:$J$158,6,FALSE) -> 96.843 | AB17: 217568642 | AE17: 1 | AF17: 218000000 | AH17: =AF17/AG$14 -> 0.3111618613 | AJ17: 10 | AK17: =マスター変更!$C$51 -> 2.11
B18: 90010 | C18: 紫外線+消毒 | D18: 土木 | E18: 5092 | F18: 0 | G18: 266200000 | I18: 266200000 | J18: =I18/K18 -> 0.3630907727 | K18: =SUM(I18:I21) -> 733150000 | L18: =K18/$K$26 -> 0.6747503566 | N18: 368040000 | O18: =N18/P18 -> 0.2428540698 | P18: =SUM(N18:N21) -> 1515478000 | Q18: =P18/$P$26 -> 0.5681399155 | R18: 775400000 | S18: =R18/T18 -> 0.1669397325 | T18: =SUM(R18:R21) -> 4644790000 | U18: =T18/$T$26 -> 0.5166049567 | Z18: 2022 | AA18: =VLOOKUP(Z18,デフレータ表示方法!$E$8:$J$158,6,FALSE) -> 96.843 | AB18: 274877895.1 | AC18: =SUM(AB18:AB21) -> 757050070.7 | AE18: =$AK$16 -> 1 | AF18: 275000000 | AG18: =SUM(AF18:AF21) -> 757600000 | AH18: =IFERROR(AF18/AG$18,0) -> 0.3629883844 | AJ18: 10000 | AK18: =マスター変更!$C$48 -> 0.99
D19: 建築 | E19: 124.4 | F19: 0 | G19: 65450000 | I19: 65450000 | J19: =I19/K18 -> 0.08927231808 | N19: 67938000 | O19: =N19/P18 -> 0.04482942016 | R19: 77890000 | S19: =R19/T18 -> 0.01676932649 | Z19: 2022 | AA19: =VLOOKUP(Z19,デフレータ表示方法!$E$8:$J$158,6,FALSE) -> 96.843 | AB19: 67583614.72 | AE19: 1 | AF19: 67600000 | AH19: =IFERROR(AF19/AG$18,0) -> 0.08922914467 | AJ19: 20000 | AK19: =マスター変更!$C$49 -> 1.46
D20: 機械 | E20: 15400 | F20: 0 | G20: 190800000 | I20: 190800000 | J20: =I20/K18 -> 0.2602468799 | N20: 498800000 | O20: =N20/P18 -> 0.3291370775 | R20: 1730800000 | S20: =R20/T18 -> 0.3726325625 | Z20: 2022 | AA20: =VLOOKUP(Z20,デフレータ表示方法!$E$8:$J$158,6,FALSE) -> 96.843 | AB20: 197019918.8 | AE20: 1 | AF20: 197000000 | AH20: =IFERROR(AF20/AG$18,0) -> 0.260031679 | AJ20: 30000 | AK20: =マスター変更!$C$50 -> 1.24
D21: 電気(計装と監視含む) | E21: 18500 | F21: 0 | G21: 210700000 | I21: 210700000 | J21: =I21/K18 -> 0.2873900293 | N21: 580700000 | O21: =N21/P18 -> 0.3831794325 | R21: 2060700000 | S21: =R21/T18 -> 0.4436583785 | Z21: 2022 | AA21: =VLOOKUP(Z21,デフレータ表示方法!$E$8:$J$158,6,FALSE) -> 96.843 | AB21: 217568642 | AE21: 1 | AF21: 218000000 | AH21: =IFERROR(AF21/AG$18,0) -> 0.287750792
B22: 22000 | C22: 凝集+急速ろ過 | D22: 土木 | E22: 19750 | F22: 0 | G22: 381300000 | I22: 381300000 | J22: =I22/K22 -> 0.3626075793 | K22: =SUM(I22:I25) -> 1051550000 | L22: =K22/$K$26 -> 0.9677879527 | N22: 776300000 | O22: =N22/P22 -> 0.3790457013 | P22: =SUM(N22:N25) -> 2048038000 | Q22: =P22/$P$26 -> 0.7677921661 | R22: 2356300000 | S22: =R22/T22 -> 0.3905044589 | T22: =SUM(R22:R25) -> 6033990000 | U22: =T22/$T$26 -> 0.6711151942 | W22: 0.661 | X22: 0.611 | Z22: 2022 | AA22: =VLOOKUP(Z22,デフレータ表示方法!$E$8:$J$158,6,FALSE) -> 96.843 | AB22: 393730057.9 | AC22: =SUM(AB22:AB25) -> 1085829642 | AE22: =$AK$19 -> 1.46 | AF22: 575000000 | AG22: =SUM(AF22:AF25) -> 1585700000 | AH22: =AF22/AG$22 -> 0.3626158794
D23: 建築 | E23: 124.4 | F23: 0 | G23: 65450000 | I23: 65450000 | J23: =I23/K22 -> 0.06224145309 | N23: 67938000 | O23: =N23/P22 -> 0.03317223606 | R23: 77890000 | S23: =R23/T22 -> 0.01290853979 | Z23: 2022 | AA23: =VLOOKUP(Z23,デフレータ表示方法!$E$8:$J$158,6,FALSE) -> 96.843 | AB23: 67583614.72 | AE23: =$AK$19 -> 1.46 | AF23: 98700000 | AH23: =AF23/AG$22 -> 0.062243804
D24: 機械 | E24: 10310 | F24: 0 | G24: 251100000 | I24: 251100000 | J24: =I24/K22 -> 0.2387903571 | N24: 457300000 | O24: =N24/P22 -> 0.2232868726 | R24: 1282100000 | S24: =R24/T22 -> 0.2124796362 | Z24: 2022 | AA24: =VLOOKUP(Z24,デフレータ表示方法!$E$8:$J$158,6,FALSE) -> 96.843 | AB24: 259285647.9 | AE24: 1.46 | AF24: 379000000 | AH24: 0.2390111623
D25: 電気(計装と監視含む) | E25: 19640 | F25: 0 | G25: 353700000 | I25: 353700000 | J25: =I25/K22 -> 0.3363606105 | N25: 746500000 | O25: =N25/P22 -> 0.36449519 | R25: 2317700000 | S25: =R25/T22 -> 0.3841073651 | Z25: 2022 | AA25: =VLOOKUP(Z25,デフレータ表示方法!$E$8:$J$158,6,FALSE) -> 96.843 | AB25: 365230321.2 | AE25: 1.46 | AF25: 533000000 | AH25: 0.3361291543
B26: 23000 | C26: 凝集+沈澱/前ろ過+急速ろ過 | D26: 土木 | E26: 31740 | F26: 0 | G26: 411200000 | I26: 411200000 | J26: =I26/K26 -> 0.3784455386 | K26: =SUM(I26:I29) -> 1086550000 | L26: =K26/$K$26 -> 1 | N26: 1046000000 | O26: =N26/P26 -> 0.3921365745 | P26: =SUM(N26:N29) -> 2667438000 | Q26: =P26/$P$26 -> 1 | R26: 3585200000 | S26: =R26/T26 -> 0.3987547534 | T26: =SUM(R26:R29) -> 8990990000 | U26: =T26/$T$26 -> 1 | W26: 1 | X26: 1 | Z26: 2022 | AA26: =VLOOKUP(Z26,デフレータ表示方法!$E$8:$J$158,6,FALSE) -> 96.843 | AB26: 424604772.7 | AC26: =SUM(AB26:AB29) -> 1121970612 | AE26: 1.46 | AF26: 620000000 | AG26: =SUM(AF26:AF29) -> 1637700000 | AH26: =AF26/AG$26 -> 0.3785797155
D27: 建築 | E27: 124.4 | F27: 0 | G27: 65450000 | I27: 65450000 | J27: =I27/K26 -> 0.06023652846 | N27: 67938000 | O27: =N27/P26 -> 0.02546938298 | R27: 77890000 | S27: =R27/T26 -> 0.008663117187 | Z27: 2022 | AA27: =VLOOKUP(Z27,デフレータ表示方法!$E$8:$J$158,6,FALSE) -> 96.843 | AB27: 67583614.72 | AE27: 1.46 | AF27: 98700000 | AH27: =AF27/AG$26 -> 0.06026744825
D28: 機械 | E28: 25280 | F28: 0 | G28: 230400000 | I28: 230400000 | J28: =I28/K26 -> 0.2120473057 | N28: 736000000 | O28: =N28/P26 -> 0.2759201901 | R28: 2758400000 | S28: =R28/T26 -> 0.3067960258 | Z28: 2022 | AA28: =VLOOKUP(Z28,デフレータ表示方法!$E$8:$J$158,6,FALSE) -> 96.843 | AB28: 237910845.4 | AE28: 1.46 | AF28: 347000000 | AH28: 0.2118825182
D29: 電気(計装と監視含む) | E29: 21900 | F29: 0 | G29: 379500000 | I29: 379500000 | J29: =I29/K26 -> 0.3492706272 | N29: 817500000 | O29: =N29/P26 -> 0.3064738524 | R29: 2569500000 | S29: =R29/T26 -> 0.2857861036 | Z29: 2022 | AA29: =VLOOKUP(Z29,デフレータ表示方法!$E$8:$J$158,6,FALSE) -> 96.843 | AB29: 391871379.4 | AE29: 1.46 | AF29: 572000000 | AH29: 0.3492703181
B30: 23500 | C30: 粉末炭+凝集+沈澱/前ろ過+急速ろ過 | D30: 土木 | E30: 31740 | F30: 0 | G30: 411200000 | I30: 411200000 | J30: =I30/K30 -> 0.3141209274 | K30: =SUM(I30:I33) -> 1309050000 | L30: =K30/$K$26 -> 1.204776586 | N30: 1046000000 | O30: =N30/P30 -> 0.355233996 | P30: =SUM(N30:N33) -> 2944538000 | Q30: =P30/$P$26 -> 1.103882452 | R30: 3585200000 | S30: =R30/T30 -> 0.3779269256 | T30: =SUM(R30:R33) -> 9486490000 | U30: =T30/$T$26 -> 1.055110728 | W30: 1.196 | X30: 1.166 | Z30: 2022 | AA30: =VLOOKUP(Z30,デフレータ表示方法!$E$8:$J$158,6,FALSE) -> 96.843 | AB30: 424604772.7 | AC30: =SUM(AB30:AB33) -> 1351723924 | AE30: 1.46 | AF30: 620000000 | AG30: =SUM(AF30:AF33) -> 1973700000 | AH30: =AF30/AG$30 -> 0.3141308203
D31: 建築 | E31: 124.4 | F31: 0 | G31: 65450000 | I31: 65450000 | J31: =I31/K30 -> 0.04999809022 | N31: 67938000 | O31: =N31/P30 -> 0.02307254992 | R31: 77890000 | S31: =R31/T30 -> 0.00821062374 | Z31: 2022 | AA31: =VLOOKUP(Z31,デフレータ表示方法!$E$8:$J$158,6,FALSE) -> 96.843 | AB31: 67583614.72 | AE31: 1.46 | AF31: 98700000 | AH31: =AF31/AG$30 -> 0.05000759994
D32: 機械 | E32: 28010 | F32: 0 | G32: 452900000 | I32: 452900000 | J32: =I32/K30 -> 0.3459760895 | N32: 1013100000 | O32: =N32/P30 -> 0.3440607661 | R32: 3253900000 | S32: =R32/T30 -> 0.3430035767 | Z32: 2022 | AA32: =VLOOKUP(Z32,デフレータ表示方法!$E$8:$J$158,6,FALSE) -> 96.843 | AB32: 467664157.5 | AE32: 1.46 | AF32: 683000000 | AH32: 0.3460505649
D33: 電気(計装と監視含む) | E33: 21900 | F33: 0 | G33: 379500000 | I33: 379500000 | J33: =I33/K30 -> 0.2899048929 | N33: 817500000 | O33: =N33/P30 -> 0.277632688 | R33: 2569500000 | S33: =R33/T30 -> 0.270858874 | Z33: 2022 | AA33: =VLOOKUP(Z33,デフレータ表示方法!$E$8:$J$158,6,FALSE) -> 96.843 | AB33: 391871379.4 | AE33: 1.46 | AF33: 572000000 | AH33: 0.2898110148
B34: 23200 | C34: 凝集+沈澱/前ろ過+粒状炭+急速ろ過 | D34: 土木 | E34: 31740 | F34: 0 | G34: 411200000 | I34: 411200000 | J34: =I34/K34 -> 0.2712311599 | K34: =SUM(I34:I37) -> 1516050000 | L34: =K34/$K$26 -> 1.395287838 | N34: 1046000000 | O34: =N34/P34 -> 0.3308516298 | P34: =SUM(N34:N37) -> 3161538000 | Q34: =P34/$P$26 -> 1.185233921 | R34: 3585200000 | S34: =R34/T34 -> 0.3679585036 | T34: =SUM(R34:R37) -> 9743490000 | U34: =T34/$T$26 -> 1.083694899 | W34: 1.589 | X34: 1.796 | Z34: 2022 | AA34: =VLOOKUP(Z34,デフレータ表示方法!$E$8:$J$158,6,FALSE) -> 96.843 | AB34: 424604772.7 | AC34: =SUM(AB34:AB37) -> 1565471949 | AE34: 1.46 | AF34: 620000000 | AG34: =SUM(AF34:AF37) -> 2285700000 | AH34: =AF34/AG$34 -> 0.2712516953
D35: 建築 | E35: 124.4 | F35: 0 | G35: 65450000 | I35: 65450000 | J35: =I35/K34 -> 0.04317139936 | N35: 67938000 | O35: =N35/P34 -> 0.02148890825 | R35: 77890000 | S35: =R35/T34 -> 0.007994055518 | Z35: 2022 | AA35: =VLOOKUP(Z35,デフレータ表示方法!$E$8:$J$158,6,FALSE) -> 96.843 | AB35: 67583614.72 | AE35: 1.46 | AF35: 98700000 | AH35: =AF35/AG$34 -> 0.04318151988
D36: 機械 | E36: 28510 | F36: 0 | G36: 659900000 | I36: 659900000 | J36: =I36/K34 -> 0.4352758814 | N36: 1230100000 | O36: =N36/P34 -> 0.3890827819 | R36: 3510900000 | S36: =R36/T34 -> 0.3603328992 | Z36: 2022 | AA36: =VLOOKUP(Z36,デフレータ表示方法!$E$8:$J$158,6,FALSE) -> 96.843 | AB36: 681412182.6 | AE36: 1.46 | AF36: 995000000 | AH36: =AF36/AG$34 -> 0.4353152207
D37: 電気(計装と監視含む) | E37: 21900 | F37: 0 | G37: 379500000 | I37: 379500000 | J37: =I37/K34 -> 0.2503215593 | N37: 817500000 | O37: =N37/P34 -> 0.2585766801 | R37: 2569500000 | S37: =R37/T34 -> 0.2637145417 | Z37: 2022 | AA37: =VLOOKUP(Z37,デフレータ表示方法!$E$8:$J$158,6,FALSE) -> 96.843 | AB37: 391871379.4 | AE37: 1.46 | AF37: 572000000 | AH37: =AF37/AG$34 -> 0.2502515641
B38: 23300 | C38: 凝集+沈澱/前ろ過+オゾン+粒状炭+急速ろ過 | D38: 土木 | E38: 31740 | F38: 0 | G38: 411200000 | I38: 411200000 | J38: =I38/K38 -> 0.1601776289 | K38: =SUM(I38:I41) -> 2567150000 | L38: =K38/$K$26 -> 2.362661635 | N38: 1046000000 | O38: =N38/P38 -> 0.244264798 | P38: =SUM(N38:N41) -> 4282238000 | Q38: =P38/$P$26 -> 1.605374895 | R38: 3585200000 | S38: =R38/T38 -> 0.3217564319 | T38: =SUM(R38:R41) -> 11142590000 | U38: =T38/$T$26 -> 1.239306239 | W38: 2.089 | X38: 2.388 | Z38: 2022 | AA38: =VLOOKUP(Z38,デフレータ表示方法!$E$8:$J$158,6,FALSE) -> 96.843 | AB38: 424604772.7 | AC38: =SUM(AB38:AB41) -> 2650836922 | AE38: 1.46 | AF38: 620000000 | AG38: =SUM(AF38:AF41) -> 3870700000 | AH38: =AF38/AG$38 -> 0.1601777456
D39: 建築 | E39: 124.4 | F39: 0 | G39: 65450000 | I39: 65450000 | J39: =I39/K38 -> 0.02549519896 | N39: 67938000 | O39: =N39/P38 -> 0.01586506869 | R39: 77890000 | S39: =R39/T38 -> 0.006990295793 | Z39: 2022 | AA39: =VLOOKUP(Z39,デフレータ表示方法!$E$8:$J$158,6,FALSE) -> 96.843 | AB39: 67583614.72 | AE39: 1.46 | AF39: 98700000 | AH39: =AF39/AG$38 -> 0.0254992637
D40: 機械 | E40: 31990 | F40: 0 | G40: 1711000000 | I40: 1711000000 | J40: =I40/K38 -> 0.6664978673 | N40: 2350800000 | O40: =N40/P38 -> 0.548965284 | R40: 4910000000 | S40: =R40/T38 -> 0.44065159 | Z40: 2022 | AA40: =VLOOKUP(Z40,デフレータ表示方法!$E$8:$J$158,6,FALSE) -> 96.843 | AB40: 1766777155 | AE40: 1.46 | AF40: 2580000000 | AH40: 0.6665461028
D41: 電気(計装と監視含む) | E41: 21900 | F41: 0 | G41: 379500000 | I41: 379500000 | J41: =I41/K38 -> 0.1478293049 | N41: 817500000 | O41: =N41/P38 -> 0.1909048493 | R41: 2569500000 | S41: =R41/T38 -> 0.2306016824 | Z41: 2022 | AA41: =VLOOKUP(Z41,デフレータ表示方法!$E$8:$J$158,6,FALSE) -> 96.843 | AB41: 391871379.4 | AE41: 1.46 | AF41: 572000000 | AH41: 0.1477768879
B42: 30000 | C42: 膜ろ過 | D42: 土木 | E42: 5092 | F42: 0 | G42: 266200000 | I42: 266200000 | J42: =I42/K42 -> 0.2199727307 | K42: =SUM(I42:I45) -> 1210150000 | L42: =K42/$K$26 -> 1.113754544 | N42: 368040000 | O42: =N42/P42 -> 0.1651530776 | P42: =SUM(N42:N45) -> 2228478000 | Q42: =P42/$P$26 -> 0.8354375997 | R42: 775400000 | S42: =R42/T42 -> 0.1230444048 | T42: =SUM(R42:R45) -> 6301790000 | U42: =T42/$T$26 -> 0.7009005682 | W42: 1.375 | X42: 1.5 | Z42: 2022 | AA42: =VLOOKUP(Z42,デフレータ表示方法!$E$8:$J$158,6,FALSE) -> 96.843 | AB42: 274877895.1 | AC42: =SUM(AB42:AB45) -> 1249599868 | AE42: =$AK$20 -> 1.24 | AF42: 341000000 | AG42: =SUM(AF42:AF45) -> 1549800000 | AH42: =AF42/AG$42 -> 0.2200283908
D43: 建築 | E43: 124.4 | F43: 0 | G43: 65450000 | I43: 65450000 | J43: =I43/K42 -> 0.05408420444 | N43: 67938000 | O43: =N43/P42 -> 0.03048627808 | R43: 77890000 | S43: =R43/T42 -> 0.01235998026 | Z43: 2022 | AA43: =VLOOKUP(Z43,デフレータ表示方法!$E$8:$J$158,6,FALSE) -> 96.843 | AB43: 67583614.72 | AE43: =$AK$20 -> 1.24 | AF43: 83800000 | AH43: =AF43/AG$42 -> 0.0540714931
D44: 機械 | E44: 27200 | F44: 0 | G44: 667800000 | I44: 667800000 | J44: =I44/K42 -> 0.5518324175 | N44: 1211800000 | O44: =N44/P42 -> 0.5437792072 | R44: 3387800000 | S44: =R44/T42 -> 0.537593287 | Z44: 2022 | AA44: =VLOOKUP(Z44,デフレータ表示方法!$E$8:$J$158,6,FALSE) -> 96.843 | AB44: 689569715.9 | AE44: 1.24 | AF44: 855000000 | AH44: =AF44/AG$42 -> 0.5516840883
D45: 電気(計装と監視含む) | E45: 18500 | F45: 0 | G45: 210700000 | I45: 210700000 | J45: =I45/K42 -> 0.1741106474 | N45: 580700000 | O45: =N45/P42 -> 0.2605814372 | R45: 2060700000 | S45: =R45/T42 -> 0.3270023279 | Z45: 2022 | AA45: =VLOOKUP(Z45,デフレータ表示方法!$E$8:$J$158,6,FALSE) -> 96.843 | AB45: 217568642 | AE45: 1.24 | AF45: 270000000 | AH45: =AF45/AG$42 -> 0.1742160279
B46: 32000 | C46: 凝集+膜ろ過 | D46: 土木 | E46: 5340 | F46: 0 | G46: 319300000 | I46: 319300000 | J46: =I46/K46 -> 0.2485308426 | K46: =SUM(I46:I49) -> 1284750000 | L46: =K46/$K$26 -> 1.182412222 | N46: 426100000 | O46: =N46/P46 -> 0.1842006746 | P46: =SUM(N46:N49) -> 2313238000 | Q46: =P46/$P$26 -> 0.8672134085 | R46: 853300000 | S46: =R46/T46 -> 0.1327640851 | T46: =SUM(R46:R49) -> 6427190000 | U46: =T46/$T$26 -> 0.7148478644 | W46: 1.518 | X46: 1.629 | Z46: 2022 | AA46: =VLOOKUP(Z46,デフレータ表示方法!$E$8:$J$158,6,FALSE) -> 96.843 | AB46: 329708910.3 | AC46: =SUM(AB46:AB49) -> 1326631765 | AE46: 1.24 | AF46: 409000000 | AG46: =SUM(AF46:AF49) -> 1645800000 | AH46: =AF46/AG$46 -> 0.2485113623
D47: 建築 | E47: 124.4 | F47: 0 | G47: 65450000 | I47: 65450000 | J47: =I47/K46 -> 0.05094376338 | N47: 67938000 | O47: =N47/P46 -> 0.02936922184 | R47: 77890000 | S47: =R47/T46 -> 0.01211882642 | Z47: 2022 | AA47: =VLOOKUP(Z47,デフレータ表示方法!$E$8:$J$158,6,FALSE) -> 96.843 | AB47: 67583614.72 | AE47: 1.24 | AF47: 83800000 | AH47: =AF47/AG$46 -> 0.05091748694
D48: 機械 | E48: 27320 | F48: 0 | G48: 677700000 | I48: 677700000 | J48: =I48/K46 -> 0.5274956217 | N48: 1224100000 | O48: =N48/P46 -> 0.5291716633 | R48: 3409700000 | S48: =R48/T46 -> 0.5305117789 | Z48: 2022 | AA48: =VLOOKUP(Z48,デフレータ表示方法!$E$8:$J$158,6,FALSE) -> 96.843 | AB48: 699792447.6 | AE48: 1.24 | AF48: 868000000 | AH48: 0.5274030866
D49: 電気(計装と監視含む) | E49: 18640 | F49: 0 | G49: 222300000 | I49: 222300000 | J49: =I49/K46 -> 0.1730297723 | N49: 595100000 | O49: =N49/P46 -> 0.2572584403 | R49: 2086300000 | S49: =R49/T46 -> 0.3246053096 | Z49: 2022 | AA49: =VLOOKUP(Z49,デフレータ表示方法!$E$8:$J$158,6,FALSE) -> 96.843 | AB49: 229546792.2 | AE49: 1.24 | AF49: 285000000 | AH49: 0.1731680642
B50: 33000 | C50: 凝集+沈澱/前ろ過+膜ろ過 | D50: 土木 | E50: 17340 | F50: 0 | G50: 349200000 | I50: 349200000 | J50: =I50/K50 -> 0.2645955673 | K50: =SUM(I50:I53) -> 1319750000 | L50: =K50/$K$26 -> 1.214624269 | N50: 696000000 | O50: =N50/P50 -> 0.2373128008 | P50: =SUM(N50:N53) -> 2932838000 | Q50: =P50/$P$26 -> 1.099496221 | R50: 2083200000 | S50: =R50/T50 -> 0.221966737 | T50: =SUM(R50:R53) -> 9385190000 | U50: =T50/$T$26 -> 1.043843893 | W50: 1.857 | X50: 2.018 | Z50: 2022 | AA50: =VLOOKUP(Z50,デフレータ表示方法!$E$8:$J$158,6,FALSE) -> 96.843 | AB50: 360583625 | AC50: =SUM(AB50:AB53) -> 1362772735 | AE50: 1.24 | AF50: 447000000 | AG50: =SUM(AF50:AF53) -> 1689800000 | AH50: =AF50/AG$50 -> 0.2645283465
D51: 建築 | E51: 124.4 | F51: 0 | G51: 65450000 | I51: 65450000 | J51: =I51/K50 -> 0.0495927259 | N51: 67938000 | O51: =N51/P50 -> 0.02316459348 | R51: 77890000 | S51: =R51/T50 -> 0.00829924594 | Z51: 2022 | AA51: =VLOOKUP(Z51,デフレータ表示方法!$E$8:$J$158,6,FALSE) -> 96.843 | AB51: 67583614.72 | AE51: 1.24 | AF51: 83800000 | AH51: =AF51/AG$50 -> 0.04959166765
D52: 機械 | E52: 42290 | F52: 0 | G52: 657000000 | I52: 657000000 | J52: =I52/K50 -> 0.4978215571 | N52: 1502800000 | O52: =N52/P50 -> 0.5124047083 | R52: 4886000000 | S52: =R52/T50 -> 0.5206074677 | Z52: 2022 | AA52: =VLOOKUP(Z52,デフレータ表示方法!$E$8:$J$158,6,FALSE) -> 96.843 | AB52: 678417645.1 | AE52: 1.24 | AF52: 841000000 | AH52: 0.4976920346
D53: 電気(計装と監視含む) | E53: 20900 | F53: 0 | G53: 248100000 | I53: 248100000 | J53: =I53/K50 -> 0.1879901496 | N53: 666100000 | O53: =N53/P50 -> 0.2271178974 | R53: 2338100000 | S53: =R53/T50 -> 0.2491265494 | Z53: 2022 | AA53: =VLOOKUP(Z53,デフレータ表示方法!$E$8:$J$158,6,FALSE) -> 96.843 | AB53: 256187850.4 | AE53: 1.24 | AF53: 318000000 | AH53: 0.1881879512
B54: 32500 | C54: 粉末炭+凝集+膜ろ過 | D54: 土木 | E54: 5340 | F54: 0 | G54: 319300000 | I54: 319300000 | J54: =I54/K54 -> 0.21184276 | K54: =SUM(I54:I57) -> 1507250000 | L54: =K54/$K$26 -> 1.387188809 | N54: 426100000 | O54: =N54/P54 -> 0.1644959075 | P54: =SUM(N54:N57) -> 2590338000 | Q54: =P54/$P$26 -> 0.9710958605 | R54: 853300000 | S54: =R54/T54 -> 0.1232613334 | T54: =SUM(R54:R57) -> 6922690000 | U54: =T54/$T$26 -> 0.7699585919 | Z54: 2022 | AA54: =VLOOKUP(Z54,デフレータ表示方法!$E$8:$J$158,6,FALSE) -> 96.843 | AB54: 329708910.3 | AC54: =SUM(AB54:AB57) -> 1556385077 | AE54: 1.24 | AF54: 409000000 | AG54: =SUM(AF54:AF57) -> 1927800000 | AH54: =AF54/AG$54 -> 0.2121589376
D55: 建築 | E55: 124.4 | F55: 0 | G55: 65450000 | I55: 65450000 | J55: =I55/K54 -> 0.04342345331 | N55: 67938000 | O55: =N55/P54 -> 0.0262274653 | R55: 77890000 | S55: =R55/T54 -> 0.01125140661 | Z55: 2022 | AA55: =VLOOKUP(Z55,デフレータ表示方法!$E$8:$J$158,6,FALSE) -> 96.843 | AB55: 67583614.72 | AE55: 1.24 | AF55: 83800000 | AH55: =AF55/AG$54 -> 0.04346923955
D56: 機械 | E56: 30050 | F56: 0 | G56: 900200000 | I56: 900200000 | J56: =I56/K54 -> 0.5972466412 | N56: 1501200000 | O56: =N56/P54 -> 0.5795382688 | R56: 3905200000 | S56: =R56/T54 -> 0.5641159723 | Z56: 2022 | AA56: =VLOOKUP(Z56,デフレータ表示方法!$E$8:$J$158,6,FALSE) -> 96.843 | AB56: 929545759.6 | AE56: 1.24 | AF56: 1150000000 | AH56: 0.5965349103
D57: 電気(計装と監視含む) | E57: 18640 | F57: 0 | G57: 222300000 | I57: 222300000 | J57: =I57/K54 -> 0.1474871455 | N57: 595100000 | O57: =N57/P54 -> 0.2297383585 | R57: 2086300000 | S57: =R57/T54 -> 0.3013712878 | Z57: 2022 | AA57: =VLOOKUP(Z57,デフレータ表示方法!$E$8:$J$158,6,FALSE) -> 96.843 | AB57: 229546792.2 | AE57: 1.24 | AF57: 285000000 | AH57: 0.1478369125
B58: 33500 | C58: 粉末炭+凝集+沈澱/前ろ過+膜ろ過 | D58: 土木 | E58: 17340 | F58: 0 | G58: 349200000 | I58: 349200000 | J58: =I58/K58 -> 0.2264224348 | K58: =SUM(I58:I61) -> 1542250000 | L58: =K58/$K$26 -> 1.419400856 | N58: 696000000 | O58: =N58/P58 -> 0.216813109 | P58: =SUM(N58:N61) -> 3210138000 | Q58: =P58/$P$26 -> 1.203453651 | R58: 2083200000 | S58: =R58/T58 -> 0.2108141421 | T58: =SUM(R58:R61) -> 9881690000 | U58: =T58/$T$26 -> 1.099065843 | W58: 2.053 | X58: 2.185 | Z58: 2022 | AA58: =VLOOKUP(Z58,デフレータ表示方法!$E$8:$J$158,6,FALSE) -> 96.843 | AB58: 360583625 | AC58: =SUM(AB58:AB61) -> 1592526047 | AE58: 1.24 | AF58: 447000000 | AG58: =SUM(AF58:AF61) -> 1978800000 | AH58: =AF58/AG$58 -> 0.2258944815
D59: 建築 | E59: 124.4 | F59: 0 | G59: 65450000 | I59: 65450000 | J59: =I59/K58 -> 0.04243799643 | N59: 67938000 | O59: =N59/P58 -> 0.02116357615 | R59: 77890000 | S59: =R59/T58 -> 0.007882254958 | Z59: 2022 | AA59: =VLOOKUP(Z59,デフレータ表示方法!$E$8:$J$158,6,FALSE) -> 96.843 | AB59: 67583614.72 | AE59: 1.24 | AF59: 83800000 | AH59: =AF59/AG$58 -> 0.04234889832
D60: 機械 | E60: 45030 | F60: 0 | G60: 879500000 | I60: 879500000 | J60: =I60/K58 -> 0.5702707084 | N60: 1780100000 | O60: =N60/P58 -> 0.5545244472 | R60: 5382500000 | S60: =R60/T58 -> 0.544694278 | Z60: 2022 | AA60: =VLOOKUP(Z60,デフレータ表示方法!$E$8:$J$158,6,FALSE) -> 96.843 | AB60: 908170957.1 | AE60: 1.24 | AF60: 1130000000 | AH60: 0.5710531635
D61: 電気(計装と監視含む) | E61: 20900 | F61: 0 | G61: 248100000 | I61: 248100000 | J61: =I61/K58 -> 0.1608688604 | N61: 666100000 | O61: =N61/P58 -> 0.2074988676 | R61: 2338100000 | S61: =R61/T58 -> 0.2366093249 | Z61: 2022 | AA61: =VLOOKUP(Z61,デフレータ表示方法!$E$8:$J$158,6,FALSE) -> 96.843 | AB61: 256187850.4 | AE61: 1.24 | AF61: 318000000 | AH61: 0.1607034566
B62: 30200 | C62: 粒状炭+膜ろ過 | D62: 土木 | E62: 5092 | F62: 0 | G62: 266200000 | I62: 266200000 | J62: =I62/K62 -> 0.1623814317 | K62: =SUM(I62:I65) -> 1639350000 | L62: =K62/$K$26 -> 1.508766279 | N62: 368040000 | O62: =N62/P62 -> 0.1351955972 | P62: =SUM(N62:N65) -> 2722278000 | Q62: =P62/$P$26 -> 1.020559053 | R62: 775400000 | S62: =R62/T62 -> 0.1099236035 | T62: =SUM(R62:R65) -> 7053990000 | U62: =T62/$T$26 -> 0.7845621005 | W62: 1.982 | X62: 2.296 | Z62: 2022 | AA62: =VLOOKUP(Z62,デフレータ表示方法!$E$8:$J$158,6,FALSE) -> 96.843 | AB62: 274877895.1 | AC62: =SUM(AB62:AB65) -> 1692791425 | AE62: 1.24 | AF62: 341000000 | AG62: =SUM(AF62:AF65) -> 2094800000 | AH62: =AF62/AG$62 -> 0.1627840367
D63: 建築 | E63: 124.4 | F63: 0 | G63: 65450000 | I63: 65450000 | J63: =I63/K62 -> 0.03992436026 | N63: 67938000 | O63: =N63/P62 -> 0.02495630498 | R63: 77890000 | S63: =R63/T62 -> 0.01104197766 | Z63: 2022 | AA63: =VLOOKUP(Z63,デフレータ表示方法!$E$8:$J$158,6,FALSE) -> 96.843 | AB63: 67583614.72 | AE63: 1.24 | AF63: 83800000 | AH63: =AF63/AG$62 -> 0.04000381898
D64: 機械 | E64: 30430 | F64: 0 | G64: 1097000000 | I64: 1097000000 | J64: =I64/K62 -> 0.6691676579 | N64: 1705600000 | O64: =N64/P62 -> 0.6265341012 | R64: 4140000000 | S64: =R64/T62 -> 0.5869018811 | Z64: 2022 | AA64: =VLOOKUP(Z64,デフレータ表示方法!$E$8:$J$158,6,FALSE) -> 96.843 | AB64: 1132761273 | AE64: 1.24 | AF64: 1400000000 | AH64: 0.6683215581
D65: 電気(計装と監視含む) | E65: 18500 | F65: 0 | G65: 210700000 | I65: 210700000 | J65: =I65/K62 -> 0.1285265502 | N65: 580700000 | O65: =N65/P62 -> 0.2133139966 | R65: 2060700000 | S65: =R65/T62 -> 0.2921325378 | Z65: 2022 | AA65: =VLOOKUP(Z65,デフレータ表示方法!$E$8:$J$158,6,FALSE) -> 96.843 | AB65: 217568642 | AE65: 1.24 | AF65: 270000000 | AH65: 0.1288905862
B66: 32200 | C66: 粒状炭+凝集+膜ろ過 | D66: 土木 | E66: 5340 | F66: 0 | G66: 319300000 | I66: 319300000 | J66: =I66/K66 -> 0.1862839474 | K66: =SUM(I66:I69) -> 1714050000 | L66: =K66/$K$26 -> 1.577515991 | N66: 426100000 | O66: =N66/P66 -> 0.1517916112 | P66: =SUM(N66:N69) -> 2807138000 | Q66: =P66/$P$26 -> 1.052372351 | R66: 853300000 | S66: =R66/T66 -> 0.1188524533 | T66: =SUM(R66:R69) -> 7179490000 | U66: =T66/$T$26 -> 0.7985205189 | W66: 2.107 | X66: 2.425 | Z66: 2022 | AA66: =VLOOKUP(Z66,デフレータ表示方法!$E$8:$J$158,6,FALSE) -> 96.843 | AB66: 329708910.3 | AC66: =SUM(AB66:AB69) -> 1769926582 | AE66: 1.24 | AF66: 409000000 | AG66: =SUM(AF66:AF69) -> 2197800000 | AH66: =AF66/AG$66 -> 0.1860951861
D67: 建築 | E67: 124.4 | F67: 0 | G67: 65450000 | I67: 65450000 | J67: =I67/K66 -> 0.03818441702 | N67: 67938000 | O67: =N67/P66 -> 0.02420187394 | R67: 77890000 | S67: =R67/T66 -> 0.01084896002 | Z67: 2022 | AA67: =VLOOKUP(Z67,デフレータ表示方法!$E$8:$J$158,6,FALSE) -> 96.843 | AB67: 67583614.72 | AE67: 1.24 | AF67: 83800000 | AH67: =AF67/AG$66 -> 0.03812903813
D68: 機械 | E68: 30550 | F68: 0 | G68: 1107000000 | I68: 1107000000 | J68: =I68/K66 -> 0.6458388028 | N68: 1718000000 | O68: =N68/P66 -> 0.6120112371 | R68: 4162000000 | S68: =R68/T66 -> 0.5797069151 | Z68: 2022 | AA68: =VLOOKUP(Z68,デフレータ表示方法!$E$8:$J$158,6,FALSE) -> 96.843 | AB68: 1143087265 | AE68: 1.24 | AF68: 1420000000 | AH68: 0.6461006461
D69: 電気(計装と監視含む) | E69: 18640 | F69: 0 | G69: 222300000 | I69: 222300000 | J69: =I69/K66 -> 0.1296928328 | N69: 595100000 | O69: =N69/P66 -> 0.2119952778 | R69: 2086300000 | S69: =R69/T66 -> 0.2905916716 | Z69: 2022 | AA69: =VLOOKUP(Z69,デフレータ表示方法!$E$8:$J$158,6,FALSE) -> 96.843 | AB69: 229546792.2 | AE69: 1.24 | AF69: 285000000 | AH69: 0.1296751297
B70: 33200 | C70: 凝集+沈澱/前ろ過+粒状炭+膜ろ過 | D70: 土木 | E70: 17340 | F70: 0 | G70: 349200000 | I70: 349200000 | J70: =I70/K70 -> 0.1996854896 | K70: =SUM(I70:I73) -> 1748750000 | L70: =K70/$K$26 -> 1.609451935 | N70: 696000000 | O70: =N70/P70 -> 0.2031263954 | P70: =SUM(N70:N73) -> 3426438000 | Q70: =P70/$P$26 -> 1.284542696 | R70: 2083200000 | S70: =R70/T70 -> 0.2055007354 | T70: =SUM(R70:R73) -> 10137190000 | U70: =T70/$T$26 -> 1.12748318 | W70: 2.446 | X70: 2.814 | Z70: 2022 | AA70: =VLOOKUP(Z70,デフレータ表示方法!$E$8:$J$158,6,FALSE) -> 96.843 | AB70: 360583625 | AC70: =SUM(AB70:AB73) -> 1805757773 | AE70: 1.24 | AF70: 447000000 | AG70: =SUM(AF70:AF73) -> 2238800000 | AH70: =AF70/AG$70 -> 0.1996605324
D71: 建築 | E71: 124.4 | F71: 0 | G71: 65450000 | I71: 65450000 | J71: =I71/K70 -> 0.03742673338 | N71: 67938000 | O71: =N71/P70 -> 0.01982758772 | R71: 77890000 | S71: =R71/T70 -> 0.007683588845 | Z71: 2022 | AA71: =VLOOKUP(Z71,デフレータ表示方法!$E$8:$J$158,6,FALSE) -> 96.843 | AB71: 67583614.72 | AE71: 1.24 | AF71: 83800000 | AH71: =AF71/AG$70 -> 0.03743076648
D72: 機械 | E72: 45520 | F72: 0 | G72: 1086000000 | I72: 1086000000 | J72: =I72/K70 -> 0.6210150107 | N72: 1996400000 | O72: =N72/P70 -> 0.5826458847 | R72: 5638000000 | S72: =R72/T70 -> 0.5561699051 | Z72: 2022 | AA72: =VLOOKUP(Z72,デフレータ表示方法!$E$8:$J$158,6,FALSE) -> 96.843 | AB72: 1121402683 | AE72: 1.24 | AF72: 1390000000 | AH72: 0.6208683223
D73: 電気(計装と監視含む) | E73: 20900 | F73: 0 | G73: 248100000 | I73: 248100000 | J73: =I73/K70 -> 0.1418727663 | N73: 666100000 | O73: =N73/P70 -> 0.1944001321 | R73: 2338100000 | S73: =R73/T70 -> 0.2306457707 | Z73: 2022 | AA73: =VLOOKUP(Z73,デフレータ表示方法!$E$8:$J$158,6,FALSE) -> 96.843 | AB73: 256187850.4 | AE73: 1.24 | AF73: 318000000 | AH73: 0.1420403788
B74: 33300 | C74: 凝集+沈澱/前ろ過+オゾン+粒状炭+膜ろ過 | D74: 土木 | E74: 17340 | F74: 0 | G74: 349200000 | I74: 349200000 | J74: =I74/K74 -> 0.124680889 | K74: =SUM(I74:I77) -> 2800750000 | L74: =K74/$K$26 -> 2.577654043 | N74: 696000000 | O74: =N74/P74 -> 0.1530330222 | P74: =SUM(N74:N77) -> 4548038000 | Q74: =P74/$P$26 -> 1.705021073 | R74: 2083200000 | S74: =R74/T74 -> 0.1805638981 | T74: =SUM(R74:R77) -> 11537190000 | U74: =T74/$T$26 -> 1.28319462 | W74: 2.946 | X74: 3.407 | Z74: 2022 | AA74: =VLOOKUP(Z74,デフレータ表示方法!$E$8:$J$158,6,FALSE) -> 96.843 | AB74: 360583625 | AC74: =SUM(AB74:AB77) -> 2892052084 | AE74: 1.24 | AF74: 447000000 | AG74: =SUM(AF74:AF77) -> 3588800000 | AH74: =AF74/AG$74 -> 0.1245541685
D75: 建築 | E75: 124.4 | F75: 0 | G75: 65450000 | I75: 65450000 | J75: =I75/K74 -> 0.02336874052 | N75: 67938000 | O75: =N75/P74 -> 0.01493786991 | R75: 77890000 | S75: =R75/T74 -> 0.00675121065 | Z75: 2022 | AA75: =VLOOKUP(Z75,デフレータ表示方法!$E$8:$J$158,6,FALSE) -> 96.843 | AB75: 67583614.72 | AE75: 1.24 | AF75: 83800000 | AH75: =AF75/AG$74 -> 0.02335042354
D76: 機械 | E76: 49000 | F76: 0 | G76: 2138000000 | I76: 2138000000 | J76: =I76/K74 -> 0.7633669553 | N76: 3118000000 | O76: =N76/P74 -> 0.6855703492 | R76: 7038000000 | S76: =R76/T74 -> 0.610027225 | Z76: 2022 | AA76: =VLOOKUP(Z76,デフレータ表示方法!$E$8:$J$158,6,FALSE) -> 96.843 | AB76: 2207696994 | AE76: 1.24 | AF76: 2740000000 | AH76: 0.7634864021
D77: 電気(計装と監視含む) | E77: 20900 | F77: 0 | G77: 248100000 | I77: 248100000 | J77: =I77/K74 -> 0.08858341516 | N77: 666100000 | O77: =N77/P74 -> 0.1464587587 | R77: 2338100000 | S77: =R77/T74 -> 0.2026576662 | Z77: 2022 | AA77: =VLOOKUP(Z77,デフレータ表示方法!$E$8:$J$158,6,FALSE) -> 96.843 | AB77: 256187850.4 | AE77: 1.24 | AF77: 318000000 | AH77: 0.0886090058
B78: 10000 | C78: 緩速ろ過 | D78: 土木 | E78: 34770 | F78: =$B$2 -> 0 | G78: 418900000 | I78: =IFERROR(E78*F78+G78,"") -> 418900000 | J78: =I78/K78 -> 0.5041824637 | K78: =SUM(I78:I81) -> 830850000 | L78: =K78/$K$26 -> 0.7646679858 | N78: =IFERROR(E78*$Q$121+G78,"") -> 1114300000 | O78: =N78/P78 -> 0.5785391717 | P78: =SUM(N78:N81) -> 1926058000 | Q78: =P78/$P$26 -> 0.7220628933 | R78: =IFERROR(E78*$U$121+G78,"") -> 3895900000 | S78: =R78/T78 -> 0.6177212541 | T78: =SUM(R78:R81) -> 6306890000 | U78: =T78/$T$26 -> 0.7014678028 | Z78: 2022 | AA78: =VLOOKUP(Z78,デフレータ表示方法!$E$8:$J$158,6,FALSE) -> 96.843 | AB78: 432555786.2 | AC78: =SUM(AB78:AB81) -> 857935008.2 | AE78: =$AK$18 -> 0.99 | AF78: 428000000 | AG78: =SUM(AF78:AF81) -> 848900000 | AH78: =AF78/AG$78 -> 0.5041818824
D79: 建築 | E79: 124.4 | F79: 0 | G79: 65450000 | I79: 65450000 | J79: =I79/K78 -> 0.07877474875 | N79: 67938000 | O79: =N79/P78 -> 0.03527308108 | R79: 77890000 | S79: =R79/T78 -> 0.01234998549 | Z79: 2022 | AA79: =VLOOKUP(Z79,デフレータ表示方法!$E$8:$J$158,6,FALSE) -> 96.843 | AB79: =IFERROR(I79*(100/AA79),"") -> 67583614.72 | AE79: =$AK$18 -> 0.99 | AF79: =IFERROR(ROUND(AB79*AE79,(3-1)-INT(LOG(ABS(AB79*AE79)))),"") -> 66900000 | AH79: =AF79/AG$78 -> 0.07880786901
D80: 機械 | E80: 1366 | F80: 0 | G80: 135800000 | I80: 135800000 | J80: =I80/K78 -> 0.1634470723 | N80: 163120000 | O80: =N80/P78 -> 0.08469111522 | R80: 272400000 | S80: =R80/T78 -> 0.04319085952 | Z80: 2022 | AA80: =VLOOKUP(Z80,デフレータ表示方法!$E$8:$J$158,6,FALSE) -> 96.843 | AB80: 140226965.3 | AE80: 0.99 | AF80: 139000000 | AH80: 0.1637413123
D81: 電気(計装と監視含む) | E81: 18500 | F81: 0 | G81: 210700000 | I81: 210700000 | J81: =I81/K78 -> 0.2535957152 | N81: 580700000 | O81: =N81/P78 -> 0.301496632 | R81: 2060700000 | S81: =R81/T78 -> 0.3267379009 | Z81: 2022 | AA81: =VLOOKUP(Z81,デフレータ表示方法!$E$8:$J$158,6,FALSE) -> 96.843 | AB81: 217568642 | AE81: 0.99 | AF81: 215000000 | AH81: 0.2532689363
B82: 11000 | C82: 普通沈澱+緩速ろ過 | D82: 土木 | E82: 44280 | F82: 0 | G82: 395700000 | I82: 395700000 | J82: =I82/K82 -> 0.5064441401 | K82: =SUM(I82:I85) -> 781330000 | L82: =K82/$K$26 -> 0.7190925406 | N82: 1281300000 | O82: =N82/P82 -> 0.546532231 | P82: =SUM(N82:N85) -> 2344418000 | Q82: =P82/$P$26 -> 0.8789025274 | R82: 4823700000 | S82: =R82/T82 -> 0.5611060898 | T82: =SUM(R82:R85) -> 8596770000 | U82: =T82/$T$26 -> 0.9561538829 | Z82: 2022 | AA82: =VLOOKUP(Z82,デフレータ表示方法!$E$8:$J$158,6,FALSE) -> 96.843 | AB82: 408599485.8 | AC82: =SUM(AB82:AB85) -> 806800698 | AE82: 0.99 | AF82: 405000000 | AG82: =SUM(AF82:AF85) -> 799300000 | AH82: =AF82/AG$82 -> 0.5066933567
D83: 建築 | E83: 124.4 | F83: 0 | G83: 65450000 | I83: 65450000 | J83: =I83/K82 -> 0.08376742222 | N83: 67938000 | O83: =N83/P82 -> 0.02897862071 | R83: 77890000 | S83: =R83/T82 -> 0.009060379654 | Z83: 2022 | AA83: =VLOOKUP(Z83,デフレータ表示方法!$E$8:$J$158,6,FALSE) -> 96.843 | AB83: 67583614.72 | AE83: 0.99 | AF83: 66900000 | AH83: =AF83/AG$82 -> 0.08369823596
D84: 機械 | E84: 13360 | F84: 0 | G84: 95280000 | I84: 95280000 | J84: =I84/K82 -> 0.1219459127 | N84: 362480000 | O84: =N84/P82 -> 0.1546140663 | R84: 1431280000 | S84: =R84/T82 -> 0.1664904377 | Z84: 2022 | AA84: =VLOOKUP(Z84,デフレータ表示方法!$E$8:$J$158,6,FALSE) -> 96.843 | AB84: 98386047.52 | AE84: 0.99 | AF84: 97400000 | AH84: 0.1218566245
D85: 電気(計装と監視含む) | E85: 20390 | F85: 0 | G85: 224900000 | I85: 224900000 | J85: =I85/K82 -> 0.2878425249 | N85: 632700000 | O85: =N85/P82 -> 0.269875082 | R85: 2263900000 | S85: =R85/T82 -> 0.2633430928 | Z85: 2022 | AA85: =VLOOKUP(Z85,デフレータ表示方法!$E$8:$J$158,6,FALSE) -> 96.843 | AB85: 232231550 | AE85: 0.99 | AF85: 230000000 | AH85: 0.2877517828
B86: 13000 | C86: 凝集+沈澱/前ろ過+緩速ろ過 | D86: 土木 | E86: 47020 | F86: 0 | G86: 501900000 | I86: 501900000 | J86: =I86/K86 -> 0.5336806848 | K86: =SUM(I86:I89) -> 940450000 | L86: =K86/$K$26 -> 0.8655377111 | N86: 1442300000 | O86: =N86/P86 -> 0.5482908819 | P86: =SUM(N86:N89) -> 2630538000 | Q86: =P86/$P$26 -> 0.9861665013 | R86: 5203900000 | S86: =R86/T86 -> 0.5541434305 | T86: =SUM(R86:R89) -> 9390890000 | U86: =T86/$T$26 -> 1.044477861 | Z86: 2022 | AA86: =VLOOKUP(Z86,デフレータ表示方法!$E$8:$J$158,6,FALSE) -> 96.843 | AB86: 518261516.1 | AC86: =SUM(AB86:AB89) -> 971107875.6 | AE86: 0.99 | AF86: 513000000 | AG86: =SUM(AF86:AF89) -> 961900000 | AH86: =AF86/AG$86 -> 0.5333194719
D87: 建築 | E87: 124.4 | F87: 0 | G87: 65450000 | I87: 65450000 | J87: =I87/K86 -> 0.06959434313 | N87: 67938000 | O87: =N87/P86 -> 0.02582665599 | R87: 77890000 | S87: =R87/T86 -> 0.008294208536 | Z87: 2022 | AA87: =VLOOKUP(Z87,デフレータ表示方法!$E$8:$J$158,6,FALSE) -> 96.843 | AB87: 67583614.72 | AE87: 0.99 | AF87: 66900000 | AH87: =AF87/AG$86 -> 0.06954984926
D88: 機械 | E88: 16460 | F88: 0 | G88: 125000000 | I88: 125000000 | J88: =I88/K86 -> 0.1329150938 | N88: 454200000 | O88: =N88/P86 -> 0.1726642991 | R88: 1771000000 | S88: =R88/T86 -> 0.1885870242 | Z88: 2022 | AA88: =VLOOKUP(Z88,デフレータ表示方法!$E$8:$J$158,6,FALSE) -> 96.843 | AB88: 129074894.4 | AE88: 0.99 | AF88: 128000000 | AH88: =AF88/AG$86 -> 0.1330699657
D89: 電気(計装と監視含む) | E89: 20900 | F89: 0 | G89: 248100000 | I89: 248100000 | J89: =I89/K86 -> 0.2638098782 | N89: 666100000 | O89: =N89/P86 -> 0.253218163 | R89: 2338100000 | S89: =R89/T86 -> 0.2489753367 | Z89: 2022 | AA89: =VLOOKUP(Z89,デフレータ表示方法!$E$8:$J$158,6,FALSE) -> 96.843 | AB89: 256187850.4 | AE89: 0.99 | AF89: 254000000 | AH89: =AF89/AG$86 -> 0.2640607132
B90: 13500 | C90: 粉末炭+凝集+沈澱/前ろ過+緩速ろ過 | D90: 土木 | E90: 47020 | F90: 0 | G90: 501900000 | I90: 501900000 | J90: =I90/K90 -> 0.4315748742 | K90: =SUM(I90:I93) -> 1162950000 | L90: =K90/$K$26 -> 1.070314298 | N90: 1442300000 | O90: =N90/P90 -> 0.4960383652 | P90: =SUM(N90:N93) -> 2907638000 | Q90: =P90/$P$26 -> 1.090048953 | R90: 5203900000 | S90: =R90/T90 -> 0.5263700906 | T90: =SUM(R90:R93) -> 9886390000 | U90: =T90/$T$26 -> 1.099588588 | Z90: 2022 | AA90: =VLOOKUP(Z90,デフレータ表示方法!$E$8:$J$158,6,FALSE) -> 96.843 | AB90: 518261516.1 | AC90: =SUM(AB90:AB93) -> 1200861188 | AE90: 0.99 | AF90: 513000000 | AG90: =SUM(AF90:AF93) -> 1188900000 | AH90: =AF90/AG$90 -> 0.4314912945
D91: 建築 | E91: 124.4 | F91: 0 | G91: 65450000 | I91: 65450000 | J91: =I91/K90 -> 0.05627928974 | N91: 67938000 | O91: =N91/P90 -> 0.02336535704 | R91: 77890000 | S91: =R91/T90 -> 0.007878507726 | Z91: 2022 | AA91: =VLOOKUP(Z91,デフレータ表示方法!$E$8:$J$158,6,FALSE) -> 96.843 | AB91: 67583614.72 | AE91: 0.99 | AF91: 66900000 | AH91: =AF91/AG$90 -> 0.05627050214 | BE91: a1 | BF91: b1
D92: 機械 | E92: 19190 | F92: 0 | G92: 347500000 | I92: 347500000 | J92: =I92/K90 -> 0.2988090632 | N92: 731300000 | O92: =N92/P90 -> 0.2515099885 | R92: 2266500000 | S92: =R92/T90 -> 0.2292545611 | Z92: 2022 | AA92: =VLOOKUP(Z92,デフレータ表示方法!$E$8:$J$158,6,FALSE) -> 96.843 | AB92: 358828206.5 | AE92: 0.99 | AF92: 355000000 | AH92: 0.2985953402 | BD92: 一式 | BE92: 2910.705537 | BF92: 198631308.2
D93: 電気(計装と監視含む) | E93: 20900 | F93: 0 | G93: 248100000 | I93: 248100000 | J93: =I93/K90 -> 0.2133367729 | N93: 666100000 | O93: =N93/P90 -> 0.2290862893 | R93: 2338100000 | S93: =R93/T90 -> 0.2364968406 | Z93: 2022 | AA93: =VLOOKUP(Z93,デフレータ表示方法!$E$8:$J$158,6,FALSE) -> 96.843 | AB93: 256187850.4 | AE93: 0.99 | AF93: 254000000 | AH93: 0.2136428632 | BD93: (仮に「機械」に加える)
B94: 11200 | C94: 普通沈澱+粒状炭+緩速ろ過 | D94: 土木 | E94: 44280 | F94: 0 | G94: 395700000 | I94: 395700000 | J94: =I94/K94 -> 0.3267952265 | K94: =SUM(I94:I97) -> 1210850000 | L94: =K94/$K$26 -> 1.114398785 | N94: 1281300000 | O94: =N94/P94 -> 0.4513943446 | P94: =SUM(N94:N97) -> 2838538000 | Q94: =P94/$P$26 -> 1.064143946 | R94: 4823700000 | S94: =R94/T94 -> 0.5159429219 | T94: =SUM(R94:R97) -> 9349290000 | U94: =T94/$T$26 -> 1.039851006 | Z94: 2022 | AA94: =VLOOKUP(Z94,デフレータ表示方法!$E$8:$J$158,6,FALSE) -> 96.843 | AB94: 408599485.8 | AC94: =SUM(AB94:AB97) -> 1250322687 | AE94: 0.99 | AF94: 405000000 | AG94: =SUM(AF94:AF97) -> 1237900000 | AH94: =AF94/AG$94 -> 0.3271669763
D95: 建築 | E95: 124.4 | F95: 0 | G95: 65450000 | I95: 65450000 | J95: =I95/K94 -> 0.05405293802 | N95: 67938000 | O95: =N95/P94 -> 0.02393415202 | R95: 77890000 | S95: =R95/T94 -> 0.008331113913 | Z95: 2022 | AA95: =VLOOKUP(Z95,デフレータ表示方法!$E$8:$J$158,6,FALSE) -> 96.843 | AB95: 67583614.72 | AE95: 0.99 | AF95: 66900000 | AH95: =AF95/AG$94 -> 0.05404313757
D96: 機械 | E96: 16590 | F96: 0 | G96: 524800000 | I96: 524800000 | J96: =I96/K94 -> 0.4334145435 | N96: 856600000 | O96: =N96/P94 -> 0.3017750687 | R96: 2183800000 | S96: =R96/T94 -> 0.2335792344 | Z96: 2022 | AA96: =VLOOKUP(Z96,デフレータ表示方法!$E$8:$J$158,6,FALSE) -> 96.843 | AB96: 541908036.7 | AE96: 0.99 | AF96: 536000000 | AH96: 0.4329913563 | BD96: 一式 | BE96: 3444.879961 | BF96: 401241548.3
D97: 電気(計装と監視含む) | E97: 20390 | F97: 0 | G97: 224900000 | I97: 224900000 | J97: =I97/K94 -> 0.185737292 | N97: 632700000 | O97: =N97/P94 -> 0.2228964347 | R97: 2263900000 | S97: =R97/T94 -> 0.2421467299 | Z97: 2022 | AA97: =VLOOKUP(Z97,デフレータ表示方法!$E$8:$J$158,6,FALSE) -> 96.843 | AB97: 232231550 | AE97: 0.99 | AF97: 230000000 | AH97: 0.1857985298 | BD97: (仮に「機械」に加える)
B98: 13200 | C98: 凝集+沈澱/前ろ過+粒状炭+緩速ろ過 | D98: 土木 | E98: 47020 | F98: 0 | G98: 501900000 | I98: 501900000 | J98: =I98/K98 -> 0.3663637359 | K98: =SUM(I98:I101) -> 1369950000 | L98: =K98/$K$26 -> 1.260825549 | N98: 1442300000 | O98: =N98/P98 -> 0.4615894705 | P98: =SUM(N98:N101) -> 3124638000 | Q98: =P98/$P$26 -> 1.171400422 | R98: 5203900000 | S98: =R98/T98 -> 0.5130336111 | T98: =SUM(R98:R101) -> 10143390000 | U98: =T98/$T$26 -> 1.12817276 | Z98: 2022 | AA98: =VLOOKUP(Z98,デフレータ表示方法!$E$8:$J$158,6,FALSE) -> 96.843 | AB98: 518261516.1 | AC98: =SUM(AB98:AB101) -> 1414609213 | AE98: 0.99 | AF98: 513000000 | AG98: =SUM(AF98:AF101) -> 1400900000 | AH98: =AF98/AG$98 -> 0.3661931615
D99: 建築 | E99: 124.4 | F99: 0 | G99: 65450000 | I99: 65450000 | J99: =I99/K98 -> 0.04777546626 | N99: 67938000 | O99: =N99/P98 -> 0.02174267867 | R99: 77890000 | S99: =R99/T98 -> 0.007678892362 | Z99: 2022 | AA99: =VLOOKUP(Z99,デフレータ表示方法!$E$8:$J$158,6,FALSE) -> 96.843 | AB99: 67583614.72 | AE99: 0.99 | AF99: 66900000 | AH99: =AF99/AG$98 -> 0.04775501463
D100: 機械 | E100: 19690 | F100: 0 | G100: 554500000 | I100: 554500000 | J100: =I100/K98 -> 0.4047592978 | N100: 948300000 | O100: =N100/P98 -> 0.3034911564 | R100: 2523500000 | S100: =R100/T98 -> 0.2487827048 | Z100: 2022 | AA100: =VLOOKUP(Z100,デフレータ表示方法!$E$8:$J$158,6,FALSE) -> 96.843 | AB100: 572576231.6 | AE100: 0.99 | AF100: 567000000 | AH100: 0.4047398101 | BD100: 一式 | BE100: 3444.879961 | BF100: 401241548.3
D101: 電気(計装と監視含む) | E101: 20900 | F101: 0 | G101: 248100000 | I101: 248100000 | J101: =I101/K98 -> 0.1811015001 | N101: 666100000 | O101: =N101/P98 -> 0.2131766944 | R101: 2338100000 | S101: =R101/T98 -> 0.2305047918 | Z101: 2022 | AA101: =VLOOKUP(Z101,デフレータ表示方法!$E$8:$J$158,6,FALSE) -> 96.843 | AB101: 256187850.4 | AE101: 0.99 | AF101: 254000000 | AH101: 0.1813120137 | BD101: (仮に「機械」に加える)
L103: 天日乾燥床 | Q103: 天日乾燥床 | U103: 天日乾燥床
L104: との比率 | Q104: との比率 | U104: との比率
B105: 2 | C105: 機械脱水機 | D105: 土木 | E105: 3726 | F105: =$B$2 -> 0 | G105: 124400000 | I105: =IFERROR(E105*F105+G105,"") -> 124400000 | J105: =I105/K105 -> 0.1533341551 | K105: =SUM(I105:I108) -> 811300000 | L105: =K105/K109 -> 2.116618836 | N105: =IFERROR(E105*$Q$121+G105,"") -> 198920000 | O105: =N105/P105 -> 0.1882703021 | P105: =SUM(N105:N108) -> 1056566000 | Q105: =P105/P109 -> 2.189057262 | R105: =IFERROR(E105*$U$121+G105,"") -> 497000000 | S105: =R105/T105 -> 0.243910818 | T105: =SUM(R105:R108) -> 2037630000 | U105: =T105/T109 -> 2.315251849 | Z105: 2022 | AA105: =VLOOKUP(Z105,デフレータ表示方法!$E$8:$J$158,6,FALSE) -> 96.843 | AB105: =IFERROR(I105*(100/AA105),"") -> 128455334.9 | AC105: =SUM(AB105:AB108) -> 837747694.7 | AE105: 1 | AF105: =IFERROR(ROUND(AB105*AE105,(3-1)-INT(LOG(ABS(AB105*AE105)))),"") -> 128000000 | AG105: =SUM(AF105:AF108) -> 837800000 | AH105: =AF105/AG$105 -> 0.1527810933
D106: 建築 | E106: 2080 | F106: =$B$2 -> 0 | G106: 56900000 | I106: 56900000 | J106: =I106/K105 -> 0.07013435227 | N106: 98500000 | O106: =N106/P105 -> 0.09322654713 | R106: 264900000 | S106: =R106/T105 -> 0.1300039752 | Z106: 2022 | AA106: =VLOOKUP(Z106,デフレータ表示方法!$E$8:$J$158,6,FALSE) -> 96.843 | AB106: 58754891.94 | AE106: 1 | AF106: 58800000 | AH106: =AF106/AG$105 -> 0.07018381475
D107: 機械 | E107: 5588 | F107: =$B$2 -> 0 | G107: 379500000 | I107: 379500000 | J107: =I107/K105 -> 0.4677677801 | N107: 491260000 | O107: =N107/P105 -> 0.4649591223 | R107: 938300000 | S107: =R107/T105 -> 0.4604859567 | Z107: 2022 | AA107: =VLOOKUP(Z107,デフレータ表示方法!$E$8:$J$158,6,FALSE) -> 96.843 | AB107: 391871379.4 | AE107: 1 | AF107: 392000000 | AH107: 0.4678920984
D108: 電気(計装と監視含む) | E108: 869.3 | F108: =$B$2 -> 0 | G108: 250500000 | I108: 250500000 | J108: =I108/K105 -> 0.3087637126 | N108: 267886000 | O108: =N108/P105 -> 0.2535440285 | R108: 337430000 | S108: =R108/T105 -> 0.1655992501 | Z108: 2022 | AA108: =VLOOKUP(Z108,デフレータ表示方法!$E$8:$J$158,6,FALSE) -> 96.843 | AB108: 258666088.4 | AE108: 1 | AF108: 259000000 | AH108: 0.3091429936
B109: 1 | C109: 天日乾燥床 | D109: 土木 | E109: 3726 | F109: =$B$2 -> 0 | G109: 124400000 | I109: 124400000 | J109: =I109/K109 -> 0.3245499609 | K109: =SUM(I109:I112) -> 383300000 | L109: =K109/K109 -> 1 | N109: 198920000 | O109: =N109/P109 -> 0.412134472 | P109: =SUM(N109:N112) -> 482658000 | Q109: =P109/P109 -> 1 | R109: 497000000 | S109: =R109/T109 -> 0.5647149723 | T109: =SUM(R109:R112) -> 880090000 | U109: =T109/T109 -> 1 | Z109: 2022 | AA109: =VLOOKUP(Z109,デフレータ表示方法!$E$8:$J$158,6,FALSE) -> 96.843 | AB109: 128455334.9 | AC109: =SUM(AB109:AB112) -> 395795256.2 | AE109: 1 | AF109: 128000000 | AG109: =SUM(AF109:AF112) -> 395000000 | AH109: =AF109/AG$109 -> 0.3240506329
D110: 建築 | E110: - | F110: - | G110: - | J110: =IFERROR(I110/K109,"") ->  | O110: =IFERROR(N110/P109,"") ->  | S110: =IFERROR(R110/T109,"") ->  | Z110: 2022 | AA110: =VLOOKUP(Z110,デフレータ表示方法!$E$8:$J$158,6,FALSE) -> 96.843 | AH110: =IFERROR(AF110/AG$109,0) -> 0
D111: 機械 | E111: 869.3 | F111: =$B$2 -> 0 | G111: 138800000 | I111: 138800000 | J111: =I111/K109 -> 0.3621184451 | N111: 156186000 | O111: =N111/P109 -> 0.3235955894 | R111: 225730000 | S111: =R111/T109 -> 0.2564851322 | Z111: 2022 | AA111: =VLOOKUP(Z111,デフレータ表示方法!$E$8:$J$158,6,FALSE) -> 96.843 | AB111: 143324762.8 | AE111: 1 | AF111: 143000000 | AH111: =AF111/AG$109 -> 0.3620253165
D112: 電気(計装と監視含む) | E112: 372.6 | F112: =$B$2 -> 0 | G112: 120100000 | I112: 120100000 | J112: =I112/K109 -> 0.3133315941 | N112: 127552000 | O112: =N112/P109 -> 0.2642699385 | R112: 157360000 | S112: =R112/T109 -> 0.1787998955 | Z112: 2022 | AA112: =VLOOKUP(Z112,デフレータ表示方法!$E$8:$J$158,6,FALSE) -> 96.843 | AB112: 124015158.6 | AE112: 1 | AF112: 124000000 | AH112: 0.3139240506
B113: 10 | C113: 紫外線 | D113: 土木 | E113: - | F113: - | G113: - | J113: =IFERROR(I113/K113,"") ->  | K113: =SUM(I113:I116) -> 55030000 | O113: =IFERROR(N113/P113,"") ->  | P113: =SUM(N113:N116) -> 335630000 | S113: =IFERROR(R113/T113,"") ->  | T113: =SUM(R113:R116) -> 1458030000 | Z113: 2022 | AA113: =VLOOKUP(Z113,デフレータ表示方法!$E$8:$J$158,6,FALSE) -> 96.843 | AC113: =SUM(AB113:AB116) -> 56823931.52 | AG113: =SUM(AF113:AF116) -> 120000000 | AH113: =IFERROR(AF113/AG$113,0) -> 0
D114: 建築 | E114: - | F114: - | G114: - | J114: =IFERROR(I114/K113,"") ->  | O114: =IFERROR(N114/P113,"") ->  | S114: =IFERROR(R114/T113,"") ->  | Z114: 2022 | AA114: =VLOOKUP(Z114,デフレータ表示方法!$E$8:$J$158,6,FALSE) -> 96.843 | AH114: =IFERROR(AF114/AG$113,0) -> 0
D115: 機械 | E115: 14030 | F115: =$B$2 -> 0 | G115: 55030000 | I115: 55030000 | J115: =I115/K113 -> 1 | N115: 335630000 | O115: =N115/P113 -> 1 | R115: 1458030000 | S115: =R115/T113 -> 1 | Z115: 2022 | AA115: =VLOOKUP(Z115,デフレータ表示方法!$E$8:$J$158,6,FALSE) -> 96.843 | AB115: 56823931.52 | AE115: =AK17 -> 2.11 | AF115: 120000000 | AH115: 1
D116: 電気(計装と監視含む) | E116: - | F116: - | G116: - | J116: =IFERROR(I116/K113,"") ->  | O116: =IFERROR(N116/P113,"") ->  | S116: =IFERROR(R116/T113,"") ->  | Z116: 2022 | AA116: =VLOOKUP(Z116,デフレータ表示方法!$E$8:$J$158,6,FALSE) -> 96.843 | AH116: 0
B117: 500 | C117: 粉末炭 | D117: 土木 | E117: - | F117: - | G117: - | J117: =IFERROR(I117/K117,"") ->  | K117: =SUM(I117:I120) -> 222500000 | O117: =IFERROR(N117/P117,"") ->  | P117: =SUM(N117:N120) -> 277140000 | S117: =IFERROR(R117/T117,"") ->  | T117: =SUM(R117:R120) -> 495700000 | Z117: 2022 | AA117: =VLOOKUP(Z117,デフレータ表示方法!$E$8:$J$158,6,FALSE) -> 96.843 | AC117: =SUM(AB117:AB120) -> 229753312.1 | AG117: =SUM(AF117:AF120) -> 0 | AH117: =IFERROR(AF117/AG$117,0) -> 0 | AJ117: 22000 | AK117: 1.46
D118: 建築 | E118: - | F118: - | G118: - | J118: =IFERROR(I118/K117,"") ->  | O118: =IFERROR(N118/P117,"") ->  | S118: =IFERROR(R118/T117,"") ->  | Z118: 2022 | AA118: =VLOOKUP(Z118,デフレータ表示方法!$E$8:$J$158,6,FALSE) -> 96.843 | AH118: =IFERROR(AF118/AG$117,0) -> 0 | AJ118: 23000 | AK118: 1.46
D119: 機械 | E119: 2732 | F119: =$B$2 -> 0 | G119: 222500000 | I119: 222500000 | J119: =I119/K117 -> 1 | N119: 277140000 | O119: =N119/P117 -> 1 | R119: 495700000 | S119: =R119/T117 -> 1 | Z119: 2022 | AA119: =VLOOKUP(Z119,デフレータ表示方法!$E$8:$J$158,6,FALSE) -> 96.843 | AB119: 229753312.1 | AE119: =VLOOKUP(浄水フロー!F3,AJ117:AK136,2,FALSE) ->  | AH119: 0 | AJ119: 23500 | AK119: 1.46
D120: 電気(計装と監視含む) | E120: - | F120: - | G120: - | J120: =IFERROR(I120/K117,"") ->  | O120: =IFERROR(N120/P117,"") ->  | S120: =IFERROR(R120/T117,"") ->  | Z120: 2022 | AA120: =VLOOKUP(Z120,デフレータ表示方法!$E$8:$J$158,6,FALSE) -> 96.843 | AH120: 0 | AJ120: 23200 | AK120: 1.46
Q121: 20000 | U121: 100000 | AJ121: 23300 | AK121: 1.46
W122: 1/22 追記 参考として、製作当初の20,000、100,000での比率を追記 | AJ122: 30000 | AK122: 1.24
AB123: 2パターンの建設費算出があり、いずれも | AJ123: 32000 | AK123: 1.24
C124: 再構築の手引きから資産額を算出、再構築の手引きで比率を確認した方が良いのでは？（1/10)、基本的には埋められるが、一式計上の部分はどこに割り振るかを確認する必要あり | AB124: 同様の流れとするが、 | AJ124: 33000 | AK124: 1.24
C125: Gr.1内で分担し、一度埋められる範囲を埋めていく | AB125: デフレータ値の読み込みが | AJ125: 32500 | AK125: 1.24
C126: ⇒Excelをどこキャビへ格納し、分担作業 | AB126: 2経路あることに注意すること | AJ126: 33500 | AK126: 1.24
C127: ⇒集まった段階で集約する | AJ127: 30200 | AK127: 1.24
AJ128: 32200 | AK128: 1.24
AJ129: 33200 | AK129: 1.24
C130: 1/12追記 | AJ130: 33300 | AK130: 1.24
C131: 一式となっているものは機械として計上 | AJ131: 10000 | AK131: 0.99
AJ132: 11000 | AK132: 0.99
AJ133: 13000 | AK133: 0.99
AJ134: 13500 | AK134: 0.99
C135: 2/13 r14にて追記メモ：グレーの部分は右端の隣の数式を使い、建設費を計算させる。（今後、シミュレータ改造が進んだ段階であらためて確認する事項） | AJ135: 11200 | AK135: 0.99
E136: 2/6齋藤検証用 | AJ136: 13200 | AK136: 0.99
E137: 上より引用 | F137: 下に記載の(付加)分を加算 | G137: 差し引き
D138: 消毒のみ | E138: =K14 -> 678150000
C139: =C138+10 -> 10 | D139: 紫外線+消毒 | E139: =K18 -> 733150000 | F139: =E138+E161 -> 733180000 | G139: =E139-F139 -> -30000
C140: 22000 | D140: 凝集+急速ろ過 | E140: =K22 -> 1051550000
C141: 23000 | D141: 凝集+沈澱/前ろ過+急速ろ過 | E141: =K26 -> 1086550000
C142: =C141+500 -> 23500 | D142: 粉末炭+凝集+沈澱/前ろ過+急速ろ過 | E142: =K30 -> 1309050000 | F142: =E141+E162 -> 1309050000 | G142: =E142-F142 -> 0
C143: 23200 | D143: 凝集+沈澱/前ろ過+粒状炭+急速ろ過 | E143: =K34 -> 1516050000
C144: 23300 | D144: 凝集+沈澱/前ろ過+オゾン+粒状炭+急速ろ過 | E144: =K38 -> 2567150000
C145: 30000 | D145: 膜ろ過 | E145: =K42 -> 1210150000
C146: 32000 | D146: 凝集+膜ろ過 | E146: =K46 -> 1284750000
C147: 33000 | D147: 凝集+沈澱/前ろ過+膜ろ過 | E147: =K50 -> 1319750000
C148: =C146+500 -> 32500 | D148: 粉末炭+凝集+膜ろ過 | E148: =K54 -> 1507250000 | F148: =E146+E162 -> 1507250000 | G148: =E148-F148 -> 0 | H148: =ABS(G148)/F148 -> 0
C149: =C147+500 -> 33500 | D149: 粉末炭+凝集+沈澱/前ろ過+膜ろ過 | E149: =K58 -> 1542250000 | F149: =E147+E162 -> 1542250000 | G149: =E149-F149 -> 0 | H149: =ABS(G149)/F149 -> 0
C150: 30200 | D150: 粒状炭+膜ろ過 | E150: =K62 -> 1639350000
C151: 32200 | D151: 粒状炭+凝集+膜ろ過 | E151: =K66 -> 1714050000
C152: 33200 | D152: 凝集+沈澱/前ろ過+粒状炭+膜ろ過 | E152: =K70 -> 1748750000
C153: 33300 | D153: 凝集+沈澱/前ろ過+オゾン+粒状炭+膜ろ過 | E153: =K74 -> 2800750000
C154: 10000 | D154: 緩速ろ過 | E154: =K78 -> 830850000
C155: 11000 | D155: 普通沈澱+緩速ろ過 | E155: =K82 -> 781330000
C156: 13000 | D156: 凝集+沈澱/前ろ過+緩速ろ過 | E156: =K86 -> 940450000
C157: =C156+500 -> 13500 | D157: 粉末炭+凝集+沈澱/前ろ過+緩速ろ過 | E157: =K90 -> 1162950000 | F157: =E156+E162 -> 1162950000 | G157: =E157-F157 -> 0 | H157: =ABS(G157)/F157 -> 0
C158: 11200 | D158: 普通沈澱+粒状炭+緩速ろ過 | E158: =K94 -> 1210850000
C159: 13200 | D159: 凝集+沈澱/前ろ過+粒状炭+緩速ろ過 | E159: =K98 -> 1369950000
C161: 10 | D161: (付加)紫外線 | E161: =K113 -> 55030000
C162: 500 | D162: (付加)粉末炭 | E162: =K117 -> 222500000

Sheet 運転費計算一覧 (hidden)
L2: 粉末炭kg単価 | M2: =+マスター変更!C33 -> 400 | N2: 円/kg
E4: 入力給水原価 | L4: シナリオ1、2、4
E5: =+'入力情報(1)'!H23 -> 0 | F5: 円/m3 | L5: 粉末炭平均注入率 | M5: =IF(Rng粉末炭ChkDt=1,IF(ISNUMBER(Rng粉末炭_注入率),Rng粉末炭_注入率,10),0) -> 0 | N5: mg/L | O5: 入力情報（１）より
D6: 人件費率 | E6: =my人件費率 -> 0.11 | F6: マスタの入力値より | L6: 現状の計画浄水量 | M6: ='入力情報(1)'!$H$20 -> 0 | N6: m3/日 | O6: 入力情報（１）より
D7: 給水原価から算出される人件費 | E7: =E$5*E6 -> 0 | F7: 円/m3 | L7: 粉末炭使用量 | M7: =M5*M6/1000 -> 0 | N7: kg/日
D8: 変動費率 | E8: =+my変動費_動力費+my変動費_修繕費+my変動費_薬品費 -> 0.132 | F8: マスタの合計値より | L8: 粉末炭単価 | M8: =M7*M2/M6 ->  | N8: 円/m3
D9: 給水原価から算出される変動費 | E9: =E$5*E8 -> 0 | F9: 円/m3 | L9: 粉末炭注入日数 | M9: =IF(Rng粉末炭ChkDt=1,IF(ISNUMBER(Rng粉末炭_注入日),Rng粉末炭_注入日,365),0) -> 0 | N9: 日/年 | O9: 入力情報（１）より
D10: 委託料率 | E10: =+my変動費_委託料 -> 0 | F10: マスタの入力値より | L10: 年間粉末炭費用 | M10: =M8*M6*M9 ->  | N10: 円/年・m3
D11: 給水原価から算出される委託料 | E11: =E$5*E10 -> 0 | F11: 円/m3
D12: 膜ろ過を含む際の人件費率 | E12: =E6*0.8 -> 0.088 | L12: シナリオ3、５
D13: 給水原価から算出される膜ろ過を含む際の人件費 | E13: =E$5*E12 -> 0 | L13: 粉末炭平均注入率 | M13: =IF(Rng粉末炭ChkDt2=1,IF(ISNUMBER(Rng粉末炭_注入率2),Rng粉末炭_注入率2,10),0) -> 0 | N13: mg/L | O13: 入力情報（２）より
D14: 合計（膜ろ過以外） | E14: =SUM(E7,E9,E11) -> 0 | F14: 円/m3 | G14: 運転費単価(人件費含む) | L14: 将来の計画浄水量 | M14: ='入力情報(2)'!$I$6 -> 0 | N14: m3/日 | O14: 入力情報（２）より
D15: 合計（膜ろ過の時） | E15: =SUM(E13,E11,E9) -> 0 | F15: 円/m3 | G15: 運転費単価(人件費含む) | L15: 粉末炭使用量 | M15: =M13*M14/1000 -> 0 | N15: kg/日
L16: 粉末炭単価 | M16: =M15*M2/M14 ->  | N16: 円/m3
C17: 分類No. | D17: をプレビューから引用 | E17: 入力給水原価時 | G17: 浄水量を引用↓ | I17: 単価確認メモ | L17: 粉末炭注入日数 | M17: =IF(Rng粉末炭ChkDt2=1,IF(ISNUMBER(Rng粉末炭_注入日2),Rng粉末炭_注入日2,365),0) -> 0 | N17: 日/年 | O17: 入力情報（２）より | T17: 年間運転費 | V17: 1日あたり運転費 | X17: 立米単価
C18: =RngFlwNo1 -> 0 | D18: シナリオ1、2 | E18: =IF(OR($C18<30000,39999<$C18),(($E$7+$E$9+$E$11)*$G18*365+$M$10)*50,(($E$13+$E$9+$E$11)*$G18*365+$M$10)*50) ->  | G18: =+M6 -> 0 | I18: =E18/365/50/G18 ->  | J18: =F18/365/50/G18 ->  | L18: 年間粉末炭費用 | M18: =M16*M14*M17 ->  | N18: 円/年・m3 | T18: =E18/50 ->  | U18: 0 | V18: =T18/365 ->  | W18: 0 | X18: =V18/$G18 -> 
C19: =RngFlwNo2 -> 0 | D19: シナリオ3 | E19: =IF(OR($C19<30000,39999<$C19),(($E$7+VLOOKUP($C19,$C$27:$E$196,3,FALSE)/VLOOKUP($C18,$C$27:$E$196,3,FALSE)*$E$9+$E$11)*$G19*365+$M$18)*50,(($E$13+VLOOKUP($C19,$C$27:$E$196,3,FALSE)/VLOOKUP($C18,$C$27:$E$196,3,FALSE)*$E$9+$E$11)*$G19*365+$M$18)*50) ->  | G19: =+G18 -> 0 | I19: =E19/365/50/G19 ->  | J19: =F19/365/50/G19 ->  | U19: 0 | W19: 0
C20: =+C18 -> 0 | D20: シナリオ4 | E20: =IF(OR($C20<30000,39999<$C20),(($E$7+$E$9+$E$11)*$G20*365+$M$10)*50,(($E$13+$E$9+$E$11)*$G20*365+$M$10)*50) ->  | G20: =+M14 -> 0 | I20: =E20/365/50/G20 ->  | J20: =F20/365/50/G20 ->  | U20: 0 | W20: 0
C21: =+C19 -> 0 | D21: シナリオ5 | E21: =IF(OR($C21<30000,39999<$C21),(($E$7+VLOOKUP($C21,$C$27:$E$196,3,FALSE)/VLOOKUP($C20,$C$27:$E$196,3,FALSE)*$E$9+$E$11)*$G21*365+$M$18)*50,(($E$13+VLOOKUP($C21,$C$27:$E$196,3,FALSE)/VLOOKUP($C20,$C$27:$E$196,3,FALSE)*$E$9+$E$11)*$G21*365+$M$18)*50) ->  | G21: =+G20 -> 0 | I21: =E21/365/50/G21 ->  | J21: =F21/365/50/G21 ->  | U21: 0 | W21: 0
G23: 計画浄水量当たり | H23: 消毒 | I23: 緩速ろ過 | J23: 急速ろ過 | K23: 膜ろ過 | L23: 前処理 | N23: 高度浄水
L24: 普通沈澱 | M24: 薬品沈殿 | N24: 粉末炭 | O24: 粒状炭 | P24: 紫外線 | Q24: オゾン | R24: その他
H25: 13157 | I25: 5954 | J25: 9840 | K25: 29213 | L25: 8156 | M25: 7195 | N25: 3222 | O25: 13773 | P25: 2607 | Q25: 2476 | R25: 10976
C26: 分類No. | D26: 基本フロー | E26: 相対費率 | F26: （円/m3・日） | G26: 年間合計（円/m3） | H26: 消毒 | I26: 緩速ろ過 | J26: 急速ろ過 | K26: 膜ろ過 | L26: 普通沈澱 | M26: 薬品沈殿 | N26: 粉末炭 | O26: 粒状炭 | P26: 紫外線 | Q26: オゾン | R26: その他
C27: 10000 | D27: 緩速ろ過 | E27: =ROUNDUP(F27/$F$81,3) -> 1.019 | F27: 20.981 | G27: =SUM(H27:R27) -> 19111 | H27: =H$25 -> 13157 | I27: =I$25 -> 5954
C28: 10001 | D28: 緩速ろ過+天日乾燥床 | E28: =ROUNDUP(F28/$F$81,3) -> 1.019 | F28: 20.981 | G28: 19111 | H28: 13157 | I28: =I$25 -> 5954
C29: 10002 | D29: 緩速ろ過+機械脱水機 | E29: 1.019 | F29: 20.981 | G29: 19111 | H29: 13157 | I29: 5954
C30: 10010 | D30: 緩速ろ過+紫外線 | E30: 1.019 | F30: 20.981 | G30: 21718 | H30: 13157 | I30: 5954 | P30: =P$25 -> 2607
C31: 10011 | D31: 緩速ろ過+紫外線+天日乾燥床 | E31: 1.019 | F31: 20.981 | G31: 21718 | H31: 13157 | I31: 5954 | P31: =P$25 -> 2607
C32: 10012 | D32: 緩速ろ過+紫外線+機械脱水機 | E32: 1.019 | F32: 20.981 | G32: 21718 | H32: 13157 | I32: 5954 | P32: =P$25 -> 2607
C33: 11000 | D33: 普通沈澱+緩速ろ過 | E33: 1.019 | F33: 20.981 | G33: 27267 | H33: 13157 | I33: 5954 | L33: =L$25 -> 8156
C34: 11001 | D34: 普通沈澱+緩速ろ過+天日乾燥床 | E34: 1.019 | F34: 20.981 | G34: 27267 | H34: 13157 | I34: 5954 | L34: 8156
C35: 11002 | D35: 普通沈澱+緩速ろ過+機械脱水機 | E35: 1.019 | F35: 20.981 | G35: 27267 | H35: 13157 | I35: 5954 | L35: 8156
C36: 11010 | D36: 普通沈澱+緩速ろ過+紫外線 | E36: 1.019 | F36: 20.981 | G36: 29874 | H36: 13157 | I36: 5954 | L36: 8156 | P36: =P$25 -> 2607
C37: 11011 | D37: 普通沈澱+緩速ろ過+紫外線+天日乾燥床 | E37: 1.019 | F37: 20.981 | G37: 29874 | H37: 13157 | I37: 5954 | L37: 8156 | P37: =P$25 -> 2607
C38: 11012 | D38: 普通沈澱+緩速ろ過+紫外線+機械脱水機 | E38: 1.019 | F38: 20.981 | G38: 29874 | H38: 13157 | I38: 5954 | L38: 8156 | P38: =P$25 -> 2607
C39: 11200 | D39: 普通沈澱+粒状炭+緩速ろ過 | E39: 1.378 | F39: 28.378 | G39: 41040 | H39: 13157 | I39: 5954 | L39: 8156 | O39: =O$25 -> 13773
C40: 11201 | D40: 普通沈澱+粒状炭+緩速ろ過+天日乾燥床 | E40: 1.378 | F40: 28.378 | G40: 41040 | H40: 13157 | I40: 5954 | L40: 8156 | O40: 13773
C41: 11202 | D41: 普通沈澱+粒状炭+緩速ろ過+機械脱水機 | E41: 1.378 | F41: 28.378 | G41: 41040 | H41: 13157 | I41: 5954 | L41: 8156 | O41: 13773
C42: 11210 | D42: 普通沈澱+粒状炭+緩速ろ過+紫外線 | E42: 1.378 | F42: 28.378 | G42: 43647 | H42: 13157 | I42: 5954 | L42: 8156 | O42: 13773 | P42: =P$25 -> 2607
C43: 11211 | D43: 普通沈澱+粒状炭+緩速ろ過+紫外線+天日乾燥床 | E43: 1.378 | F43: 28.378 | G43: 43647 | H43: 13157 | I43: 5954 | L43: 8156 | O43: 13773 | P43: =P$25 -> 2607
C44: 11212 | D44: 普通沈澱+粒状炭+緩速ろ過+紫外線+機械脱水機 | E44: 1.378 | F44: 28.378 | G44: 43647 | H44: 13157 | I44: 5954 | L44: 8156 | O44: 13773 | P44: =P$25 -> 2607
C45: 11700 | D45: 粉末炭+普通沈澱+粒状炭+緩速ろ過 | E45: 0 | G45: 44262 | H45: 13157 | I45: 5954 | L45: 8156 | N45: =N$25 -> 3222 | O45: 13773
C46: 11701 | D46: 粉末炭+普通沈澱+粒状炭+緩速ろ過+天日乾燥床 | E46: 0 | G46: 44262 | H46: 13157 | I46: 5954 | L46: 8156 | N46: 3222 | O46: 13773
C47: 11702 | D47: 粉末炭+普通沈澱+粒状炭+緩速ろ過+機械脱水機 | E47: 0 | G47: 44262 | H47: 13157 | I47: 5954 | L47: 8156 | N47: 3222 | O47: 13773
C48: 11710 | D48: 粉末炭+普通沈澱+粒状炭+緩速ろ過+紫外線 | E48: 0 | G48: 46869 | H48: =H$25 -> 13157 | I48: 5954 | L48: 8156 | N48: 3222 | O48: 13773 | P48: =P$25 -> 2607
C49: 11711 | D49: 粉末炭+普通沈澱+粒状炭+緩速ろ過+紫外線+天日乾燥床 | E49: 0 | G49: 46869 | H49: 13157 | I49: 5954 | L49: 8156 | N49: 3222 | O49: 13773 | P49: =P$25 -> 2607
C50: 11712 | D50: 粉末炭+普通沈澱+粒状炭+緩速ろ過+紫外線+機械脱水機 | E50: 0 | G50: 46869 | H50: 13157 | I50: 5954 | L50: 8156 | N50: 3222 | O50: 13773 | P50: =P$25 -> 2607
C51: 13000 | D51: 凝集+沈澱/前ろ過+緩速ろ過 | E51: 1.019 | F51: 20.981 | G51: 34462 | H51: 13157 | I51: 5954 | L51: 8156 | M51: =M$25 -> 7195
C52: 13001 | D52: 凝集+沈澱/前ろ過+緩速ろ過+天日乾燥床 | E52: 1.019 | F52: 20.981 | G52: 34462 | H52: 13157 | I52: 5954 | L52: 8156 | M52: 7195
C53: 13002 | D53: 凝集+沈澱/前ろ過+緩速ろ過+機械脱水機 | E53: 1.019 | F53: 20.981 | G53: 34462 | H53: 13157 | I53: 5954 | L53: 8156 | M53: 7195
C54: 13010 | D54: 凝集+沈澱/前ろ過+緩速ろ過+紫外線 | E54: 1.019 | F54: 20.981 | G54: 37069 | H54: 13157 | I54: 5954 | L54: 8156 | M54: 7195 | P54: =P$25 -> 2607
C55: 13011 | D55: 凝集+沈澱/前ろ過+緩速ろ過+紫外線+天日乾燥床 | E55: 1.019 | F55: 20.981 | G55: 37069 | H55: 13157 | I55: 5954 | L55: 8156 | M55: 7195 | P55: =P$25 -> 2607
C56: 13012 | D56: 凝集+沈澱/前ろ過+緩速ろ過+紫外線+機械脱水機 | E56: 1.019 | F56: 20.981 | G56: 37069 | H56: 13157 | I56: 5954 | L56: 8156 | M56: 7195 | P56: =P$25 -> 2607
C57: 13200 | D57: 凝集+沈澱/前ろ過+粒状炭+緩速ろ過 | E57: 1.378 | F57: 28.378 | G57: 48235 | H57: 13157 | I57: 5954 | L57: 8156 | M57: 7195 | O57: =O$25 -> 13773
C58: 13201 | D58: 凝集+沈澱/前ろ過+粒状炭+緩速ろ過+天日乾燥床 | E58: 1.378 | F58: 28.378 | G58: 48235 | H58: 13157 | I58: 5954 | L58: 8156 | M58: 7195 | O58: 13773
C59: 13202 | D59: 凝集+沈澱/前ろ過+粒状炭+緩速ろ過+機械脱水機 | E59: 1.378 | F59: 28.378 | G59: =SUM(H59:R59) -> 48235 | H59: 13157 | I59: 5954 | L59: 8156 | M59: 7195 | O59: 13773
C60: 13210 | D60: 凝集+沈澱/前ろ過+粒状炭+緩速ろ過+紫外線 | E60: 1.378 | F60: 28.378 | G60: 50842 | H60: 13157 | I60: 5954 | L60: 8156 | M60: 7195 | O60: 13773 | P60: =P$25 -> 2607
C61: 13211 | D61: 凝集+沈澱/前ろ過+粒状炭+緩速ろ過+紫外線+天日乾燥床 | E61: 1.378 | F61: 28.378 | G61: 50842 | H61: 13157 | I61: 5954 | L61: 8156 | M61: 7195 | O61: 13773 | P61: =P$25 -> 2607
C62: 13212 | D62: 凝集+沈澱/前ろ過+粒状炭+緩速ろ過+紫外線+機械脱水機 | E62: 1.378 | F62: 28.378 | G62: 50842 | H62: 13157 | I62: 5954 | L62: 8156 | M62: 7195 | O62: 13773 | P62: =P$25 -> 2607
C63: 13500 | D63: 粉末炭+凝集+沈澱/前ろ過+緩速ろ過 | E63: 1.019 | F63: 20.981 | G63: 37684 | H63: 13157 | I63: 5954 | L63: 8156 | M63: 7195 | N63: =N$25 -> 3222
C64: 13501 | D64: 粉末炭+凝集+沈澱/前ろ過+緩速ろ過+天日乾燥床 | E64: 1.019 | F64: 20.981 | G64: 37684 | H64: 13157 | I64: 5954 | L64: 8156 | M64: 7195 | N64: 3222
C65: 13502 | D65: 粉末炭+凝集+沈澱/前ろ過+緩速ろ過+機械脱水機 | E65: 1.019 | F65: 20.981 | G65: 37684 | H65: 13157 | I65: 5954 | L65: 8156 | M65: 7195 | N65: 3222
C66: 13510 | D66: 粉末炭+凝集+沈澱/前ろ過+緩速ろ過+紫外線 | E66: 1.019 | F66: 20.981 | G66: 40291 | H66: 13157 | I66: 5954 | L66: 8156 | M66: 7195 | N66: 3222 | P66: =P$25 -> 2607
C67: 13511 | D67: 粉末炭+凝集+沈澱/前ろ過+緩速ろ過+紫外線+天日乾燥床 | E67: 1.019 | F67: 20.981 | G67: 40291 | H67: 13157 | I67: 5954 | L67: 8156 | M67: 7195 | N67: 3222 | P67: =P$25 -> 2607
C68: 13512 | D68: 粉末炭+凝集+沈澱/前ろ過+緩速ろ過+紫外線+機械脱水機 | E68: 1.019 | F68: 20.981 | G68: 40291 | H68: 13157 | I68: 5954 | L68: 8156 | M68: 7195 | N68: 3222 | P68: =P$25 -> 2607
C69: 13700 | D69: 粉末炭+凝集+沈澱/前ろ過+粒状炭+緩速ろ過 | E69: 0 | G69: 51457 | H69: 13157 | I69: 5954 | L69: 8156 | M69: 7195 | N69: 3222 | O69: =O$25 -> 13773
C70: 13701 | D70: 粉末炭+凝集+沈澱/前ろ過+粒状炭+緩速ろ過+天日乾燥床 | E70: 0 | G70: 51457 | H70: 13157 | I70: 5954 | L70: 8156 | M70: 7195 | N70: 3222 | O70: 13773
C71: 13702 | D71: 粉末炭+凝集+沈澱/前ろ過+粒状炭+緩速ろ過+機械脱水機 | E71: 0 | G71: 51457 | H71: 13157 | I71: 5954 | L71: 8156 | M71: 7195 | N71: 3222 | O71: 13773
C72: 13710 | D72: 粉末炭+凝集+沈澱/前ろ過+粒状炭+緩速ろ過+紫外線 | E72: 0 | G72: 54064 | H72: 13157 | I72: 5954 | L72: 8156 | M72: 7195 | N72: 3222 | O72: 13773 | P72: =P$25 -> 2607
C73: 13711 | D73: 粉末炭+凝集+沈澱/前ろ過+粒状炭+緩速ろ過+紫外線+天日乾燥床 | E73: 0 | G73: 54064 | H73: 13157 | I73: 5954 | L73: 8156 | M73: 7195 | N73: 3222 | O73: 13773 | P73: =P$25 -> 2607
C74: 13712 | D74: 粉末炭+凝集+沈澱/前ろ過+粒状炭+緩速ろ過+紫外線+機械脱水機 | E74: 0 | G74: 54064 | H74: 13157 | I74: 5954 | L74: 8156 | M74: 7195 | N74: 3222 | O74: 13773 | P74: =P$25 -> 2607
C75: 22000 | D75: 凝集+急速ろ過 | E75: 1 | F75: 20.607 | G75: 30192 | H75: 13157 | J75: =J$25 -> 9840 | M75: 7195
C76: 22001 | D76: 凝集+急速ろ過+天日乾燥床 | E76: 1 | F76: 20.607 | G76: 30192 | H76: 13157 | J76: 9840 | M76: 7195
C77: 22002 | D77: 凝集+急速ろ過+機械脱水機 | E77: 1 | F77: 20.607 | G77: 30192 | H77: 13157 | J77: 9840 | M77: 7195
C78: 22010 | D78: 凝集+急速ろ過+紫外線 | E78: 1 | F78: 20.607 | G78: 32799 | H78: 13157 | J78: 9840 | M78: 7195 | P78: =P$25 -> 2607
C79: 22011 | D79: 凝集+急速ろ過+紫外線+天日乾燥床 | E79: 1 | F79: 20.607 | G79: 32799 | H79: 13157 | J79: 9840 | M79: 7195 | P79: =P$25 -> 2607
C80: 22012 | D80: 凝集+急速ろ過+紫外線+機械脱水機 | E80: 1 | F80: 20.607 | G80: 32799 | H80: =H$25 -> 13157 | J80: 9840 | M80: 7195 | P80: =P$25 -> 2607
C81: 23000 | D81: 凝集+沈澱/前ろ過+急速ろ過 | E81: 1 | F81: 20.607 | G81: 38348 | H81: 13157 | J81: 9840 | L81: =L$25 -> 8156 | M81: 7195
C82: 23001 | D82: 凝集+沈澱/前ろ過+急速ろ過+天日乾燥床 | E82: 1 | F82: 20.607 | G82: 38348 | H82: 13157 | J82: 9840 | L82: 8156 | M82: 7195
C83: 23002 | D83: 凝集+沈澱/前ろ過+急速ろ過+機械脱水機 | E83: 1 | F83: 20.607 | G83: 38348 | H83: 13157 | J83: 9840 | L83: 8156 | M83: =M$25 -> 7195
C84: 23010 | D84: 凝集+沈澱/前ろ過+急速ろ過+紫外線 | E84: 1 | F84: 20.607 | G84: 40955 | H84: 13157 | J84: 9840 | L84: 8156 | M84: 7195 | P84: =P$25 -> 2607
C85: 23011 | D85: 凝集+沈澱/前ろ過+急速ろ過+紫外線+天日乾燥床 | E85: 1 | F85: 20.607 | G85: 40955 | H85: 13157 | J85: 9840 | L85: 8156 | M85: 7195 | P85: =P$25 -> 2607
C86: 23012 | D86: 凝集+沈澱/前ろ過+急速ろ過+紫外線+機械脱水機 | E86: 1 | F86: 20.607 | G86: 40955 | H86: 13157 | J86: 9840 | L86: 8156 | M86: 7195 | P86: =P$25 -> 2607
C87: 23200 | D87: 凝集+沈澱/前ろ過+粒状炭+急速ろ過 | E87: 1.437 | F87: 29.602 | G87: 52121 | H87: 13157 | J87: 9840 | L87: 8156 | M87: 7195 | O87: =O$25 -> 13773
C88: 23201 | D88: 凝集+沈澱/前ろ過+粒状炭+急速ろ過+天日乾燥床 | E88: 1.437 | F88: 29.602 | G88: 52121 | H88: 13157 | J88: 9840 | L88: 8156 | M88: 7195 | O88: 13773
C89: 23202 | D89: 凝集+沈澱/前ろ過+粒状炭+急速ろ過+機械脱水機 | E89: 1.437 | F89: 29.602 | G89: 52121 | H89: 13157 | J89: 9840 | L89: 8156 | M89: 7195 | O89: 13773
C90: 23210 | D90: 凝集+沈澱/前ろ過+粒状炭+急速ろ過+紫外線 | E90: 1.437 | F90: 29.602 | G90: 54728 | H90: 13157 | J90: 9840 | L90: 8156 | M90: 7195 | O90: 13773 | P90: =P$25 -> 2607
C91: 23211 | D91: 凝集+沈澱/前ろ過+粒状炭+急速ろ過+紫外線+天日乾燥床 | E91: 1.437 | F91: 29.602 | G91: =SUM(H91:R91) -> 54728 | H91: 13157 | J91: 9840 | L91: 8156 | M91: 7195 | O91: 13773 | P91: =P$25 -> 2607
C92: 23212 | D92: 凝集+沈澱/前ろ過+粒状炭+急速ろ過+紫外線+機械脱水機 | E92: =ROUNDUP(F92/$F$81,3) -> 1.437 | F92: 29.602 | G92: 54728 | H92: 13157 | J92: 9840 | L92: 8156 | M92: 7195 | O92: 13773 | P92: =P$25 -> 2607
C93: 23300 | D93: 凝集+沈澱/前ろ過+オゾン+粒状炭+急速ろ過 | E93: 1.437 | F93: 29.602 | G93: 54597 | H93: 13157 | J93: 9840 | L93: 8156 | M93: 7195 | O93: 13773 | Q93: =Q$25 -> 2476
C94: 23301 | D94: 凝集+沈澱/前ろ過+オゾン+粒状炭+急速ろ過+天日乾燥床 | E94: 1.437 | F94: 29.602 | G94: 54597 | H94: 13157 | J94: 9840 | L94: 8156 | M94: 7195 | O94: 13773 | Q94: 2476
C95: 23302 | D95: 凝集+沈澱/前ろ過+オゾン+粒状炭+急速ろ過+機械脱水機 | E95: 1.437 | F95: 29.602 | G95: 54597 | H95: 13157 | J95: 9840 | L95: 8156 | M95: 7195 | O95: 13773 | Q95: 2476
C96: 23310 | D96: 凝集+沈澱/前ろ過+オゾン+粒状炭+急速ろ過+紫外線 | E96: 1.437 | F96: 29.602 | G96: 57204 | H96: 13157 | J96: 9840 | L96: 8156 | M96: 7195 | O96: 13773 | P96: =P$25 -> 2607 | Q96: 2476
C97: 23311 | D97: 凝集+沈澱/前ろ過+オゾン+粒状炭+急速ろ過+紫外線+天日乾燥床 | E97: 1.437 | F97: 29.602 | G97: 57204 | H97: 13157 | J97: 9840 | L97: 8156 | M97: 7195 | O97: 13773 | P97: =P$25 -> 2607 | Q97: 2476
C98: 23312 | D98: 凝集+沈澱/前ろ過+オゾン+粒状炭+急速ろ過+紫外線+機械脱水機 | E98: 1.437 | F98: 29.602 | G98: 57204 | H98: 13157 | J98: 9840 | L98: 8156 | M98: 7195 | O98: 13773 | P98: =P$25 -> 2607 | Q98: 2476
C99: 23500 | D99: 粉末炭+凝集+沈澱/前ろ過+急速ろ過 | E99: 1 | F99: 20.607 | G99: 41570 | H99: 13157 | J99: 9840 | L99: 8156 | M99: 7195 | N99: =N$25 -> 3222
C100: 23501 | D100: 粉末炭+凝集+沈澱/前ろ過+急速ろ過+天日乾燥床 | E100: 1 | F100: 20.607 | G100: 41570 | H100: 13157 | J100: 9840 | L100: 8156 | M100: 7195 | N100: 3222
C101: 23502 | D101: 粉末炭+凝集+沈澱/前ろ過+急速ろ過+機械脱水機 | E101: 1 | F101: 20.607 | G101: 41570 | H101: 13157 | J101: 9840 | L101: 8156 | M101: 7195 | N101: 3222
C102: 23510 | D102: 粉末炭+凝集+沈澱/前ろ過+急速ろ過+紫外線 | E102: 1 | F102: 20.607 | G102: 44177 | H102: 13157 | J102: 9840 | L102: 8156 | M102: 7195 | N102: 3222 | P102: =P$25 -> 2607
C103: 23511 | D103: 粉末炭+凝集+沈澱/前ろ過+急速ろ過+紫外線+天日乾燥床 | E103: 1 | F103: 20.607 | G103: 44177 | H103: 13157 | J103: 9840 | L103: 8156 | M103: 7195 | N103: 3222 | P103: =P$25 -> 2607
C104: 23512 | D104: 粉末炭+凝集+沈澱/前ろ過+急速ろ過+紫外線+機械脱水機 | E104: 1 | F104: 20.607 | G104: 44177 | H104: 13157 | J104: 9840 | L104: 8156 | M104: 7195 | N104: 3222 | P104: =P$25 -> 2607
C105: 23700 | D105: 粉末炭+凝集+沈澱/前ろ過+粒状炭+急速ろ過 | E105: 1.437 | F105: 29.602 | G105: 55343 | H105: 13157 | J105: 9840 | L105: 8156 | M105: 7195 | N105: 3222 | O105: =O$25 -> 13773
C106: 23701 | D106: 粉末炭+凝集+沈澱/前ろ過+粒状炭+急速ろ過+天日乾燥床 | E106: 1.437 | F106: 29.602 | G106: 55343 | H106: 13157 | J106: 9840 | L106: 8156 | M106: 7195 | N106: 3222 | O106: 13773
C107: 23702 | D107: 粉末炭+凝集+沈澱/前ろ過+粒状炭+急速ろ過+機械脱水機 | E107: 1.437 | F107: 29.602 | G107: 55343 | H107: 13157 | J107: 9840 | L107: 8156 | M107: 7195 | N107: 3222 | O107: 13773
C108: 23710 | D108: 粉末炭+凝集+沈澱/前ろ過+粒状炭+急速ろ過+紫外線 | E108: 1.437 | F108: 29.602 | G108: 57950 | H108: 13157 | J108: 9840 | L108: 8156 | M108: 7195 | N108: 3222 | O108: 13773 | P108: =P$25 -> 2607
C109: 23711 | D109: 粉末炭+凝集+沈澱/前ろ過+粒状炭+急速ろ過+紫外線+天日乾燥床 | E109: 1.437 | F109: 29.602 | G109: 57950 | H109: 13157 | J109: 9840 | L109: 8156 | M109: 7195 | N109: 3222 | O109: 13773 | P109: =P$25 -> 2607
C110: 23712 | D110: 粉末炭+凝集+沈澱/前ろ過+粒状炭+急速ろ過+紫外線+機械脱水機 | E110: 1.437 | F110: 29.602 | G110: 57950 | H110: 13157 | J110: 9840 | L110: 8156 | M110: 7195 | N110: 3222 | O110: 13773 | P110: =P$25 -> 2607
C111: 23800 | D111: 粉末炭+凝集+沈澱/前ろ過+オゾン+粒状炭+急速ろ過 | E111: 1.437 | F111: 29.602 | G111: 57819 | H111: 13157 | J111: 9840 | L111: 8156 | M111: 7195 | N111: 3222 | O111: 13773 | Q111: =Q$25 -> 2476
C112: 23801 | D112: 粉末炭+凝集+沈澱/前ろ過+オゾン+粒状炭+急速ろ過+天日乾燥床 | E112: 1.437 | F112: 29.602 | G112: 57819 | H112: =H$25 -> 13157 | J112: 9840 | L112: 8156 | M112: 7195 | N112: 3222 | O112: 13773 | Q112: 2476
C113: 23802 | D113: 粉末炭+凝集+沈澱/前ろ過+オゾン+粒状炭+急速ろ過+機械脱水機 | E113: 1.437 | F113: 29.602 | G113: 57819 | H113: 13157 | J113: 9840 | L113: 8156 | M113: 7195 | N113: 3222 | O113: 13773 | Q113: 2476
C114: 23810 | D114: 粉末炭+凝集+沈澱/前ろ過+オゾン+粒状炭+急速ろ過+紫外線 | E114: 1.437 | F114: 29.602 | G114: 60426 | H114: 13157 | J114: 9840 | L114: 8156 | M114: 7195 | N114: 3222 | O114: 13773 | P114: =P$25 -> 2607 | Q114: 2476
C115: 23811 | D115: 粉末炭+凝集+沈澱/前ろ過+オゾン+粒状炭+急速ろ過+紫外線+天日乾燥床 | E115: 1.437 | F115: 29.602 | G115: 60426 | H115: 13157 | J115: 9840 | L115: 8156 | M115: 7195 | N115: 3222 | O115: 13773 | P115: =P$25 -> 2607 | Q115: 2476
C116: 23812 | D116: 粉末炭+凝集+沈澱/前ろ過+オゾン+粒状炭+急速ろ過+紫外線+機械脱水機 | E116: 1.437 | F116: 29.602 | G116: 60426 | H116: 13157 | J116: 9840 | L116: 8156 | M116: 7195 | N116: 3222 | O116: 13773 | P116: =P$25 -> 2607 | Q116: 2476
C117: 30000 | D117: 膜ろ過 | E117: 1.048 | F117: 21.586 | G117: 42370 | H117: 13157 | K117: =K$25 -> 29213
C118: 30001 | D118: 膜ろ過+天日乾燥床 | E118: 1.048 | F118: 21.586 | G118: 42370 | H118: 13157 | K118: 29213
C119: 30002 | D119: 膜ろ過+機械脱水機 | E119: 1.048 | F119: 21.586 | G119: 42370 | H119: 13157 | K119: 29213
C120: 30010 | D120: 膜ろ過+紫外線 | E120: 1.048 | F120: 21.586 | G120: 44977 | H120: 13157 | K120: 29213 | P120: =P$25 -> 2607
C121: 30011 | D121: 膜ろ過+紫外線+天日乾燥床 | E121: 1.048 | F121: 21.586 | G121: 44977 | H121: 13157 | K121: 29213 | P121: =P$25 -> 2607
C122: 30012 | D122: 膜ろ過+紫外線+機械脱水機 | E122: 1.048 | F122: 21.586 | G122: 44977 | H122: 13157 | K122: 29213 | P122: =P$25 -> 2607
C123: 30200 | D123: 粒状炭+膜ろ過 | E123: 1.346 | F123: 27.729 | G123: =SUM(H123:R123) -> 56143 | H123: 13157 | K123: 29213 | O123: =O$25 -> 13773
C124: 30201 | D124: 粒状炭+膜ろ過+天日乾燥床 | E124: 1.346 | F124: 27.729 | G124: 56143 | H124: 13157 | K124: 29213 | O124: 13773
C125: 30202 | D125: 粒状炭+膜ろ過+機械脱水機 | E125: 1.346 | F125: 27.729 | G125: 56143 | H125: 13157 | K125: 29213 | O125: 13773
C126: 30210 | D126: 粒状炭+膜ろ過+紫外線 | E126: 1.346 | F126: 27.729 | G126: 58750 | H126: 13157 | K126: 29213 | O126: 13773 | P126: =P$25 -> 2607
C127: 30211 | D127: 粒状炭+膜ろ過+紫外線+天日乾燥床 | E127: 1.346 | F127: 27.729 | G127: 58750 | H127: 13157 | K127: 29213 | O127: 13773 | P127: =P$25 -> 2607
C128: 30212 | D128: 粒状炭+膜ろ過+紫外線+機械脱水機 | E128: 1.346 | F128: 27.729 | G128: 58750 | H128: 13157 | K128: 29213 | O128: 13773 | P128: =P$25 -> 2607
C129: 30700 | D129: 粉末炭+粒状炭+膜ろ過 | E129: 0 | G129: 59365 | H129: 13157 | K129: 29213 | N129: =N$25 -> 3222 | O129: 13773
C130: 30701 | D130: 粉末炭+粒状炭+膜ろ過+天日乾燥床 | E130: 0 | G130: 59365 | H130: 13157 | K130: 29213 | N130: 3222 | O130: 13773
C131: 30702 | D131: 粉末炭+粒状炭+膜ろ過+機械脱水機 | E131: 0 | G131: 59365 | H131: 13157 | K131: 29213 | N131: 3222 | O131: 13773
C132: 30710 | D132: 粉末炭+粒状炭+膜ろ過+紫外線 | E132: 0 | G132: 61972 | H132: 13157 | K132: 29213 | N132: 3222 | O132: 13773 | P132: =P$25 -> 2607
C133: 30711 | D133: 粉末炭+粒状炭+膜ろ過+紫外線+天日乾燥床 | E133: 0 | G133: 61972 | H133: 13157 | K133: 29213 | N133: 3222 | O133: 13773 | P133: =P$25 -> 2607
C134: 30712 | D134: 粉末炭+粒状炭+膜ろ過+紫外線+機械脱水機 | E134: 0 | G134: 61972 | H134: 13157 | K134: 29213 | N134: 3222 | O134: 13773 | P134: =P$25 -> 2607
C135: 32000 | D135: 凝集+膜ろ過 | E135: 1.048 | F135: 21.586 | G135: 49565 | H135: 13157 | K135: 29213 | M135: =M$25 -> 7195
C136: 32001 | D136: 凝集+膜ろ過+天日乾燥床 | E136: 1.048 | F136: 21.586 | G136: 49565 | H136: 13157 | K136: 29213 | M136: 7195
C137: 32002 | D137: 凝集+膜ろ過+機械脱水機 | E137: 1.048 | F137: 21.586 | G137: 49565 | H137: 13157 | K137: 29213 | M137: 7195
C138: 32010 | D138: 凝集+膜ろ過+紫外線 | E138: 1.048 | F138: 21.586 | G138: 52172 | H138: 13157 | K138: 29213 | M138: 7195 | P138: =P$25 -> 2607
C139: 32011 | D139: 凝集+膜ろ過+紫外線+天日乾燥床 | E139: 1.048 | F139: 21.586 | G139: 52172 | H139: 13157 | K139: 29213 | M139: 7195 | P139: =P$25 -> 2607
C140: 32012 | D140: 凝集+膜ろ過+紫外線+機械脱水機 | E140: 1.048 | F140: 21.586 | G140: 52172 | H140: 13157 | K140: 29213 | M140: 7195 | P140: =P$25 -> 2607
C141: 32200 | D141: 凝集+粒状炭+膜ろ過 | E141: 1.346 | F141: 27.729 | G141: 63338 | H141: 13157 | K141: 29213 | M141: 7195 | O141: =O$25 -> 13773
C142: 32201 | D142: 凝集+粒状炭+膜ろ過+天日乾燥床 | E142: 1.346 | F142: 27.729 | G142: 63338 | H142: 13157 | K142: 29213 | M142: 7195 | O142: 13773
C143: 32202 | D143: 凝集+粒状炭+膜ろ過+機械脱水機 | E143: 1.346 | F143: 27.729 | G143: 63338 | H143: 13157 | K143: 29213 | M143: 7195 | O143: 13773
C144: 32210 | D144: 凝集+粒状炭+膜ろ過+紫外線 | E144: 1.346 | F144: 27.729 | G144: 65945 | H144: =H$25 -> 13157 | K144: 29213 | M144: 7195 | O144: 13773 | P144: =P$25 -> 2607
C145: 32211 | D145: 凝集+粒状炭+膜ろ過+紫外線+天日乾燥床 | E145: 1.346 | F145: 27.729 | G145: 65945 | H145: 13157 | K145: 29213 | M145: 7195 | O145: 13773 | P145: =P$25 -> 2607
C146: 32212 | D146: 凝集+粒状炭+膜ろ過+紫外線+機械脱水機 | E146: 1.346 | F146: 27.729 | G146: 65945 | H146: 13157 | K146: 29213 | M146: 7195 | O146: 13773 | P146: =P$25 -> 2607
C147: 32500 | D147: 粉末炭+凝集+膜ろ過 | E147: 1.048 | F147: 21.586 | G147: 52787 | H147: 13157 | K147: 29213 | M147: 7195 | N147: =N$25 -> 3222
C148: 32501 | D148: 粉末炭+凝集+膜ろ過+天日乾燥床 | E148: 1.048 | F148: 21.586 | G148: 52787 | H148: 13157 | K148: 29213 | M148: 7195 | N148: 3222
C149: 32502 | D149: 粉末炭+凝集+膜ろ過+機械脱水機 | E149: 1.048 | F149: 21.586 | G149: 52787 | H149: 13157 | K149: =K$25 -> 29213 | M149: 7195 | N149: 3222
C150: 32510 | D150: 粉末炭+凝集+膜ろ過+紫外線 | E150: 1.048 | F150: 21.586 | G150: 55394 | H150: 13157 | K150: 29213 | M150: 7195 | N150: 3222 | P150: =P$25 -> 2607
C151: 32511 | D151: 粉末炭+凝集+膜ろ過+紫外線+天日乾燥床 | E151: 1.048 | F151: 21.586 | G151: 55394 | H151: 13157 | K151: 29213 | M151: 7195 | N151: 3222 | P151: =P$25 -> 2607
C152: 32512 | D152: 粉末炭+凝集+膜ろ過+紫外線+機械脱水機 | E152: 1.048 | F152: 21.586 | G152: 55394 | H152: 13157 | K152: 29213 | M152: 7195 | N152: 3222 | P152: =P$25 -> 2607
C153: 32700 | D153: 粉末炭+凝集+粒状炭+膜ろ過 | E153: 0 | G153: 66560 | H153: 13157 | K153: 29213 | M153: 7195 | N153: 3222 | O153: =O$25 -> 13773
C154: 32701 | D154: 粉末炭+凝集+粒状炭+膜ろ過+天日乾燥床 | E154: 0 | G154: 66560 | H154: 13157 | K154: 29213 | M154: 7195 | N154: 3222 | O154: 13773
C155: 32702 | D155: 粉末炭+凝集+粒状炭+膜ろ過+機械脱水機 | E155: 0 | G155: =SUM(H155:R155) -> 66560 | H155: 13157 | K155: 29213 | M155: 7195 | N155: 3222 | O155: 13773
C156: 32710 | D156: 粉末炭+凝集+粒状炭+膜ろ過+紫外線 | E156: =ROUNDUP(F156/$F$81,3) -> 0 | G156: 69167 | H156: 13157 | K156: 29213 | M156: 7195 | N156: 3222 | O156: 13773 | P156: =P$25 -> 2607
C157: 32711 | D157: 粉末炭+凝集+粒状炭+膜ろ過+紫外線+天日乾燥床 | E157: 0 | G157: 69167 | H157: 13157 | K157: 29213 | M157: 7195 | N157: 3222 | O157: 13773 | P157: =P$25 -> 2607
C158: 32712 | D158: 粉末炭+凝集+粒状炭+膜ろ過+紫外線+機械脱水機 | E158: 0 | G158: 69167 | H158: 13157 | K158: 29213 | M158: 7195 | N158: 3222 | O158: 13773 | P158: =P$25 -> 2607
C159: 33000 | D159: 凝集+沈澱/前ろ過+膜ろ過 | E159: 1.048 | F159: 21.586 | G159: 57721 | H159: 13157 | K159: 29213 | L159: =L$25 -> 8156 | M159: 7195
C160: 33001 | D160: 凝集+沈澱/前ろ過+膜ろ過+天日乾燥床 | E160: 1.048 | F160: 21.586 | G160: 57721 | H160: 13157 | K160: 29213 | L160: 8156 | M160: 7195
C161: 33002 | D161: 凝集+沈澱/前ろ過+膜ろ過+機械脱水機 | E161: 1.048 | F161: 21.586 | G161: 57721 | H161: 13157 | K161: 29213 | L161: 8156 | M161: 7195
C162: 33010 | D162: 凝集+沈澱/前ろ過+膜ろ過+紫外線 | E162: 1.048 | F162: 21.586 | G162: 60328 | H162: 13157 | K162: 29213 | L162: 8156 | M162: 7195 | P162: =P$25 -> 2607
C163: 33011 | D163: 凝集+沈澱/前ろ過+膜ろ過+紫外線+天日乾燥床 | E163: 1.048 | F163: 21.586 | G163: 60328 | H163: 13157 | K163: 29213 | L163: 8156 | M163: 7195 | P163: =P$25 -> 2607
C164: 33012 | D164: 凝集+沈澱/前ろ過+膜ろ過+紫外線+機械脱水機 | E164: 1.048 | F164: 21.586 | G164: 60328 | H164: 13157 | K164: 29213 | L164: 8156 | M164: 7195 | P164: =P$25 -> 2607
C165: 33200 | D165: 凝集+沈澱/前ろ過+粒状炭+膜ろ過 | E165: 1.346 | F165: 27.729 | G165: 71494 | H165: 13157 | K165: 29213 | L165: 8156 | M165: 7195 | O165: =O$25 -> 13773
C166: 33201 | D166: 凝集+沈澱/前ろ過+粒状炭+膜ろ過+天日乾燥床 | E166: 1.346 | F166: 27.729 | G166: 71494 | H166: 13157 | K166: 29213 | L166: 8156 | M166: 7195 | O166: 13773
C167: 33202 | D167: 凝集+沈澱/前ろ過+粒状炭+膜ろ過+機械脱水機 | E167: 1.346 | F167: 27.729 | G167: 71494 | H167: 13157 | K167: 29213 | L167: 8156 | M167: =M$25 -> 7195 | O167: 13773
C168: 33210 | D168: 凝集+沈澱/前ろ過+粒状炭+膜ろ過+紫外線 | E168: 1.346 | F168: 27.729 | G168: 74101 | H168: 13157 | K168: 29213 | L168: 8156 | M168: 7195 | O168: 13773 | P168: =P$25 -> 2607
C169: 33211 | D169: 凝集+沈澱/前ろ過+粒状炭+膜ろ過+紫外線+天日乾燥床 | E169: 1.346 | F169: 27.729 | G169: 74101 | H169: 13157 | K169: 29213 | L169: 8156 | M169: 7195 | O169: 13773 | P169: =P$25 -> 2607
C170: 33212 | D170: 凝集+沈澱/前ろ過+粒状炭+膜ろ過+紫外線+機械脱水機 | E170: 1.346 | F170: 27.729 | G170: 74101 | H170: 13157 | K170: 29213 | L170: 8156 | M170: 7195 | O170: 13773 | P170: =P$25 -> 2607
C171: 33300 | D171: 凝集+沈澱/前ろ過+オゾン+粒状炭+膜ろ過 | E171: 1.346 | F171: 27.729 | G171: 73970 | H171: 13157 | K171: 29213 | L171: 8156 | M171: 7195 | O171: 13773 | Q171: =Q$25 -> 2476
C172: 33301 | D172: 凝集+沈澱/前ろ過+オゾン+粒状炭+膜ろ過+天日乾燥床 | E172: 1.346 | F172: 27.729 | G172: 73970 | H172: 13157 | K172: 29213 | L172: 8156 | M172: 7195 | O172: 13773 | Q172: 2476
C173: 33302 | D173: 凝集+沈澱/前ろ過+オゾン+粒状炭+膜ろ過+機械脱水機 | E173: 1.346 | F173: 27.729 | G173: 73970 | H173: 13157 | K173: 29213 | L173: 8156 | M173: 7195 | O173: 13773 | Q173: 2476
C174: 33310 | D174: 凝集+沈澱/前ろ過+オゾン+粒状炭+膜ろ過+紫外線 | E174: 1.346 | F174: 27.729 | G174: 76577 | H174: 13157 | K174: 29213 | L174: 8156 | M174: 7195 | O174: 13773 | P174: =P$25 -> 2607 | Q174: 2476
C175: 33311 | D175: 凝集+沈澱/前ろ過+オゾン+粒状炭+膜ろ過+紫外線+天日乾燥床 | E175: 1.346 | F175: 27.729 | G175: 76577 | H175: 13157 | K175: 29213 | L175: 8156 | M175: 7195 | O175: 13773 | P175: =P$25 -> 2607 | Q175: 2476
C176: 33312 | D176: 凝集+沈澱/前ろ過+オゾン+粒状炭+膜ろ過+紫外線+機械脱水機 | E176: 1.346 | F176: 27.729 | G176: 76577 | H176: =H$25 -> 13157 | K176: 29213 | L176: 8156 | M176: 7195 | O176: 13773 | P176: =P$25 -> 2607 | Q176: 2476
C177: 33500 | D177: 粉末炭+凝集+沈澱/前ろ過+膜ろ過 | E177: 1.048 | F177: 21.586 | G177: 60943 | H177: 13157 | K177: 29213 | L177: 8156 | M177: 7195 | N177: =N$25 -> 3222
C178: 33501 | D178: 粉末炭+凝集+沈澱/前ろ過+膜ろ過+天日乾燥床 | E178: 1.048 | F178: 21.586 | G178: 60943 | H178: 13157 | K178: 29213 | L178: 8156 | M178: 7195 | N178: 3222
C179: 33502 | D179: 粉末炭+凝集+沈澱/前ろ過+膜ろ過+機械脱水機 | E179: 1.048 | F179: 21.586 | G179: 60943 | H179: 13157 | K179: 29213 | L179: 8156 | M179: 7195 | N179: 3222
C180: 33510 | D180: 粉末炭+凝集+沈澱/前ろ過+膜ろ過+紫外線 | E180: 1.048 | F180: 21.586 | G180: 63550 | H180: 13157 | K180: 29213 | L180: 8156 | M180: 7195 | N180: 3222 | P180: =P$25 -> 2607
C181: 33511 | D181: 粉末炭+凝集+沈澱/前ろ過+膜ろ過+紫外線+天日乾燥床 | E181: 1.048 | F181: 21.586 | G181: 63550 | H181: 13157 | K181: =K$25 -> 29213 | L181: 8156 | M181: 7195 | N181: 3222 | P181: =P$25 -> 2607
C182: 33512 | D182: 粉末炭+凝集+沈澱/前ろ過+膜ろ過+紫外線+機械脱水機 | E182: 1.048 | F182: 21.586 | G182: 63550 | H182: 13157 | K182: 29213 | L182: 8156 | M182: 7195 | N182: 3222 | P182: =P$25 -> 2607
C183: 33700 | D183: 粉末炭+凝集+沈澱/前ろ過+粒状炭+膜ろ過 | E183: 0 | G183: 74716 | H183: 13157 | K183: 29213 | L183: 8156 | M183: 7195 | N183: 3222 | O183: =O$25 -> 13773
C184: 33701 | D184: 粉末炭+凝集+沈澱/前ろ過+粒状炭+膜ろ過+天日乾燥床 | E184: 0 | G184: 74716 | H184: 13157 | K184: 29213 | L184: 8156 | M184: 7195 | N184: 3222 | O184: 13773
C185: 33702 | D185: 粉末炭+凝集+沈澱/前ろ過+粒状炭+膜ろ過+機械脱水機 | E185: 0 | G185: 74716 | H185: 13157 | K185: 29213 | L185: 8156 | M185: 7195 | N185: 3222 | O185: 13773
C186: 33710 | D186: 粉末炭+凝集+沈澱/前ろ過+粒状炭+膜ろ過+紫外線 | E186: 0 | G186: 77323 | H186: 13157 | K186: 29213 | L186: 8156 | M186: 7195 | N186: 3222 | O186: 13773 | P186: =P$25 -> 2607
C187: 33711 | D187: 粉末炭+凝集+沈澱/前ろ過+粒状炭+膜ろ過+紫外線+天日乾燥床 | E187: 0 | G187: =SUM(H187:R187) -> 77323 | H187: 13157 | K187: 29213 | L187: 8156 | M187: 7195 | N187: 3222 | O187: 13773 | P187: =P$25 -> 2607
C188: 33712 | D188: 粉末炭+凝集+沈澱/前ろ過+粒状炭+膜ろ過+紫外線+機械脱水機 | E188: 0 | G188: 77323 | H188: 13157 | K188: 29213 | L188: 8156 | M188: 7195 | N188: 3222 | O188: 13773 | P188: =P$25 -> 2607
C189: 33800 | D189: 粉末炭+凝集+沈澱/前ろ過+オゾン+粒状炭+膜ろ過 | E189: 0 | G189: 77192 | H189: 13157 | K189: 29213 | L189: 8156 | M189: 7195 | N189: 3222 | O189: 13773 | Q189: =Q$25 -> 2476
C190: 33801 | D190: 粉末炭+凝集+沈澱/前ろ過+オゾン+粒状炭+膜ろ過+天日乾燥床 | E190: 0 | G190: 77192 | H190: 13157 | K190: 29213 | L190: 8156 | M190: 7195 | N190: 3222 | O190: 13773 | Q190: 2476
C191: 33802 | D191: 粉末炭+凝集+沈澱/前ろ過+オゾン+粒状炭+膜ろ過+機械脱水機 | E191: 0 | G191: 77192 | H191: 13157 | K191: 29213 | L191: 8156 | M191: 7195 | N191: 3222 | O191: 13773 | Q191: 2476
C192: 33810 | D192: 粉末炭+凝集+沈澱/前ろ過+オゾン+粒状炭+膜ろ過+紫外線 | E192: 0 | G192: 79799 | H192: 13157 | K192: 29213 | L192: 8156 | M192: 7195 | N192: 3222 | O192: 13773 | P192: =P$25 -> 2607 | Q192: 2476
C193: 33811 | D193: 粉末炭+凝集+沈澱/前ろ過+オゾン+粒状炭+膜ろ過+紫外線+天日乾燥床 | E193: 0 | G193: 79799 | H193: 13157 | K193: 29213 | L193: 8156 | M193: 7195 | N193: 3222 | O193: 13773 | P193: =P$25 -> 2607 | Q193: 2476
C194: 33812 | D194: 粉末炭+凝集+沈澱/前ろ過+オゾン+粒状炭+膜ろ過+紫外線+機械脱水機 | E194: 0 | G194: 79799 | H194: 13157 | K194: 29213 | L194: 8156 | M194: 7195 | N194: 3222 | O194: 13773 | P194: =P$25 -> 2607 | Q194: 2476
C195: 90000 | D195: 消毒のみ | E195: 0.949 | F195: 19.556 | G195: 13157 | H195: 13157
C196: 90010 | D196: 紫外線+消毒 | E196: 0.949 | F196: 19.556 | G196: 15764 | H196: 13157 | P196: =P$25 -> 2607
C199: 例えば、粉末炭+凝集+沈澱/前ろ過+急速ろ過から凝集+沈澱/前ろ過+粒状炭+膜ろ過+紫外線へする場合
D200: (浄水量 25000→20000）
C201: 23500 | D201: =VLOOKUP($C201,$C$27:$E$196,2,FALSE) -> 粉末炭+凝集+沈澱/前ろ過+急速ろ過 | E201: =VLOOKUP($C201,$C$27:$E$196,3,FALSE) -> 1
D202: 25000m3/日 | E202: =$M$7*25000*365*50 -> 0
D203: 20000m3/日 | E203: =$M$7*20000*365*50 -> 0
C205: 33210 | D205: =VLOOKUP($C205,$C$27:$E$196,2,FALSE) -> 凝集+沈澱/前ろ過+粒状炭+膜ろ過+紫外線 | E205: =VLOOKUP($C205,$C$27:$E$196,3,FALSE) -> 1.346
D206: 25000m3/日 | E206: =$M$7*25000*365*50*(E205/E201) -> 0
... 33 more rows

Sheet 経年故障率表 (hidden)
D1: 耐用年数 | E1: 更新率 | F1: 故障率 | K1: 耐用年数 | L1: 更新率 | M1: 故障率
E2: =IF(Rng更新年ChkDt=1,RngEnchou機械,1) -> 1.370990442 | F2: 1.37 | L2: =IF(Rng更新年ChkDt=1,RngEnchou電気,1) -> 1.775606712 | M2: 1.33
B3: (年) | D3: =+耐用年数変更!S13 -> 15 | E3: =ROUND(+D3*E2,0) -> 21 | F3: =ROUND(+D3*F2,0)+1 -> 22 | I3: (年) | K3: =+耐用年数変更!S12 -> 15 | L3: =ROUND(+K3*L2,0) -> 27 | M3: =ROUND(+K3*M2,0)+1 -> 21
D8: ■リスク損害額
D11: 経過 | E11: 機械設備 | K11: 経過 | L11: 電気設備
B13: (年) | D13: 年数 | E13: 更新率 | F13: 故障率及び 修繕費係数 | G13: 修繕実施 | I13: (年) | K13: 年数 | L13: 更新率 | M13: 故障率及び 修繕費係数 | N13: 修繕実施
B14: =+'入力情報(1)'!H44 -> 0 | C14: =B14+1 -> 1 | D14: 0 | E14: =VLOOKUP(D14,Rng更新率表,2,FALSE)/$E$2/100 -> 0.0005347586513 | F14: 0 | G14: =IF(F14<>0,"修繕","") ->  | I14: =+'入力情報(1)'!H43 -> 0 | K14: 0 | L14: =VLOOKUP(K14,Rng更新率表,3,FALSE)/$L$2/100 -> 0.0004873119861 | M14: 0 | N14: =IF(M14<>0,"修繕","") -> 
B15: =B14+1 -> 1 | C15: =B15+1 -> 2 | D15: =D14+1 -> 1 | E15: 0.001263776421 | F15: 0 | I15: =I14+1 -> 1 | K15: =K14+1 -> 1 | L15: 0.001135698972 | M15: 0
B16: =B15+1 -> 2 | C16: 3 | D16: 2 | E16: 0.002245580559 | F16: 0 | I16: =I15+1 -> 2 | K16: 2 | L16: 0.001989025055 | M16: 0
B17: 3 | C17: 4 | D17: 3 | E17: 0.003551805741 | F17: 0 | I17: 3 | K17: 3 | L17: 0.003099859367 | M17: 0
B18: 4 | C18: 5 | D18: 4 | E18: 0.005268597795 | F18: 0 | I18: 4 | K18: 4 | L18: 0.00453019213 | M18: 0
B19: 5 | C19: 6 | D19: 5 | E19: 0.007497668205 | F19: 0 | I19: 5 | K19: 5 | L19: 0.006351898691 | M19: 0
B20: 6 | C20: 7 | D20: 6 | E20: 0.01035681417 | F20: 0 | I20: 6 | K20: 6 | L20: 0.008646849035 | M20: 0
B21: 7 | C21: 8 | D21: 7 | E21: 0.0139797056 | F21: 0 | I21: 7 | K21: 7 | L21: 0.01150655709 | M21: 0
B22: 8 | C22: 9 | D22: 8 | E22: 0.01851474181 | F22: 0 | I22: 8 | K22: 8 | L22: 0.0150312691 | M22: 0
B23: 9 | C23: 10 | D23: 9 | E23: 0.02412280176 | F23: 0 | I23: 9 | K23: 9 | L23: 0.01932840526 | M23: 0
B24: 10 | C24: 11 | D24: 10 | E24: 0.03097375474 | F24: 0 | I24: 10 | K24: 10 | L24: 0.02451029448 | M24: 0
B25: 11 | C25: 12 | D25: 11 | E25: 0.03924166539 | F25: 0 | I25: 11 | K25: 11 | L25: 0.03069117957 | M25: 0
B26: 12 | C26: 13 | D26: 12 | E26: 0.04909871658 | F26: 0 | I26: 12 | K26: 12 | L26: 0.0379835169 | M26: 0
B27: 13 | C27: 14 | D27: 13 | E27: 0.06070798088 | F27: 0 | I27: 13 | K27: 13 | L27: 0.04649365024 | M27: 0
B28: 14 | C28: 15 | D28: 14 | E28: 0.07421528985 | F28: 0 | I28: 14 | K28: 14 | L28: 0.05631699791 | M28: 0
B29: 15 | C29: 16 | D29: 15 | E29: 0.08974056906 | F29: 0 | I29: 15 | K29: 15 | L29: 0.06753295141 | M29: 0
B30: 16 | C30: 17 | D30: 16 | E30: 0.1073691135 | F30: 0 | I30: 16 | K30: 16 | L30: 0.08019973702 | M30: 0
B31: 17 | C31: 18 | D31: 17 | E31: 0.1271433597 | F31: 0 | I31: 17 | K31: 17 | L31: 0.09434953289 | M31: 0
B32: 18 | C32: 19 | D32: 18 | E32: 0.1490557558 | F32: 0 | I32: 18 | K32: 18 | L32: 0.1099841577 | M32: 0
B33: 19 | C33: 20 | D33: 19 | E33: 0.1730433257 | F33: 0 | I33: 19 | K33: 19 | L33: 0.1270716483 | M33: 0
B34: 20 | C34: 21 | D34: 20 | E34: 0.1989844673 | F34: 0 | I34: 20 | K34: 20 | L34: 0.1455440196 | M34: 0
B35: 21 | C35: 22 | D35: 21 | E35: 0.2266984132 | F35: 0 | I35: 21 | K35: 21 | L35: 0.1652964502 | M35: 0
B36: 22 | C36: 23 | D36: 22 | E36: 0.2559476202 | F36: 0 | I36: 22 | K36: 22 | L36: 0.1861880632 | M36: 0
B37: 23 | C37: 24 | D37: 23 | E37: 0.2864431565 | F37: 0 | I37: 23 | K37: 23 | L37: 0.208044378 | M37: 0
B38: 24 | C38: 25 | D38: 24 | E38: 0.3178529372 | F38: 0 | I38: 24 | K38: 24 | L38: 0.2306614008 | M38: 0
B39: 25 | C39: 26 | D39: 25 | E39: 0.3498124376 | F39: 0 | I39: 25 | K39: 25 | L39: 0.2538112129 | M39: 0
B40: 26 | C40: 27 | D40: 26 | E40: 0.3819373173 | F40: 0 | I40: 26 | K40: 26 | L40: 0.2772488076 | M40: 0
B41: 27 | C41: 28 | D41: 27 | E41: 0.4138372294 | F41: 0 | I41: 27 | K41: 27 | L41: 0.3007198374 | M41: 0
B42: 28 | C42: 29 | D42: 28 | E42: 0.4451299925 | F42: 0 | I42: 28 | K42: 28 | L42: 0.3239688645 | M42: 0
B43: 29 | C43: 30 | D43: 0 | E43: 0.0005347586513 | F43: 0 | I43: 29 | K43: 29 | L43: 0.3467476706 | M43: 0
B44: 30 | C44: 31 | D44: 1 | E44: 0.001263776421 | F44: 0 | I44: 30 | K44: 30 | L44: 0.3688231765 | M44: 0
B45: 31 | C45: 32 | D45: 2 | E45: 0.002245580559 | F45: 0 | I45: 31 | K45: 31 | L45: 0.3899845528 | M45: 0
B46: 32 | C46: 33 | D46: 3 | E46: =VLOOKUP(D46,Rng更新率表,2,FALSE)/$E$2/100 -> 0.003551805741 | F46: 0 | G46: =IF(F46<>0,"修繕","") ->  | I46: 32 | K46: 32 | L46: =VLOOKUP(K46,Rng更新率表,3,FALSE)/$L$2/100 -> 0.4100491612 | M46: 0 | N46: =IF(M46<>0,"修繕","") -> 
B47: 33 | C47: 34 | D47: =D46+1 -> 4 | E47: 0.005268597795 | F47: 0 | I47: 33 | K47: =K46+1 -> 33 | L47: 0.4288670546 | M47: 0
B48: 34 | C48: 35 | D48: 5 | E48: 0.007497668205 | F48: 0 | I48: 34 | K48: 0 | L48: 0.0004873119861 | M48: 0
B49: 35 | C49: 36 | D49: 6 | E49: 0.01035681417 | F49: 0 | I49: 35 | K49: 1 | L49: 0.001135698972 | M49: 0
B50: 36 | C50: 37 | D50: 7 | E50: 0.0139797056 | F50: 0 | I50: 36 | K50: 2 | L50: 0.001989025055 | M50: 0
B51: 37 | C51: 38 | D51: 8 | E51: 0.01851474181 | F51: 0 | I51: 37 | K51: 3 | L51: 0.003099859367 | M51: 0
B52: 38 | C52: 39 | D52: 9 | E52: 0.02412280176 | F52: 0 | I52: 38 | K52: 4 | L52: 0.00453019213 | M52: 0
B53: 39 | C53: 40 | D53: 10 | E53: 0.03097375474 | F53: 0 | I53: 39 | K53: 5 | L53: 0.006351898691 | M53: 0
B54: 40 | C54: 41 | D54: 11 | E54: 0.03924166539 | F54: 0 | I54: 40 | K54: 6 | L54: 0.008646849035 | M54: 0
B55: 41 | C55: 42 | D55: 12 | E55: 0.04909871658 | F55: 0 | I55: 41 | K55: 7 | L55: 0.01150655709 | M55: 0
B56: 42 | C56: 43 | D56: 13 | E56: 0.06070798088 | F56: 0 | I56: 42 | K56: 8 | L56: 0.0150312691 | M56: 0
B57: 43 | C57: 44 | D57: 14 | E57: 0.07421528985 | F57: 0 | I57: 43 | K57: 9 | L57: 0.01932840526 | M57: 0
B58: 44 | C58: 45 | D58: 15 | E58: 0.08974056906 | F58: 0 | I58: 44 | K58: 10 | L58: 0.02451029448 | M58: 0
B59: 45 | C59: 46 | D59: 16 | E59: 0.1073691135 | F59: 0 | I59: 45 | K59: 11 | L59: 0.03069117957 | M59: 0
B60: 46 | C60: 47 | D60: 17 | E60: 0.1271433597 | F60: 0 | I60: 46 | K60: 12 | L60: 0.0379835169 | M60: 0
B61: 47 | C61: 48 | D61: 18 | E61: 0.1490557558 | F61: 0 | I61: 47 | K61: 13 | L61: 0.04649365024 | M61: 0
B62: 48 | C62: 49 | D62: 19 | E62: 0.1730433257 | F62: 0 | I62: 48 | K62: 14 | L62: 0.05631699791 | M62: 0
B63: 49 | C63: 50 | D63: 20 | E63: 0.1989844673 | F63: 0 | I63: 49 | K63: 15 | L63: 0.06753295141 | M63: 0
B64: 50 | C64: 51 | D64: 21 | E64: 0.2266984132 | F64: 0 | I64: 50 | K64: 16 | L64: 0.08019973702 | M64: 0
B65: 51 | C65: 52 | D65: 0 | E65: 0.0005347586513 | F65: 0 | I65: 51 | K65: 17 | L65: 0.09434953289 | M65: 0
B66: 52 | C66: 53 | D66: 1 | E66: 0.001263776421 | F66: 0 | I66: 52 | K66: 18 | L66: 0.1099841577 | M66: 0
B67: 53 | C67: 54 | D67: 2 | E67: 0.002245580559 | F67: 0 | I67: 53 | K67: 19 | L67: 0.1270716483 | M67: 0
B68: 54 | C68: 55 | D68: 3 | E68: 0.003551805741 | F68: 0 | I68: 54 | K68: 20 | L68: 0.1455440196 | M68: 0
B69: 55 | C69: 56 | D69: 4 | E69: 0.005268597795 | F69: 0 | I69: 55 | K69: 21 | L69: 0.1652964502 | M69: =VLOOKUP(K69,Rng更新率表,3,FALSE)/$L$2/100 -> 0.1652964502 | N69: 修繕
B70: 56 | C70: 57 | D70: 5 | E70: 0.007497668205 | F70: 0 | I70: 56 | K70: 22 | L70: 0.1861880632 | M70: 0.1861880632 | N70: 修繕
B71: 57 | C71: 58 | D71: 6 | E71: 0.01035681417 | F71: 0 | I71: 57 | K71: 23 | L71: 0.208044378 | M71: 0.208044378 | N71: 修繕
B72: 58 | C72: 59 | D72: 7 | E72: 0.0139797056 | F72: 0 | I72: 58 | K72: 24 | L72: 0.2306614008 | M72: 0.2306614008 | N72: 修繕
B73: 59 | C73: 60 | D73: 8 | E73: 0.01851474181 | F73: 0 | I73: 59 | K73: 25 | L73: 0.2538112129 | M73: 0.2538112129 | N73: 修繕
B74: 60 | C74: 61 | D74: 9 | E74: 0.02412280176 | F74: 0 | I74: 60 | K74: 26 | L74: 0.2772488076 | M74: 0.2772488076 | N74: 修繕
B75: 61 | C75: 62 | D75: 10 | E75: 0.03097375474 | F75: 0 | I75: 61 | K75: 27 | L75: 0.3007198374 | M75: 0.3007198374 | N75: 修繕
B76: 62 | C76: 63 | D76: 11 | E76: 0.03924166539 | F76: 0 | I76: 62 | K76: 28 | L76: 0.3239688645 | M76: 0.3239688645 | N76: 修繕
B77: 63 | C77: 64 | D77: 12 | E77: 0.04909871658 | F77: 0 | I77: 63 | K77: 0 | L77: 0.0004873119861 | M77: 0
B78: 64 | C78: 65 | D78: 13 | E78: =VLOOKUP(D78,Rng更新率表,2,FALSE)/$E$2/100 -> 0.06070798088 | F78: 0 | G78: =IF(F78<>0,"修繕","") ->  | I78: 64 | K78: 1 | L78: =VLOOKUP(K78,Rng更新率表,3,FALSE)/$L$2/100 -> 0.001135698972 | M78: 0 | N78: =IF(M78<>0,"修繕","") -> 
B79: 65 | C79: =B79+1 -> 66 | D79: =D78+1 -> 14 | E79: 0.07421528985 | F79: 0 | I79: 65 | K79: =K78+1 -> 2 | L79: 0.001989025055 | M79: 0
B80: =B79+1 -> 66 | C80: 67 | D80: 15 | E80: 0.08974056906 | F80: 0 | I80: =I79+1 -> 66 | K80: 3 | L80: 0.003099859367 | M80: 0
B81: 67 | C81: 68 | D81: 16 | E81: 0.1073691135 | F81: 0 | I81: 67 | K81: 4 | L81: 0.00453019213 | M81: 0
B82: 68 | C82: 69 | D82: 17 | E82: 0.1271433597 | F82: 0 | I82: 68 | K82: 5 | L82: 0.006351898691 | M82: 0
B83: 69 | C83: 70 | D83: 18 | E83: 0.1490557558 | F83: 0 | I83: 69 | K83: 6 | L83: 0.008646849035 | M83: 0
B84: 70 | C84: 71 | D84: 19 | E84: 0.1730433257 | F84: 0 | I84: 70 | K84: 7 | L84: 0.01150655709 | M84: 0
B85: 71 | C85: 72 | D85: 20 | E85: 0.1989844673 | F85: 0 | I85: 71 | K85: 8 | L85: 0.0150312691 | M85: 0
B86: 72 | C86: 73 | D86: 21 | E86: 0.2266984132 | F86: 0 | I86: 72 | K86: 9 | L86: 0.01932840526 | M86: 0
B87: 73 | C87: 74 | D87: 0 | E87: 0.0005347586513 | F87: 0 | I87: 73 | K87: 10 | L87: 0.02451029448 | M87: 0
B88: 74 | C88: 75 | D88: 1 | E88: 0.001263776421 | F88: 0 | I88: 74 | K88: 11 | L88: 0.03069117957 | M88: 0
B89: 75 | C89: 76 | D89: 2 | E89: 0.002245580559 | F89: 0 | I89: 75 | K89: 12 | L89: 0.0379835169 | M89: 0
B90: 76 | C90: 77 | D90: 3 | E90: 0.003551805741 | F90: 0 | I90: 76 | K90: 13 | L90: 0.04649365024 | M90: 0
B91: 77 | C91: 78 | D91: 4 | E91: 0.005268597795 | F91: 0 | I91: 77 | K91: 14 | L91: 0.05631699791 | M91: 0
B92: 78 | C92: 79 | D92: 5 | E92: 0.007497668205 | F92: 0 | I92: 78 | K92: 15 | L92: 0.06753295141 | M92: 0
B93: 79 | C93: 80 | D93: 6 | E93: 0.01035681417 | F93: 0 | I93: 79 | K93: 16 | L93: 0.08019973702 | M93: 0
B94: 80 | C94: 81 | D94: 7 | E94: 0.0139797056 | F94: 0 | I94: 80 | K94: 17 | L94: 0.09434953289 | M94: 0
B95: 81 | C95: 82 | D95: 8 | E95: 0.01851474181 | F95: 0 | I95: 81 | K95: 18 | L95: 0.1099841577 | M95: 0
B96: 82 | C96: 83 | D96: 9 | E96: 0.02412280176 | F96: 0 | I96: 82 | K96: 19 | L96: 0.1270716483 | M96: 0
B97: 83 | C97: 84 | D97: 10 | E97: 0.03097375474 | F97: 0 | I97: 83 | K97: 20 | L97: 0.1455440196 | M97: 0
B98: 84 | C98: 85 | D98: 11 | E98: 0.03924166539 | F98: 0 | I98: 84 | K98: 21 | L98: 0.1652964502 | M98: =VLOOKUP(K98,Rng更新率表,3,FALSE)/$L$2/100 -> 0.1652964502 | N98: 修繕
B99: 85 | C99: 86 | D99: 12 | E99: 0.04909871658 | F99: 0 | I99: 85 | K99: 22 | L99: 0.1861880632 | M99: 0.1861880632 | N99: 修繕
B100: 86 | C100: 87 | D100: 13 | E100: 0.06070798088 | F100: 0 | I100: 86 | K100: 23 | L100: 0.208044378 | M100: 0.208044378 | N100: 修繕
B101: 87 | C101: 88 | D101: 14 | E101: 0.07421528985 | F101: 0 | I101: 87 | K101: 24 | L101: 0.2306614008 | M101: 0.2306614008 | N101: 修繕
B102: 88 | C102: 89 | D102: 15 | E102: 0.08974056906 | F102: 0 | I102: 88 | K102: 25 | L102: 0.2538112129 | M102: 0.2538112129 | N102: 修繕
B103: 89 | C103: 90 | D103: 16 | E103: 0.1073691135 | F103: 0 | I103: 89 | K103: 26 | L103: 0.2772488076 | M103: 0.2772488076 | N103: 修繕
B104: 90 | C104: 91 | D104: 17 | E104: 0.1271433597 | F104: 0 | I104: 90 | K104: 27 | L104: 0.3007198374 | M104: 0.3007198374 | N104: 修繕
B105: 91 | C105: 92 | D105: 18 | E105: 0.1490557558 | F105: 0 | I105: 91 | K105: 28 | L105: 0.3239688645 | M105: 0.3239688645 | N105: 修繕
B106: 92 | C106: 93 | D106: 19 | E106: 0.1730433257 | F106: 0 | I106: 92 | K106: 0 | L106: 0.0004873119861 | M106: 0
B107: 93 | C107: 94 | D107: 20 | E107: 0.1989844673 | F107: 0 | I107: 93 | K107: 1 | L107: 0.001135698972 | M107: 0
B108: 94 | C108: 95 | D108: 21 | E108: 0.2266984132 | F108: 0 | I108: 94 | K108: 2 | L108: 0.001989025055 | M108: 0
B109: 95 | C109: 96 | D109: 0 | E109: 0.0005347586513 | F109: 0 | I109: 95 | K109: 3 | L109: 0.003099859367 | M109: 0
B110: 96 | C110: 97 | D110: 1 | E110: =VLOOKUP(D110,Rng更新率表,2,FALSE)/$E$2/100 -> 0.001263776421 | F110: 0 | G110: =IF(F110<>0,"修繕","") ->  | I110: 96 | K110: 4 | L110: =VLOOKUP(K110,Rng更新率表,3,FALSE)/$L$2/100 -> 0.00453019213 | M110: 0 | N110: =IF(M110<>0,"修繕","") -> 
B111: 97 | C111: 98 | D111: =D110+1 -> 2 | E111: 0.002245580559 | F111: 0 | I111: 97 | K111: =K110+1 -> 5 | L111: 0.006351898691 | M111: 0
B112: 98 | C112: 99 | D112: 3 | E112: 0.003551805741 | F112: 0 | I112: 98 | K112: 6 | L112: 0.008646849035 | M112: 0
B113: 99 | C113: 100 | D113: 4 | E113: 0.005268597795 | F113: 0 | I113: 99 | K113: 7 | L113: 0.01150655709 | M113: 0
B114: 100 | C114: 101 | D114: 5 | E114: 0.007497668205 | F114: 0 | I114: 100 | K114: 8 | L114: 0.0150312691 | M114: 0
B115: 101 | C115: 102 | D115: 6 | E115: 0.01035681417 | F115: 0 | I115: 101 | K115: 9 | L115: 0.01932840526 | M115: 0
B116: 102 | C116: 103 | D116: 7 | E116: 0.0139797056 | F116: 0 | I116: 102 | K116: 10 | L116: 0.02451029448 | M116: 0
B117: 103 | C117: 104 | D117: 8 | E117: 0.01851474181 | F117: 0 | I117: 103 | K117: 11 | L117: 0.03069117957 | M117: 0
B118: 104 | C118: 105 | D118: 9 | E118: 0.02412280176 | F118: 0 | I118: 104 | K118: 12 | L118: 0.0379835169 | M118: 0
B119: 105 | C119: 106 | D119: 10 | E119: 0.03097375474 | F119: 0 | I119: 105 | K119: 13 | L119: 0.04649365024 | M119: 0
B120: 106 | C120: 107 | D120: 11 | E120: 0.03924166539 | F120: 0 | I120: 106 | K120: 14 | L120: 0.05631699791 | M120: 0
B121: 107 | C121: 108 | D121: 12 | E121: 0.04909871658 | F121: 0 | I121: 107 | K121: 15 | L121: 0.06753295141 | M121: 0
B122: 108 | C122: 109 | D122: 13 | E122: 0.06070798088 | F122: 0 | I122: 108 | K122: 16 | L122: 0.08019973702 | M122: 0
B123: 109 | C123: 110 | D123: 14 | E123: 0.07421528985 | F123: 0 | I123: 109 | K123: 17 | L123: 0.09434953289 | M123: 0
B124: 110 | C124: 111 | D124: 15 | E124: 0.08974056906 | F124: 0 | I124: 110 | K124: 18 | L124: 0.1099841577 | M124: 0
B125: 111 | C125: 112 | D125: 16 | E125: 0.1073691135 | F125: 0 | I125: 111 | K125: 19 | L125: 0.1270716483 | M125: 0
B126: 112 | C126: 113 | D126: 17 | E126: =VLOOKUP(D126,Rng更新率表,2,FALSE)/$E$2/100 -> 0.1271433597 | F126: 0 | I126: 112 | K126: 20 | L126: =VLOOKUP(K126,Rng更新率表,3,FALSE)/$L$2/100 -> 0.1455440196 | M126: 0
B127: 113 | C127: 114 | D127: 18 | E127: 0.1490557558 | F127: 0 | I127: 113 | K127: 21 | L127: 0.1652964502 | M127: =VLOOKUP(K127,Rng更新率表,3,FALSE)/$L$2/100 -> 0.1652964502 | N127: 修繕
B128: 114 | C128: 115 | D128: 19 | E128: 0.1730433257 | F128: 0 | I128: 114 | K128: 22 | L128: 0.1861880632 | M128: 0.1861880632 | N128: 修繕
B129: 115 | C129: 116 | D129: 20 | E129: 0.1989844673 | F129: 0 | I129: 115 | K129: 23 | L129: 0.208044378 | M129: 0.208044378 | N129: 修繕
B130: 116 | C130: 117 | D130: 21 | E130: 0.2266984132 | F130: 0 | I130: 116 | K130: 24 | L130: 0.2306614008 | M130: 0.2306614008 | N130: 修繕
B131: 117 | C131: 118 | D131: 0 | E131: 0.0005347586513 | F131: 0 | I131: 117 | K131: 25 | L131: 0.2538112129 | M131: 0.2538112129 | N131: 修繕
B132: 118 | C132: 119 | D132: 1 | E132: 0.001263776421 | F132: 0 | I132: 118 | K132: 26 | L132: 0.2772488076 | M132: 0.2772488076 | N132: 修繕
B133: 119 | C133: 120 | D133: 2 | E133: 0.002245580559 | F133: 0 | I133: 119 | K133: 27 | L133: 0.3007198374 | M133: 0.3007198374 | N133: 修繕
B134: 120 | C134: 121 | D134: 3 | E134: 0.003551805741 | F134: 0 | I134: 120 | K134: 28 | L134: 0.3239688645 | M134: 0.3239688645 | N134: 修繕
B135: 121 | C135: 122 | D135: 4 | E135: 0.005268597795 | F135: 0 | I135: 121 | K135: 0 | L135: 0.0004873119861 | M135: 0
B136: 122 | C136: 123 | D136: 5 | E136: 0.007497668205 | F136: 0 | I136: 122 | K136: 1 | L136: 0.001135698972 | M136: 0
B137: 123 | C137: 124 | D137: 6 | E137: 0.01035681417 | F137: 0 | I137: 123 | K137: 2 | L137: 0.001989025055 | M137: 0
B138: 124 | C138: 125 | D138: 7 | E138: 0.0139797056 | F138: 0 | I138: 124 | K138: 3 | L138: 0.003099859367 | M138: 0
B139: 125 | C139: 126 | D139: 8 | E139: 0.01851474181 | F139: 0 | I139: 125 | K139: 4 | L139: 0.00453019213 | M139: 0
B140: 126 | C140: 127 | D140: 9 | E140: 0.02412280176 | F140: 0 | I140: 126 | K140: 5 | L140: 0.006351898691 | M140: 0
B141: 127 | C141: 128 | D141: 10 | E141: 0.03097375474 | F141: 0 | I141: 127 | K141: 6 | L141: 0.008646849035 | M141: 0
B142: 128 | C142: 129 | D142: 11 | E142: 0.03924166539 | F142: 0 | G142: =IF(F142<>0,"修繕","") ->  | I142: 128 | K142: 7 | L142: 0.01150655709 | M142: 0 | N142: =IF(M142<>0,"修繕","") -> 
B143: 129 | C143: =B143+1 -> 130 | D143: =D142+1 -> 12 | E143: 0.04909871658 | F143: 0 | I143: 129 | K143: =K142+1 -> 8 | L143: 0.0150312691 | M143: 0
B144: =B143+1 -> 130 | C144: 131 | D144: 13 | E144: 0.06070798088 | F144: 0 | I144: =I143+1 -> 130 | K144: 9 | L144: 0.01932840526 | M144: 0
B145: 131 | C145: 132 | D145: 14 | E145: 0.07421528985 | F145: 0 | I145: 131 | K145: 10 | L145: 0.02451029448 | M145: 0
B146: 132 | C146: 133 | D146: 15 | E146: 0.08974056906 | F146: 0 | I146: 132 | K146: 11 | L146: 0.03069117957 | M146: 0
B147: 133 | C147: 134 | D147: 16 | E147: 0.1073691135 | F147: 0 | I147: 133 | K147: 12 | L147: 0.0379835169 | M147: 0
B148: 134 | C148: 135 | D148: 17 | E148: 0.1271433597 | F148: 0 | I148: 134 | K148: 13 | L148: 0.04649365024 | M148: 0
B149: 135 | C149: 136 | D149: 18 | E149: 0.1490557558 | F149: 0 | I149: 135 | K149: 14 | L149: 0.05631699791 | M149: 0
B150: 136 | C150: 137 | D150: 19 | E150: 0.1730433257 | F150: 0 | I150: 136 | K150: 15 | L150: 0.06753295141 | M150: 0
B151: 137 | C151: 138 | D151: 20 | E151: 0.1989844673 | F151: 0 | I151: 137 | K151: 16 | L151: 0.08019973702 | M151: 0
B152: 138 | C152: 139 | D152: 21 | E152: 0.2266984132 | F152: 0 | I152: 138 | K152: 17 | L152: 0.09434953289 | M152: 0
B153: 139 | C153: 140 | D153: 0 | E153: 0.0005347586513 | F153: 0 | I153: 139 | K153: 18 | L153: 0.1099841577 | M153: 0
B154: 140 | C154: 141 | D154: 1 | E154: 0.001263776421 | F154: 0 | I154: 140 | K154: 19 | L154: 0.1270716483 | M154: 0
B155: 141 | C155: 142 | D155: 2 | E155: 0.002245580559 | F155: 0 | I155: 141 | K155: 20 | L155: 0.1455440196 | M155: 0
B156: 142 | C156: 143 | D156: 3 | E156: 0.003551805741 | F156: 0 | I156: 142 | K156: 21 | L156: 0.1652964502 | M156: =VLOOKUP(K156,Rng更新率表,3,FALSE)/$L$2/100 -> 0.1652964502 | N156: 修繕
B157: 143 | C157: 144 | D157: 4 | E157: 0.005268597795 | F157: 0 | I157: 143 | K157: 22 | L157: 0.1861880632 | M157: 0.1861880632 | N157: 修繕
B158: 144 | C158: 145 | D158: 5 | E158: 0.007497668205 | F158: 0 | I158: 144 | K158: 23 | L158: 0.208044378 | M158: 0.208044378 | N158: 修繕
B159: 145 | C159: 146 | D159: 6 | E159: 0.01035681417 | F159: 0 | I159: 145 | K159: 24 | L159: 0.2306614008 | M159: 0.2306614008 | N159: 修繕
B160: 146 | C160: 147 | D160: 7 | E160: 0.0139797056 | F160: 0 | I160: 146 | K160: 25 | L160: 0.2538112129 | M160: 0.2538112129 | N160: 修繕
B161: 147 | C161: 148 | D161: 8 | E161: 0.01851474181 | F161: 0 | I161: 147 | K161: 26 | L161: 0.2772488076 | M161: 0.2772488076 | N161: 修繕
B162: 148 | C162: 149 | D162: 9 | E162: 0.02412280176 | F162: 0 | I162: 148 | K162: 27 | L162: 0.3007198374 | M162: 0.3007198374 | N162: 修繕
B163: 149 | C163: 150 | D163: 10 | E163: 0.03097375474 | F163: 0 | I163: 149 | K163: 28 | L163: 0.3239688645 | M163: 0.3239688645 | N163: 修繕
B164: 150 | C164: 151 | D164: 11 | E164: 0.03924166539 | F164: 0 | I164: 150 | K164: 0 | L164: 0.0004873119861 | M164: 0
B165: 151 | C165: 152 | D165: 12 | E165: 0.04909871658 | F165: 0 | I165: 151 | K165: 1 | L165: 0.001135698972 | M165: 0
B166: 152 | C166: 153 | D166: 13 | E166: 0.06070798088 | F166: 0 | I166: 152 | K166: 2 | L166: 0.001989025055 | M166: 0
B167: 153 | C167: 154 | D167: 14 | E167: 0.07421528985 | F167: 0 | I167: 153 | K167: 3 | L167: 0.003099859367 | M167: 0
B168: 154 | C168: 155 | D168: 15 | E168: 0.08974056906 | F168: 0 | I168: 154 | K168: 4 | L168: 0.00453019213 | M168: 0
B169: 155 | C169: 156 | D169: 16 | E169: 0.1073691135 | F169: 0 | I169: 155 | K169: 5 | L169: 0.006351898691 | M169: 0
B170: 156 | C170: 157 | D170: 17 | E170: 0.1271433597 | F170: 0 | I170: 156 | K170: 6 | L170: 0.008646849035 | M170: 0
B171: 157 | C171: 158 | D171: 18 | E171: 0.1490557558 | F171: 0 | I171: 157 | K171: 7 | L171: 0.01150655709 | M171: 0
B172: 158 | C172: 159 | D172: 19 | E172: 0.1730433257 | F172: 0 | I172: 158 | K172: 8 | L172: 0.0150312691 | M172: 0
B173: 159 | C173: 160 | D173: 20 | E173: 0.1989844673 | F173: 0 | I173: 159 | K173: 9 | L173: 0.01932840526 | M173: 0
B174: 160 | C174: 161 | D174: 21 | E174: 0.2266984132 | F174: 0 | G174: =IF(F174<>0,"修繕","") ->  | I174: 160 | K174: 10 | L174: 0.02451029448 | M174: 0 | N174: =IF(M174<>0,"修繕","") -> 
B175: 161 | C175: 162 | D175: 0 | E175: 0.0005347586513 | F175: 0 | I175: 161 | K175: =K174+1 -> 11 | L175: 0.03069117957 | M175: 0
B176: 162 | C176: 163 | D176: =D175+1 -> 1 | E176: 0.001263776421 | F176: 0 | I176: 162 | K176: 12 | L176: 0.0379835169 | M176: 0
B177: 163 | C177: 164 | D177: 2 | E177: 0.002245580559 | F177: 0 | I177: 163 | K177: 13 | L177: 0.04649365024 | M177: 0
B178: 164 | C178: 165 | D178: 3 | E178: 0.003551805741 | F178: 0 | I178: 164 | K178: 14 | L178: 0.05631699791 | M178: 0
B179: 165 | C179: 166 | D179: 4 | E179: 0.005268597795 | F179: 0 | I179: 165 | K179: 15 | L179: 0.06753295141 | M179: 0
B180: 166 | C180: 167 | D180: 5 | E180: 0.007497668205 | F180: 0 | I180: 166 | K180: 16 | L180: 0.08019973702 | M180: 0
B181: 167 | C181: 168 | D181: 6 | E181: 0.01035681417 | F181: 0 | I181: 167 | K181: 17 | L181: 0.09434953289 | M181: 0
B182: 168 | C182: 169 | D182: 7 | E182: 0.0139797056 | F182: 0 | I182: 168 | K182: 18 | L182: 0.1099841577 | M182: 0
B183: 169 | C183: 170 | D183: 8 | E183: 0.01851474181 | F183: 0 | I183: 169 | K183: 19 | L183: 0.1270716483 | M183: 0
B184: 170 | C184: 171 | D184: 9 | E184: 0.02412280176 | F184: 0 | I184: 170 | K184: 20 | L184: 0.1455440196 | M184: 0
B185: 171 | C185: 172 | D185: 10 | E185: 0.03097375474 | F185: 0 | I185: 171 | K185: 21 | L185: 0.1652964502 | M185: =VLOOKUP(K185,Rng更新率表,3,FALSE)/$L$2/100 -> 0.1652964502 | N185: 修繕
B186: 172 | C186: 173 | D186: 11 | E186: 0.03924166539 | F186: 0 | I186: 172 | K186: 22 | L186: 0.1861880632 | M186: 0.1861880632 | N186: 修繕
B187: 173 | C187: 174 | D187: 12 | E187: 0.04909871658 | F187: 0 | I187: 173 | K187: 23 | L187: 0.208044378 | M187: 0.208044378 | N187: 修繕
B188: 174 | C188: 175 | D188: 13 | E188: 0.06070798088 | F188: 0 | I188: 174 | K188: 24 | L188: 0.2306614008 | M188: 0.2306614008 | N188: 修繕
B189: 175 | C189: 176 | D189: 14 | E189: 0.07421528985 | F189: 0 | I189: 175 | K189: 25 | L189: 0.2538112129 | M189: 0.2538112129 | N189: 修繕
B190: 176 | C190: 177 | D190: 15 | E190: =VLOOKUP(D190,Rng更新率表,2,FALSE)/$E$2/100 -> 0.08974056906 | F190: 0 | I190: 176 | K190: 26 | L190: =VLOOKUP(K190,Rng更新率表,3,FALSE)/$L$2/100 -> 0.2772488076 | M190: 0.2772488076 | N190: 修繕
B191: 177 | C191: 178 | D191: 16 | E191: 0.1073691135 | F191: 0 | I191: 177 | K191: 27 | L191: 0.3007198374 | M191: 0.3007198374 | N191: 修繕
B192: 178 | C192: 179 | D192: 17 | E192: 0.1271433597 | F192: 0 | I192: 178 | K192: 28 | L192: 0.3239688645 | M192: 0.3239688645 | N192: 修繕
B193: 179 | C193: 180 | D193: 18 | E193: 0.1490557558 | F193: 0 | I193: 179 | K193: 0 | L193: 0.0004873119861 | M193: 0
B194: 180 | C194: 181 | D194: 19 | E194: 0.1730433257 | F194: 0 | I194: 180 | K194: 1 | L194: 0.001135698972 | M194: 0
B195: 181 | C195: 182 | D195: 20 | E195: 0.1989844673 | F195: 0 | I195: 181 | K195: 2 | L195: 0.001989025055 | M195: 0
B196: 182 | C196: 183 | D196: 21 | E196: 0.2266984132 | F196: 0 | I196: 182 | K196: 3 | L196: 0.003099859367 | M196: 0
B197: 183 | C197: 184 | D197: 0 | E197: 0.0005347586513 | F197: 0 | I197: 183 | K197: 4 | L197: 0.00453019213 | M197: 0

Sheet 既定値 (hidden)
B3: ■粉末炭の運転費係数■
B4: 粉末炭平均注入率 | C4: 10 | D4: {Dflt粉末炭平均注入率}
B5: 粉末炭注入日数 | C5: 365 | D5: {Dflt粉末炭注入日数}
B7: ■マスター変更既定値■
B8: 修繕費補正係数 | C8: 0.3 | D8: {Dflt修繕費補正係数}
B12: 【運転費】
B13: １．変動費（電力、燃料、薬品費）
B14: 基準給水原価 | C14: 170 | D14: {Dflt基準給水原価}
B19: 人件費率 | C19: 0.11
B20: 変動費－動力費 | C20: 0.037
B21: 変動費－修繕費 | C21: 0.087
B22: 変動費－薬品費 | C22: 0.008
B23: 委託料率 | C23: 0
B33: 粉末炭kg単価 | C33: 400 | D33: 円/kg
B35: 消毒のみ、紫外線+消毒 | C35: 1 | E35: 2025年追加
B36: 緩速ろ過 | C36: 0.99 | E36: 2025年追加
B37: 急速ろ過 | C37: 1.46 | E37: 2025年追加
B38: 膜ろ過 | C38: 1.24 | E38: 2025年追加
B39: 付加設備 紫外線 | C39: 2.11 | E39: 2025年追加
B50: ■影響水量■
B51: ﾊﾞｯｸｱｯﾌﾟ率 | C51: 0.6 | D51: {RiskBackupPer}
B54: ■ﾘｽｸ損害額 影響水量■
B55: 機械故障率 | C55: 0.2091 | D55: 0.7558 | E55: 0.2468 | F55: 2024年 どこで参照しているのか？
B56: 電気故障率 | C56: 0.2661 | D56: 2.3486 | E56: 2.2706
B59: ■被害額■
B60: 給水人口に換算
B61: 1人1日当たりの給水量
B62: 単価(統計数字) | C62: 7428 | D62: {RiskTanka}
B63: 日数 | C63: 5 | D63: {RiskDay}

Sheet デフレータ入力画面 (hidden)
B6: デフレータ最新値入力画面
B7: 年度 | C7: 下水道事業 | D7: 上・工業用水
B8: 1951 | C8: 13.3 | D8: 入力不可
B9: 1952 | C9: 14.3
B10: 1953 | C10: 15.3
B11: 1954 | C11: 15.3
B12: 1955 | C12: 15.4
B13: 1956 | C13: 17.1
B14: 1957 | C14: 18.1
B15: 1958 | C15: 17.5
B16: 1959 | C16: 17.9
B17: 1960 | C17: 19
B18: 1961 | C18: 21
B19: 1962 | C19: 21.8
B20: 1963 | C20: 22.2
B21: 1964 | C21: 23
B22: 1965 | C22: 23.7
B23: 1966 | C23: 25.3
B24: 1967 | C24: 26.7
B25: 1968 | C25: 27.5
B26: 1969 | C26: 29.5
B27: 1970 | C27: 31.7
B28: 1971 | C28: 32.4
B29: 1972 | C29: 34.3
B30: 1973 | C30: 43.8
B31: 1974 | C31: 53.1
B32: 1975 | C32: 53.7
B33: 1976 | C33: 57.6
B34: 1977 | C34: 60.5
B35: 1978 | C35: 64.6
B36: 1979 | C36: 70.2
B37: 1980 | C37: 76.5
B38: 1981 | C38: 77.4
B39: 1982 | C39: 77.6
B40: 1983 | C40: 77.5
B41: 1984 | C41: 78.8
B42: 1985 | C42: 入力不可 | D42: 77.7
B43: 1986 | D43: 76.8
B44: 1987 | D44: 77.3
B45: 1988 | D45: 78.7
B46: 1989 | D46: 82.4
B47: 1990 | D47: 85.3
B48: 1991 | D48: 87.6
B49: 1992 | D49: 88.6
B50: 1993 | D50: 88.4
B51: 1994 | D51: 88.6
B52: 1995 | D52: 88.8
B53: 1996 | D53: 88.5
B54: 1997 | D54: 89.4
B55: 1998 | D55: 88
B56: 1999 | D56: 87
B57: 2000 | D57: 87.2
B58: 2001 | D58: 85.6
B59: 2002 | D59: 85
B60: 2003 | D60: 86
B61: 2004 | D61: 87.5
B62: 2005 | D62: 89
B63: 2006 | D63: 90.6
B64: 2007 | D64: 93.5
B65: 2008 | D65: 98.8
B66: 2009 | D66: 94
B67: 2010 | D67: 94.1
B68: 2011 | D68: 95.3
B69: 2012 | D69: 94.7
B70: 2013 | D70: 96.6
B71: 2014 | D71: 99.5
B72: 2015 | D72: 100
B73: 2016 | D73: 100.1
B74: 2017 | D74: 102
B75: 2018 | D75: 105.8
B76: 2019 | D76: 108.9
B77: 2020 | D77: 108.9
B78: 2021 | D78: 113.7
B79: 2022 | D79: 122.7
B80: 2023 | D80: 126.7
B81: 2024
B82: 2025
B83: 2026
B84: 2027
B85: 2028
B86: 2029
B87: 2030
B88: 2031
B89: 2032
B90: 2033
B91: 2034
B92: 2035
B93: 2036
B94: 2037
B95: 2038
B96: 2039
B97: 2040
B98: 2041
B99: 2042
B100: 2043
B101: 2044
B102: 2045
B103: 2046
B104: 2047
B105: 2048
B106: 2049
B107: 2050

Sheet デフレータ表示方法 (hidden)
B2: ホーム/政策・仕事/水管理・国土保全/政策評価/水管理・国土保全局関係事業に係る事業評価等 | F2: 1.治水事業は「https://www.mlit.go.jp/river/basic_info/seisaku_hyouka/gaiyou/hyouka/hyouka.html」中の「各種マニュアル等、河川及びダム事業」の「各種資産評価単価及びデフレーター 令和5年6月」、「第9表」を参照とし、1951年度の指数を元に補正(1回目)を行い、さらに1951年度の下水道の値を基準に補正(2回目)を行っている。
B3: ホーム/政策・仕事/総合政策/建設工事費デフレーター | F3: 2.下水道事業は「https://www.mlit.go.jp/sogoseisaku/jouhouka/sosei_jouhouka_tk4_000112.html」の年度次を参照とし、1951年度から1984年度までの数値を用いている。
B4: ホーム/政策・仕事/総合政策/建設工事費デフレーター | F4: 3.上・工業用水は「https://www.mlit.go.jp/sogoseisaku/jouhouka/sosei_jouhouka_tk4_000112.html」の年度次を参照とし、1985年度から2022年度までの数値を入力している。最新版の数値は参照先のExcelより引用されたい。
N6: (隠しパラメータ？）
A7: 基準年度 | B7: =INDIRECT(ADDRESS(MATCH(0,$I$1:$I$158,0)-1,5)) -> 2023 | E7: 年度 | F7: 治水事業 | G7: 下水道 | H7: 上・工業用水 | I7: 補正値 | J7: 出力デフレータ値 D | N7: 治水事業用補正値 | P7: 1951年を起点に補正
E8: 1900 | F8: =P8 -> 0.00168196995 | I8: =ROUND(F8*$G$59,3) -> 0.022 | J8: =ROUND((I8/(VLOOKUP($B$7,$E$8:$H$158,4,FALSE)))*100,3) -> 0.017 | M8: 明治33年 | N8: 1900 | O8: 40.3 | P8: =$O8/$O$59 -> 0.00168196995 | Q8: 資料に記載なし→明治36年の数値を流用している？
E9: 1901 | F9: 0.00168196995 | I9: 0.022 | J9: 0.017 | M9: 明治34年 | N9: 1901 | O9: 40.3 | P9: 0.00168196995
A10: 治水事業は | E10: 1902 | F10: 0.00168196995 | I10: 0.022 | J10: 0.017 | M10: 明治35年 | N10: 1902 | O10: 40.3 | P10: 0.00168196995
A11: 1951年の下水道の値を元に補正 | E11: 1903 | F11: 0.00168196995 | I11: 0.022 | J11: 0.017 | M11: 明治36年 | N11: 1903 | O11: 40.3 | P11: 0.00168196995
A12: 補正値に対して、最新の数値を | E12: 1904 | F12: 0.0016360601 | I12: 0.022 | J12: 0.017 | M12: 明治37年 | N12: 1904 | O12: 39.2 | P12: 0.0016360601
A13: 1、となるよう出力をかけている | E13: 1905 | F13: 0.001723706177 | I13: 0.023 | J13: 0.018 | M13: 明治38年 | N13: 1905 | O13: 41.3 | P13: 0.001723706177
A14: のが、簡易支援ツール | E14: 1906 | F14: 0.001848914858 | I14: 0.025 | J14: 0.02 | M14: 明治39年 | N14: 1906 | O14: 44.3 | P14: 0.001848914858
E15: 1907 | F15: 0.002086811352 | I15: 0.028 | J15: 0.022 | M15: 明治40年 | N15: 1907 | O15: 50 | P15: 0.002086811352
E16: 1908 | F16: 0.002228714524 | I16: 0.03 | J16: 0.024 | M16: 明治41年 | N16: 1908 | O16: 53.4 | P16: 0.002228714524
E17: 1909 | F17: 0.002178631052 | I17: 0.029 | J17: 0.023 | M17: 明治42年 | N17: 1909 | O17: 52.2 | P17: 0.002178631052
E18: 1910 | F18: 0.002174457429 | I18: 0.029 | J18: 0.023 | M18: 明治43年 | N18: 1910 | O18: 52.1 | P18: 0.002174457429
E19: 1911 | F19: 0.00229966611 | I19: 0.031 | J19: 0.024 | M19: 明治44年 | N19: 1911 | O19: 55.1 | P19: 0.00229966611
E20: 1912 | F20: 0.002433222037 | I20: 0.032 | J20: 0.025 | M20: 大正元年 | N20: 1912 | O20: 58.3 | P20: 0.002433222037
E21: 1913 | F21: 0.002437395659 | I21: 0.032 | J21: 0.025 | M21: 大正2年 | N21: 1913 | O21: 58.4 | P21: 0.002437395659
E22: 1914 | F22: 0.002424874791 | I22: 0.032 | J22: 0.025 | M22: 大正3年 | N22: 1914 | O22: 58.1 | P22: 0.002424874791
E23: 1915 | F23: 0.002328881469 | I23: 0.031 | J23: 0.024 | M23: 大正4年 | N23: 1915 | O23: 55.8 | P23: 0.002328881469
E24: 1916 | F24: 0.002441569282 | I24: 0.032 | J24: 0.025 | M24: 大正5年 | N24: 1916 | O24: 58.5 | P24: 0.002441569282
E25: 1917 | F25: 0.002992487479 | I25: 0.04 | J25: 0.032 | M25: 大正6年 | N25: 1917 | O25: 71.7 | P25: 0.002992487479
E26: 1918 | F26: 0.004048414023 | I26: 0.054 | J26: 0.043 | M26: 大正7年 | N26: 1918 | O26: 97 | P26: 0.004048414023
E27: 1919 | F27: 0.005905676127 | I27: 0.079 | J27: 0.062 | M27: 大正8年 | N27: 1919 | O27: 141.5 | P27: 0.005905676127
E28: 1920 | F28: 0.007871452421 | I28: 0.105 | J28: 0.083 | M28: 大正9年 | N28: 1920 | O28: 188.6 | P28: 0.007871452421
E29: 1921 | F29: 0.006540066778 | I29: 0.087 | J29: 0.069 | M29: 大正10年 | N29: 1921 | O29: 156.7 | P29: 0.006540066778
E30: 1922 | F30: 0.007011686144 | I30: 0.093 | J30: 0.073 | M30: 大正11年 | N30: 1922 | O30: 168 | P30: 0.007011686144
E31: 1923 | F31: 0.007032554257 | I31: 0.094 | J31: 0.074 | M31: 大正12年 | N31: 1923 | O31: 168.5 | P31: 0.007032554257
E32: 1924 | F32: 0.006686143573 | I32: 0.089 | J32: 0.07 | M32: 大正13年 | N32: 1924 | O32: 160.2 | P32: 0.006686143573
E33: 1925 | F33: 0.00637312187 | I33: 0.085 | J33: 0.067 | M33: 大正14年 | N33: 1925 | O33: 152.7 | P33: 0.00637312187
E34: 1926 | F34: 0.006151919866 | I34: 0.082 | J34: 0.065 | M34: 昭和元年 | N34: 1926 | O34: 147.4 | P34: 0.006151919866
E35: 1927 | F35: 0.005880634391 | I35: 0.078 | J35: 0.062 | M35: 昭和2年 | N35: 1927 | O35: 140.9 | P35: 0.005880634391
E36: 1928 | F36: 0.005830550918 | I36: 0.078 | J36: 0.062 | M36: 昭和3年 | N36: 1928 | O36: 139.7 | P36: 0.005830550918
E37: 1929 | F37: 0.005655258765 | I37: 0.075 | J37: 0.059 | M37: 昭和4年 | N37: 1929 | O37: 135.5 | P37: 0.005655258765
E38: 1930 | F38: 0.004586811352 | I38: 0.061 | J38: 0.048 | M38: 昭和5年 | N38: 1930 | O38: 109.9 | P38: 0.004586811352
E39: 1931 | F39: 0.0041360601 | I39: 0.055 | J39: 0.043 | M39: 昭和6年 | N39: 1931 | O39: 99.1 | P39: 0.0041360601
E40: 1932 | F40: 0.004077629382 | I40: 0.054 | J40: 0.043 | M40: 昭和7年 | N40: 1932 | O40: 97.7 | P40: 0.004077629382
E41: 1933 | F41: 0.004148580968 | I41: 0.055 | J41: 0.043 | M41: 昭和8年 | N41: 1933 | O41: 99.4 | P41: 0.004148580968
E42: 1934 | F42: 0.004148580968 | I42: 0.055 | J42: 0.043 | M42: 昭和9年 | N42: 1934 | O42: 99.4 | P42: 0.004148580968
E43: 1935 | F43: 0.004173622705 | I43: 0.056 | J43: 0.044 | M43: 昭和10年 | N43: 1935 | O43: 100 | P43: 0.004173622705
E44: 1936 | F44: 0.004198664441 | I44: 0.056 | J44: 0.044 | M44: 昭和11年 | N44: 1936 | O44: 100.6 | P44: 0.004198664441
E45: 1937 | F45: 0.004970784641 | I45: 0.066 | J45: 0.052 | M45: 昭和12年 | N45: 1937 | O45: 119.1 | P45: 0.004970784641
E46: 1938 | F46: 0.005525876461 | I46: 0.073 | J46: 0.058 | M46: 昭和13年 | N46: 1938 | O46: 132.4 | P46: 0.005525876461
E47: 1939 | F47: 0.006506677796 | I47: 0.087 | J47: 0.069 | M47: 昭和14年 | N47: 1939 | O47: 155.9 | P47: 0.006506677796
E48: 1940 | F48: 0.007487479132 | I48: 0.1 | J48: 0.079 | M48: 昭和15年 | N48: 1940 | O48: 179.4 | P48: 0.007487479132
E49: 1941 | F49: 0.008322203673 | I49: 0.111 | J49: 0.088 | M49: 昭和16年 | N49: 1941 | O49: 199.4 | P49: 0.008322203673
E50: 1942 | F50: 0.008635225376 | I50: 0.115 | J50: 0.091 | M50: 昭和17年 | N50: 1942 | O50: 206.9 | P50: 0.008635225376
E51: 1943 | F51: 0.00995409015 | I51: 0.132 | J51: 0.104 | M51: 昭和18年 | N51: 1943 | O51: 238.5 | P51: 0.00995409015
E52: 1944 | F52: 0.01364357262 | I52: 0.181 | J52: 0.143 | M52: 昭和19年 | N52: 1944 | O52: 326.9 | P52: 0.01364357262
E53: 1945 | F53: 0.05087646077 | I53: 0.677 | J53: 0.534 | M53: 昭和20年 | N53: 1945 | O53: 1219 | P53: 0.05087646077
E54: 1946 | F54: 0.1034641068 | I54: 1.376 | J54: 1.086 | M54: 昭和21年 | N54: 1946 | O54: 2479 | P54: 0.1034641068
E55: 1947 | F55: 0.2445742905 | I55: 3.253 | J55: 2.567 | M55: 昭和22年 | N55: 1947 | O55: 5860 | P55: 0.2445742905
E56: 1948 | F56: 0.06803005008 | I56: 0.905 | J56: 0.714 | M56: 昭和23年 | N56: 1948 | O56: 1630 | P56: 0.06803005008
E57: 1949 | F57: 0.2554257095 | I57: 3.397 | J57: 2.681 | M57: 昭和24年 | N57: 1949 | O57: 6120 | P57: 0.2554257095
E58: 1950 | F58: =P58 -> 0.7750417362 | I58: 10.308 | J58: 8.136 | M58: 昭和25年 | N58: 1950 | O58: 18570 | P58: 0.7750417362 | R58: =18570/O59 -> 0.7750417362
E59: 1951 | G59: =デフレータ入力画面!C8 -> 13.3 | I59: =G59 -> 13.3 | J59: 10.497 | M59: 昭和26年 | N59: 1951 | O59: 23960
E60: 1952 | G60: =デフレータ入力画面!C9 -> 14.3 | I60: =G60 -> 14.3 | J60: 11.287 | M60: 昭和27年 | N60: 1952 | O60: 26900
E61: 1953 | G61: =デフレータ入力画面!C10 -> 15.3 | I61: 15.3 | J61: 12.076 | M61: 昭和28年 | N61: 1953 | O61: 29160
E62: 1954 | G62: =デフレータ入力画面!C11 -> 15.3 | I62: 15.3 | J62: 12.076 | M62: 昭和29年 | N62: 1954 | O62: 29610
E63: 1955 | G63: =デフレータ入力画面!C12 -> 15.4 | I63: 15.4 | J63: 12.155 | M63: 昭和30年 | N63: 1955 | O63: 29380
E64: 1956 | G64: =デフレータ入力画面!C13 -> 17.1 | I64: 17.1 | J64: 13.496 | M64: 昭和31年 | N64: 1956 | O64: 32100
E65: 1957 | G65: =デフレータ入力画面!C14 -> 18.1 | I65: 18.1 | J65: 14.286 | M65: 昭和32年 | N65: 1957 | O65: 33910
E66: 1958 | G66: =デフレータ入力画面!C15 -> 17.5 | I66: 17.5 | J66: 13.812 | M66: 昭和33年 | N66: 1958 | O66: 33680
E67: 1959 | G67: =デフレータ入力画面!C16 -> 17.9 | I67: 17.9 | J67: 14.128 | M67: 昭和34年 | N67: 1959 | O67: 35040
E68: 1960 | G68: =デフレータ入力画面!C17 -> 19 | I68: 19 | J68: 14.996 | M68: 昭和35年 | N68: 1960 | O68: 37070
E69: 1961 | G69: =デフレータ入力画面!C18 -> 21 | I69: 21 | J69: 16.575 | M69: 昭和36年 | N69: 1961 | O69: 41590
E70: 1962 | G70: =デフレータ入力画面!C19 -> 21.8 | I70: 21.8 | J70: 17.206 | M70: 昭和37年 | N70: 1962 | O70: 43630
E71: 1963 | G71: =デフレータ入力画面!C20 -> 22.2 | I71: 22.2 | J71: 17.522 | M71: 昭和38年 | N71: 1963 | O71: 44980
E72: 1964 | G72: =デフレータ入力画面!C21 -> 23 | I72: 23 | J72: =ROUND((I72/(VLOOKUP($B$7,$E$8:$H$158,4,FALSE)))*100,3) -> 18.153 | M72: 昭和39年 | N72: 1964 | O72: 47020
E73: 1965 | G73: =デフレータ入力画面!C22 -> 23.7 | I73: 23.7 | J73: 18.706 | M73: 昭和40年 | N73: 1965 | O73: 48600
E74: 1966 | G74: =デフレータ入力画面!C23 -> 25.3 | I74: 25.3 | J74: 19.968 | M74: 昭和41年 | N74: 1966 | O74: 51990
E75: 1967 | G75: =デフレータ入力画面!C24 -> 26.7 | I75: 26.7 | J75: 21.073 | M75: 昭和42年 | N75: 1967 | O75: 55610
E76: 1968 | G76: =デフレータ入力画面!C25 -> 27.5 | I76: 27.5 | J76: 21.705 | M76: 昭和43年 | N76: 1968 | O76: 57640
E77: 1969 | G77: =デフレータ入力画面!C26 -> 29.5 | I77: 29.5 | J77: 23.283 | M77: 昭和44年 | N77: 1969 | O77: 61480
E78: 1970 | G78: =デフレータ入力画面!C27 -> 31.7 | I78: 31.7 | J78: 25.02 | M78: 昭和45年 | N78: 1970 | O78: 66000
E79: 1971 | G79: =デフレータ入力画面!C28 -> 32.4 | I79: 32.4 | J79: 25.572 | M79: 昭和46年 | N79: 1971 | O79: 68040
E80: 1972 | G80: =デフレータ入力画面!C29 -> 34.3 | I80: 34.3 | J80: 27.072 | M80: 昭和47年 | N80: 1972 | O80: 72330
E81: 1973 | G81: =デフレータ入力画面!C30 -> 43.8 | I81: 43.8 | J81: 34.57 | M81: 昭和48年 | N81: 1973 | O81: 91320
E82: 1974 | G82: =デフレータ入力画面!C31 -> 53.1 | I82: 53.1 | J82: 41.91 | M82: 昭和49年 | N82: 1974 | O82: 112340
E83: 1975 | G83: =デフレータ入力画面!C32 -> 53.7 | I83: 53.7 | J83: 42.384 | M83: 昭和50年 | N83: 1975 | O83: 114600
E84: 1976 | G84: =デフレータ入力画面!C33 -> 57.6 | I84: 57.6 | J84: 45.462 | M84: 昭和51年 | N84: 1976 | O84: 122960
E85: 1977 | G85: =デフレータ入力画面!C34 -> 60.5 | I85: 60.5 | J85: 47.751 | M85: 昭和52年 | N85: 1977 | O85: 130650
E86: 1978 | G86: =デフレータ入力画面!C35 -> 64.6 | I86: 64.6 | J86: 50.987 | M86: 昭和53年 | N86: 1978 | O86: 141730
E87: 1979 | G87: =デフレータ入力画面!C36 -> 70.2 | I87: 70.2 | J87: 55.406 | M87: 昭和54年 | N87: 1979 | O87: 155060
E88: 1980 | G88: =デフレータ入力画面!C37 -> 76.5 | I88: 76.5 | J88: 60.379 | M88: 昭和55年 | N88: 1980 | O88: 170660
E89: 1981 | G89: =デフレータ入力画面!C38 -> 77.4 | I89: 77.4 | J89: 61.089 | M89: 昭和56年 | N89: 1981 | O89: 173140
E90: 1982 | G90: =デフレータ入力画面!C39 -> 77.6 | I90: 77.6 | J90: 61.247 | M90: 昭和57年 | N90: 1982 | O90: 174050
E91: 1983 | G91: =デフレータ入力画面!C40 -> 77.5 | I91: 77.5 | J91: 61.168 | M91: 昭和58年 | N91: 1983 | O91: 172920
E92: 1984 | G92: =デフレータ入力画面!C41 -> 78.8 | I92: 78.8 | J92: 62.194 | M92: 昭和59年 | N92: 1984 | O92: 175410
E93: 1985 | H93: =デフレータ入力画面!D42 -> 77.7 | I93: =H93 -> 77.7 | J93: 61.326 | M93: 昭和60年 | N93: 1985 | O93: 171560
E94: 1986 | H94: =デフレータ入力画面!D43 -> 76.8 | I94: =H94 -> 76.8 | J94: 60.616 | M94: 昭和61年 | N94: 1986 | O94: 172240
E95: 1987 | H95: =デフレータ入力画面!D44 -> 77.3 | I95: 77.3 | J95: 61.01 | M95: 昭和62年 | N95: 1987 | O95: 175860
E96: 1988 | H96: =デフレータ入力画面!D45 -> 78.7 | I96: 78.7 | J96: 62.115 | M96: 昭和63年 | N96: 1988 | O96: 180380
E97: 1989 | H97: =デフレータ入力画面!D46 -> 82.4 | I97: 82.4 | J97: 65.036 | M97: 平成元年 | N97: 1989 | O97: 190100
E98: 1990 | H98: =デフレータ入力画面!D47 -> 85.3 | I98: 85.3 | J98: 67.324 | M98: 平成2年 | N98: 1990 | O98: 197560
E99: 1991 | H99: =デフレータ入力画面!D48 -> 87.6 | I99: 87.6 | J99: 69.14 | M99: 平成3年 | N99: 1991 | O99: 203210
E100: 1992 | H100: =デフレータ入力画面!D49 -> 88.6 | I100: 88.6 | J100: 69.929 | M100: 平成4年 | N100: 1992 | O100: 206370
E101: 1993 | H101: =デフレータ入力画面!D50 -> 88.4 | I101: 88.4 | J101: 69.771 | M101: 平成5年 | N101: 1993 | O101: 206820
E102: 1994 | H102: =デフレータ入力画面!D51 -> 88.6 | I102: 88.6 | J102: 69.929 | M102: 平成6年 | N102: 1994 | O102: 207500
E103: 1995 | H103: =デフレータ入力画面!D52 -> 88.8 | I103: 88.8 | J103: 70.087 | M103: 平成7年 | N103: 1995 | O103: 208410
E104: 1996 | H104: =デフレータ入力画面!D53 -> 88.5 | I104: 88.5 | J104: 69.85 | M104: 平成8年 | N104: 1996 | O104: 208630
E105: 1997 | H105: =デフレータ入力画面!D54 -> 89.4 | I105: 89.4 | J105: 70.56 | M105: 平成9年 | N105: 1997 | O105: 210440
E106: 1998 | H106: =デフレータ入力画面!D55 -> 88 | I106: 88 | J106: 69.455 | M106: 平成10年 | N106: 1998 | O106: 207050
E107: 1999 | H107: =デフレータ入力画面!D56 -> 87 | I107: 87 | J107: 68.666 | M107: 平成11年 | N107: 1999 | O107: 205020
E108: 2000 | H108: =デフレータ入力画面!D57 -> 87.2 | I108: 87.2 | J108: 68.824 | M108: 平成12年 | N108: 2000 | O108: 205470
E109: 2001 | H109: =デフレータ入力画面!D58 -> 85.6 | I109: 85.6 | J109: 67.561 | M109: 平成13年 | N109: 2001 | O109: 201170
E110: 2002 | H110: =デフレータ入力画面!D59 -> 85 | I110: 85 | J110: 67.088 | M110: 平成14年 | N110: 2002 | O110: 198460
E111: 2003 | H111: =デフレータ入力画面!D60 -> 86 | I111: 86 | J111: 67.877 | M111: 平成15年 | N111: 2003 | O111: 199370
E112: 2004 | H112: =デフレータ入力画面!D61 -> 87.5 | I112: 87.5 | J112: 69.061 | M112: 平成16年 | N112: 2004 | O112: 200500
E113: 2005 | H113: =デフレータ入力画面!D62 -> 89 | I113: 89 | J113: 70.245 | M113: 平成17年 | N113: 2005 | O113: 202980
E114: 2006 | H114: =デフレータ入力画面!D63 -> 90.6 | I114: 90.6 | J114: 71.507 | M114: 平成18年 | N114: 2006 | O114: 205690
E115: 2007 | H115: =デフレータ入力画面!D64 -> 93.5 | I115: 93.5 | J115: 73.796 | M115: 平成19年 | N115: 2007 | O115: 209310
E116: 2008 | H116: =デフレータ入力画面!D65 -> 98.8 | I116: 98.8 | J116: 77.979 | M116: 平成20年 | N116: 2008 | O116: 216090
E117: 2009 | H117: =デフレータ入力画面!D66 -> 94 | I117: 94 | J117: 74.191 | M117: 平成21年 | N117: 2009 | O117: 209310
E118: 2010 | H118: =デフレータ入力画面!D67 -> 94.1 | I118: 94.1 | J118: 74.27 | M118: 平成22年 | N118: 2010 | O118: 209080
E119: 2011 | H119: =デフレータ入力画面!D68 -> 95.3 | I119: 95.3 | J119: 75.217 | M119: 平成23年 | N119: 2011 | O119: 212700
E120: 2012 | H120: =デフレータ入力画面!D69 -> 94.7 | I120: 94.7 | J120: 74.743 | M120: 平成24年 | N120: 2012 | O120: 211800
E121: 2013 | H121: =デフレータ入力画面!D70 -> 96.6 | I121: 96.6 | J121: 76.243 | M121: 平成25年 | N121: 2013 | O121: 216770
E122: 2014 | H122: =デフレータ入力画面!D71 -> 99.5 | I122: 99.5 | J122: 78.532 | M122: 平成26年 | N122: 2014 | O122: 224680
E123: 2015 | H123: =デフレータ入力画面!D72 -> 100 | I123: 100 | J123: 78.927 | M123: 平成27年 | N123: 2015 | O123: 226040
E124: 2016 | H124: =デフレータ入力画面!D73 -> 100.1 | I124: 100.1 | J124: 79.006 | M124: 平成28年 | N124: 2016 | O124: 227850
E125: 2017 | H125: =デフレータ入力画面!D74 -> 102 | I125: 102 | J125: 80.505 | M125: 平成29年 | N125: 2017 | O125: 233040
E126: 2018 | H126: =デフレータ入力画面!D75 -> 105.8 | I126: 105.8 | J126: 83.504 | M126: 平成30年 | N126: 2018 | O126: 241180
E127: 2019 | H127: =デフレータ入力画面!D76 -> 108.9 | I127: 108.9 | J127: 85.951 | M127: 令和元年 | N127: 2019 | O127: 247060
E128: 2020 | H128: =デフレータ入力画面!D77 -> 108.9 | I128: 108.9 | J128: 85.951 | M128: 令和2年 | N128: 2020 | O128: 246830
E129: 2021 | H129: =デフレータ入力画面!D78 -> 113.7 | I129: 113.7 | J129: 89.74 | M129: 令和3年 | N129: 2021 | O129: 255870
E130: 2022 | H130: =デフレータ入力画面!D79 -> 122.7 | I130: 122.7 | J130: 96.843 | M130: 令和4年 | N130: 2022
E131: 2023 | H131: =デフレータ入力画面!D80 -> 126.7 | I131: 126.7 | J131: =IF(I131=0,100,ROUND((I131/(VLOOKUP($B$7,$E$8:$H$158,4,FALSE)))*100,3)) -> 100 | M131: 令和5年 | N131: 2023
E132: 2024 | H132: =デフレータ入力画面!D81 -> 0 | I132: 0 | J132: 100 | M132: 令和6年 | N132: 2024
E133: 2025 | H133: =デフレータ入力画面!D82 -> 0 | I133: 0 | J133: 100 | M133: 令和7年 | N133: 2025
E134: 2026 | H134: =デフレータ入力画面!D83 -> 0 | I134: 0 | J134: 100 | M134: 令和8年 | N134: 2026
E135: 2027 | H135: =デフレータ入力画面!D84 -> 0 | I135: 0 | J135: 100 | M135: 令和9年 | N135: 2027
E136: 2028 | H136: =デフレータ入力画面!D85 -> 0 | I136: 0 | J136: 100 | M136: 令和10年 | N136: 2028
E137: 2029 | H137: =デフレータ入力画面!D86 -> 0 | I137: 0 | J137: 100 | M137: 令和11年 | N137: 2029
E138: 2030 | H138: =デフレータ入力画面!D87 -> 0 | I138: 0 | J138: 100 | M138: 令和12年 | N138: 2030
E139: 2031 | H139: =デフレータ入力画面!D88 -> 0 | I139: 0 | J139: 100 | M139: 令和13年 | N139: 2031
E140: 2032 | H140: =デフレータ入力画面!D89 -> 0 | I140: 0 | J140: 100 | M140: 令和14年 | N140: 2032
E141: 2033 | H141: =デフレータ入力画面!D90 -> 0 | I141: 0 | J141: 100 | M141: 令和15年 | N141: 2033
E142: 2034 | H142: =デフレータ入力画面!D91 -> 0 | I142: 0 | J142: 100 | M142: 令和16年 | N142: 2034
E143: 2035 | H143: =デフレータ入力画面!D92 -> 0 | I143: 0 | J143: 100 | M143: 令和17年 | N143: 2035
E144: 2036 | H144: =デフレータ入力画面!D93 -> 0 | I144: 0 | J144: 100 | M144: 令和18年 | N144: 2036
E145: 2037 | H145: =デフレータ入力画面!D94 -> 0 | I145: 0 | J145: 100 | M145: 令和19年 | N145: 2037
E146: 2038 | H146: =デフレータ入力画面!D95 -> 0 | I146: 0 | J146: 100 | M146: 令和20年 | N146: 2038
E147: 2039 | H147: =デフレータ入力画面!D96 -> 0 | I147: 0 | J147: 100 | M147: 令和21年 | N147: 2039
E148: 2040 | H148: =デフレータ入力画面!D97 -> 0 | I148: 0 | J148: 100 | M148: 令和22年 | N148: 2040
E149: 2041 | H149: =デフレータ入力画面!D98 -> 0 | I149: 0 | J149: 100 | M149: 令和23年 | N149: 2041
E150: 2042 | H150: =デフレータ入力画面!D99 -> 0 | I150: 0 | J150: 100 | M150: 令和24年 | N150: 2042
E151: 2043 | H151: =デフレータ入力画面!D100 -> 0 | I151: 0 | J151: 100 | M151: 令和25年 | N151: 2043
E152: 2044 | H152: =デフレータ入力画面!D101 -> 0 | I152: 0 | J152: 100 | M152: 令和26年 | N152: 2044
E153: 2045 | H153: =デフレータ入力画面!D102 -> 0 | I153: 0 | J153: 100 | M153: 令和27年 | N153: 2045
E154: 2046 | H154: =デフレータ入力画面!D103 -> 0 | I154: 0 | J154: 100 | M154: 令和28年 | N154: 2046
E155: 2047 | H155: =デフレータ入力画面!D104 -> 0 | I155: 0 | J155: 100 | M155: 令和29年 | N155: 2047
E156: 2048 | H156: =デフレータ入力画面!D105 -> 0 | I156: 0 | J156: 100 | M156: 令和30年 | N156: 2048
E157: 2049 | H157: =デフレータ入力画面!D106 -> 0 | I157: 0 | J157: 100 | M157: 令和31年 | N157: 2049
E158: 2050 | H158: =デフレータ入力画面!D107 -> 0 | I158: =H158 -> 0 | J158: 100 | M158: 令和32年 | N158: 2050

Sheet 健全度 (hidden)
B5: 既存施設の健全度評価結果
B8: 建築構造物 | L8: 単位：百万円 | N8: 土木構造物 | X8: 単位：百万円
B10: 健全資産 | N10: 健全資産
B11: 経年化資産 | N11: 経年化資産
B12: 老朽化資産 | N12: 老朽化資産
B14: 電気設備 | L14: 単位：百万円 | N14: 機械設備 | X14: 単位：百万円
B16: 健全資産 | N16: 健全資産
B17: 経年化資産 | N17: 経年化資産
B18: 老朽化資産 | N18: 老朽化資産
B26: 合計 | L26: 単位：百万円
C27: =IF(C9="","",C9) ->  | D27: =IF(D9="","",D9) -> 
B28: 健全資産 | C28: =+C10+O10+C16+O16 -> 0 | D28: 0 | E28: 0 | F28: 0 | G28: 0 | H28: 0 | I28: 0 | J28: 0 | K28: 0 | L28: 0
B29: 経年化資産 | C29: 0 | D29: 0 | E29: 0 | F29: 0 | G29: 0 | H29: 0 | I29: 0 | J29: 0 | K29: 0 | L29: 0
B30: 老朽化資産 | C30: 0 | D30: 0 | E30: 0 | F30: 0 | G30: 0 | H30: 0 | I30: 0 | J30: 0 | K30: 0 | L30: 0
C61: 浄水施設更新シミュレータ 水道技術研究センター 2024年10月
C62: 本シミュレーションは、シナリオによって、どの程度の違いが生じるのかイメージするためのツールであり、計算結果は実際の数量、金額を表すものではありません。

Sheet 影響水量 (hidden)
B9: ■リスク 影響水量
M11: 単位：ｍ3／日
C12: 区 分 | D12: =+Calc2024!AA5 -> 0 | E12: =Calc2024!AA10 -> 0 | F12: =Calc2024!AA15 -> 0 | G12: =Calc2024!AA20 -> 0 | H12: =Calc2024!AA25 -> 0 | I12: =Calc2024!AA30 -> 0 | J12: =Calc2024!AA35 -> 0 | K12: =Calc2024!AA40 -> 0 | L12: =Calc2024!AA45 -> 0 | M12: =Calc2024!AA50 -> 0
C13: 電気設備 | D13: =+Calc2024!AB5 -> 0 | E13: =Calc2024!AB10 -> 0 | F13: =Calc2024!AB15 -> 0 | G13: =Calc2024!AB20 -> 0 | H13: =Calc2024!AB25 -> 0 | I13: =Calc2024!AB30 -> 0 | J13: =Calc2024!AB35 -> 0 | K13: =Calc2024!AB40 -> 0 | L13: =Calc2024!AB45 -> 0 | M13: =Calc2024!AB50 -> 0
C14: 機械設備 | D14: =+Calc2024!AC5 -> 0 | E14: =Calc2024!AC10 -> 0 | F14: =Calc2024!AC15 -> 0 | G14: =Calc2024!AC20 -> 0 | H14: =Calc2024!AC25 -> 0 | I14: =Calc2024!AC30 -> 0 | J14: =Calc2024!AC35 -> 0 | K14: =Calc2024!AC40 -> 0 | L14: =Calc2024!AC45 -> 0 | M14: =Calc2024!AC50 -> 0
C16: 影響水量 | D16: =+Calc2024!AE5 -> 0 | E16: =Calc2024!AE10 -> 0 | F16: =Calc2024!AE15 -> 0 | G16: =Calc2024!AE20 -> 0 | H16: =Calc2024!AE25 -> 0 | I16: =Calc2024!AE30 -> 0 | J16: =Calc2024!AE35 -> 0 | K16: =Calc2024!AE40 -> 0 | L16: =Calc2024!AE45 -> 0 | M16: =Calc2024!AE50 -> 0
C17: 浄水能力 | D17: =+'入力情報(1)'!$H$20-影響水量!D16 -> 0 | E17: =+'入力情報(1)'!$H$20-影響水量!E16 -> 0 | F17: =+'入力情報(1)'!$H$20-影響水量!F16 -> 0 | G17: =+'入力情報(1)'!$H$20-影響水量!G16 -> 0 | H17: =+'入力情報(1)'!$H$20-影響水量!H16 -> 0 | I17: =+'入力情報(1)'!$H$20-影響水量!I16 -> 0 | J17: =+'入力情報(1)'!$H$20-影響水量!J16 -> 0 | K17: =+'入力情報(1)'!$H$20-影響水量!K16 -> 0 | L17: =+'入力情報(1)'!$H$20-影響水量!L16 -> 0 | M17: =+'入力情報(1)'!$H$20-影響水量!M16 -> 0
C43: 浄水施設更新シミュレータ 水道技術研究センター 2024年10月
C44: 本シミュレーションは、シナリオによって、どの程度の違いが生じるのかイメージするためのツールであり、計算結果は実際の数量、金額を
C45: 表すものではありません。

Sheet 損失額 (hidden)
B9: ■リスク 損失額（既存施設を継続運用した場合）
M17: 単位：百万円
C18: 区 分 | D18: =影響水量!D12 -> 0 | E18: =影響水量!E12 -> 0 | F18: =影響水量!F12 -> 0 | G18: =影響水量!G12 -> 0 | H18: =影響水量!H12 -> 0 | I18: =影響水量!I12 -> 0 | J18: =影響水量!J12 -> 0 | K18: =影響水量!K12 -> 0 | L18: =影響水量!L12 -> 0 | M18: =影響水量!M12 -> 0
C19: 損失額 | D19: =Calc2024!AF5 -> 0 | E19: =Calc2024!AF10 -> 0 | F19: =Calc2024!AF15 -> 0 | G19: =Calc2024!AF20 -> 0 | H19: =Calc2024!AF25 -> 0 | I19: =Calc2024!AF30 -> 0 | J19: =Calc2024!AF35 -> 0 | K19: =Calc2024!AF40 -> 0 | L19: =Calc2024!AF45 -> 0 | M19: =Calc2024!AF50 -> 0
C20: 影響水量 | D20: =影響水量!D16 -> 0 | E20: =影響水量!E16 -> 0 | F20: =影響水量!F16 -> 0 | G20: =影響水量!G16 -> 0 | H20: =影響水量!H16 -> 0 | I20: =影響水量!I16 -> 0 | J20: =影響水量!J16 -> 0 | K20: =影響水量!K16 -> 0 | L20: =影響水量!L16 -> 0 | M20: =影響水量!M16 -> 0
C47: 浄水施設更新シミュレータ 水道技術研究センター 2024年10月
C48: 本シミュレーションは、シナリオによって、どの程度の違いが生じるのかイメージするためのツールであり、計算結果は実際の数量、金額を
C49: 表すものではありません。

Sheet 修繕更新費用S1 (hidden)
B9: ■追加修繕及び更新費用
D11: シナリオ１： | E11: 更新しない場合の追加修繕費
N14: 単位：百万円
C15: 区分 | N15: 計 | R15: 区分 | S15: 2074年～2078年 | T15: 2079年～2083年 | U15: 2084年～2088年 | V15: 2089年～2093年 | W15: 2094年～2098年 | X15: 2099年～2103年 | Y15: 2104年～2108年 | Z15: 2109年～2113年 | AA15: 2114年～2118年 | AB15: 2119年～2123年
C16: 電気 | N16: =SUM(D16:M16) -> 0
C17: 機械 | N17: =SUM(D17:M17) -> 0
C19: 計 | D19: =SUM(D16:D18) -> 0 | E19: 0 | F19: 0 | G19: 0 | H19: 0 | I19: 0 | J19: 0 | K19: 0 | L19: 0 | M19: 0 | N19: =SUM(D19:M19) -> 0
C52: 浄水施設更新シミュレータ 水道技術研究センター 2024年10月
C53: 本シミュレーションは、シナリオによって、どの程度の違いが生じるのかイメージするためのツールであり、計算結果は実際の数量、金額を
C54: 表すものではありません。

Sheet 修繕更新費用S2 (hidden)
B9: ■追加修繕及び更新費用
D11: シナリオ２： | E11: 現在と同じフロー・水量で更新、使用年数は選択した更新年数に基づいて算出 | S11: ※51年～100年の表は、表示のみで印刷されません
N14: 単位：百万円 | S14: 【51年～100年】
C15: 区分 | N15: 計 | T15: 区分
B16: 更新費 | C16: 建築 | N16: =SUM(D16:M16) -> 0 | S16: 更新費用 | T16: 建築
C17: 土木 | N17: 0 | T17: 土木
C18: 電気 | N18: 0 | T18: 電気
C19: 機械 | N19: 0 | T19: 機械
T20: 計装
B21: 追加修繕費 | C21: 電気 | N21: 0 | S21: 修繕費用 | T21: 電気
C22: 機械 | N22: 0 | T22: 機械
B24: 計 | D24: =SUM(D16:D23) -> 0 | E24: =SUM(E16:E23) -> 0 | F24: 0 | G24: 0 | H24: 0 | I24: 0 | J24: 0 | K24: 0 | L24: 0 | M24: 0 | N24: =SUM(D24:M24) -> 0
B49: 浄水施設更新シミュレータ 水道技術研究センター 2024年10月
B50: 本シミュレーションは、シナリオによって、どの程度の違いが生じるのかイメージするためのツールであり、計算結果は実際の数量、金額を
B51: 表すものではありません。
B52: 本シミュレータは浄水場の全面更新を行う前提で50年間の設備費、運転費を算出するものであるが、
B53: 土木、建築設備の実耐用年数が100年近くになる場合もあるため、条件によっては、土木、建築の更新が一度も発生しない計算結果となる。
B54: そこで、51年～100年の計算結果（土木、建築の更新が1回は発生）を参考値として表示することとした。

Sheet 修繕更新費用S3 (hidden)
B9: ■追加修繕及び更新費用
D11: シナリオ３： | E11: 希望フローで更新、水量は現在と同じ、使用年数は選択した更新年数に基づいて算出
N14: 単位：百万円
C15: 区分 | N15: 計
B16: 更新費 | C16: 建築 | N16: =SUM(D16:M16) -> 0
C17: 土木 | N17: 0
C18: 電気 | N18: 0
C19: 機械 | N19: 0
B21: 追加修繕費 | C21: 電気 | N21: 0
C22: 機械 | N22: 0
B24: 計 | D24: =SUM(D16:D23) -> 0 | E24: 0 | F24: 0 | G24: 0 | H24: 0 | I24: 0 | J24: 0 | K24: 0 | L24: 0 | M24: 0 | N24: 0
B49: 浄水施設更新シミュレータ 水道技術研究センター 2024年10月
B50: 本シミュレーションは、シナリオによって、どの程度の違いが生じるのかイメージするためのツールであり、計算結果は実際の数量、金額を
B51: 表すものではありません。

Sheet 修繕更新費用S4 (hidden)
B9: ■追加修繕及び更新費用
D11: シナリオ４： | E11: 現状のフローで更新、水量は将来予測、使用年数は選択した更新年数に基づいて算出 | S11: ※51年～100年の表は、表示のみで印刷されません
N14: 単位：百万円 | S14: 【51年～100年】
C15: 区分 | N15: 計 | T15: 区分
B16: 更新費 | C16: 建築 | N16: =SUM(D16:M16) -> 0 | S16: 更新費用 | T16: 建築
C17: 土木 | N17: 0 | T17: 土木
C18: 電気 | N18: 0 | T18: 電気
C19: 機械 | N19: 0 | T19: 機械
T20: 計装
B21: 追加修繕費 | C21: 電気 | N21: 0 | S21: 修繕費用 | T21: 電気
C22: 機械 | N22: 0 | T22: 機械
T23: 計装
B24: 計 | D24: =SUM(D16:D23) -> 0 | E24: 0 | F24: 0 | G24: 0 | H24: 0 | I24: 0 | J24: 0 | K24: 0 | L24: 0 | M24: 0 | N24: 0
B49: 浄水施設更新シミュレータ 水道技術研究センター 2024年10月
B50: 本シミュレーションは、シナリオによって、どの程度の違いが生じるのかイメージするためのツールであり、計算結果は実際の数量、金額を
B51: 表すものではありません。
B52: 本シミュレータは浄水場の全面更新を行う前提で50年間の設備費、運転費を算出するものであるが、
B53: 土木、建築設備の実耐用年数が100年近くになる場合もあるため、条件によっては、土木、建築の更新が一度も発生しない計算結果となる。
B54: そこで、51年～100年の計算結果（土木、建築の更新が1回は発生）を参考値として表示することとした。

Sheet 修繕更新費用S5 (hidden)
B9: ■追加修繕及び更新費用
D11: シナリオ５： | E11: 希望フローで更新、水量は将来予測、使用年数は選択した更新年数に基づいて算出
N14: 単位：百万円
C15: 区分 | N15: 計
B16: 更新費 | C16: 建築 | N16: =SUM(D16:M16) -> 0
C17: 土木 | N17: 0
C18: 電気 | N18: 0
C19: 機械 | N19: 0
N20: 0
B21: 追加修繕費 | C21: 電気 | N21: 0
C22: 機械 | N22: 0
N23: 0
B24: 計 | D24: =SUM(D16:D23) -> 0 | E24: 0 | F24: 0 | G24: 0 | H24: 0 | I24: 0 | J24: 0 | K24: 0 | L24: 0 | M24: 0 | N24: 0
B49: 浄水施設更新シミュレータ 水道技術研究センター 2024年10月
B50: 本シミュレーションは、シナリオによって、どの程度の違いが生じるのかイメージするためのツールであり、計算結果は実際の数量、金額を
B51: 表すものではありません。

Sheet 出力まとめの表 (hidden)
D4: =+"浄水場名："&'入力情報(1)'!G19 -> 浄水場名： | N4: =+"浄水場名："&'入力情報(1)'!G19 -> 浄水場名：
D5: 50年間の費用で比較 | AR5: 【折返押返ﾊﾞｰｼﾞｮﾝ(ﾚｰﾀﾞｰG)】
D6: 設備ごとの係数 | E6: 建築構造物 | F6: 土木構造物 | G6: 電気設備 | H6: 機械設備 | AR6: 総費用 （百万円/50年）
D7: 更新基準年数 | E7: =IF(プレビュー!$H$33="法定耐用年数×延長係数","法定耐用年数："&耐用年数変更!C10&"年",IF(プレビュー!$H$33="指定年数","指定年数："&耐用年数変更!E10&"年","")) -> 法定耐用年数：50年 | F7: =IF(プレビュー!$H$33="法定耐用年数×延長係数","法定耐用年数："&耐用年数変更!C11&"年",IF(プレビュー!$H$33="指定年数","指定年数："&耐用年数変更!E11&"年","")) -> 法定耐用年数：60年 | G7: =IF(プレビュー!$H$33="法定耐用年数×延長係数","法定耐用年数："&耐用年数変更!C12&"年",IF(プレビュー!$H$33="指定年数","指定年数："&耐用年数変更!E12&"年","")) -> 法定耐用年数：15年 | H7: =IF(プレビュー!$H$33="法定耐用年数×延長係数","法定耐用年数："&耐用年数変更!C13&"年",IF(プレビュー!$H$33="指定年数","指定年数："&耐用年数変更!E13&"年","")) -> 法定耐用年数：15年 | AR7: 総費用リスク便益費込 （百万円/50年）
D8: 延長係数β | E8: =IF(プレビュー!$H$33="指定年数","-",RngEnchou建築) -> 1.308934093 | F8: =IF(プレビュー!$H$33="指定年数","-",RngEnchou土木) -> 1.346417436 | G8: =IF(プレビュー!$H$33="指定年数","-",RngEnchou電気) -> 1.775606712 | H8: =IF(プレビュー!$H$33="指定年数","-",RngEnchou機械) -> 1.370990442 | N8: ■総合評価 | P8: 評価方法 | S8: シナリオ１ | V8: シナリオ２ | Y8: シナリオ３ | AB8: シナリオ４ | AE8: シナリオ５
AM9: s | AS9: シナリオ１ | AV9: シナリオ２ | AY9: シナリオ３ | BB9: シナリオ４ | BE9: シナリオ５
D10: シナリオの条件 | E10: シナリオ1 （修繕のみ） | F10: シナリオ２ （現状と同じフロー・ 規模で更新） | G10: シナリオ3 （希望フロー・ 同じ規模で更新） | H10: シナリオ4 （現状と同じフロー・ 将来予測規模で更新） | I10: シナリオ5 （希望フロー・ 将来予測規模で更新） | N10: 分類 | O10: 項目名 | P10: 配点 | Q10: 最低 | R10: 最高 | S10: 値 | T10: 得点 | U10: 得点率 | V10: 値 | W10: 得点 | X10: 得点率 | Y10: 値 | Z10: 得点 | AA10: 得点率 | AB10: 値 | AC10: 得点 | AD10: 得点率 | AE10: 値 | AF10: 得点 | AG10: 得点率 | AK10: 費用判定 | AM10: シナリオ1 | AN10: シナリオ２ | AO10: シナリオ3 | AP10: シナリオ4 | AQ10: シナリオ5
N11: 費用 | O11: 総費用（百万円/50年） | P11: 50 | Q11: 0 | R11: 47600 | S11: =IF(AK11=1,E19,0) -> 0 | T11: =IF(AK11=1,ROUND(P11*U11,1),0) -> 0 | U11: =IF(AK11=1,IF(($R11-S11)/($R11-$Q11)<0,0,IF(($R11-S11)/($R11-$Q11)>1,1,IFERROR(($R11-S11)/($R11-$Q11),0))),0) -> 0 | V11: =IF(AN9=0,"",IF(AK11=1,F19,0)) ->  | W11: =IF(AN9=0,"",IF(AK11=1,ROUND(P11*X11,1),0)) ->  | X11: =IF(AN9=0,"",IF(AK11=1,IF(($R11-V11)/($R11-$Q11)<0,0,IF(($R11-V11)/($R11-$Q11)>1,1,IFERROR(($R11-V11)/($R11-$Q11),0))),0)) ->  | Y11: =IF(AO9=0,"",IF(AK11=1,G19,0)) ->  | Z11: =IF(AO9=0,"",IF(AK11=1,ROUND(P11*AA11,1),0)) ->  | AA11: =IF(AO9=0,"",IF(AK11=1,IF(($R11-Y11)/($R11-$Q11)<0,0,IF(($R11-Y11)/($R11-$Q11)>1,1,IFERROR(($R11-Y11)/($R11-$Q11),0))),0)) ->  | AB11: =IF(AP9=0,"",IF(AK11=1,H19,0)) ->  | AC11: =IF(AP9=0,"",IF(AK11=1,ROUND(P11*AD11,1),0)) ->  | AD11: =IF(AP9=0,"",IF(AK11=1,IF(($R11-AB11)/($R11-$Q11)<0,0,IF(($R11-AB11)/($R11-$Q11)>1,1,IFERROR(($R11-AB11)/($R11-$Q11),0))),0)) ->  | AE11: =IF(AQ9=0,"",IF(AK11=1,I19,0)) ->  | AF11: =IF(AQ9=0,"",IF(AK11=1,ROUND(P11*AG11,1),0)) ->  | AG11: =IF(AQ9=0,"",IF(AK11=1,IF(($R11-AE11)/($R11-$Q11)<0,0,IF(($R11-AE11)/($R11-$Q11)>1,1,IFERROR(($R11-AE11)/($R11-$Q11),0))),0)) ->  | AR11: 【ｸﾞﾗﾌ参照】 | AS11: 値 | AT11: 得点 | AU11: 得点率 | AV11: 値 | AW11: 得点 | AX11: 得点率 | AY11: 値 | AZ11: 得点 | BA11: 得点率 | BB11: 値 | BC11: 得点 | BD11: 得点率 | BE11: 値 | BF11: 得点 | BG11: 得点率
D12: 計画浄水量 m3/日 | E12: =+'入力情報(1)'!H20 -> 0 | F12: =+'入力情報(1)'!H20 -> 0 | G12: =+'入力情報(1)'!H20 -> 0 | H12: =+'入力情報(2)'!I6 -> 0 | I12: =+'入力情報(2)'!I6 -> 0 | O12: 総費用リスク便益費込（百万円/50年） | Q12: 0 | R12: 53900 | S12: =IF(AK11=2,E25,0) -> 0 | T12: =IF(AK11=2,ROUND(P11*U12,1),0) -> 0 | U12: =IF(AK11=2,IF(($R12-S12)/($R12-$Q12)<0,0,IF(($R12-S12)/($R12-$Q12)>1,1,IFERROR(($R12-S12)/($R12-$Q12),0))),0) -> 0 | V12: =IF(AN9=0,"",IF(AK11=2,F25,0)) ->  | W12: =IF(AN9=0,"",IF(AK11=2,ROUND(P11*X12,1),0)) ->  | X12: =IF(AN9=0,"",IF(AK11=2,IF(($R12-V12)/($R12-$Q12)<0,0,IF(($R12-V12)/($R12-$Q12)>1,1,IFERROR(($R12-V12)/($R12-$Q12),0))),0)) ->  | Y12: =IF(AO9=0,"",IF(AK11=2,G25,0)) ->  | Z12: =IF(AO9=0,"",IF(AK11=2,ROUND(P11*AA12,1),0)) ->  | AA12: =IF(AO9=0,"",IF(AK11=2,IF(($R12-Y12)/($R12-$Q12)<0,0,IF(($R12-Y12)/($R12-$Q12)>1,1,IFERROR(($R12-Y12)/($R12-$Q12),0))),0)) ->  | AB12: =IF(AP9=0,"",IF(AK11=2,H25,0)) ->  | AC12: =IF(AP9=0,"",IF(AK11=2,ROUND(P11*AD12,1),0)) ->  | AD12: =IF(AP9=0,"",IF(AK11=2,IF(($R12-AB12)/($R12-$Q12)<0,0,IF(($R12-AB12)/($R12-$Q12)>1,1,IFERROR(($R12-AB12)/($R12-$Q12),0))),0)) ->  | AE12: =IF(AQ9=0,"",IF(AK11=2,I25,0)) ->  | AF12: =IF(AQ9=0,"",IF(AK11=2,ROUND(P11*AG12,1),0)) ->  | AG12: =IF(AQ9=0,"",IF(AK11=2,IF(($R12-AE12)/($R12-$Q12)<0,0,IF(($R12-AE12)/($R12-$Q12)>1,1,IFERROR(($R12-AE12)/($R12-$Q12),0))),0)) ->  | AL12: <ﾚｰﾀﾞｰﾁｬｰﾄ計算式一覧>ｼｰﾄ 列参照値 | AR12: =IF(AK11=1,AR6,AR7) -> 総費用リスク便益費込 （百万円/50年） | AS12: =IF(AK11=1,S11,S12) -> 0 | AT12: =IF(AK11=1,T11,T12) -> 0 | AU12: =IF(AK11=1,U11,U12) -> 0 | AV12: =IF(AK11=1,V11,V12) ->  | AW12: =IF(AK11=1,W11,W12) ->  | AX12: =IF(AK11=1,X11,X12) ->  | AY12: =IF(AK11=1,Y11,Y12) ->  | AZ12: =IF(AK11=1,Z11,Z12) ->  | BA12: =IF(AK11=1,AA11,AA12) ->  | BB12: =IF(AK11=1,AB11,AB12) ->  | BC12: =IF(AK11=1,AC11,AC12) ->  | BD12: =IF(AK11=1,AD11,AD12) ->  | BE12: =IF(AK11=1,AE11,AE12) ->  | BF12: =IF(AK11=1,AF11,AF12) ->  | BG12: =IF(AK11=1,AG11,AG12) -> 
D13: 浄水フロー | E13: =IF('入力情報(1)'!K25="","",'入力情報(1)'!K25) ->  | F13: =IF('入力情報(1)'!K25="","",'入力情報(1)'!K25) ->  | G13: =IF('入力情報(2)'!N32="","",'入力情報(2)'!N32) ->  | H13: =IF('入力情報(1)'!K25="","",'入力情報(1)'!K25) ->  | I13: =IF('入力情報(2)'!N32="","",'入力情報(2)'!N32) ->  | N13: 技 術 | O13: 電力使用量（kWh/m3） | P13: 10 | Q13: 0 | R13: 1 | S13: =IF(RngFlwNo1>=90000,"-",INDEX(RngRadar技術,1,AL13)) -> 対象外 | T13: =IF(RngFlwNo1>=90000,"-",ROUND(P13*U13,1)) ->  | U13: =IF(RngFlwNo1>=90000,"-",IF(($R13-S13)/($R13-$Q13)<0,0,IF(($R13-S13)/($R13-$Q13)>1,1,IFERROR(($R13-S13)/($R13-$Q13),0)))) ->  | V13: =IF(AN9=0,"",IF(RngFlwNo1>=90000,"-",INDEX(RngRadar技術,1,AL13))) ->  | W13: =IF(AN9=0,"",IF(RngFlwNo1>=90000,"-",ROUND(P13*X13,1))) ->  | X13: =IF(AN9=0,"",IF(RngFlwNo1>=90000,"-",IF(($R13-V13)/($R13-$Q13)<0,0,IF(($R13-V13)/($R13-$Q13)>1,1,IFERROR(($R13-V13)/($R13-$Q13),0))))) ->  | Y13: =IF(AO9=0,"",IF(RngFlwNo2>=90000,"-",INDEX(RngRadar技術,2,AL13))) ->  | Z13: =IF(AO9=0,"",IF(RngFlwNo2>=90000,"-",ROUND(P13*AA13,1))) ->  | AA13: =IF(AO9=0,"",IF(RngFlwNo2>=90000,"-",IF(($R13-Y13)/($R13-$Q13)<0,0,IF(($R13-Y13)/($R13-$Q13)>1,1,IFERROR(($R13-Y13)/($R13-$Q13),0))))) ->  | AB13: =IF(AP9=0,"",IF(RngFlwNo1>=90000,"-",INDEX(RngRadar技術,3,AL13))) ->  | AC13: =IF(AP9=0,"",IF(RngFlwNo1>=90000,"-",ROUND(P13*AD13,1))) ->  | AD13: =IF(AP9=0,"",IF(RngFlwNo1>=90000,"-",IF(($R13-AB13)/($R13-$Q13)<0,0,IF(($R13-AB13)/($R13-$Q13)>1,1,IFERROR(($R13-AB13)/($R13-$Q13),0))))) ->  | AE13: =IF(AQ9=0,"",IF(RngFlwNo2>=90000,"-",INDEX(RngRadar技術,4,AL13))) ->  | AF13: =IF(AQ9=0,"",IF(RngFlwNo2>=90000,"-",ROUND(P13*AG13,1))) ->  | AG13: =IF(AQ9=0,"",IF(RngFlwNo2>=90000,"-",IF(($R13-AE13)/($R13-$Q13)<0,0,IF(($R13-AE13)/($R13-$Q13)>1,1,IFERROR(($R13-AE13)/($R13-$Q13),0))))) ->  | AL13: 11 | AR13: =IF(AK11=1,Rng総合_費用Base,O12) -> 総費用リスク便益費込（百万円/50年） | AS13: ←折返なしﾊﾞｰｼﾞｮﾝ(縦棒G)
O14: 薬品費（円/m3） | P14: 10 | Q14: 0 | R14: 5 | S14: =IF(RngFlwNo1>=90000,"-",INDEX(RngRadar技術,1,AL14)) -> 対象外 | T14: =IF(RngFlwNo1>=90000,"-",ROUND(P14*U14,1)) ->  | U14: =IF(RngFlwNo1>=90000,"-",IF(($R14-S14)/($R14-$Q14)<0,0,IF(($R14-S14)/($R14-$Q14)>1,1,IFERROR(($R14-S14)/($R14-$Q14),0)))) ->  | V14: =IF(AN9=0,"",IF(RngFlwNo1>=90000,"-",INDEX(RngRadar技術,1,AL14))) ->  | W14: =IF(AN9=0,"",IF(RngFlwNo1>=90000,"-",ROUND(P14*X14,1))) ->  | X14: =IF(AN9=0,"",IF(RngFlwNo1>=90000,"-",IF(($R14-V14)/($R14-$Q14)<0,0,IF(($R14-V14)/($R14-$Q14)>1,1,IFERROR(($R14-V14)/($R14-$Q14),0))))) ->  | Y14: =IF(AO9=0,"",IF(RngFlwNo2>=90000,"-",INDEX(RngRadar技術,2,AL14))) ->  | Z14: =IF(AO9=0,"",IF(RngFlwNo2>=90000,"-",ROUND(P14*AA14,1))) ->  | AA14: =IF(AO9=0,"",IF(RngFlwNo2>=90000,"-",IF(($R14-Y14)/($R14-$Q14)<0,0,IF(($R14-Y14)/($R14-$Q14)>1,1,IFERROR(($R14-Y14)/($R14-$Q14),0))))) ->  | AB14: =IF(AP9=0,"",IF(RngFlwNo1>=90000,"-",INDEX(RngRadar技術,3,AL14))) ->  | AC14: =IF(AP9=0,"",IF(RngFlwNo1>=90000,"-",ROUND(P14*AD14,1))) ->  | AD14: =IF(AP9=0,"",IF(RngFlwNo1>=90000,"-",IF(($R14-AB14)/($R14-$Q14)<0,0,IF(($R14-AB14)/($R14-$Q14)>1,1,IFERROR(($R14-AB14)/($R14-$Q14),0))))) ->  | AE14: =IF(AQ9=0,"",IF(RngFlwNo2>=90000,"-",INDEX(RngRadar技術,4,AL14))) ->  | AF14: =IF(AQ9=0,"",IF(RngFlwNo2>=90000,"-",ROUND(P14*AG14,1))) ->  | AG14: =IF(AQ9=0,"",IF(RngFlwNo2>=90000,"-",IF(($R14-AE14)/($R14-$Q14)<0,0,IF(($R14-AE14)/($R14-$Q14)>1,1,IFERROR(($R14-AE14)/($R14-$Q14),0))))) ->  | AL14: 27
D15: 排水処理 | E15: =IF(Rng排水処理ChkDt=1,"天日乾燥床",IF(Rng排水処理ChkDt=2,"機械脱水機","無")) -> 無 | F15: =IF(Rng排水処理ChkDt=1,"天日乾燥床",IF(Rng排水処理ChkDt=2,"機械脱水機","無")) -> 無 | G15: =IF(Rng排水処理ChkDt2=1,"天日乾燥床",IF(Rng排水処理ChkDt2=2,"機械脱水機","無")) -> 無 | H15: =IF(Rng排水処理ChkDt=1,"天日乾燥床",IF(Rng排水処理ChkDt=2,"機械脱水機","無")) -> 無 | I15: =IF(Rng排水処理ChkDt2=1,"天日乾燥床",IF(Rng排水処理ChkDt2=2,"機械脱水機","無")) -> 無 | O15: 浄水場面積（m2/（m3/日）） | P15: 10 | Q15: 0 | R15: 10 | S15: =IF(RngFlwNo1>=90000,"-",INDEX(RngRadar技術,1,AL15)) -> 対象外 | T15: =IF(RngFlwNo1>=90000,"-",ROUND(P15*U15,1)) ->  | U15: =IF(RngFlwNo1>=90000,"-",IF(($R15-S15)/($R15-$Q15)<0,0,IF(($R15-S15)/($R15-$Q15)>1,1,IFERROR(($R15-S15)/($R15-$Q15),0)))) ->  | V15: =IF(AN9=0,"",IF(RngFlwNo1>=90000,"-",INDEX(RngRadar技術,1,AL15))) ->  | W15: =IF(AN9=0,"",IF(RngFlwNo1>=90000,"-",ROUND(P15*X15,1))) ->  | X15: =IF(AN9=0,"",IF(RngFlwNo1>=90000,"-",IF(($R15-V15)/($R15-$Q15)<0,0,IF(($R15-V15)/($R15-$Q15)>1,1,IFERROR(($R15-V15)/($R15-$Q15),0))))) ->  | Y15: =IF(AO9=0,"",IF(RngFlwNo2>=90000,"-",INDEX(RngRadar技術,2,AL15))) ->  | Z15: =IF(AO9=0,"",IF(RngFlwNo2>=90000,"-",ROUND(P15*AA15,1))) ->  | AA15: =IF(AO9=0,"",IF(RngFlwNo2>=90000,"-",IF(($R15-Y15)/($R15-$Q15)<0,0,IF(($R15-Y15)/($R15-$Q15)>1,1,IFERROR(($R15-Y15)/($R15-$Q15),0))))) ->  | AB15: =IF(AP9=0,"",IF(RngFlwNo1>=90000,"-",INDEX(RngRadar技術,3,AL15))) ->  | AC15: =IF(AP9=0,"",IF(RngFlwNo1>=90000,"-",ROUND(P15*AD15,1))) ->  | AD15: =IF(AP9=0,"",IF(RngFlwNo1>=90000,"-",IF(($R15-AB15)/($R15-$Q15)<0,0,IF(($R15-AB15)/($R15-$Q15)>1,1,IFERROR(($R15-AB15)/($R15-$Q15),0))))) ->  | AE15: =IF(AQ9=0,"",IF(RngFlwNo2>=90000,"-",INDEX(RngRadar技術,4,AL15))) ->  | AF15: =IF(AQ9=0,"",IF(RngFlwNo2>=90000,"-",ROUND(P15*AG15,1))) ->  | AG15: =IF(AQ9=0,"",IF(RngFlwNo2>=90000,"-",IF(($R15-AE15)/($R15-$Q15)<0,0,IF(($R15-AE15)/($R15-$Q15)>1,1,IFERROR(($R15-AE15)/($R15-$Q15),0))))) ->  | AL15: 17
D16: 追加修繕費* | E16: =+AM18/1000000 -> 0 | F16: 0 | G16: 0 | H16: 0 | I16: 0 | J16: 百万円 | O16: 維持管理難易度 | P16: 10 | Q16: - | R16: - | S16: =INDEX(RngRadar技術,1,AL16) ->  | T16: =ROUND(P16*U16,1) ->  | U16: =IF(S16="Ⅰ類",1,IF(S16="Ⅱ類",0.75,IF(S16="Ⅲ類",0.5,0))) ->  | V16: =IF(AN9=0,"",INDEX(RngRadar技術,1,AL16)) ->  | W16: =IF(AN9=0,"",ROUND(P16*X16,1)) ->  | X16: =IF(AN9="","",IF(V16="Ⅰ類",1,IF(V16="Ⅱ類",0.75,IF(V16="Ⅲ類",0.5,0)))) ->  | Y16: =IF(AO9=0,"",INDEX(RngRadar技術,2,AL16)) ->  | Z16: =IF(AO9=0,"",ROUND(P16*AA16,1)) ->  | AA16: =IF(AO9="","",IF(Y16="Ⅰ類",1,IF(Y16="Ⅱ類",0.75,IF(Y16="Ⅲ類",0.5,0)))) ->  | AB16: =IF(AP9=0,"",INDEX(RngRadar技術,3,AL16)) ->  | AC16: =IF(AP9=0,"",ROUND(P16*AD16,1)) ->  | AD16: =IF(AP9="","",IF(AB16="Ⅰ類",1,IF(AB16="Ⅱ類",0.75,IF(AB16="Ⅲ類",0.5,0)))) ->  | AE16: =IF(AQ9=0,"",INDEX(RngRadar技術,4,AL16)) ->  | AF16: =IF(AQ9=0,"",ROUND(P16*AG16,1)) ->  | AG16: =IF(AQ9="","",IF(AE16="Ⅰ類",1,IF(AE16="Ⅱ類",0.75,IF(AE16="Ⅲ類",0.5,0)))) ->  | AL16: 4
D17: 更新費* | E17: 0 | F17: 0 | G17: 0 | H17: 0 | I17: 0 | J17: 百万円 | O17: クリプト除去・不活化log数 | P17: 10 | Q17: 0 | R17: 6 | S17: =INDEX(RngRadar技術,1,AL17) ->  | U17: =IF((S17-$Q17)/($R17-$Q17)<0,0,IF((S17-$Q17)/($R17-$Q17)>1,1,IFERROR((S17-$Q17)/($R17-$Q17),0))) ->  | V17: =IF(AN9=0,"",INDEX(RngRadar技術,1,AL17)) ->  | W17: =IF(AN9=0,"",ROUND(P17*X17,1)) ->  | X17: =IF(AN9=0,"",IF((V17-$Q17)/($R17-$Q17)<0,0,IF((V17-$Q17)/($R17-$Q17)>1,1,IFERROR((V17-$Q17)/($R17-$Q17),0)))) ->  | Y17: =IF(AO9=0,"",INDEX(RngRadar技術,2,AL17)) ->  | Z17: =IF(AO9=0,"",ROUND(P17*AA17,1)) ->  | AA17: =IF(AO9=0,"",IF((Y17-$Q17)/($R17-$Q17)<0,0,IF((Y17-$Q17)/($R17-$Q17)>1,1,IFERROR((Y17-$Q17)/($R17-$Q17),0)))) ->  | AB17: =IF(AP9=0,"",INDEX(RngRadar技術,3,AL17)) ->  | AC17: =IF(AP9=0,"",ROUND(P17*AD17,1)) ->  | AD17: =IF(AP9=0,"",IF((AB17-$Q17)/($R17-$Q17)<0,0,IF((AB17-$Q17)/($R17-$Q17)>1,1,IFERROR((AB17-$Q17)/($R17-$Q17),0)))) ->  | AE17: =IF(AQ9=0,"",INDEX(RngRadar技術,4,AL17)) ->  | AF17: =IF(AQ9=0,"",ROUND(P17*AG17,1)) ->  | AG17: =IF(AQ9=0,"",IF((AE17-$Q17)/($R17-$Q17)<0,0,IF((AE17-$Q17)/($R17-$Q17)>1,1,IFERROR((AE17-$Q17)/($R17-$Q17),0)))) ->  | AL17: 3
D18: 運転費（人件費込み）* | E18: =+RngUnten1/1000000 -> 0 | F18: =+RngUnten2/1000000 -> 0 | G18: =+RngUnten3/1000000 -> 0 | H18: =+RngUnten4/1000000 -> 0 | I18: =+RngUnten5/1000000 -> 0 | J18: 百万円 | N18: 合計 | P18: =SUM(P11:P17) -> 100 | Q18: - | R18: - | S18: － | T18: =SUM(T11:T17) ->  | U18: － | V18: =IF(AN9=0,"","-") ->  | W18: =IF(AN9=0,"",SUM(W11:W17)) ->  | X18: =IF(AN9=0,"","-") ->  | Y18: =IF(AO9=0,"","-") ->  | Z18: =IF(AO9=0,"",SUM(Z11:Z17)) ->  | AA18: =IF(AO9=0,"","-") ->  | AB18: =IF(AP9=0,"","-") ->  | AC18: =IF(AP9=0,"",SUM(AC11:AC17)) ->  | AD18: =IF(AP9=0,"","-") ->  | AE18: =IF(AQ9=0,"","-") ->  | AF18: =IF(AQ9=0,"",SUM(AF11:AF17)) ->  | AG18: =IF(AQ9=0,"","-") ->  | AL18: 修繕費 | AM18: =SUM(修繕更新費用S1!N19) -> 0 | AN18: =SUM(修繕更新費用S2!N21:N23) -> 0 | AO18: =SUM(修繕更新費用S3!N21:N23) -> 0 | AP18: =SUM(修繕更新費用S4!N21:N23) -> 0 | AQ18: =SUM(修繕更新費用S5!N21:N23) -> 0
D19: 小計１ | E19: =SUM(E16:E18) -> 0 | F19: =SUM(F16:F18) -> 0 | G19: =SUM(G16:G18) -> 0 | H19: =SUM(H16:H18) -> 0 | I19: =SUM(I16:I18) -> 0 | J19: 百万円 | P19: ※「配点」は合計が 100 になるように入力して下さい。 | AL19: 更新費 | AM19: 0 | AN19: =SUM(修繕更新費用S2!N16:N20) -> 0 | AO19: =SUM(修繕更新費用S3!N16:N20) -> 0 | AP19: =SUM(修繕更新費用S4!N16:N20) -> 0 | AQ19: =SUM(修繕更新費用S5!N16:N20) -> 0 | AR19: 運転費１年単価
AL20: 運転費（人件費込み）
D21: リスク（損失額） 年ごとの影響水量を損失額に換算したものを50年分計算 | E21: =+AM23/1000000 -> 0 | F21: 0 | G21: 0 | H21: 0 | I21: 0 | J21: 百万円 | N21: ■得点率 | S21: ■得点 | AL21: 小計１ | AM21: =SUM(AM18:AM20) -> 0 | AN21: =SUM(AN18:AN20) -> 0 | AO21: =SUM(AO18:AO20) -> 0 | AP21: =SUM(AP18:AP20) -> 0 | AQ21: =SUM(AQ18:AQ20) -> 0
D22: 高度浄水処理による便益 | E22: 0 | F22: 0 | G22: =+AO24/1000000 -> 0 | H22: 0 | I22: =+AQ24/1000000 -> 0 | J22: 百万円
D23: 小計2 | E23: =+AM26/1000000 -> 0 | F23: =+AN26/1000000 -> 0 | G23: =+AO26/1000000 -> 0 | H23: =+AP26/1000000 -> 0 | I23: =+AQ26/1000000 -> 0 | J23: 百万円 | AL23: リスク（損失額） | AM23: =SUM(Calc2024!AF5:AF54) -> 0
AL24: 高度浄水処理による便益 | AO24: =IF(プレビュー!E71="✓",IF(AND(浄水フロー!C36=0,浄水フロー!D36>=1),+'入力情報(1)'!H20/0.33*0.128*33000*50*-1,0),0) -> 0 | AQ24: =IF(プレビュー!E73="✓",IF(AND(浄水フロー!C36=0,浄水フロー!D36>=1),+'入力情報(2)'!I6/0.33*0.128*33000*50*-1,0),0) -> 0
D25: 総計（小計１＋小計２） | E25: =+AM28/1000000 -> 0 | F25: =+AN28/1000000 -> 0 | G25: =+AO28/1000000 -> 0 | H25: =+AP28/1000000 -> 0 | I25: =+AQ28/1000000 -> 0 | J25: 百万円
AL26: 小計2 | AM26: =SUM(AM23:AM24) -> 0 | AN26: =SUM(AN23:AN24) -> 0 | AO26: 0 | AP26: 0 | AQ26: 0
AL28: 総計（小計１＋小計２） | AM28: =+AM21+AM26 -> 0 | AN28: =+AN21+AN26 -> 0 | AO28: =+AO21+AO26 -> 0 | AP28: =+AP21+AP26 -> 0 | AQ28: =+AQ21+AQ26 -> 0
D77: 浄水施設更新シミュレータ 水道技術研究センター 2024年10月
D78: 本シミュレーションは、シナリオによって、どの程度の違いが生じるのかイメージするためのツールであり、計算結果は実際の数量、金額を
D79: 表すものではありません。
D81: *：すべての費用の計算は各シナリオで選択している「計画浄水量（m3/日）」と「浄水フロー」を用いて、50年間の費用を計算しています。

Sheet 系列の集計 (hidden)
E2: ← 合計のみを表示する
D5: 50年間の費用で比較
D6: シナリオの条件 | E6: シナリオ1 （修繕のみ） | F6: シナリオ２ （現状と同じフロー・ 規模で更新） | G6: シナリオ3 （希望フロー・ 同じ規模で更新） | H6: シナリオ4 （現状と同じフロー・ 将来予測規模で更新） | I6: シナリオ5 （希望フロー・ 将来予測規模で更新）
D7: ｼﾅﾘｵ選択ｶｳﾝﾄ | E7: =COUNT(E10:E14) -> 0 | F7: =COUNT(F10:F14) -> 0 | G7: =COUNT(G10:G14) -> 0 | H7: =COUNT(H10:H14) -> 0 | I7: =COUNT(I10:I14) -> 0
D9: 修繕費 | E9: =SUM(E10:E14) -> 0 | F9: =SUM(F10:F14) -> 0 | G9: =SUM(G10:G14) -> 0 | H9: =SUM(H10:H14) -> 0 | I9: =SUM(I10:I14) -> 0 | J9: 百万円 | S9: 行非表示判定
S10: =IF(D10<>"",1,0) -> 0
S11: =IF(D11<>"",1,0) -> 0
S12: 0
S13: 0
S14: 0
D15: 更新費 | E15: =SUM(E16:E20) -> 0 | F15: =SUM(F16:F20) -> 0 | G15: =SUM(G16:G20) -> 0 | H15: =SUM(H16:H20) -> 0 | I15: =SUM(I16:I20) -> 0 | J15: 百万円
D21: 運転費（人件費込み） | E21: =SUM(E22:E26) -> 0 | F21: =SUM(F22:F26) -> 0 | G21: =SUM(G22:G26) -> 0 | H21: =SUM(H22:H26) -> 0 | I21: =SUM(I22:I26) -> 0 | J21: 百万円
D27: 小計１ | E27: =+E9+E15+E21 -> 0 | F27: =+F9+F15+F21 -> 0 | G27: =+G9+G15+G21 -> 0 | H27: =+H9+H15+H21 -> 0 | I27: =+I9+I15+I21 -> 0 | J27: 百万円
D29: リスク（損失額） | E29: =SUM(E30:E34) -> 0 | F29: =SUM(F30:F34) -> 0 | G29: =SUM(G30:G34) -> 0 | H29: =SUM(H30:H34) -> 0 | I29: =SUM(I30:I34) -> 0 | J29: 百万円
D35: 高度処理による便益 | E35: =SUM(E36:E40) -> 0 | F35: =SUM(F36:F40) -> 0 | G35: =SUM(G36:G40) -> 0 | H35: =SUM(H36:H40) -> 0 | I35: =SUM(I36:I40) -> 0 | J35: 百万円
D41: 小計2 | E41: =+E29+E35 -> 0 | F41: =+F29+F35 -> 0 | G41: =+G29+G35 -> 0 | H41: =+H29+H35 -> 0 | I41: =+I29+I35 -> 0 | J41: 百万円
D43: 総計（小計１＋小計２） | E43: =+E27+E41 -> 0 | F43: =+F27+F41 -> 0 | G43: =+G27+G41 -> 0 | H43: =+H27+H41 -> 0 | I43: =+I27+I41 -> 0 | J43: 百万円
D94: 浄水施設更新シミュレータ 水道技術研究センター 2024年10月
D95: 本シミュレーションは、シナリオによって、どの程度の違いが生じるのかイメージするためのツールであり、計算結果は実際の数量、金額を
D96: 表すものではありません。

Sheet レーダーチャート計算式一覧 (hidden)
P1: 現状の浄水量 | V1: 現状の薬品費
F2: 除去・不活化Log数 | G2: 維持管理レベル | I2: 電力使用量 | P2: 敷地面積 | V2: 凝集あり | Z2: 凝集なし
I3: 傾き | J3: 処理水量 | K3: 切片 | L3: 結果 | P3: 傾き | Q3: 処理水量 | R3: 切片 | S3: 結果 | V3: 傾き | W3: 処理水量 | X3: 切片 | Y3: 結果 | Z3: 傾き | AA3: 処理水量 | AB3: 切片 | AC3: 結果 | AD3: 結果
D4: 分類No. | E4: 基本フロー | F4: 除去率(Log表示) | G4: レベルの設定値 | I4: a | J4: X | K4: b | L4: Y（kWh/年） | M4: Y'（kWh/日) | N4: kWh/m3 | P4: a | Q4: X | R4: b | S4: S（m2） | T4: m2/（m3・日） | V4: a | W4: X | X4: b | Y4: （円） | Z4: a | AA4: X | AB4: b | AC4: （円） | AD4: 円/m3
D5: 10000 | E5: 緩速ろ過 | F5: 4 | G5: Ⅰ類 | I5: =$F$189 -> 16.283 | K5: =$H$189 -> 40720 | L5: =I5*J5+K5 -> 40720 | M5: =L5/365 -> 111.5616438 | P5: =$F$196 -> 2.2023 | R5: =$H$196 -> 0 | S5: =P5*Q5+R5 -> 0 | Z5: =$F$211 -> 238.2721989 | AA5: =$C$178 -> 0 | AB5: =H211 -> 0 | AC5: =Z5*AA5+AB5 -> 0
D6: 10001 | E6: 緩速ろ過+天日乾燥床 | F6: 4 | G6: Ⅰ類 | I6: =$F$189 -> 16.283 | K6: =$H$189 -> 40720 | L6: =I6*J6+K6 -> 40720 | M6: =L6/365 -> 111.5616438 | P6: =$F$196 -> 2.2023 | R6: =$H$196 -> 0 | S6: =P6*Q6+R6 -> 0 | Z6: =$F$211 -> 238.2721989 | AA6: =$C$178 -> 0 | AB6: 0 | AC6: =Z6*AA6+AB6 -> 0
D7: 10002 | E7: 緩速ろ過+機械脱水機 | F7: 4 | G7: Ⅰ類 | I7: 16.283 | K7: 40720 | L7: 40720 | M7: 111.5616438 | P7: 2.2023 | R7: 0 | S7: 0 | Z7: 238.2721989 | AA7: 0 | AB7: 0 | AC7: 0
D8: 10010 | E8: 緩速ろ過+紫外線 | F8: 7 | G8: Ⅰ類 | I8: 16.283 | K8: 40720 | L8: 40720 | M8: 111.5616438 | P8: 2.2023 | R8: 0 | S8: 0 | Z8: 238.2721989 | AA8: 0 | AB8: 0 | AC8: 0
D9: 10011 | E9: 緩速ろ過+紫外線+天日乾燥床 | F9: 7 | G9: Ⅰ類 | I9: 16.283 | K9: 40720 | L9: 40720 | M9: 111.5616438 | P9: 2.2023 | R9: 0 | S9: 0 | Z9: 238.2721989 | AA9: 0 | AB9: 0 | AC9: 0
D10: 10012 | E10: 緩速ろ過+紫外線+機械脱水機 | F10: 7 | G10: Ⅰ類 | I10: 16.283 | K10: 40720 | L10: 40720 | M10: 111.5616438 | P10: 2.2023 | R10: 0 | S10: 0 | Z10: 238.2721989 | AA10: 0 | AB10: 0 | AC10: 0
D11: 11000 | E11: 普通沈澱+緩速ろ過 | F11: 5 | G11: Ⅰ類 | I11: 16.283 | K11: 40720 | L11: 40720 | M11: 111.5616438 | P11: 2.2023 | R11: 0 | S11: 0 | Z11: 238.2721989 | AA11: 0 | AB11: 0 | AC11: 0
D12: 11001 | E12: 普通沈澱+緩速ろ過+天日乾燥床 | F12: 5 | G12: Ⅰ類 | I12: 16.283 | K12: 40720 | L12: 40720 | M12: 111.5616438 | P12: 2.2023 | R12: 0 | S12: 0 | Z12: 238.2721989 | AA12: 0 | AB12: 0 | AC12: 0
D13: 11002 | E13: 普通沈澱+緩速ろ過+機械脱水機 | F13: 5 | G13: Ⅰ類 | I13: 16.283 | K13: 40720 | L13: 40720 | M13: 111.5616438 | P13: 2.2023 | R13: 0 | S13: 0 | Z13: 238.2721989 | AA13: 0 | AB13: 0 | AC13: 0
D14: 11010 | E14: 普通沈澱+緩速ろ過+紫外線 | F14: 8 | G14: Ⅰ類 | I14: 16.283 | K14: 40720 | L14: 40720 | M14: 111.5616438 | P14: 2.2023 | R14: 0 | S14: 0 | Z14: 238.2721989 | AA14: 0 | AB14: 0 | AC14: 0
D15: 11011 | E15: 普通沈澱+緩速ろ過+紫外線+天日乾燥床 | F15: 8 | G15: Ⅰ類 | I15: 16.283 | K15: 40720 | L15: 40720 | M15: 111.5616438 | P15: 2.2023 | R15: 0 | S15: 0 | Z15: 238.2721989 | AA15: 0 | AB15: 0 | AC15: 0
D16: 11012 | E16: 普通沈澱+緩速ろ過+紫外線+機械脱水機 | F16: 8 | G16: Ⅰ類 | I16: 16.283 | K16: 40720 | L16: 40720 | M16: 111.5616438 | P16: 2.2023 | R16: 0 | S16: 0 | Z16: 238.2721989 | AA16: 0 | AB16: 0 | AC16: 0
D17: 11200 | E17: 普通沈澱+粒状炭+緩速ろ過 | F17: 5 | G17: Ⅱ類 | I17: 16.283 | K17: 40720 | L17: 40720 | M17: 111.5616438 | P17: 2.2023 | R17: 0 | S17: 0 | Z17: 238.2721989 | AA17: 0 | AB17: 0 | AC17: 0
D18: 11201 | E18: 普通沈澱+粒状炭+緩速ろ過+天日乾燥床 | F18: 5 | G18: Ⅱ類 | I18: 16.283 | K18: 40720 | L18: 40720 | M18: 111.5616438 | P18: 2.2023 | R18: 0 | S18: 0 | Z18: 238.2721989 | AA18: 0 | AB18: 0 | AC18: 0
D19: 11202 | E19: 普通沈澱+粒状炭+緩速ろ過+機械脱水機 | F19: 5 | G19: Ⅱ類 | I19: 16.283 | K19: 40720 | L19: 40720 | M19: 111.5616438 | P19: 2.2023 | R19: 0 | S19: 0 | Z19: 238.2721989 | AA19: 0 | AB19: 0 | AC19: 0
D20: 11210 | E20: 普通沈澱+粒状炭+緩速ろ過+紫外線 | F20: 8 | G20: Ⅱ類 | I20: 16.283 | K20: 40720 | L20: 40720 | M20: 111.5616438 | P20: 2.2023 | R20: 0 | S20: 0 | Z20: 238.2721989 | AA20: 0 | AB20: 0 | AC20: 0
D21: 11211 | E21: 普通沈澱+粒状炭+緩速ろ過+紫外線+天日乾燥床 | F21: 8 | G21: Ⅱ類 | I21: 16.283 | K21: 40720 | L21: 40720 | M21: 111.5616438 | P21: 2.2023 | R21: 0 | S21: 0 | Z21: 238.2721989 | AA21: 0 | AB21: 0 | AC21: 0
D22: 11212 | E22: 普通沈澱+粒状炭+緩速ろ過+紫外線+機械脱水機 | F22: 8 | G22: Ⅱ類 | I22: 16.283 | K22: 40720 | L22: 40720 | M22: 111.5616438 | P22: 2.2023 | R22: 0 | S22: 0 | Z22: 238.2721989 | AA22: 0 | AB22: 0 | AC22: 0
D23: 11700 | E23: 粉末炭+普通沈澱+粒状炭+緩速ろ過 | F23: 5 | G23: Ⅲ類 | I23: 16.283 | K23: 40720 | L23: 40720 | M23: 111.5616438 | P23: 2.2023 | R23: 0 | S23: 0 | V23: =$F$204 -> 238.2721989 | W23: =$C$178 -> 0 | X23: =$H$204 -> 0 | Y23: =V23*W23+X23 -> 0 | Z23: 238.2721989 | AA23: 0 | AB23: 0 | AC23: 0
D24: 11701 | E24: 粉末炭+普通沈澱+粒状炭+緩速ろ過+天日乾燥床 | F24: 5 | G24: Ⅲ類 | I24: 16.283 | K24: 40720 | L24: 40720 | M24: 111.5616438 | P24: 2.2023 | R24: 0 | S24: 0 | V24: 238.2721989 | W24: 0 | X24: 0 | Y24: 0 | Z24: 238.2721989 | AA24: 0 | AB24: 0 | AC24: 0
D25: 11702 | E25: 粉末炭+普通沈澱+粒状炭+緩速ろ過+機械脱水機 | F25: 5 | G25: Ⅲ類 | I25: 16.283 | K25: 40720 | L25: 40720 | M25: 111.5616438 | P25: 2.2023 | R25: 0 | S25: 0 | V25: 238.2721989 | W25: 0 | X25: 0 | Y25: 0 | Z25: 238.2721989 | AA25: 0 | AB25: 0 | AC25: 0
D26: 11710 | E26: 粉末炭+普通沈澱+粒状炭+緩速ろ過+紫外線 | F26: 8 | G26: Ⅲ類 | I26: 16.283 | K26: 40720 | L26: 40720 | M26: 111.5616438 | P26: 2.2023 | R26: 0 | S26: 0 | V26: 238.2721989 | W26: 0 | X26: 0 | Y26: 0 | Z26: 238.2721989 | AA26: 0 | AB26: 0 | AC26: 0
D27: 11711 | E27: 粉末炭+普通沈澱+粒状炭+緩速ろ過+紫外線+天日乾燥床 | F27: 8 | G27: Ⅲ類 | I27: 16.283 | K27: 40720 | L27: 40720 | M27: 111.5616438 | P27: 2.2023 | R27: 0 | S27: 0 | V27: 238.2721989 | W27: 0 | X27: 0 | Y27: 0 | Z27: 238.2721989 | AA27: 0 | AB27: 0 | AC27: 0
D28: 11712 | E28: 粉末炭+普通沈澱+粒状炭+緩速ろ過+紫外線+機械脱水機 | F28: 8 | G28: Ⅲ類 | I28: 16.283 | K28: 40720 | L28: 40720 | M28: 111.5616438 | P28: 2.2023 | R28: 0 | S28: 0 | V28: 238.2721989 | W28: 0 | X28: 0 | Y28: 0 | Z28: 238.2721989 | AA28: 0 | AB28: 0 | AC28: 0
D29: 13000 | E29: 凝集+沈澱/前ろ過+緩速ろ過 | F29: 5 | G29: Ⅱ類 | I29: 16.283 | K29: 40720 | L29: 40720 | M29: 111.5616438 | P29: 2.2023 | R29: 0 | S29: 0 | V29: 238.2721989 | W29: 0 | X29: 0 | Y29: 0
D30: 13001 | E30: 凝集+沈澱/前ろ過+緩速ろ過+天日乾燥床 | F30: 5 | G30: Ⅱ類 | I30: 16.283 | K30: 40720 | L30: 40720 | M30: 111.5616438 | P30: 2.2023 | R30: 0 | S30: 0 | V30: 238.2721989 | W30: 0 | X30: 0 | Y30: 0
D31: 13002 | E31: 凝集+沈澱/前ろ過+緩速ろ過+機械脱水機 | F31: 5 | G31: Ⅱ類 | I31: 16.283 | K31: 40720 | L31: 40720 | M31: 111.5616438 | P31: 2.2023 | R31: 0 | S31: 0 | V31: 238.2721989 | W31: 0 | X31: 0 | Y31: 0
D32: 13010 | E32: 凝集+沈澱/前ろ過+緩速ろ過+紫外線 | F32: 8 | G32: Ⅱ類 | I32: 16.283 | K32: 40720 | L32: 40720 | M32: 111.5616438 | P32: 2.2023 | R32: 0 | S32: 0 | V32: 238.2721989 | W32: 0 | X32: 0 | Y32: 0
D33: 13011 | E33: 凝集+沈澱/前ろ過+緩速ろ過+紫外線+天日乾燥床 | F33: 8 | G33: Ⅱ類 | I33: 16.283 | K33: 40720 | L33: 40720 | M33: 111.5616438 | P33: 2.2023 | R33: 0 | S33: 0 | V33: 238.2721989 | W33: 0 | X33: 0 | Y33: 0
D34: 13012 | E34: 凝集+沈澱/前ろ過+緩速ろ過+紫外線+機械脱水機 | F34: 8 | G34: Ⅱ類 | I34: 16.283 | K34: 40720 | L34: 40720 | M34: 111.5616438 | P34: 2.2023 | R34: 0 | S34: 0 | V34: 238.2721989 | W34: 0 | X34: 0 | Y34: 0
D35: 13200 | E35: 凝集+沈澱/前ろ過+粒状炭+緩速ろ過 | F35: 5 | G35: Ⅲ類 | I35: 16.283 | K35: 40720 | L35: 40720 | M35: 111.5616438 | P35: 2.2023 | R35: 0 | S35: 0 | V35: 238.2721989 | W35: 0 | X35: 0 | Y35: 0
D36: 13201 | E36: 凝集+沈澱/前ろ過+粒状炭+緩速ろ過+天日乾燥床 | F36: 5 | G36: Ⅲ類 | I36: 16.283 | K36: 40720 | L36: 40720 | M36: 111.5616438 | P36: 2.2023 | R36: 0 | S36: 0 | V36: 238.2721989 | W36: 0 | X36: 0 | Y36: 0
D37: 13202 | E37: 凝集+沈澱/前ろ過+粒状炭+緩速ろ過+機械脱水機 | F37: 5 | G37: Ⅲ類 | I37: 16.283 | K37: 40720 | L37: 40720 | M37: 111.5616438 | P37: 2.2023 | R37: 0 | S37: 0 | V37: 238.2721989 | W37: 0 | X37: 0 | Y37: 0
D38: 13210 | E38: 凝集+沈澱/前ろ過+粒状炭+緩速ろ過+紫外線 | F38: 8 | G38: Ⅲ類 | I38: 16.283 | K38: 40720 | L38: 40720 | M38: 111.5616438 | P38: 2.2023 | R38: 0 | S38: 0 | V38: 238.2721989 | W38: 0 | X38: 0 | Y38: 0
D39: 13211 | E39: 凝集+沈澱/前ろ過+粒状炭+緩速ろ過+紫外線+天日乾燥床 | F39: 8 | G39: Ⅲ類 | I39: 16.283 | K39: 40720 | L39: 40720 | M39: 111.5616438 | P39: 2.2023 | R39: 0 | S39: 0 | V39: 238.2721989 | W39: 0 | X39: 0 | Y39: 0
D40: 13212 | E40: 凝集+沈澱/前ろ過+粒状炭+緩速ろ過+紫外線+機械脱水機 | F40: 8 | G40: Ⅲ類 | I40: 16.283 | K40: 40720 | L40: 40720 | M40: 111.5616438 | P40: 2.2023 | R40: 0 | S40: 0 | V40: 238.2721989 | W40: 0 | X40: 0 | Y40: 0
D41: 13500 | E41: 粉末炭+凝集+沈澱/前ろ過+緩速ろ過 | F41: 5 | G41: Ⅲ類 | I41: 16.283 | K41: 40720 | L41: 40720 | M41: 111.5616438 | P41: 2.2023 | R41: 0 | S41: 0 | V41: 238.2721989 | W41: 0 | X41: 0 | Y41: 0
D42: 13501 | E42: 粉末炭+凝集+沈澱/前ろ過+緩速ろ過+天日乾燥床 | F42: 5 | G42: Ⅲ類 | I42: 16.283 | K42: 40720 | L42: 40720 | M42: 111.5616438 | P42: 2.2023 | R42: 0 | S42: 0 | V42: 238.2721989 | W42: 0 | X42: 0 | Y42: 0
D43: 13502 | E43: 粉末炭+凝集+沈澱/前ろ過+緩速ろ過+機械脱水機 | F43: 5 | G43: Ⅲ類 | I43: 16.283 | K43: 40720 | L43: 40720 | M43: 111.5616438 | P43: 2.2023 | R43: 0 | S43: 0 | V43: 238.2721989 | W43: 0 | X43: 0 | Y43: 0
D44: 13510 | E44: 粉末炭+凝集+沈澱/前ろ過+緩速ろ過+紫外線 | F44: 8 | G44: Ⅲ類 | I44: 16.283 | K44: 40720 | L44: 40720 | M44: 111.5616438 | P44: 2.2023 | R44: 0 | S44: 0 | V44: 238.2721989 | W44: 0 | X44: 0 | Y44: 0
D45: 13511 | E45: 粉末炭+凝集+沈澱/前ろ過+緩速ろ過+紫外線+天日乾燥床 | F45: 8 | G45: Ⅲ類 | I45: 16.283 | K45: 40720 | L45: 40720 | M45: 111.5616438 | P45: 2.2023 | R45: 0 | S45: 0 | V45: 238.2721989 | W45: 0 | X45: 0 | Y45: 0
D46: 13512 | E46: 粉末炭+凝集+沈澱/前ろ過+緩速ろ過+紫外線+機械脱水機 | F46: 8 | G46: Ⅲ類 | I46: 16.283 | K46: 40720 | L46: 40720 | M46: 111.5616438 | P46: 2.2023 | R46: 0 | S46: 0 | V46: 238.2721989 | W46: 0 | X46: 0 | Y46: 0
D47: 13700 | E47: 粉末炭+凝集+沈澱/前ろ過+粒状炭+緩速ろ過 | F47: 5 | G47: Ⅲ類 | I47: 16.283 | K47: 40720 | L47: 40720 | M47: 111.5616438 | P47: 2.2023 | R47: 0 | S47: 0 | V47: 238.2721989 | W47: 0 | X47: 0 | Y47: 0
D48: 13701 | E48: 粉末炭+凝集+沈澱/前ろ過+粒状炭+緩速ろ過+天日乾燥床 | F48: 5 | G48: Ⅲ類 | I48: 16.283 | K48: 40720 | L48: 40720 | M48: 111.5616438 | P48: 2.2023 | R48: 0 | S48: 0 | V48: 238.2721989 | W48: 0 | X48: 0 | Y48: 0
D49: 13702 | E49: 粉末炭+凝集+沈澱/前ろ過+粒状炭+緩速ろ過+機械脱水機 | F49: 5 | G49: Ⅲ類 | I49: 16.283 | K49: 40720 | L49: 40720 | M49: 111.5616438 | P49: 2.2023 | R49: 0 | S49: 0 | V49: 238.2721989 | W49: 0 | X49: 0 | Y49: 0
D50: 13710 | E50: 粉末炭+凝集+沈澱/前ろ過+粒状炭+緩速ろ過+紫外線 | F50: 8 | G50: Ⅲ類 | I50: 16.283 | K50: 40720 | L50: 40720 | M50: 111.5616438 | P50: 2.2023 | R50: 0 | S50: 0 | V50: 238.2721989 | W50: 0 | X50: 0 | Y50: 0
D51: 13711 | E51: 粉末炭+凝集+沈澱/前ろ過+粒状炭+緩速ろ過+紫外線+天日乾燥床 | F51: 8 | G51: Ⅲ類 | I51: 16.283 | K51: 40720 | L51: 40720 | M51: 111.5616438 | P51: 2.2023 | R51: 0 | S51: 0 | V51: 238.2721989 | W51: 0 | X51: 0 | Y51: 0
D52: 13712 | E52: 粉末炭+凝集+沈澱/前ろ過+粒状炭+緩速ろ過+紫外線+機械脱水機 | F52: 8 | G52: Ⅲ類 | I52: 16.283 | K52: 40720 | L52: 40720 | M52: 111.5616438 | P52: 2.2023 | R52: 0 | S52: 0 | V52: 238.2721989 | W52: 0 | X52: 0 | Y52: 0
D53: 22000 | E53: 凝集+急速ろ過 | F53: 3 | G53: Ⅱ類 | I53: =$F$190 -> 15.16 | K53: =$H$190 -> 134770 | L53: 134770 | M53: 369.2328767 | P53: =$F$197 -> 0.4899 | R53: =$H$197 -> 0 | S53: 0 | V53: =$F$205 -> 829.2147718 | W53: 0 | X53: =$H$205 -> 0 | Y53: 0
D54: 22001 | E54: 凝集+急速ろ過+天日乾燥床 | F54: 3 | G54: Ⅱ類 | I54: =$F$190 -> 15.16 | K54: =$H$190 -> 134770 | L54: 134770 | M54: 369.2328767 | P54: =$F$197 -> 0.4899 | R54: =$H$197 -> 0 | S54: 0 | V54: =$F$205 -> 829.2147718 | W54: 0 | X54: =$H$205 -> 0 | Y54: 0
D55: 22002 | E55: 凝集+急速ろ過+機械脱水機 | F55: 3 | G55: Ⅱ類 | I55: 15.16 | K55: 134770 | L55: 134770 | M55: 369.2328767 | P55: 0.4899 | R55: 0 | S55: 0 | V55: 829.2147718 | W55: 0 | X55: 0 | Y55: 0
D56: 22010 | E56: 凝集+急速ろ過+紫外線 | F56: 6 | G56: Ⅱ類 | I56: 15.16 | K56: 134770 | L56: 134770 | M56: 369.2328767 | P56: 0.4899 | R56: 0 | S56: 0 | V56: 829.2147718 | W56: 0 | X56: 0 | Y56: 0
D57: 22011 | E57: 凝集+急速ろ過+紫外線+天日乾燥床 | F57: 6 | G57: Ⅱ類 | I57: 15.16 | K57: 134770 | L57: 134770 | M57: 369.2328767 | P57: 0.4899 | R57: 0 | S57: 0 | V57: 829.2147718 | W57: 0 | X57: 0 | Y57: 0
D58: 22012 | E58: 凝集+急速ろ過+紫外線+機械脱水機 | F58: 6 | G58: Ⅱ類 | I58: 15.16 | K58: 134770 | L58: 134770 | M58: 369.2328767 | P58: 0.4899 | R58: 0 | S58: 0 | V58: 829.2147718 | W58: 0 | X58: 0 | Y58: 0
D59: 23000 | E59: 凝集+沈澱/前ろ過+急速ろ過 | F59: 4 | G59: Ⅱ類 | I59: 15.16 | K59: 134770 | L59: 134770 | M59: 369.2328767 | P59: 0.4899 | R59: 0 | S59: 0 | V59: 829.2147718 | W59: 0 | X59: 0 | Y59: 0
D60: 23001 | E60: 凝集+沈澱/前ろ過+急速ろ過+天日乾燥床 | F60: 4 | G60: Ⅱ類 | I60: 15.16 | K60: 134770 | L60: 134770 | M60: 369.2328767 | P60: 0.4899 | R60: 0 | S60: 0 | V60: 829.2147718 | W60: 0 | X60: 0 | Y60: 0
D61: 23002 | E61: 凝集+沈澱/前ろ過+急速ろ過+機械脱水機 | F61: 4 | G61: Ⅱ類 | I61: 15.16 | K61: 134770 | L61: 134770 | M61: 369.2328767 | P61: 0.4899 | R61: 0 | S61: 0 | V61: 829.2147718 | W61: 0 | X61: 0 | Y61: 0
D62: 23010 | E62: 凝集+沈澱/前ろ過+急速ろ過+紫外線 | F62: 7 | G62: Ⅱ類 | I62: 15.16 | K62: 134770 | L62: 134770 | M62: 369.2328767 | P62: 0.4899 | R62: 0 | S62: 0 | V62: 829.2147718 | W62: 0 | X62: 0 | Y62: 0
D63: 23011 | E63: 凝集+沈澱/前ろ過+急速ろ過+紫外線+天日乾燥床 | F63: 7 | G63: Ⅱ類 | I63: 15.16 | K63: 134770 | L63: 134770 | M63: 369.2328767 | P63: 0.4899 | R63: 0 | S63: 0 | V63: 829.2147718 | W63: 0 | X63: 0 | Y63: 0
D64: 23012 | E64: 凝集+沈澱/前ろ過+急速ろ過+紫外線+機械脱水機 | F64: 7 | G64: Ⅱ類 | I64: 15.16 | K64: 134770 | L64: 134770 | M64: 369.2328767 | P64: 0.4899 | R64: 0 | S64: 0 | V64: 829.2147718 | W64: 0 | X64: 0 | Y64: 0
D65: 23200 | E65: 凝集+沈澱/前ろ過+粒状炭+急速ろ過 | F65: 4 | G65: Ⅲ類 | I65: 15.16 | K65: 134770 | L65: 134770 | M65: 369.2328767 | P65: 0.4899 | R65: 0 | S65: 0 | V65: 829.2147718 | W65: 0 | X65: 0 | Y65: 0
D66: 23201 | E66: 凝集+沈澱/前ろ過+粒状炭+急速ろ過+天日乾燥床 | F66: 4 | G66: Ⅲ類 | I66: 15.16 | K66: 134770 | L66: 134770 | M66: 369.2328767 | P66: 0.4899 | R66: 0 | S66: 0 | V66: 829.2147718 | W66: 0 | X66: 0 | Y66: 0
D67: 23202 | E67: 凝集+沈澱/前ろ過+粒状炭+急速ろ過+機械脱水機 | F67: 4 | G67: Ⅲ類 | I67: 15.16 | K67: 134770 | L67: 134770 | M67: 369.2328767 | P67: 0.4899 | R67: 0 | S67: 0 | V67: 829.2147718 | W67: 0 | X67: 0 | Y67: 0
D68: 23210 | E68: 凝集+沈澱/前ろ過+粒状炭+急速ろ過+紫外線 | F68: 7 | G68: Ⅲ類 | I68: 15.16 | K68: 134770 | L68: 134770 | M68: 369.2328767 | P68: 0.4899 | R68: 0 | S68: 0 | V68: 829.2147718 | W68: 0 | X68: 0 | Y68: 0
D69: 23211 | E69: 凝集+沈澱/前ろ過+粒状炭+急速ろ過+紫外線+天日乾燥床 | F69: 7 | G69: Ⅲ類 | I69: 15.16 | K69: 134770 | L69: 134770 | M69: 369.2328767 | P69: 0.4899 | R69: 0 | S69: 0 | V69: 829.2147718 | W69: 0 | X69: 0 | Y69: 0
D70: 23212 | E70: 凝集+沈澱/前ろ過+粒状炭+急速ろ過+紫外線+機械脱水機 | F70: 7 | G70: Ⅲ類 | I70: 15.16 | K70: 134770 | L70: =I70*J70+K70 -> 134770 | M70: =L70/365 -> 369.2328767 | P70: 0.4899 | R70: 0 | S70: =P70*Q70+R70 -> 0 | V70: 829.2147718 | W70: 0 | X70: 0 | Y70: 0
D71: 23300 | E71: 凝集+沈澱/前ろ過+オゾン+粒状炭+急速ろ過 | F71: 5.5 | G71: Ⅲ類 | I71: 15.16 | K71: 134770 | L71: 134770 | M71: 369.2328767 | P71: 0.4899 | R71: 0 | S71: 0 | V71: 829.2147718 | W71: 0 | X71: 0 | Y71: 0
D72: 23301 | E72: 凝集+沈澱/前ろ過+オゾン+粒状炭+急速ろ過+天日乾燥床 | F72: 5.5 | G72: Ⅲ類 | I72: 15.16 | K72: 134770 | L72: 134770 | M72: 369.2328767 | P72: 0.4899 | R72: 0 | S72: 0 | V72: 829.2147718 | W72: 0 | X72: 0 | Y72: 0
D73: 23302 | E73: 凝集+沈澱/前ろ過+オゾン+粒状炭+急速ろ過+機械脱水機 | F73: 5.5 | G73: Ⅲ類 | I73: 15.16 | K73: 134770 | L73: 134770 | M73: 369.2328767 | P73: 0.4899 | R73: 0 | S73: 0 | V73: 829.2147718 | W73: 0 | X73: 0 | Y73: 0
D74: 23310 | E74: 凝集+沈澱/前ろ過+オゾン+粒状炭+急速ろ過+紫外線 | F74: 8.5 | G74: Ⅲ類 | I74: 15.16 | K74: 134770 | L74: 134770 | M74: 369.2328767 | P74: 0.4899 | R74: 0 | S74: 0 | V74: 829.2147718 | W74: 0 | X74: 0 | Y74: 0
D75: 23311 | E75: 凝集+沈澱/前ろ過+オゾン+粒状炭+急速ろ過+紫外線+天日乾燥床 | F75: 8.5 | G75: Ⅲ類 | I75: 15.16 | K75: 134770 | L75: 134770 | M75: 369.2328767 | P75: 0.4899 | R75: 0 | S75: 0 | V75: 829.2147718 | W75: 0 | X75: 0 | Y75: 0
D76: 23312 | E76: 凝集+沈澱/前ろ過+オゾン+粒状炭+急速ろ過+紫外線+機械脱水機 | F76: 8.5 | G76: Ⅲ類 | I76: 15.16 | K76: 134770 | L76: 134770 | M76: 369.2328767 | P76: 0.4899 | R76: 0 | S76: 0 | V76: 829.2147718 | W76: 0 | X76: 0 | Y76: 0
D77: 23500 | E77: 粉末炭+凝集+沈澱/前ろ過+急速ろ過 | F77: 4 | G77: Ⅲ類 | I77: 15.16 | K77: 134770 | L77: 134770 | M77: 369.2328767 | P77: 0.4899 | R77: 0 | S77: 0 | V77: 829.2147718 | W77: 0 | X77: 0 | Y77: 0
D78: 23501 | E78: 粉末炭+凝集+沈澱/前ろ過+急速ろ過+天日乾燥床 | F78: 4 | G78: Ⅲ類 | I78: 15.16 | K78: 134770 | L78: 134770 | M78: 369.2328767 | P78: 0.4899 | R78: 0 | S78: 0 | V78: 829.2147718 | W78: 0 | X78: 0 | Y78: 0
D79: 23502 | E79: 粉末炭+凝集+沈澱/前ろ過+急速ろ過+機械脱水機 | F79: 4 | G79: Ⅲ類 | I79: 15.16 | K79: 134770 | L79: 134770 | M79: 369.2328767 | P79: 0.4899 | R79: 0 | S79: 0 | V79: 829.2147718 | W79: 0 | X79: 0 | Y79: 0
D80: 23510 | E80: 粉末炭+凝集+沈澱/前ろ過+急速ろ過+紫外線 | F80: 7 | G80: Ⅲ類 | I80: 15.16 | K80: 134770 | L80: 134770 | M80: 369.2328767 | P80: 0.4899 | R80: 0 | S80: 0 | V80: 829.2147718 | W80: 0 | X80: 0 | Y80: 0
D81: 23511 | E81: 粉末炭+凝集+沈澱/前ろ過+急速ろ過+紫外線+天日乾燥床 | F81: 7 | G81: Ⅲ類 | I81: 15.16 | K81: 134770 | L81: 134770 | M81: 369.2328767 | P81: 0.4899 | R81: 0 | S81: 0 | V81: 829.2147718 | W81: 0 | X81: 0 | Y81: 0
D82: 23512 | E82: 粉末炭+凝集+沈澱/前ろ過+急速ろ過+紫外線+機械脱水機 | F82: 7 | G82: Ⅲ類 | I82: 15.16 | K82: 134770 | L82: 134770 | M82: 369.2328767 | P82: 0.4899 | R82: 0 | S82: 0 | V82: 829.2147718 | W82: 0 | X82: 0 | Y82: 0
D83: 23700 | E83: 粉末炭+凝集+沈澱/前ろ過+粒状炭+急速ろ過 | F83: 4 | G83: Ⅲ類 | I83: 15.16 | K83: 134770 | L83: 134770 | M83: 369.2328767 | P83: 0.4899 | R83: 0 | S83: 0 | V83: 829.2147718 | W83: 0 | X83: 0 | Y83: 0
D84: 23701 | E84: 粉末炭+凝集+沈澱/前ろ過+粒状炭+急速ろ過+天日乾燥床 | F84: 4 | G84: Ⅲ類 | I84: 15.16 | K84: 134770 | L84: 134770 | M84: 369.2328767 | P84: 0.4899 | R84: 0 | S84: 0 | V84: 829.2147718 | W84: 0 | X84: 0 | Y84: 0
D85: 23702 | E85: 粉末炭+凝集+沈澱/前ろ過+粒状炭+急速ろ過+機械脱水機 | F85: 4 | G85: Ⅲ類 | I85: 15.16 | K85: 134770 | L85: 134770 | M85: 369.2328767 | P85: 0.4899 | R85: 0 | S85: 0 | V85: 829.2147718 | W85: 0 | X85: 0 | Y85: 0
D86: 23710 | E86: 粉末炭+凝集+沈澱/前ろ過+粒状炭+急速ろ過+紫外線 | F86: 7 | G86: Ⅲ類 | I86: 15.16 | K86: 134770 | L86: 134770 | M86: 369.2328767 | P86: 0.4899 | R86: 0 | S86: 0 | V86: 829.2147718 | W86: 0 | X86: 0 | Y86: 0
D87: 23711 | E87: 粉末炭+凝集+沈澱/前ろ過+粒状炭+急速ろ過+紫外線+天日乾燥床 | F87: 7 | G87: Ⅲ類 | I87: 15.16 | K87: 134770 | L87: 134770 | M87: 369.2328767 | P87: 0.4899 | R87: 0 | S87: 0 | V87: 829.2147718 | W87: =$C$178 -> 0 | X87: 0 | Y87: =V87*W87+X87 -> 0
D88: 23712 | E88: 粉末炭+凝集+沈澱/前ろ過+粒状炭+急速ろ過+紫外線+機械脱水機 | F88: 7 | G88: Ⅲ類 | I88: 15.16 | K88: 134770 | L88: 134770 | M88: 369.2328767 | P88: 0.4899 | R88: 0 | S88: 0 | V88: 829.2147718 | W88: 0 | X88: 0 | Y88: 0
D89: 23800 | E89: 粉末炭+凝集+沈澱/前ろ過+オゾン+粒状炭+急速ろ過 | F89: 5.5 | G89: Ⅲ類 | I89: 15.16 | K89: 134770 | L89: 134770 | M89: 369.2328767 | P89: 0.4899 | R89: 0 | S89: 0 | V89: 829.2147718 | W89: 0 | X89: 0 | Y89: 0
D90: 23801 | E90: 粉末炭+凝集+沈澱/前ろ過+オゾン+粒状炭+急速ろ過+天日乾燥床 | F90: 5.5 | G90: Ⅲ類 | I90: 15.16 | K90: 134770 | L90: 134770 | M90: 369.2328767 | P90: 0.4899 | R90: 0 | S90: 0 | V90: 829.2147718 | W90: 0 | X90: 0 | Y90: 0
D91: 23802 | E91: 粉末炭+凝集+沈澱/前ろ過+オゾン+粒状炭+急速ろ過+機械脱水機 | F91: 5.5 | G91: Ⅲ類 | I91: 15.16 | K91: 134770 | L91: 134770 | M91: 369.2328767 | P91: 0.4899 | R91: 0 | S91: 0 | V91: 829.2147718 | W91: 0 | X91: 0 | Y91: 0
D92: 23810 | E92: 粉末炭+凝集+沈澱/前ろ過+オゾン+粒状炭+急速ろ過+紫外線 | F92: 8.5 | G92: Ⅲ類 | I92: 15.16 | K92: 134770 | L92: 134770 | M92: 369.2328767 | P92: 0.4899 | R92: 0 | S92: 0 | V92: 829.2147718 | W92: 0 | X92: 0 | Y92: 0
D93: 23811 | E93: 粉末炭+凝集+沈澱/前ろ過+オゾン+粒状炭+急速ろ過+紫外線+天日乾燥床 | F93: 8.5 | G93: Ⅲ類 | I93: 15.16 | K93: 134770 | L93: 134770 | M93: 369.2328767 | P93: 0.4899 | R93: 0 | S93: 0 | V93: 829.2147718 | W93: 0 | X93: 0 | Y93: 0
D94: 23812 | E94: 粉末炭+凝集+沈澱/前ろ過+オゾン+粒状炭+急速ろ過+紫外線+機械脱水機 | F94: 8.5 | G94: Ⅲ類 | I94: 15.16 | K94: 134770 | L94: 134770 | M94: 369.2328767 | P94: 0.4899 | R94: 0 | S94: 0 | V94: 829.2147718 | W94: 0 | X94: 0 | Y94: 0
D95: 30000 | E95: 膜ろ過 | F95: 6 | G95: Ⅰ類 | I95: =$F$191 -> 16.277 | K95: =$H$191 -> 165801 | L95: 165801 | M95: 454.2493151 | P95: =$F$198 -> 0.4337 | R95: =$H$198 -> 0 | S95: 0 | Z95: =$F$213 -> 491.168338 | AA95: =$C$178 -> 0 | AB95: =H213 -> 0 | AC95: =Z95*AA95+AB95 -> 0
D96: 30001 | E96: 膜ろ過+天日乾燥床 | F96: 6 | G96: Ⅰ類 | I96: =$F$191 -> 16.277 | K96: =$H$191 -> 165801 | L96: 165801 | M96: 454.2493151 | P96: =$F$198 -> 0.4337 | R96: =$H$198 -> 0 | S96: 0 | Z96: =$F$213 -> 491.168338 | AA96: 0 | AB96: 0 | AC96: 0
D97: 30002 | E97: 膜ろ過+機械脱水機 | F97: 6 | G97: Ⅰ類 | I97: 16.277 | K97: 165801 | L97: 165801 | M97: 454.2493151 | P97: 0.4337 | R97: 0 | S97: 0 | Z97: 491.168338 | AA97: 0 | AB97: 0 | AC97: 0
D98: 30010 | E98: 膜ろ過+紫外線 | F98: 9 | G98: Ⅰ類 | I98: 16.277 | K98: 165801 | L98: 165801 | M98: 454.2493151 | P98: 0.4337 | R98: 0 | S98: 0 | Z98: 491.168338 | AA98: 0 | AB98: 0 | AC98: 0
D99: 30011 | E99: 膜ろ過+紫外線+天日乾燥床 | F99: 9 | G99: Ⅰ類 | I99: 16.277 | K99: 165801 | L99: 165801 | M99: 454.2493151 | P99: 0.4337 | R99: 0 | S99: 0 | Z99: 491.168338 | AA99: 0 | AB99: 0 | AC99: 0
D100: 30012 | E100: 膜ろ過+紫外線+機械脱水機 | F100: 9 | G100: Ⅰ類 | I100: 16.277 | K100: 165801 | L100: 165801 | M100: 454.2493151 | P100: 0.4337 | R100: 0 | S100: 0 | Z100: 491.168338 | AA100: 0 | AB100: 0 | AC100: 0
D101: 30200 | E101: 粒状炭+膜ろ過 | F101: 6 | G101: Ⅱ類 | I101: 16.277 | K101: 165801 | L101: 165801 | M101: 454.2493151 | P101: 0.4337 | R101: 0 | S101: 0 | Z101: 491.168338 | AA101: 0 | AB101: 0 | AC101: 0
D102: 30201 | E102: 粒状炭+膜ろ過+天日乾燥床 | F102: 6 | G102: Ⅱ類 | I102: 16.277 | K102: 165801 | L102: 165801 | M102: 454.2493151 | P102: 0.4337 | R102: 0 | S102: 0 | Z102: 491.168338 | AA102: 0 | AB102: 0 | AC102: 0
D103: 30202 | E103: 粒状炭+膜ろ過+機械脱水機 | F103: 6 | G103: Ⅱ類 | I103: 16.277 | K103: 165801 | L103: 165801 | M103: 454.2493151 | P103: 0.4337 | R103: 0 | S103: 0 | Z103: 491.168338 | AA103: 0 | AB103: 0 | AC103: 0
D104: 30210 | E104: 粒状炭+膜ろ過+紫外線 | F104: 9 | G104: Ⅱ類 | I104: 16.277 | K104: 165801 | L104: 165801 | M104: 454.2493151 | P104: 0.4337 | R104: 0 | S104: 0 | Z104: 491.168338 | AA104: 0 | AB104: 0 | AC104: 0
D105: 30211 | E105: 粒状炭+膜ろ過+紫外線+天日乾燥床 | F105: 9 | G105: Ⅱ類 | I105: 16.277 | K105: 165801 | L105: 165801 | M105: 454.2493151 | P105: 0.4337 | R105: 0 | S105: 0 | Z105: 491.168338 | AA105: 0 | AB105: 0 | AC105: 0
D106: 30212 | E106: 粒状炭+膜ろ過+紫外線+機械脱水機 | F106: 9 | G106: Ⅱ類 | I106: 16.277 | K106: 165801 | L106: 165801 | M106: 454.2493151 | P106: 0.4337 | R106: 0 | S106: 0 | Z106: 491.168338 | AA106: 0 | AB106: 0 | AC106: 0
D107: 30700 | E107: 粉末炭+粒状炭+膜ろ過 | F107: 6 | G107: Ⅱ類 | I107: 16.277 | K107: 165801 | L107: 165801 | M107: 454.2493151 | P107: 0.4337 | R107: 0 | S107: 0 | V107: =$F$206 -> 1010.194593 | W107: 0 | X107: =$H$206 -> 0 | Y107: =V107*W107+X107 -> 0 | Z107: 491.168338 | AA107: 0 | AB107: 0 | AC107: 0
D108: 30701 | E108: 粉末炭+粒状炭+膜ろ過+天日乾燥床 | F108: 6 | G108: Ⅱ類 | I108: 16.277 | K108: 165801 | L108: 165801 | M108: 454.2493151 | P108: 0.4337 | R108: 0 | S108: 0 | V108: 1010.194593 | W108: 0 | X108: 0 | Y108: 0 | Z108: 491.168338 | AA108: 0 | AB108: 0 | AC108: 0
